Workbook

Sheet 01.BALANCE ENERGIA Jun-19 Def
B1: Mes | C1: 2019-06-01
B3: Total | C3: =+SUM(C9:C437) -> 1.000016958 | D3: =+SUM(D9:D437) -> 1.000016958
B4: Positivo | C4: =+SUMIF(C$9:C$437,">0") -> 3.218228267e+10 | D4: =+SUMIF(D$9:D$437,">0") -> 3.218228267e+10
B5: Negativo | C5: =+SUMIF(C$9:C$437,"<0") -> -3.218228267e+10 | D5: =+SUMIF(D$9:D$437,"<0") -> -3.218228267e+10 | J5: CUADRO DE PAGOS 01.BALANCE ENERGIA Jun-19 Def (Valores en $)
F6: ="Balance Energía "& TEXT(C1,"mmm-yy") -> Balance Energía jun-yy
C7: Datos | K7: Reciben
B8: Empresa | C8: Energía SEN | D8: TOTAL | F8: Empresa | G8: Paga | H8: Recibe | J8: Pagan | K8: GASATACAMA | L8: AES_GENER | M8: GMETROPOLITANA | N8: IMELSA_ENERGIA | O8: COLBUN | P8: GUACOLDA | Q8: ARAUCO BIO | R8: SGA | S8: ELEKTRAGEN | T8: GESAN | U8: EL MANZANO | V8: ESPINOS | W8: PARQUE_EOLICO_LEBU | X8: ORAFTI | Y8: ALTO_MANGA_ENERGY | Z8: GENPAC | AA8: MONTE REDONDO | AB8: PANGUIPULLI | AC8: HIDROPALOMA | AD8: SWO | AE8: BARRICK | AF8: CARRAN | AG8: DONGO | AH8: INACAL | AI8: HIDROLIRCAY | AJ8: LOS MORROS | AK8: DIUTO | AL8: LICAN | AM8: ENERGIA PACIFICO | AN8: DONGUIL | AO8: PEHUI | AP8: COMASA | AQ8: ENERBOSCH | AR8: HIDROMUCHI | AS8: BE FORESTALES | AT8: EL CANELO | AU8: CARBOMET | AV8: HIDROENERSUR | AW8: RUCATAYO | AX8: KALTEMP | AY8: ESTANCILLA SPA | AZ8: MAPOCHO TREBAL | BA8: UCUQUER | BB8: TAMM | BC8: TALINAY | BD8: ROBLERIA | BE8: GENERHOM | BF8: WENKE | BG8: ARRAYAN | BH8: SOLAIREDIRECT | BI8: SANTAMARTA | BJ8: RIO HUASCO | BK8: SANTA IRENE | BL8: CONTRA | BM8: COLMITO | BN8: COMMONPLACE | BO8: AELA_GENERACION | BP8: AMANECER SOLAR | BQ8: SAN_ANDRES_SPA | BR8: ENERGIA_LEON | BS8: ENERGIAS_DEL_FUTURO | BT8: ARRAYAN_EOLICO | BU8: BIOCRUZ | BV8: HBS | BW8: LOS_PADRES | BX8: LOS_CURUROS | BY8: LOMAS_COLORADAS | BZ8: PAMA | CA8: RIO_PUMA | CB8: GM_HOLDINGS | CC8: PH_PUNTA_SIERRA | CD8: UCUQUER_DOS | CE8: EBCO_ATACAMA | CF8: ATRIA_ENERGIA | CG8: EOLICA_TALTAL | CH8: PV_SALVADOR | CI8: COLLIL | CJ8: MARIA_ELENA | CK8: LAS_FLORES | CL8: BESALCO | CM8: LLEUQUEREO | CN8: CURILEUFU | CO8: BIOBIO_NEGRETE | CP8: LUZ_DEL_NORTE | CQ8: RAKI | CR8: TRAILELFU | CS8: GR_PAN_DE_AZUCAR | CT8: PUCLARO | CU8: HUAJACHE | CV8: EL_MIRADOR | CW8: RIO_MULCHEN | CX8: EGP_SUR | CY8: EL_MORADO | CZ8: CAREN | DA8: RENOVALIA_6 | DB8: RENOVALIA_7 | DC8: AGSA | DD8: TILTIL_SOLAR | DE8: BELLAVISTA | DF8: MALLARAUCO | DG8: M_VILLARRICA | DH8: CHANLEUFU | DI8: RASO_POWER | DJ8: LOS_LOROS | DK8: ALTOS_DEL_PAICO | DL8: EL_AGRIO | DM8: LA_MONTAÑA_1 | DN8: SAN_JUAN_LAP | DO8: DIVISADERO | DP8: CUMPEO | DQ8: SAFIRA_ENERGIA_CHILE | DR8: TEATINOS | DS8: GR_HUINGAN | DT8: GR_COIGUE | DU8: HORMIGA_SOLAR | DV8: GESTEL | DW8: CUZCUZ | DX8: GR_ARAUCARIA | DY8: MAINCO | DZ8: EL_ARROYO | EA8: LOS_PINOS_BIO | EB8: EL_BOCO | EC8: SANTIAGO_SOLAR | ED8: GENERADORA_PIUTEL | EE8: HIDRORIÑINAHUE | EF8: GR_CANELO | EG8: LA_LEONERA | EH8: CABO_LEONES | EI8: CHILE_GENERACION | EJ8: RIO_COLORADO | EK8: LAS_TURCAS | EL8: GR_GUAYACAN | EM8: DOS_VALLES | EN8: SOCER | EO8: COYANCO | EP8: GR_ESPINO | EQ8: LA_MONTAÑA_2 | ER8: SAN_FRANCISCO | ES8: QUINTA_SOLAR | ET8: VALLE_DE_LA_LUNA_II | EU8: GR_LINGUE | EV8: QUELTEHUE | EW8: CHESTER_SOLAR_IV | EX8: CHESTER_SOLAR_V | EY8: PV_CHANCON | EZ8: PITIO | FA8: CH _SANTA_ELENA | FB8: AMPARO | FC8: PARRONAL | FD8: GR_TIACA | FE8: GR_BOLDO | FF8: PV_PORTEZUELO | FG8: CATAN_SOLAR | FH8: SOLAR_E | FI8: GORRIONES | FJ8: PV_EL_PICURIO | FK8: CHINCOL | FL8: VILLA_PRAT_ENERGY | FM8: PS_SANTALAURA | FN8: PV_LIBERTADORES | FO8: PFV_OCOA | FP8: ENERGEN | FQ8: PV_LAS_PALOMAS | FR8: PALACIOS | FS8: MINICENTRALES_ARAUCANIA | FT8: LA_ACACIA | FU8: GR_LITRE | FV8: GR_LAUREL | FW8: PATOS | FX8: TACORA_ENERGY | FY8: CH_CONVENTO_VIEJO | FZ8: MINICENTRAL_ARRAYAN | GA8: GR_TINEO | GB8: PV_RODEO | GC8: LIPIGAS | GD8: PV_LA_FRONTERA | GE8: EL_CERNICALO | GF8: FOTOVOLT_SOLAR_I | GG8: ABASTIBLE | GH8: SINERGIA_SOLAR_SPA | GI8: VALLE_SOLAR_OESTE_2 | GJ8: PILPEN | GK8: HIDROELECTRICA SAN ANDRES | GL8: LA_MANGA_ENERGY | GM8: EL_QUEULE | GN8: LOA_SOLAR | GO8: PIQUERO | GP8: MIMBRE | GQ8: PARQUE_SOLAR | GR8: DIEGO_DE_ALMAGRO_SOLAR | GS8: PFALICAHUE_SOLAR | GT8: LUNA_ENERGY | GU8: CALLE_LARGA_SPA | GV8: NUOVOSOL_SPA | GW8: APOLO_DEL_NORTE_SPA | GX8: SOLAR_UNO | GY8: COCHRANE | GZ8: GENERACION_SOLAR_SPA | HA8: NORACID | HB8: ANGAMOS | HC8: HELIO_ATACAMA_TRES | HD8: PLANTA_SOLAR_SPIII | HE8: CALAMA_SOLAR_1 | HF8: PUERTO_SECO | HG8: ENERNUEVAS | HH8: CAVANCHA | HI8: SPS_LA_HUAYCA | HJ8: LOS_PUQUIOS | HK8: PMGD_PICA_PILOT | HL8: FV_NORTE_GRANDE_5 | HM8: POZO_ALMONTE_SOLAR_1 | HN8: POZO_ALMONTE_SOLAR_3 | HO8: SOLAR_TI_CUATRO | HP8: SOLAR_LOS_PERALES_I | HQ8: VITUCO | HR8: POBLACION_SOLAR | HS8: RANGUIL_SUR_SPA | HT8: PARQUE_SOLAR_H6 | HU8: RLA_SOLAR | HV8: PMGD_CRUZ_SPA | HW8: ACOTANGO_DE_VERANO | HX8: HIDROPALMAR | HY8: AUSTRIAN_SOLAR | HZ8: SOLAR_TI_DIEZ | IA8: EL_NOGAL | IB8: TRICAHUE_SOLAR | IC8: GR_MOLLE | ID8: REDEN_CABILDO_SOLAR | IE8: REDEN_TALHUEN_SOLAR | IF8: SANTA_CLARA | IG8: LAUREL_SPA | IH8: REDEN_LALAJUELA | II8: CUMBRES | IJ8: SANTA_ADRIANA | IK8: GR_CHAQUIHUE | IL8: ISABEL_SOLAR_SPA | IM8: CRUCERO_SPA | IN8: ALTOS_TILTIL | IO8: FV_ARIZTIA | IP8: HIDROANGOL | IQ8: LA HIGUERA | IR8: DUQUECO | IS8: ZALDIVAR_TRANSMISION | IT8: Total
A9: =+MATCH(B9,RUT[EMPRESA],0) -> 108 | B9: ENEL_GENERACION | C9: -1.123601323e+10 | D9: =+C9 -> -1.123601323e+10 | F9: =IFERROR(INDEX($B$9:$B$511,MATCH(0,INDEX(COUNTIF($F$8:F8,$B$9:$B$511),0,0),0)),"") -> ENEL_GENERACION | G9: =IF(SUMIF($B$9:$B$400,F9,$D$9:$D$400)<-0.00001,SUMIF($B$9:$B$400,F9,$D$9:$D$400),"") -> -1.123601323e+10 | H9: =IF(SUMIF($B$9:$B$400,F9,$D$9:$D$400)>0.00001,SUMIF($B$9:$B$400,F9,$D$9:$D$400),"") ->  | J9: ENEL_GENERACION | K9: =$IT9*K$66/$IT$66 -> 135654718.7 | L9: 81671366.56 | M9: 65385355.4 | N9: 17308107.66 | O9: 1179224074 | P9: 422618140.5 | Q9: 460863082.1 | R9: 118543674.5 | S9: 455379.8149 | T9: 2490773.852 | U9: =$IT9*U$66/$IT$66 -> 15628551.87 | V9: 7343756.779 | W9: 3374992.354 | X9: 31510484.97 | Y9: 4602043.609 | Z9: 31014318.73 | AA9: 14880544.72 | AB9: 417384178.2 | AC9: 5259609.774 | AD9: 14669.97347 | AE9: =$IT9*AE$66/$IT$66 -> 1302054.387 | AF9: 4478248.647 | AG9: 30727575.44 | AH9: 293440.9471 | AI9: 54901659.88 | AJ9: 3456574.006 | AK9: 25553780.32 | AL9: 112931170 | AM9: 75392032.18 | AN9: 1926110.603 | AO9: =$IT9*AO$66/$IT$66 -> 7899356.751 | AP9: 254564544.6 | AQ9: 52084583.3 | AR9: 5233576.04 | AS9: 328175504.5 | AT9: 9319632.604 | AU9: 20268299.53 | AV9: 169084597.4 | AW9: 97450203.64 | AX9: 560343.1728 | AY9: =$IT9*AY$66/$IT$66 -> 137616.038 | AZ9: 4442614.367 | BA9: 27627030.63 | BB9: 83049.8253 | BC9: 39933463.34 | BD9: 5238.096661 | BE9: 27014224.91 | BF9: 2482.361345 | BG9: 539137.811 | BH9: 1655671.474 | BI9: =$IT9*BI$66/$IT$66 -> 51588176.86 | BJ9: 19398441.1 | BK9: 1502544.761 | BL9: 2823359.587 | BM9: 116903284.1 | BN9: 5929481.261 | BO9: 119771716.8 | BP9: 149044215.2 | BQ9: 64547125.01 | BR9: 15368561.69 | BS9: =$IT9*BS$66/$IT$66 -> 81010.16919 | BT9: 114303855.8 | BU9: 27521302.71 | BV9: 2403365.694 | BW9: 10115614.1 | BX9: 108078160.6 | BY9: 4375613.402 | BZ9: 4093762.935 | CA9: 4739560.646 | CB9: 71993665.39 | CC9: =$IT9*CC$66/$IT$66 -> 288985843.4 | CD9: 23413081.08 | CE9: 4180113.204 | CF9: 12017321.63 | CG9: 50392969.49 | CH9: 107284250.9 | CI9: 41592418.57 | CJ9: 1541292.223 | CK9: 17374233.14 | CL9: 10547123.21 | CM9: =$IT9*CM$66/$IT$66 -> 11389299.57 | CN9: 2002701.052 | CO9: 24007796.39 | CP9: 81046371.3 | CQ9: 340492.064 | CR9: 20770998.3 | CS9: 5860182.359 | CT9: 7605927.263 | CU9: 1079986.181 | CV9: 19038092.22 | CW9: =$IT9*CW$66/$IT$66 -> 238541.6581 | CX9: 42515594.19 | CY9: 10861236.64 | CZ9: 6734944.166 | DA9: 3991931.365 | DB9: 3666972.11 | DC9: 8359219.831 | DD9: 1812094.804 | DE9: 1831905.514 | DF9: 38066931.04 | DG9: =$IT9*DG$66/$IT$66 -> 1878682.139 | DH9: 20962617.4 | DI9: 556026.2474 | DJ9: 80401995.55 | DK9: 197166.8742 | DL9: 15773725.61 | DM9: 2207515.172 | DN9: 148772086.7 | DO9: 5982142.753 | DP9: 34796257.31 | DQ9: =$IT9*DQ$66/$IT$66 -> 41532177.35 | DR9: 509731.7795 | DS9: 12501367.7 | DT9: 3910583.815 | DU9: 3894165.696 | DV9: 1622290.575 | DW9: 4413591.32 | DX9: 11769557.71 | DY9: 37064720.02 | DZ9: 24779996.1 | EA9: =$IT9*EA$66/$IT$66 -> 11275744.71 | EB9: 4982095.9 | EC9: 45632178.11 | ED9: 4670118.769 | EE9: 7866943.138 | EF9: 13206829.45 | EG9: 13316431.9 | EH9: 269083386.9 | EI9: 340480.4726 | EJ9: 18167534.7 | EK9: =$IT9*EK$66/$IT$66 -> 4061223.387 | EL9: 4700540.323 | EM9: 3717402.45 | EN9: 31436531.88 | EO9: 11147214.12 | EP9: 3411900.684 | EQ9: 985692.3167 | ER9: 4677540.734 | ES9: 4702827.415 | ET9: 3837224.022 | EU9: =$IT9*EU$66/$IT$66 -> 10085663.01 | EV9: 4156194.997 | EW9: 10887693.37 | EX9: 3185352.933 | EY9: 2855235.672 | EZ9: 2254093.138 | FA9: 22063711.19 | FB9: 5754372.113 | FC9: 2999851.924 | FD9: 3508342.322 | FE9: =$IT9*FE$66/$IT$66 -> 3278397.353 | FF9: 3538840.13 | FG9: 4184663.648 | FH9: 31471474.6 | FI9: 2549629.128 | FJ9: 2827175.637 | FK9: 2332456.905 | FL9: 3020578.679 | FM9: 3799790.316 | FN9: 4978291.413 | FO9: =$IT9*FO$66/$IT$66 -> 4426545.486 | FP9: 226500.6344 | FQ9: 2349456.773 | FR9: 2035053.796 | FS9: 27428095.8 | FT9: 2697211.216 | FU9: 10944397.05 | FV9: 3414303.432 | FW9: 2933718.852 | FX9: 10303890.86 | FY9: =$IT9*FY$66/$IT$66 -> 1.049193935 | FZ9: 2981092.262 | GA9: 2170643.435 | GB9: 3762193.537 | GC9: 9800227.205 | GD9: 6918553.383 | GE9: 2374277.007 | GF9: 940950.6456 | GG9: 2145885.819 | GH9: 21968054.98 | GI9: =$IT9*GI$66/$IT$66 -> 22202291.22 | GJ9: 4198235.182 | GK9: 23109051.01 | GL9: 2979827.606 | GM9: 3267426.22 | GN9: 10545827.4 | GO9: 4671913.803 | GP9: 244044.0512 | GQ9: 4533475.748 | GR9: 20261184.75 | GS9: =$IT9*GS$66/$IT$66 -> 4848221.197 | GT9: 2674093.715 | GU9: 4759662.014 | GV9: 23487700.86 | GW9: 21697095.94 | GX9: 8534116.02 | GY9: 1480820868 | GZ9: 111290873.7 | HA9: 118046353.4 | HB9: 786244894.2 | HC9: =$IT9*HC$66/$IT$66 -> 199541794.3 | HD9: 39291107.6 | HE9: 29773742.17 | HF9: 26857031.27 | HG9: 19874680.81 | HH9: 16142906.5 | HI9: 40702547.19 | HJ9: 2362024.777 | HK9: 783235.6292 | HL9: 95723298.4 | HM9: =$IT9*HM$66/$IT$66 -> 30356978.72 | HN9: 2274860.403 | HO9: 3349621.379 | HP9: 1874815.451 | HQ9: 2865447.657 | HR9: 2474839.546 | HS9: 1678132.131 | HT9: 3367395.785 | HU9: 226078.5283 | HV9: 1016736.104 | HW9: =$IT9*HW$66/$IT$66 -> 291605.5359 | HX9: 110593.5621 | HY9: 126171480.4 | HZ9: 1868336.174 | IA9: 13350447.25 | IB9: 7017430.929 | IC9: 7348413.902 | ID9: 5941071.417 | IE9: 7479642.167 | IF9: 4355693.315 | IG9: =$IT9*IG$66/$IT$66 -> 7364379.506 | IH9: 9531515.528 | II9: 91209305.85 | IJ9: 2807778.318 | IK9: 11691101.56 | IL9: 4051603.701 | IM9: 2768827.59 | IN9: 2351092.611 | IO9: 2613510.675 | IP9: 104272856.2 | IQ9: 160346416.3 | IR9: 174871402.1 | IS9: 29540868.64 | IT9: 1.123601323e+10
A10: =+MATCH(B10,RUT[EMPRESA],0) -> 331 | B10: GASATACAMA | C10: 388543375.2 | D10: =+C10 -> 388543375.2 | F10: =IFERROR(INDEX($B$9:$B$511,MATCH(0,INDEX(COUNTIF($F$8:F9,$B$9:$B$511),0,0),0)),"") -> GASATACAMA | G10: =IF(SUMIF($B$9:$B$400,F10,$D$9:$D$400)<-0.00001,SUMIF($B$9:$B$400,F10,$D$9:$D$400),"") ->  | H10: =IF(SUMIF($B$9:$B$400,F10,$D$9:$D$400)>0.00001,SUMIF($B$9:$B$400,F10,$D$9:$D$400),"") -> 388543375.2 | J10: PEHUENCHE | K10: 4533162.31 | L10: 2729205.178 | M10: 2184976.915 | N10: 578383.5758 | O10: 39406031.56 | P10: 14122594.81 | Q10: 15400622.8 | R10: 3961363.985 | S10: 15217.38892 | T10: 83233.98004 | U10: 522258.0015 | V10: 245405.7018 | W10: 112781.8352 | X10: 1052983.222 | Y10: 153786.1037 | Z10: 1036402.877 | AA10: 497261.9096 | AB10: 13947691.93 | AC10: 175759.9368 | AD10: 490.2252679 | AE10: 43510.6418 | AF10: 149649.2579 | AG10: 1026820.8 | AH10: 9805.891415 | AI10: 1834644.144 | AJ10: 115508.0424 | AK10: 853928.5246 | AL10: 3773811.396 | AM10: 2519369.189 | AN10: 64364.67579 | AO10: 263972.1392 | AP10: 8506761.946 | AQ10: 1740506.133 | AR10: 174889.9698 | AS10: 10966613.19 | AT10: 311433.3778 | AU10: 677304.0584 | AV10: 5650285.75 | AW10: 3256485.248 | AX10: 18724.94061 | AY10: 4598.703551 | AZ10: 148458.4701 | BA10: 923210.1557 | BB10: 2775.269017 | BC10: 1334453.181 | BD10: 175.041035 | BE10: 902732.0787 | BF10: 82.95286 | BG10: 18016.32282 | BH10: 55327.43421 | BI10: 1723917.761 | BJ10: 648236.0726 | BK10: 50210.41171 | BL10: 94347.96954 | BM10: 3906547.199 | BN10: 198144.9759 | BO10: 4002401.372 | BP10: 4980597.985 | BQ10: 2156965.84 | BR10: 513569.9314 | BS10: 2707.110001 | BT10: 3819682.321 | BU10: 919677.0547 | BV10: 80313.06899 | BW10: 338032.6245 | BX10: 3611638.79 | BY10: 146219.5045 | BZ10: 136800.9312 | CA10: 158381.4989 | CB10: 2405806.253 | CC10: 9657015.59 | CD10: 782392.9584 | CE10: 139686.4909 | CF10: 401581.8247 | CG10: 1683977.617 | CH10: 3585108.777 | CI10: 1389890.348 | CJ10: 51505.23239 | CK10: 580593.2857 | CL10: 352452.3281 | CM10: 380595.2645 | CN10: 66924.09237 | CO10: 802266.5101 | CP10: 2708319.764 | CQ10: 11378.19462 | CR10: 694102.7009 | CS10: 195829.2203 | CT10: 254166.6307 | CU10: 36089.80726 | CV10: 636194.3243 | CW10: 7971.326497 | CX10: 1420740.03 | CY10: 362949.0301 | CZ10: 225061.0619 | DA10: 133398.0342 | DB10: 122538.8982 | DC10: 279339.345 | DD10: 60554.61943 | DE10: 61216.63226 | DF10: 1272079.428 | DG10: 62779.76282 | DH10: 700506.02 | DI10: 18580.68228 | DJ10: 2686786.713 | DK10: 6588.708828 | DL10: 527109.2604 | DM10: 73768.34857 | DN10: 4971504.292 | DO10: 199904.7605 | DP10: 1162783.6 | DQ10: 1387877.272 | DR10: 17033.66394 | DS10: 417757.1514 | DT10: 130679.65 | DU10: 130131.0071 | DV10: 54211.9475 | DW10: 147488.6094 | DX10: 393302.3187 | DY10: 1238588.627 | DZ10: 828071.0427 | EA10: 376800.6114 | EB10: 166486.2791 | EC10: 1524886.653 | ED10: 156060.9656 | EE10: 262888.9763 | EF10: 441331.5073 | EG10: 444994.0834 | EH10: 8991936.876 | EI10: 11377.80728 | EJ10: 607102.9769 | EK10: 135713.5599 | EL10: 157077.5601 | EM10: 124224.1246 | EN10: 1050511.938 | EO10: 372505.5153 | EP10: 114015.1978 | EQ10: 32938.79713 | ER10: 156308.9847 | ES10: 157153.9876 | ET10: 128228.192 | EU10: 337031.7514 | EV10: 138887.2182 | EW10: 363833.1323 | EX10: 106444.6707 | EY10: 95413.16997 | EZ10: 75324.84053 | FA10: 737301.1786 | FB10: 192293.3682 | FC10: 100245.7991 | FD10: 117237.9799 | FE10: 109553.9282 | FF10: 118257.1226 | FG10: 139838.5527 | FH10: 1051679.616 | FI10: 85200.74182 | FJ10: 94475.49013 | FK10: 77943.51593 | FL10: 100938.4233 | FM10: 126977.273 | FN10: 166359.1449 | FO10: 147921.4977 | FP10: 7568.952624 | FQ10: 78511.5991 | FR10: 68005.22131 | FS10: 916562.3674 | FT10: 90132.48003 | FU10: 365727.9943 | FV10: 114095.4902 | FW10: 98035.83577 | FX10: 344324.2529 | FY10: 0.03506082536 | FZ10: 99618.90903 | GA10: 72536.20886 | GB10: 125720.9046 | GC10: 327493.3671 | GD10: 231196.7157 | GE10: 79341.01478 | GF10: 31443.66847 | GG10: 71708.88567 | GH10: 734104.643 | GI10: 741932.0957 | GJ10: 140292.0715 | GK10: 772233.2113 | GL10: 99576.64814 | GM10: 109187.3068 | GN10: 352409.0261 | GO10: 156120.9501 | GP10: 8155.199503 | GQ10: 151494.7773 | GR10: 677066.3044 | GS10: 162012.5994 | GT10: 89359.96445 | GU10: 159053.2246 | GV10: 784886.5213 | GW10: 725050.0276 | GX10: 285183.8363 | GY10: 49484466.23 | GZ10: 3718997.754 | HA10: 3944745.048 | HB10: 26273879.41 | HC10: 6668071.332 | HD10: 1312987.633 | HE10: 994946.6344 | HF10: 897479.152 | HG10: 664150.5349 | HH10: 539446.147 | HI10: 1360153.591 | HJ10: 78931.58302 | HK10: 26173.31905 | HL10: 3198777.401 | HM10: 1014436.601 | HN10: 76018.81849 | HO10: 111934.0155 | HP10: 62650.55003 | HQ10: 95754.42303 | HR10: 82701.50467 | HS10: 56078.00009 | HT10: 112527.9813 | HU10: 7554.847138 | HV10: 33976.18474 | HW10: 9744.557634 | HX10: 3695.695751 | HY10: 4216261.734 | HZ10: 62434.03256 | IA10: 446130.7714 | IB10: 234500.8983 | IC10: 245561.3285 | ID10: 198532.2832 | IE10: 249946.5723 | IF10: 145553.8367 | IG10: 246094.8497 | IH10: 318513.8516 | II10: 3047933.691 | IJ10: 93827.29159 | IK10: 390680.5561 | IL10: 135392.0996 | IM10: 92525.67838 | IN10: 78566.26376 | IO10: 87335.4661 | IP10: 3484477.255 | IQ10: 5358282.688 | IR10: 5843662.914 | IS10: 987164.7193 | IT10: 375472907.7
A11: =+MATCH(B11,RUT[EMPRESA],0) -> 4 | B11: AES_GENER | C11: 233923808.3 | D11: 233923808.3 | F11: =IFERROR(INDEX($B$9:$B$511,MATCH(0,INDEX(COUNTIF($F$8:F10,$B$9:$B$511),0,0),0)),"") -> AES_GENER | H11: 233923808.3 | J11: TECNORED | K11: 1398539.208 | L11: 841995.0989 | M11: 674093.6402 | N11: 178438.8144 | O11: 12157270.44 | P11: 4357003.17 | Q11: 4751291.337 | R11: 1222132.029 | S11: 4694.761315 | T11: 25678.75945 | U11: 161123.3487 | V11: 75710.83325 | W11: 34794.65497 | X11: 324858.9442 | Y11: 47445.00216 | Z11: 319743.6931 | AA11: 153411.7311 | AB11: 4303043.37 | AC11: 54224.21392 | AD11: 151.2408361 | AE11: 13423.59579 | AF11: 46168.73172 | AG11: 316787.4986 | AH11: 3025.244338 | AI11: 566011.4491 | AJ11: 35635.72515 | AK11: 263447.9952 | AL11: 1164269.629 | AM11: 777257.9823 | AN11: 19857.33502 | AO11: 81438.81937 | AP11: 2624446.093 | AQ11: 536968.6551 | AR11: 53955.81782 | AS11: 3383342.02 | AT11: 96081.22536 | AU11: 208957.0627 | AV11: 1743186.239 | AW11: 1004667.821 | AX11: 5776.886381 | AY11: 1418.759529 | AZ11: 45801.35831 | BA11: 284822.2745 | BB11: 856.2063892 | BC11: 411696.0672 | BD11: 54.00242339 | BE11: 278504.5229 | BF11: 25.59203028 | BG11: 5558.268627 | BH11: 17069.2291 | BI11: 531850.9277 | BJ11: 199989.2131 | BK11: 15490.56147 | BL11: 29107.56897 | BM11: 1205220.341 | BN11: 61130.28801 | BO11: 1234792.593 | BP11: 1536578.901 | BQ11: 665451.8614 | BR11: 158442.9667 | BS11: 835.178451 | BT11: 1178421.403 | BU11: 283732.2672 | BV11: 24777.62061 | BW11: 104287.437 | BX11: 1114237.282 | BY11: 45110.60845 | BZ11: 42204.85676 | CA11: 48862.74104 | CB11: 742222.3474 | CC11: 2979314.221 | CD11: 241378.3477 | CE11: 43095.08924 | CF11: 123893.1873 | CG11: 519528.8767 | CH11: 1106052.43 | CI11: 428799.1503 | CJ11: 15890.0304 | CK11: 179120.5385 | CL11: 108736.1021 | CM11: 117418.562 | CN11: 20646.94814 | CO11: 247509.5955 | CP11: 835551.6785 | CQ11: 3510.320216 | CR11: 214139.6612 | CS11: 60415.84747 | CT11: 78413.69316 | CU11: 11134.17235 | CV11: 196274.1781 | CW11: 2459.257331 | CX11: 438316.6762 | CY11: 111974.4704 | CZ11: 69434.24871 | DA11: 41155.01902 | DB11: 37804.83509 | DC11: 86179.80112 | DD11: 18681.88335 | DE11: 18886.12287 | DF11: 392452.9577 | DG11: 19368.36887 | DH11: 216115.168 | DI11: 5732.38082 | DJ11: 828908.454 | DK11: 2032.701897 | DL11: 162620.0248 | DM11: 22758.48971 | DN11: 1533773.379 | DO11: 61673.20434 | DP11: 358733.7808 | DQ11: 428178.0904 | DR11: 5255.105652 | DS11: 128883.4848 | DT11: 40316.36232 | DU11: 40147.0989 | DV11: 16725.08702 | DW11: 45502.14373 | DX11: 121338.8526 | DY11: 382120.6123 | DZ11: 255470.6276 | EA11: 116247.8624 | EB11: 51363.17055 | EC11: 470447.2564 | ED11: 48146.82649 | EE11: 81104.64957 | EF11: 136156.4785 | EG11: 137286.4306 | EH11: 2774128.835 | EI11: 3510.200714 | EJ11: 187299.1211 | EK11: 41869.38864 | EL11: 48460.45904 | EM11: 38324.74924 | EN11: 324096.521 | EO11: 114922.7697 | EP11: 35175.16327 | EQ11: 10162.04497 | ER11: 48223.34361 | ES11: 48484.03793 | ET11: 39560.05582 | EU11: 103978.6547 | EV11: 42848.50327 | EW11: 112247.2274 | EX11: 32839.55774 | EY11: 29436.19708 | EZ11: 23238.68761 | FA11: 227466.9504 | FB11: 59324.99137 | FC11: 30927.12567 | FD11: 36169.43324 | FE11: 33798.80391 | FF11: 36483.85194 | FG11: 43142.00227 | FH11: 324456.7647 | FI11: 26285.5309 | FJ11: 29146.91072 | FK11: 24046.58284 | FL11: 31140.80921 | FM11: 39174.13113 | FN11: 51323.948 | FO11: 45635.69536 | FP11: 2335.119787 | FQ11: 24221.84385 | FR11: 20980.4904 | FS11: 282771.3458 | FT11: 27807.03593 | FU11: 112831.8168 | FV11: 35199.93453 | FW11: 30245.3234 | FX11: 106228.4858 | FY11: 0.01081671813 | FZ11: 30733.72198 | GA11: 22378.35867 | GB11: 38786.52522 | GC11: 101035.9398 | GD11: 71327.17726 | GE11: 24477.72932 | GF11: 9700.778439 | GG11: 22123.11876 | GH11: 226480.7778 | GI11: 228895.6482 | GJ11: 43281.91869 | GK11: 238243.9343 | GL11: 30720.68395 | GM11: 33685.69646 | GN11: 108722.7429 | GO11: 48165.33248 | GP11: 2515.984532 | GQ11: 46738.09833 | GR11: 208883.7126 | GS11: 49982.9825 | GT11: 27568.70488 | GU11: 49069.97711 | GV11: 242147.6441 | GW11: 223687.3119 | GX11: 87982.90226 | GY11: 15266597.9 | GZ11: 1147358.911 | HA11: 1217004.871 | HB11: 8105831.644 | HC11: 2057186.256 | HD11: 405073.668 | HE11: 306953.9061 | HF11: 276883.927 | HG11: 204899.0306 | HH11: 166426.114 | HI11: 419624.9761 | HJ11: 24351.41432 | HK11: 8074.807473 | HL11: 986864.2034 | HM11: 312966.8129 | HN11: 23452.78879 | HO11: 34533.09162 | HP11: 19328.50505 | HQ11: 29541.47806 | HR11: 25514.48391 | HS11: 17300.78838 | HT11: 34716.33776 | HU11: 2330.768062 | HV11: 10482.09247 | HW11: 3006.322073 | HX11: 1140.169942 | HY11: 1300771.281 | HZ11: 19261.70661 | IA11: 137637.1136 | IB11: 72346.56034 | IC11: 75758.8461 | ID11: 61249.77732 | IE11: 77111.75056 | IF11: 44905.24131 | IG11: 75923.44431 | IH11: 98265.64311 | II11: 940326.968 | IJ11: 28946.93309 | IK11: 120530.0049 | IL11: 41770.214 | IM11: 28545.36857 | IN11: 24238.7086 | IO11: 26944.12095 | IP11: 1075006.304 | IQ11: 1653099.517 | IR11: 1802845.595 | IS11: 304553.0846 | IT11: 115838248.7
A12: =+MATCH(B12,RUT[EMPRESA],0) -> 338 | B12: GMETROPOLITANA | C12: 187277279.5 | D12: 187277279.5 | F12: =IFERROR(INDEX($B$9:$B$511,MATCH(0,INDEX(COUNTIF($F$8:F11,$B$9:$B$511),0,0),0)),"") -> GMETROPOLITANA | H12: 187277279.5 | J12: NUEVA ENERGIA | K12: 551831.4382 | L12: 332231.9201 | M12: 265981.8622 | N12: 70407.85629 | O12: 4796979.588 | P12: 1719173.343 | Q12: 1874750.394 | R12: 482225.2184 | S12: 1852.444947 | T12: 10132.24848 | U12: 63575.57139 | V12: 29873.75525 | W12: 13729.1714 | X12: 128181.8753 | Y12: 18720.70774 | Z12: 126163.5148 | AA12: 60532.74424 | AB12: 1697882.046 | AC12: 21395.62894 | AD12: 59.67615896 | AE12: 5296.642476 | AF12: 18217.12075 | AG12: 124997.0683 | AH12: 1193.691907 | AI12: 223335.113 | AJ12: 14061.03837 | AK12: 103950.5258 | AL12: 459394.045 | AM12: 306688.1413 | AN12: 7835.248151 | AO12: 32133.88696 | AP12: 1035546.128 | AQ12: 211875.4937 | AR12: 21289.72601 | AS12: 1334989.025 | AT12: 37911.44394 | AU12: 82449.6559 | AV12: 687821.2378 | AW12: 396418.8385 | AX12: 2279.426635 | AY12: 559.8099121 | AZ12: 18072.16364 | BA12: 112384.3254 | BB12: 337.8393687 | BC12: 162445.8089 | BD12: 21.30811549 | BE12: 109891.4857 | BF12: 10.09802714 | BG12: 2193.165092 | BH12: 6735.125615 | BI12: 209856.1561 | BJ12: 78911.14849 | BK12: 6112.219641 | BL12: 11485.17793 | BM12: 475552.2551 | BN12: 24120.6071 | BO12: 487220.7864 | BP12: 606298.7294 | BQ12: 262572.0149 | BR12: 62517.95424 | BS12: 329.5422274 | BT12: 464978.0097 | BU12: 111954.2335 | BV12: 9776.679795 | BW12: 41149.42651 | BX12: 439652.4305 | BY12: 17799.60962 | BZ12: 16653.06677 | CA12: 19280.11493 | CB12: 292863.8848 | CC12: 1175568.938 | CD12: 95242.35002 | CE12: 17004.33205 | CF12: 48885.40509 | CG12: 204994.1579 | CH12: 436422.8759 | CI12: 169194.2925 | CJ12: 6269.840901 | CK12: 70676.84894 | CL12: 42904.76753 | CM12: 46330.66672 | CN12: 8146.811346 | CO12: 97661.59951 | CP12: 329689.4944 | CQ12: 1385.091703 | CR12: 84494.59019 | CS12: 23838.70528 | CT12: 30940.24166 | CU12: 4393.288588 | CV12: 77445.28101 | CW12: 970.3664383 | CX12: 172949.6895 | CY12: 44182.55327 | CZ12: 27397.1592 | DA12: 16238.82492 | DB12: 14916.91931 | DC12: 34004.56943 | DD12: 7371.44193 | DE12: 7452.030152 | DF12: 154852.92 | DG12: 7642.313342 | DH12: 85274.07977 | DI12: 2261.865762 | DJ12: 327068.2307 | DK12: 802.0574644 | DL12: 64166.12539 | DM12: 8979.977132 | DN12: 605191.735 | DO12: 24334.82941 | DP12: 141548.1075 | DQ12: 168949.2365 | DR12: 2073.543947 | DS12: 50854.46183 | DT12: 15907.91025 | DU12: 15841.12279 | DV12: 6599.335058 | DW12: 17954.10045 | DX12: 47877.52331 | DY12: 150776.0139 | DZ12: 100802.8399 | EA12: 45868.73556 | EB12: 20266.72696 | EC12: 185627.6782 | ED12: 18997.6315 | EE12: 32002.03124 | EF12: 53724.21805 | EG12: 54170.07118 | EH12: 1094607.499 | EI12: 1385.04455 | EJ12: 73903.92974 | EK12: 16520.69875 | EL12: 19121.38369 | EM12: 15122.06549 | EN12: 127881.0406 | EO12: 45345.88444 | EP12: 13879.31123 | EQ12: 4009.709458 | ER12: 19027.82339 | ES12: 19130.68738 | ET12: 15609.48908 | EU12: 41027.58811 | EV12: 16907.03489 | EW12: 44290.17691 | EX12: 12957.73495 | EY12: 11614.84703 | EZ12: 9169.452192 | FA12: 89753.23227 | FB12: 23408.27852 | FC12: 12203.1332 | FD12: 14271.62732 | FE12: 13336.23145 | FF12: 14395.68971 | FG12: 17022.84285 | FH12: 128023.1845 | FI12: 10371.66655 | FJ12: 11500.70128 | FK12: 9488.229088 | FL12: 12287.44781 | FM12: 15457.21207 | FN12: 20251.25065 | FO12: 18006.79685 | FP12: 921.3846155 | FQ12: 9557.383055 | FR12: 8278.419459 | FS12: 111575.076 | FT12: 10972.01747 | FU12: 44520.84247 | FV12: 13889.0854 | FW12: 11934.10969 | FX12: 41915.31974 | FY12: 0.004268028444 | FZ12: 12126.82055 | GA12: 8829.986159 | GB12: 15304.27168 | GC12: 39866.46041 | GD12: 28144.06531 | GE12: 9658.34958 | GF12: 3827.704284 | GG12: 8729.274357 | GH12: 89364.11123 | GI12: 90316.96361 | GJ12: 17078.05066 | GK12: 94005.58251 | GL12: 12121.67604 | GM12: 13291.60185 | GN12: 42899.49629 | GO12: 19004.93353 | GP12: 992.7496883 | GQ12: 18441.77973 | GR12: 82420.71361 | GS12: 19722.13647 | GT12: 10877.97752 | GU12: 19361.88552 | GV12: 95545.89671 | GW12: 88261.87375 | GX12: 34716.03171 | GY12: 6023848.761 | GZ12: 452721.4643 | HA12: 480202.16 | HB12: 3198374.924 | HC12: 811718.43 | HD12: 159832.7623 | HE12: 121116.9587 | HF12: 109252.0358 | HG12: 80848.44966 | HH12: 65667.92071 | HI12: 165574.3741 | HJ12: 9608.508586 | HK12: 3186.1335 | HL12: 389393.9402 | HM12: 123489.5136 | HN12: 9253.931597 | HO12: 13625.96451 | HP12: 7626.583996 | HQ12: 11656.38849 | HR12: 10067.42912 | HS12: 6826.493587 | HT12: 13698.26923 | HU12: 919.6675248 | HV12: 4135.992847 | HW12: 1186.225616 | HX12: 449.8848623 | HY12: 513254.4606 | HZ12: 7600.226867 | IA12: 54308.44262 | IB12: 28546.29045 | IC12: 29892.70001 | ID12: 24167.75484 | IE12: 30426.52503 | IF12: 17718.57646 | IG12: 29957.64668 | IH12: 38773.36499 | II12: 371031.4163 | IJ12: 11421.7947 | IK12: 47558.3706 | IL12: 16481.56672 | IM12: 11263.34657 | IN12: 9564.037499 | IO12: 10631.53105 | IP12: 424172.7879 | IQ12: 652275.0874 | IR12: 711361.4492 | IS12: 120169.6497 | IT12: 45707111.39
A13: =+MATCH(B13,RUT[EMPRESA],0) -> 177 | B13: IMELSA_ENERGIA | C13: 49574026.11 | D13: 49574026.11 | F13: =IFERROR(INDEX($B$9:$B$511,MATCH(0,INDEX(COUNTIF($F$8:F12,$B$9:$B$511),0,0),0)),"") -> IMELSA_ENERGIA | H13: 49574026.11 | J13: PACIFIC HYDRO | K13: 218337.4824 | L13: 131450.7946 | M13: 105238.314 | N13: 27857.55399 | O13: 1897971.688 | P13: 680207.675 | Q13: 741763.2504 | R13: 190797.1037 | S13: 732.9378828 | T13: 4008.922781 | U13: 25154.29394 | V13: 11819.84218 | W13: 5432.080363 | X13: 50716.40724 | Y13: 7407.030326 | Z13: 49917.82324 | AA13: 23950.36974 | AB13: 671783.5658 | AC13: 8465.388948 | AD13: 23.61145344 | AE13: 2095.668176 | AF13: 7207.781228 | AG13: 49456.30735 | AH13: 472.2958275 | AI13: 88364.71235 | AJ13: 5563.386761 | AK13: 41129.03785 | AL13: 181763.7276 | AM13: 121344.1497 | AN13: 3100.092233 | AO13: 12714.0853 | AP13: 409723.9101 | AQ13: 83830.60241 | AR13: 8423.487421 | AS13: 528201.4081 | AT13: 15000.03199 | AU13: 32622.00928 | AV13: 272143.171 | AW13: 156846.9739 | AX13: 901.8773457 | AY13: 221.4942433 | AZ13: 7150.427537 | BA13: 44465.95276 | BB13: 133.6694362 | BC13: 64273.26622 | BD13: 8.4307634 | BE13: 43479.63648 | BF13: 3.995382775 | BG13: 867.7471263 | BH13: 2664.818038 | BI13: 83031.63181 | BJ13: 31221.96436 | BK13: 2418.359223 | BL13: 4544.222494 | BM13: 188156.8808 | BN13: 9543.553094 | BO13: 192773.6488 | BP13: 239887.9966 | BQ13: 103889.1747 | BR13: 24735.83741 | BS13: 130.3865915 | BT13: 183973.0776 | BU13: 44295.78273 | BV13: 3868.238569 | BW13: 16281.17132 | BX13: 173952.7656 | BY13: 7042.588884 | BZ13: 6588.948039 | CA13: 7628.365227 | CB13: 115874.448 | CC13: 465125.2983 | CD13: 37683.56328 | CE13: 6727.929568 | CF13: 19341.98658 | CG13: 81107.93486 | CH13: 172674.9609 | CI13: 66943.36948 | CJ13: 2480.72361 | CK13: 27963.98356 | CL13: 16975.68909 | CM13: 18331.17947 | CN13: 3223.365245 | CO13: 38640.7629 | CP13: 130444.8591 | CQ13: 548.0250207 | CR13: 33431.10744 | CS13: 9432.015891 | CT13: 12241.80792 | CU13: 1738.247413 | CV13: 30641.97962 | CW13: 383.934931 | CX13: 68429.2289 | CY13: 17481.25747 | CZ13: 10839.95284 | DA13: 6425.049217 | DB13: 5902.024391 | DC13: 13454.23904 | DD13: 2916.582785 | DE13: 2948.4683 | DF13: 61269.06579 | DG13: 3023.755697 | DH13: 33739.52009 | DI13: 894.9292157 | DJ13: 129407.7306 | DK13: 317.3418465 | DL13: 25387.95238 | DM13: 3553.015402 | DN13: 239450.0035 | DO13: 9628.312236 | DP13: 56004.88718 | DQ13: 66846.41071 | DR13: 820.4178556 | DS13: 20121.06306 | DT13: 6294.119607 | DU13: 6267.694498 | DV13: 2611.091182 | DW13: 7103.714684 | DX13: 18943.20834 | DY13: 59655.9982 | DZ13: 39883.62524 | EA13: 18148.41191 | EB13: 8018.727886 | EC13: 73445.39858 | ED13: 7516.597906 | EE13: 12661.9153 | EF13: 21256.51005 | EG13: 21432.91619 | EH13: 433092.1166 | EI13: 548.0063643 | EJ13: 29240.8095 | EK13: 6536.575345 | EL13: 7565.561668 | EM13: 5983.192474 | EN13: 50597.37907 | EO13: 17941.54077 | EP13: 5491.48465 | EQ13: 1586.480595 | ER13: 7528.543624 | ES13: 7569.242763 | ET13: 6176.046365 | EU13: 16232.96477 | EV13: 6689.433 | EW13: 17523.8398 | EX13: 5126.854021 | EY13: 4595.527337 | EZ13: 3627.983055 | FA13: 35511.74039 | FB13: 9261.713355 | FC13: 4828.288488 | FD13: 5646.70833 | FE13: 5276.609845 | FF13: 5695.794824 | FG13: 6735.253548 | FH13: 50653.61969 | FI13: 4103.650873 | FJ13: 4550.36446 | FK13: 3754.110238 | FL13: 4861.648386 | FM13: 6115.796481 | FN13: 8012.604531 | FO13: 7124.564528 | FP13: 364.5547959 | FQ13: 3781.471678 | FR13: 3275.437277 | FS13: 44145.76538 | FT13: 4341.185563 | FU13: 17615.10488 | FV13: 5495.351895 | FW13: 4721.846716 | FX13: 16584.20444 | FY13: 0.001688687017 | FZ13: 4798.094644 | GA13: 3493.670013 | GB13: 6055.284129 | GC13: 15773.55329 | GD13: 11135.47352 | GE13: 3821.420067 | GF13: 1514.468475 | GG13: 3453.822408 | GH13: 35357.78086 | GI13: 35734.78619 | GJ13: 6757.097054 | GK13: 37194.22417 | GL13: 4796.059169 | GM13: 5258.95171 | GN13: 16973.60347 | GO13: 7519.487028 | GP13: 392.7910819 | GQ13: 7296.669742 | GR13: 32610.55798 | GS13: 7803.255355 | GT13: 4303.977738 | GU13: 7660.718559 | GV13: 37803.66449 | GW13: 34921.66987 | GX13: 13735.73602 | GY13: 2383394.424 | GZ13: 179123.6561 | HA13: 189996.661 | HB13: 1265468.186 | HC13: 321164.3016 | HD13: 63239.38891 | HE13: 47921.10417 | HF13: 43226.63191 | HG13: 31988.47643 | HH13: 25982.15232 | HI13: 65511.11354 | HJ13: 3801.699992 | HK13: 1260.624747 | HL13: 154067.5045 | HM13: 48859.82862 | HN13: 3661.408154 | HO13: 5391.245553 | HP13: 3017.532228 | HQ13: 4611.963619 | HR13: 3983.276372 | HS13: 2700.968666 | HT13: 5419.853618 | HU13: 363.8754122 | HV13: 1636.445848 | HW13: 469.3417168 | HX13: 178.0013269 | HY13: 203074.1256 | HZ13: 3007.103773 | IA13: 21487.6642 | IB13: 11294.61781 | IC13: 11827.33786 | ID13: 9562.207554 | IE13: 12038.55093 | IF13: 7010.527326 | IG13: 11853.03465 | IH13: 15341.05945 | II13: 146802.1931 | IJ13: 4519.144303 | IK13: 18816.93247 | IL13: 6521.092375 | IM13: 4456.452757 | IN13: 3784.104574 | IO13: 4206.468794 | IP13: 167828.0942 | IQ13: 258078.9904 | IR13: 281457.0848 | IS13: 47546.29214 | IT13: 18084463.73
A14: =+MATCH(B14,RUT[EMPRESA],0) -> 56 | B14: COLBUN | C14: 3377543414 | D14: 3377543414 | F14: =IFERROR(INDEX($B$9:$B$511,MATCH(0,INDEX(COUNTIF($F$8:F13,$B$9:$B$511),0,0),0)),"") -> COLBUN | H14: 3377543414 | J14: ELECTRICA CENIZAS | K14: 3706117.05 | L14: 2231279.877 | M14: 1786342.434 | N14: 472861.346 | O14: 32216663.65 | P14: 11546021.48 | Q14: 12590881.78 | R14: 3238639.519 | S14: 12441.0777 | T14: 68048.49494 | U14: 426975.5087 | V14: 200633.0665 | W14: 92205.54082 | X14: 860873.4492 | Y14: 125728.8537 | Z14: 847318.0772 | AA14: 406539.7873 | AB14: 11403028.46 | AC14: 143693.7074 | AD14: 400.7869339 | AE14: 35572.4151 | AF14: 122346.7478 | AG14: 839484.1867 | AH14: 8016.87186 | AI14: 1499925.544 | AJ14: 94434.36967 | AK14: 698134.9547 | AL14: 3085304.65 | AM14: 2059727.067 | AN14: 52621.76953 | AO14: 215812.1812 | AP14: 6954759.907 | AQ14: 1422962.386 | AR14: 142982.46 | AS14: 8965827.683 | AT14: 254614.433 | AU14: 553734.4455 | AV14: 4619428.761 | AW14: 2662361.211 | AX14: 15308.69996 | AY14: 3759.700728 | AZ14: 121373.2114 | BA14: 754776.6138 | BB14: 2268.939676 | BC14: 1090991.089 | BD14: 143.1059644 | BE14: 738034.6255 | BF14: 67.81866338 | BG14: 14729.36476 | BH14: 45233.31247 | BI14: 1409400.452 | BJ14: 529969.7201 | BK14: 41049.85663 | BL14: 77134.8111 | BM14: 3193823.69 | BN14: 161994.7452 | BO14: 3272189.909 | BP14: 4071921.066 | BQ14: 1763441.794 | BR14: 419872.5192 | BS14: 2213.215818 | BT14: 3122806.731 | BU14: 751888.1036 | BV14: 65660.48465 | BW14: 276360.8243 | BX14: 2952719.356 | BY14: 119542.7301 | BZ14: 111842.5128 | CA14: 129485.8497 | CB14: 1966882.931 | CC14: 7895157.437 | CD14: 639650.5759 | CE14: 114201.6213 | CF14: 328315.8964 | CG14: 1376747.121 | CH14: 2931029.567 | CI14: 1136314.114 | CJ14: 42108.4459 | CK14: 474667.909 | CL14: 288149.7491 | CM14: 311158.1943 | CN14: 54714.23761 | CO14: 655898.3305 | CP14: 2214204.867 | CQ14: 9302.318824 | CR14: 567468.2876 | CS14: 160101.4838 | CT14: 207795.6224 | CU14: 29505.46238 | CV14: 520124.9086 | CW14: 6517.011088 | CX14: 1161535.478 | CY14: 296731.3978 | CZ14: 184000.1707 | DA14: 109060.4517 | DB14: 100182.4926 | DC14: 228375.7427 | DD14: 49506.83257 | DE14: 50048.06557 | DF14: 1039997.012 | DG14: 51326.01337 | DH14: 572703.3638 | DI14: 15190.76059 | DJ14: 2196600.379 | DK14: 5386.642801 | DL14: 430941.6877 | DM14: 60309.80486 | DN14: 4064486.457 | DO14: 163433.4689 | DP14: 950641.4792 | DQ14: 1134668.311 | DR14: 13925.98545 | DS14: 341540.1425 | DT14: 106838.0185 | DU14: 106389.4719 | DV14: 44321.33888 | DW14: 120580.2953 | DX14: 321546.9311 | DY14: 1012616.384 | DZ14: 676994.9981 | EA14: 308055.8503 | EB14: 136111.9667 | EC14: 1246681.243 | ED14: 127588.6822 | EE14: 214926.6341 | EF14: 360813.5143 | EG14: 363807.8777 | EH14: 7351417.903 | EI14: 9302.002146 | EJ14: 496341.0837 | EK14: 110953.5251 | EL14: 128419.8058 | EM14: 101560.2607 | EN14: 858853.0342 | EO14: 304544.3659 | EP14: 93213.8846 | EQ14: 26929.33305 | ER14: 127791.4519 | ES14: 128482.2897 | ET14: 104833.8127 | EU14: 275542.5539 | EV14: 113548.1706 | EW14: 297454.2014 | EX14: 87024.54973 | EY14: 78005.67281 | EZ14: 61582.32524 | FA14: 602785.4909 | FB14: 157210.7244 | FC14: 81956.62094 | FD14: 95848.69159 | FE14: 89566.54393 | FF14: 96681.89847 | FG14: 114325.9404 | FH14: 859807.677 | FI14: 69656.43414 | FJ14: 77239.06641 | FK14: 63723.24076 | FL14: 82522.8805 | FM14: 103811.1155 | FN14: 136008.0273 | FO14: 120934.206 | FP14: 6188.047647 | FQ14: 64187.68094 | FR14: 55598.12178 | FS14: 749341.6702 | FT14: 73688.40957 | FU14: 299003.3585 | FV14: 93279.52822 | FW14: 80149.85071 | FX14: 281504.5871 | FY14: 0.02866421137 | FZ14: 81444.10281 | GA14: 59302.46084 | GB14: 102783.9632 | GC14: 267744.3842 | GD14: 189016.4153 | GE14: 64865.77526 | GF14: 25706.98066 | GG14: 58626.07725 | GH14: 600172.142 | GI14: 606571.5281 | GJ14: 114696.7178 | GK14: 631344.407 | GL14: 81409.55213 | GM14: 89266.81016 | GN14: 288114.3473 | GO14: 127637.7229 | GP14: 6667.337689 | GQ14: 123855.5645 | GR14: 553540.0682 | GS14: 132454.4801 | GT14: 73056.83431 | GU14: 130035.0235 | GV14: 641689.2049 | GW14: 592769.4808 | GX14: 233153.9454 | GY14: 40456355.06 | GZ14: 3040491.392 | HA14: 3225052.596 | HB14: 21480385.17 | HC14: 5451526.145 | HD14: 1073441.788 | HE14: 813425.25 | HF14: 733740.0603 | HG14: 542980.6948 | HH14: 441027.7916 | HI14: 1112002.631 | HJ14: 64531.04159 | HK14: 21398.17138 | HL14: 2615181.776 | HM14: 829359.4021 | HN14: 62149.69154 | HO14: 91512.40016 | HP14: 51220.37459 | HQ14: 78284.66653 | HR14: 67613.16615 | HS14: 45846.9426 | HT14: 91998.00088 | HU14: 6176.515613 | HV14: 27777.45621 | HW14: 7966.728018 | HX14: 3021.440685 | HY14: 3447032.872 | HZ14: 51043.3593 | IA14: 364737.1846 | IB14: 191717.7718 | IC14: 200760.3002 | ID14: 162311.3909 | IE14: 204345.4855 | IF14: 118998.5089 | IG14: 201196.484 | IH14: 260403.1215 | II14: 2491858.497 | IJ14: 76709.12738 | IK14: 319403.4916 | IL14: 110690.7131 | IM14: 75644.98482 | IN14: 64232.3724 | IO14: 71401.6922 | IP14: 2848757.596 | IQ14: 4380699.712 | IR14: 4777525.55 | IS14: 807063.0934 | IT14: 306970377.3
A15: =+MATCH(B15,RUT[EMPRESA],0) -> 244 | B15: PEHUENCHE | C15: -375472907.7 | D15: -375472907.7 | F15: =IFERROR(INDEX($B$9:$B$511,MATCH(0,INDEX(COUNTIF($F$8:F14,$B$9:$B$511),0,0),0)),"") -> PEHUENCHE | G15: -375472907.7 | J15: PUNTILLA | K15: 540366.7339 | L15: 325329.5574 | M15: 260455.8933 | N15: 68945.08124 | O15: 4697318.805 | P15: 1683456.251 | Q15: 1835801.075 | R15: 472206.6345 | S15: 1813.959039 | T15: 9921.743556 | U15: 62254.74209 | V15: 29253.10599 | W15: 13443.93776 | X15: 125518.8025 | Y15: 18331.77126 | Z15: 123542.3749 | AA15: 59275.13192 | AB15: 1662607.296 | AC15: 20951.119 | AD15: 58.43634282 | AE15: 5186.600829 | AF15: 17838.64666 | AG15: 122400.1622 | AH15: 1168.892079 | AI15: 218695.1616 | AJ15: 13768.90994 | AK15: 101790.8771 | AL15: 449849.7955 | AM15: 300316.4694 | AN15: 7672.465103 | AO15: 31466.2818 | AP15: 1014031.895 | AQ15: 207473.6244 | AR15: 20847.41628 | AS15: 1307253.645 | AT15: 37123.80578 | AU15: 80736.7036 | AV15: 673531.2453 | AW15: 388182.9453 | AX15: 2232.069868 | AY15: 548.1794491 | AZ15: 17696.70114 | BA15: 110049.4583 | BB15: 330.8205071 | BC15: 159070.8776 | BD15: 20.86542371 | BE15: 107608.4092 | BF15: 9.888233192 | BG15: 2147.600473 | BH15: 6595.198423 | BI15: 205496.24 | BJ15: 77271.71129 | BK15: 5985.233778 | BL15: 11246.5649 | BM15: 465672.3069 | BN15: 23619.48373 | BO15: 477098.4159 | BP15: 593702.427 | BQ15: 257116.888 | BR15: 61219.09772 | BS15: 322.6957451 | BT15: 455317.7492 | BU15: 109628.3019 | BV15: 9573.562075 | BW15: 40294.51688 | BX15: 430518.3276 | BY15: 17429.80963 | BZ15: 16307.08705 | CA15: 18879.55635 | CB15: 286779.422 | CC15: 1151145.628 | CD15: 93263.62009 | CE15: 16651.05453 | CF15: 47869.77481 | CG15: 200735.2534 | CH15: 427355.8694 | CI15: 165679.1565 | CJ15: 6139.580341 | CK15: 69208.48538 | CL15: 42013.3894 | CM15: 45368.11302 | CN15: 7977.555343 | CO15: 95632.60789 | CP15: 322839.9525 | CQ15: 1356.315403 | CR15: 82739.15288 | CS15: 23343.43863 | CT15: 30297.43537 | CU15: 4302.014784 | CV15: 75836.29828 | CW15: 950.2063612 | CX15: 169356.5324 | CY15: 43264.62821 | CZ15: 26827.96305 | DA15: 15901.45137 | DB15: 14607.00933 | DC15: 33298.09947 | DD15: 7218.294798 | DE15: 7297.20874 | DF15: 151635.7366 | DG15: 7483.538656 | DH15: 83502.44799 | DI15: 2214.873836 | DJ15: 320273.1474 | DK15: 785.3941302 | DL15: 62833.0269 | DM15: 8793.411497 | DN15: 592618.4312 | DO15: 23829.25541 | DP15: 138607.3414 | DQ15: 165439.1918 | DR15: 2030.464546 | DS15: 49797.92295 | DT15: 15577.41171 | DU15: 15512.01181 | DV15: 6462.229014 | DW15: 17581.09079 | DX15: 46882.83251 | DY15: 147643.5312 | DZ15: 98708.58666 | EA15: 44915.77882 | EB15: 19845.67079 | EC15: 181771.1266 | ED15: 18602.94172 | EE15: 31337.16548 | EF15: 52608.05787 | EG15: 53044.64807 | EH15: 1071866.222 | EI15: 1356.26923 | EJ15: 72368.52119 | EK15: 16177.46907 | EL15: 18724.12287 | EM15: 14807.89345 | EN15: 125224.2179 | EO15: 44403.79031 | EP15: 13590.95832 | EQ15: 3926.404793 | ER15: 18632.50635 | ES15: 18733.23327 | ET15: 15285.19046 | EU15: 40175.20976 | EV15: 16555.77879 | EW15: 43370.01588 | EX15: 12688.52847 | EY15: 11373.54004 | EZ15: 8978.950073 | FA15: 87888.5428 | FB15: 22921.95431 | FC15: 11949.60412 | FD15: 13975.12375 | FE15: 13059.16142 | FF15: 14096.60866 | FG15: 16669.18076 | FH15: 125363.4086 | FI15: 10156.18754 | FJ15: 11261.76575 | FK15: 9291.104144 | FL15: 12032.16704 | FM15: 15136.07711 | FN15: 19830.51601 | FO15: 17632.69239 | FP15: 902.2421719 | FQ15: 9358.821386 | FR15: 8106.429201 | FS15: 109257.0217 | FT15: 10744.06574 | FU15: 43595.88919 | FV15: 13600.52943 | FW15: 11686.16978 | FX15: 41044.49812 | FY15: 0.004179357011 | FZ15: 11874.87692 | GA15: 8646.536697 | GB15: 14986.31417 | GC15: 39038.20535 | GD15: 27559.35164 | GE15: 9457.690258 | GF15: 3748.18091 | GG15: 8547.917256 | GH15: 87507.50604 | GI15: 88440.5622 | GJ15: 16723.24158 | GK15: 92052.54733 | GL15: 11869.8393 | GM15: 13015.45904 | GN15: 42008.22767 | GO15: 18610.09205 | GP15: 972.1245828 | GQ15: 18058.63818 | GR15: 80708.36261 | GS15: 19312.39457 | GT15: 10651.97953 | GU15: 18959.6281 | GV15: 93560.86037 | GW15: 86428.16835 | GX15: 33994.7806 | GY15: 5898698.869 | GZ15: 443315.8427 | HA15: 470225.6066 | HB15: 3131926.331 | HC15: 794854.3821 | HD15: 156512.119 | HE15: 118600.6647 | HF15: 106982.2444 | HG15: 79168.7636 | HH15: 64303.62131 | HI15: 162134.4446 | HJ15: 9408.884747 | HK15: 3119.939231 | HL15: 381303.9944 | HM15: 120923.928 | HN15: 9061.674356 | HO15: 13342.87507 | HP15: 7468.136099 | HQ15: 11414.21844 | HR15: 9858.270872 | HS15: 6684.668158 | HT15: 13413.6776 | HU15: 900.560755 | HV15: 4050.064551 | HW15: 1161.580906 | HX15: 440.5381731 | HY15: 502591.2214 | HZ15: 7442.326559 | IA15: 53180.14475 | IB15: 27953.22025 | IC15: 29271.65717 | ID15: 23665.65194 | IE15: 29794.39157 | IF15: 17350.45999 | IG15: 29335.25452 | IH15: 37967.81979 | II15: 363322.9655 | IJ15: 11184.49851 | IK15: 46570.31045 | IL15: 16139.15004 | IM15: 11029.34226 | IN15: 9365.33758 | IO15: 10410.65317 | IP15: 415360.286 | IQ15: 638723.5923 | IR15: 696582.3914 | IS15: 117673.0367 | IT15: 44757512.5
A16: =+MATCH(B16,RUT[EMPRESA],0) -> 156 | B16: GUACOLDA | C16: 1210466398 | D16: 1210466398 | F16: =IFERROR(INDEX($B$9:$B$511,MATCH(0,INDEX(COUNTIF($F$8:F15,$B$9:$B$511),0,0),0)),"") -> GUACOLDA | H16: 1210466398 | J16: ENLASA | K16: 17172.84606 | L16: 10338.96807 | M16: 8277.284075 | N16: 2191.073567 | O16: 149280.7157 | P16: 53500.21243 | Q16: 58341.72846 | R16: 15006.71921 | S16: 57.64758893 | T16: 315.3128497 | U16: 1978.454697 | V16: 929.6632352 | W16: 427.2481244 | X16: 3988.985513 | Y16: 582.5833941 | Z16: 3926.174675 | AA16: 1883.762733 | AB16: 52837.63298 | AC16: 665.8262229 | AD16: 1.85710603 | AE16: 164.8300904 | AF16: 566.9119022 | AG16: 3889.875176 | AH16: 37.14737136 | AI16: 6950.128698 | AJ16: 437.5757353 | AK16: 3234.912429 | AL16: 14296.21922 | AM16: 9544.05254 | AN16: 243.8308169 | AO16: 999.9979267 | AP16: 32225.91722 | AQ16: 6593.508427 | AR16: 662.5305521 | AS16: 41544.49969 | AT16: 1179.793947 | AU16: 2565.811134 | AV16: 21404.81208 | AW16: 12336.44772 | AX16: 70.9351443 | AY16: 17.42113402 | AZ16: 562.4008759 | BA16: 3497.370004 | BB16: 10.51347037 | BC16: 5055.269917 | BD16: 0.663102828 | BE16: 3419.793504 | BF16: 0.3142478909 | BG16: 68.25070828 | BH16: 209.5952992 | BI16: 6530.667183 | BJ16: 2455.693735 | BK16: 190.2106327 | BL16: 357.4156507 | BM16: 14799.05838 | BN16: 750.626811 | BO16: 15162.17994 | BP16: 18867.85353 | BQ16: 8171.170541 | BR16: 1945.541935 | BS16: 10.25526556 | BT16: 14469.99071 | BU16: 3483.985661 | BV16: 304.2476479 | BW16: 1280.559095 | BX16: 13681.86549 | BY16: 553.919068 | BZ16: 518.2389625 | CA16: 599.9919953 | CB16: 9113.845391 | CC16: 36583.38943 | CD16: 2963.916338 | CE16: 529.1702436 | CF16: 1521.300669 | CG16: 6379.363104 | CH16: 13581.36262 | CI16: 5265.280913 | CJ16: 195.1157639 | CK16: 2199.444546 | CL16: 1335.184835 | CM16: 1441.797898 | CN16: 253.5265797 | CO16: 3039.202732 | CP16: 10259.84847 | CQ16: 43.10368157 | CR16: 2629.44894 | CS16: 741.8541019 | CT16: 962.8520059 | CU16: 136.7179602 | CV16: 2410.076333 | CW16: 30.19754279 | CX16: 5382.147861 | CY16: 1374.949184 | CZ16: 852.5922317 | DA16: 505.3478675 | DB16: 464.2105203 | DC16: 1058.213062 | DD16: 229.3972919 | DE16: 231.9051757 | DF16: 4818.981255 | DG16: 237.8267374 | DH16: 2653.706446 | DI16: 70.38865469 | DJ16: 10178.27544 | DK16: 24.95981275 | DL16: 1996.832579 | DM16: 279.4544751 | DN16: 18833.40416 | DO16: 757.2933516 | DP16: 4404.939067 | DQ16: 5257.654838 | DR16: 64.52813041 | DS16: 1582.577186 | DT16: 495.049892 | DU16: 492.9714842 | DV16: 205.3695335 | DW16: 558.726781 | DX16: 1489.935659 | DY16: 4692.109033 | DZ16: 3136.957287 | EA16: 1427.422724 | EB16: 630.6950967 | EC16: 5776.683462 | ED16: 591.2011868 | EE16: 995.894612 | EF16: 1671.883228 | EG16: 1685.758058 | EH16: 34063.89121 | EI16: 43.10221419 | EJ16: 2299.870433 | EK16: 514.1197055 | EL16: 595.052322 | EM16: 470.5946142 | EN16: 3979.623619 | EO16: 1411.151738 | EP16: 431.9204357 | EQ16: 124.7810808 | ER16: 592.1407505 | ES16: 595.3418503 | ET16: 485.7631054 | EU16: 1276.767516 | EV16: 526.1423823 | EW16: 1378.298403 | EX16: 403.2412295 | EY16: 361.4509183 | EZ16: 285.3508881 | FA16: 2793.096468 | FB16: 728.4593371 | FC16: 379.7582257 | FD16: 444.1292068 | FE16: 415.0199388 | FF16: 447.9899952 | FG16: 529.7462949 | FH16: 3984.047098 | FI16: 322.7634758 | FJ16: 357.8987333 | FK16: 295.2711394 | FL16: 382.3820738 | FM16: 481.0242856 | FN16: 630.2134779 | FO16: 560.3666789 | FP16: 28.67324163 | FQ16: 297.4231923 | FR16: 257.6221889 | FS16: 3472.186382 | FT16: 341.4462353 | FU16: 1385.476653 | FV16: 432.2246052 | FW16: 371.3862864 | FX16: 1304.393486 | FY16: 0.0001328198982 | FZ16: 377.3833965 | GA16: 274.7867964 | GB16: 476.264822 | GC16: 1240.633534 | GD16: 875.8357492 | GE16: 300.5652434 | GF16: 119.1171287 | GG16: 271.6526721 | GH16: 2780.987126 | GI16: 2810.639636 | GJ16: 531.464347 | GK16: 2925.428465 | GL16: 377.2233008 | GM16: 413.6310777 | GN16: 1335.020796 | GO16: 591.4284243 | GP16: 30.89410351 | GQ16: 573.9032293 | GR16: 2564.910458 | GS16: 613.747587 | GT16: 338.5197371 | GU16: 602.5366743 | GV16: 2973.362629 | GW16: 2746.685792 | GX16: 1080.353577 | GY16: 187460.5546 | GZ16: 14088.57031 | HA16: 14943.76217 | HB16: 99532.56814 | HC16: 25260.4594 | HD16: 4973.95261 | HE16: 3769.127206 | HF16: 3399.893996 | HG16: 2515.982026 | HH16: 2043.568045 | HI16: 5152.630028 | HJ16: 299.014205 | HK16: 99.15161829 | HL16: 12117.83477 | HM16: 3842.960476 | HN16: 287.9798644 | HO16: 424.0363538 | HP16: 237.3372444 | HQ16: 362.7436773 | HR16: 313.2956888 | HS16: 212.4386459 | HT16: 426.2864572 | HU16: 28.61980623 | HV16: 128.7109859 | HW16: 36.91502239 | HX16: 14.00029601 | HY16: 15972.34089 | HZ16: 236.5170176 | IA16: 1690.06414 | IB16: 888.3528875 | IC16: 930.2527912 | ID16: 752.0940358 | IE16: 946.8652821 | IF16: 551.3973379 | IG16: 932.2739141 | IH16: 1206.616699 | II16: 11546.39797 | IJ16: 355.4431817 | IK16: 1480.003713 | IL16: 512.9019271 | IM16: 350.5123185 | IN16: 297.6302768 | IO16: 330.8503893 | IP16: 13200.14317 | IQ16: 20298.62543 | IR16: 22137.37713 | IS16: 3739.647204 | IT16: 1422393.023
A17: =+MATCH(B17,RUT[EMPRESA],0) -> 19 | B17: ARAUCO BIO | C17: 1320007878 | D17: 1320007878 | F17: =IFERROR(INDEX($B$9:$B$511,MATCH(0,INDEX(COUNTIF($F$8:F16,$B$9:$B$511),0,0),0)),"") -> ARAUCO BIO | H17: 1320007878 | J17: GAS SUR | K17: 44616.65599 | L17: 26861.60349 | M17: 21505.15615 | N17: 5692.613514 | O17: 387845.2245 | P17: 138998.5425 | Q17: 151577.2528 | R17: 38988.85636 | S17: 149.7738135 | T17: 819.2121967 | U17: 5140.209857 | V17: 2415.351806 | W17: 1110.030482 | X17: 10363.75646 | Y17: 1513.606003 | Z17: 10200.56805 | AA17: 4894.191303 | AB17: 137277.0993 | AC17: 1729.878637 | AD17: 4.8249347 | AE17: 428.2439507 | AF17: 1472.890005 | AG17: 10106.25856 | AH17: 96.51233597 | AI17: 18057.08268 | AJ17: 1136.862578 | AK17: 8404.60425 | AL17: 37142.91113 | AM17: 24796.33879 | AN17: 633.4952073 | AO17: 2598.087896 | AP17: 83725.93906 | AQ17: 17130.54995 | AR17: 1721.316177 | AS17: 107936.4856 | AT17: 3065.214729 | AU17: 6666.216672 | AV17: 55611.69847 | AW17: 32051.24195 | AX17: 184.2961219 | AY17: 45.26173128 | AZ17: 1461.169938 | BA17: 9086.493512 | BB17: 27.31497673 | BC17: 13134.06281 | BD17: 1.722803003 | BE17: 8884.94253 | BF17: 0.8164453343 | BG17: 177.3217067 | BH17: 544.5481388 | BI17: 16967.28254 | BJ17: 6380.121396 | BK17: 494.1849669 | BL17: 928.5992012 | BM17: 38449.33416 | BN17: 1950.198475 | BO17: 39392.75784 | BP17: 49020.4435 | BQ17: 21229.46329 | BR17: 5054.699432 | BS17: 26.64413656 | BT17: 37594.38565 | BU17: 9051.719741 | BV17: 790.4637701 | BW17: 3327.011981 | BX17: 35546.76281 | BY17: 1439.13341 | BZ17: 1346.433167 | CA17: 1558.835173 | CB17: 23678.62049 | CC17: 95047.05832 | CD17: 7700.531126 | CE17: 1374.833655 | CF17: 3952.481049 | CG17: 16574.18043 | CH17: 35285.64698 | CI17: 13679.69097 | CJ17: 506.9289555 | CK17: 5714.362099 | CL17: 3468.934752 | CM17: 3745.925433 | CN17: 658.6857037 | CO17: 7896.132201 | CP17: 26656.04338 | CQ17: 111.9873855 | CR17: 6831.553627 | CS17: 1927.406159 | CT17: 2501.579328 | CU17: 355.2060141 | CV17: 6261.60313 | CW17: 78.45603306 | CX17: 13983.3222 | CY17: 3572.24624 | CZ17: 2215.11415 | DA17: 1312.9409 | DB17: 1206.062234 | DC17: 2749.336249 | DD17: 595.9955631 | DE17: 602.5112791 | DF17: 12520.16283 | DG17: 617.8960489 | DH17: 6894.576891 | DI17: 182.8762909 | DJ17: 26444.10906 | DK17: 64.84792184 | DL17: 5187.957308 | DM17: 726.0487945 | DN17: 48930.94082 | DO17: 1967.51877 | DP17: 11444.4426 | DQ17: 13659.87771 | DR17: 167.6501021 | DS17: 4111.683155 | DT17: 1286.185799 | DU17: 1280.785902 | DV17: 533.5692055 | DW17: 1451.624296 | DX17: 3870.991826 | DY17: 12190.53696 | DZ17: 8150.107655 | EA17: 3708.577391 | EB17: 1638.604694 | EC17: 15008.3625 | ED17: 1535.995832 | EE17: 2587.427101 | EF17: 4343.708584 | EG17: 4379.756685 | EH17: 88501.16691 | EI17: 111.9835732 | EJ17: 5975.277922 | EK17: 1335.730953 | EL17: 1546.00144 | EM17: 1222.648706 | EN17: 10339.43339 | EO17: 3666.30385 | EP17: 1122.169583 | EQ17: 324.1928878 | ER17: 1538.436906 | ES17: 1546.753662 | ET17: 1262.057861 | EU17: 3317.161107 | EV17: 1366.966989 | EW17: 3580.947822 | EX17: 1047.65833 | EY17: 939.0832028 | EZ17: 741.3682254 | FA17: 7256.725171 | FB17: 1892.60531 | FC17: 986.6472951 | FD17: 1153.889109 | FE17: 1078.260515 | FF17: 1163.919797 | FG17: 1376.33029 | FH17: 10350.926 | FI17: 838.5696182 | FJ17: 929.8542946 | FK17: 767.1419638 | FL17: 993.4642973 | FM17: 1249.745965 | FN17: 1637.353403 | FO17: 1455.884904 | FP17: 74.49575645 | FQ17: 772.7331978 | FR17: 669.3264783 | FS17: 9021.064113 | FT17: 887.1091701 | FU17: 3599.597586 | FV17: 1122.959843 | FW17: 964.8962159 | FX17: 3388.935954 | FY17: 0.0003450784853 | FZ17: 980.4772673 | GA17: 713.9217297 | GB17: 1237.380435 | GC17: 3223.281652 | GD17: 2275.502976 | GE17: 780.8965398 | GF17: 309.4774118 | GG17: 705.7789826 | GH17: 7225.263971 | GI17: 7302.303958 | GJ17: 1380.79395 | GK17: 7600.536043 | GL17: 980.0613238 | GM17: 1074.652124 | GN17: 3468.508562 | GO17: 1536.586216 | GP17: 80.26576281 | GQ17: 1491.054125 | GR17: 6663.876631 | GS17: 1594.573483 | GT17: 879.5058548 | GU17: 1565.446486 | GV17: 7725.073472 | GW17: 7136.145905 | GX17: 2806.859372 | GY17: 487040.0077 | GZ17: 36603.41988 | HA17: 38825.28811 | HB17: 258594.8966 | HC17: 65629.02989 | HD17: 12922.79286 | HE17: 9792.544073 | HF17: 8833.241751 | HG17: 6536.756001 | HH17: 5309.38041 | HI17: 13387.01346 | HJ17: 776.8667974 | HK17: 257.6051534 | HL17: 31483.26512 | HM17: 9984.369797 | HN17: 748.1985513 | HO17: 1101.686002 | HP17: 616.6243004 | HQ17: 942.4419112 | HR17: 813.9714245 | HS17: 551.9354189 | HT17: 1107.531981 | HU17: 74.3569263 | HV17: 334.4031479 | HW17: 95.90867168 | HX17: 36.37407502 | HY17: 41497.63156 | HZ17: 614.4932747 | IA17: 4390.944288 | IB17: 2308.023669 | IC17: 2416.883528 | ID17: 1954.010462 | IE17: 2460.044329 | IF17: 1432.58172 | IG17: 2422.134594 | IH17: 3134.902739 | II17: 29998.61899 | IJ17: 923.4745426 | IK17: 3845.187704 | IL17: 1332.567051 | IM17: 910.6637 | IN17: 773.2712227 | IO17: 859.5801738 | IP17: 34295.20329 | IQ17: 52737.72237 | IR17: 57514.97081 | IS17: 9715.95228 | IT17: 3695509.759
A18: =+MATCH(B18,RUT[EMPRESA],0) -> 289 | B18: SGA | C18: 339533779.7 | D18: 339533779.7 | F18: =IFERROR(INDEX($B$9:$B$511,MATCH(0,INDEX(COUNTIF($F$8:F17,$B$9:$B$511),0,0),0)),"") -> SGA | H18: 339533779.7 | J18: NORVIND | K18: 312563.7102 | L18: 188180.0028 | M18: 150655.2037 | N18: 39879.82428 | O18: 2717064.73 | P18: 973759.6689 | Q18: 1061880.31 | R18: 273137.9421 | S18: 1049.246247 | T18: 5739.022747 | U18: 36009.93908 | V18: 16920.84055 | W18: 7776.361499 | X18: 72603.69699 | Y18: 10603.62543 | Z18: 71460.47423 | AA18: 34286.44658 | AB18: 961700.0317 | AC18: 12118.73174 | AD18: 33.80126677 | AE18: 3000.07957 | AF18: 10318.38793 | AG18: 70799.78547 | AH18: 676.1209047 | AI18: 126499.5915 | AJ18: 7964.334789 | AK18: 58878.78033 | AL18: 260206.1013 | AM18: 173711.711 | AN18: 4437.975191 | AO18: 18201.0053 | AP18: 586545.3063 | AQ18: 120008.7306 | AR18: 12058.74709 | AS18: 756153.2266 | AT18: 21473.4804 | AU18: 46700.43888 | AV18: 389589.9058 | AW18: 224536.2159 | AX18: 1291.093614 | AY18: 317.0828101 | AZ18: 10236.28255 | BA18: 63655.78194 | BB18: 191.3561266 | BC18: 92011.18531 | BD18: 12.06916311 | BE18: 62243.80874 | BF18: 5.719639386 | BG18: 1242.234079 | BH18: 3814.85306 | BI18: 118864.9544 | BJ18: 44696.18735 | BK18: 3462.031911 | BL18: 6505.33764 | BM18: 269358.2985 | BN18: 13662.19089 | BO18: 275967.4896 | BP18: 343414.614 | BQ18: 148723.8267 | BR18: 35410.89249 | BS18: 186.6565298 | BT18: 263368.9236 | BU18: 63412.17294 | BV18: 5537.624532 | BW18: 23307.51119 | BX18: 249024.2226 | BY18: 10081.90479 | BZ18: 9432.489659 | CA18: 10920.48013 | CB18: 165881.4922 | CC18: 665855.8453 | CD18: 53946.36882 | CE18: 9631.450377 | CF18: 27689.25895 | CG18: 116111.0624 | CH18: 247194.9655 | CI18: 95833.6045 | CJ18: 3551.310416 | CK18: 40032.18483 | CL18: 24301.75665 | CM18: 26242.22558 | CN18: 4614.448189 | CO18: 55316.65971 | CP18: 186739.9435 | CQ18: 784.5319632 | CR18: 47858.71332 | CS18: 13502.51844 | CT18: 17524.9108 | CU18: 2488.409478 | CV18: 43865.90305 | CW18: 549.6267759 | CX18: 97960.70484 | CY18: 25025.50928 | CZ18: 15518.0679 | DA18: 9197.858283 | DB18: 8449.115656 | DC18: 19260.58149 | DD18: 4175.269982 | DE18: 4220.916083 | DF18: 87710.48521 | DG18: 4328.694683 | DH18: 48300.22523 | DI18: 1281.146933 | DJ18: 185255.2294 | DK18: 454.2946261 | DL18: 36344.4357 | DM18: 5086.362928 | DN18: 342787.5995 | DO18: 13783.52888 | DP18: 80174.48553 | DQ18: 95694.80197 | DR18: 1174.479279 | DS18: 28804.55546 | DT18: 9010.424389 | DU18: 8972.5952 | DV18: 3737.939718 | DW18: 10169.41019 | DX18: 27118.38305 | DY18: 85401.27844 | DZ18: 57095.89459 | EA18: 25980.58243 | EB18: 11479.3086 | EC18: 105141.6643 | ED18: 10760.47824 | EE18: 18126.32069 | EF18: 30430.01859 | EG18: 30682.55495 | EH18: 619998.3498 | EI18: 784.5052555 | EJ18: 41860.04072 | EK18: 9357.514884 | EL18: 10830.57292 | EM18: 8565.312825 | EN18: 72433.30075 | EO18: 25684.43351 | EP18: 7861.402438 | EQ18: 2271.145822 | ER18: 10777.57928 | ES18: 10835.84264 | ET18: 8841.395187 | EU18: 23238.50051 | EV18: 9576.340142 | EW18: 25086.46855 | EX18: 7339.410973 | EY18: 6578.78372 | EZ18: 5193.683794 | FA18: 50837.26902 | FB18: 13258.71974 | FC18: 6911.995809 | FD18: 8083.614807 | FE18: 7553.795767 | FF18: 8153.885181 | FG18: 9641.935112 | FH18: 72513.81269 | FI18: 5874.631913 | FJ18: 6514.130246 | FK18: 5374.242715 | FL18: 6959.752582 | FM18: 8755.143724 | FN18: 11470.54263 | FO18: 10199.25804 | FP18: 521.8829048 | FQ18: 5413.412322 | FR18: 4688.992546 | FS18: 63197.41376 | FT18: 6214.677622 | FU18: 25217.12019 | FV18: 7866.938641 | FW18: 6759.617782 | FX18: 23741.32198 | FY18: 0.002417460683 | FZ18: 6868.77144 | GA18: 5001.406306 | GB18: 8668.51652 | GC18: 22580.82435 | GD18: 15941.12416 | GE18: 5470.60093 | GF18: 2168.055985 | GG18: 4944.361976 | GH18: 50616.86637 | GI18: 51156.57297 | GJ18: 9673.205451 | GK18: 53245.84939 | GL18: 6865.857532 | GM18: 7528.517045 | GN18: 24298.77096 | GO18: 10764.6142 | GP18: 562.3049076 | GQ18: 10445.63737 | GR18: 46684.04563 | GS18: 11170.84624 | GT18: 6161.412303 | GU18: 10966.79594 | GV18: 54118.30117 | GW18: 49992.5463 | GX18: 19663.56196 | GY18: 3411977.622 | GZ18: 256426.6745 | HA18: 271992.0584 | HB18: 1811596.556 | HC18: 459766.7087 | HD18: 90531.12552 | HE18: 68602.04648 | HF18: 61881.61693 | HG18: 45793.49714 | HH18: 37195.06994 | HI18: 93783.24088 | HJ18: 5442.370414 | HK18: 1804.662871 | HL18: 220557.2322 | HM18: 69945.889 | HN18: 5241.533906 | HO18: 7717.903925 | HP18: 4319.7854 | HQ18: 6602.313282 | HR18: 5702.308315 | HS18: 3866.604937 | HT18: 7758.858152 | HU18: 520.9103248 | HV18: 2342.674194 | HW18: 671.8919111 | HX18: 254.8199903 | HY18: 290713.2638 | HZ18: 4304.856417 | IA18: 30760.93014 | IB18: 16168.94914 | IC18: 16931.57109 | ID18: 13688.89591 | IE18: 17233.93575 | IF18: 10036.00668 | IG18: 16968.35763 | IH18: 21961.68246 | II18: 210156.4863 | IJ18: 6469.436647 | IK18: 26937.61127 | IL18: 9335.350048 | IM18: 6379.689793 | IN18: 5417.181476 | IO18: 6021.822173 | IP18: 240256.3739 | IQ18: 369456.155 | IR18: 402923.3538 | IS18: 68065.4797 | IT18: 25889036.63
A19: =+MATCH(B19,RUT[EMPRESA],0) -> 306 | B19: TECNORED | C19: -115838248.7 | D19: -115838248.7 | F19: =IFERROR(INDEX($B$9:$B$511,MATCH(0,INDEX(COUNTIF($F$8:F18,$B$9:$B$511),0,0),0)),"") -> TECNORED | G19: -115838248.7 | J19: EMELDA | K19: =$IT19*K$66/$IT$66 -> 174248.29 | L19: 104906.7522 | M19: 83987.39446 | N19: 22232.23926 | O19: 1514711.618 | P19: 542852.3904 | Q19: 591977.9625 | R19: 152269.1784 | S19: 584.9347138 | T19: 3199.395412 | U19: =$IT19*U$66/$IT$66 -> 20074.85227 | V19: 9433.044963 | W19: 4335.172798 | X19: 40475.17238 | Y19: 5911.31836 | Z19: 39837.84756 | AA19: 19114.03817 | AB19: 536129.3733 | AC19: 6755.961149 | AD19: 18.84355971 | AE19: =$IT19*AE$66/$IT$66 -> 1672.486978 | AF19: 5752.303911 | AG19: 39469.52622 | AH19: 376.9244722 | AI19: 70521.10272 | AJ19: 4439.964312 | AK19: 32823.79386 | AL19: 145059.9245 | AM19: 96840.95631 | AN19: 2474.086284 | AO19: =$IT19*AO$66/$IT$66 -> 10146.71232 | AP19: 326987.7894 | AQ19: 66902.57193 | AR19: 6722.520856 | AS19: 421540.9609 | AT19: 11971.0546 | AU19: 26034.60144 | AV19: 217188.9208 | AW19: 125174.6457 | AX19: 719.7599952 | AY19: =$IT19*AY$66/$IT$66 -> 176.7676018 | AZ19: 5706.53173 | BA19: 35486.88089 | BB19: 106.6773805 | BC19: 51294.47591 | BD19: 6.728327587 | BE19: 34699.73284 | BF19: 3.188589558 | BG19: 692.5217386 | BH19: 2126.707615 | BI19: =$IT19*BI$66/$IT$66 -> 66264.93858 | BJ19: 24917.26955 | BK19: 1930.016572 | BL19: 3626.601307 | BM19: 150162.0994 | BN19: 7616.410105 | BO19: 153846.597 | BP19: 191447.0788 | BQ19: 82910.68873 | BR19: 19740.89526 | BS19: =$IT19*BS$66/$IT$66 -> 104.0574452 | BT19: 146823.1374 | BU19: 35351.07353 | BV19: 3087.119759 | BW19: 12993.49169 | BX19: 138826.241 | BY19: 5620.469087 | BZ19: 5258.43257 | CA19: 6087.958796 | CB19: 92475.75908 | CC19: =$IT19*CC$66/$IT$66 -> 371201.898 | CD19: 30074.06879 | CE19: 5369.349365 | CF19: 15436.23225 | CG19: 64729.69644 | CH19: 137806.4652 | CI19: 53425.4015 | CJ19: 1979.787631 | CK19: 22317.17735 | CL19: 13547.76451 | CM19: =$IT19*CM$66/$IT$66 -> 14629.53883 | CN19: 2572.466605 | CO19: 30837.97975 | CP19: 104103.9467 | CQ19: 437.3615638 | CR19: 26680.31728 | CS19: 7527.395765 | CT19: 9769.80257 | CU19: 1387.240688 | CV19: 24454.40193 | CW19: =$IT19*CW$66/$IT$66 -> 306.4064149 | CX19: 54611.21926 | CY19: 13951.24276 | CZ19: 8651.026041 | DA19: 5127.630066 | DB19: 4710.220373 | DC19: 10737.40578 | DD19: 2327.633155 | DE19: 2353.079983 | DF19: 48896.91787 | DG19: =$IT19*DG$66/$IT$66 -> 2413.164491 | DH19: 26926.45173 | DI19: 714.2149108 | DJ19: 103276.247 | DK19: 253.2605648 | DL19: 20261.32774 | DM19: 2835.550046 | DN19: 191097.5303 | DO19: 7684.053715 | DP19: 44695.74219 | DQ19: =$IT19*DQ$66/$IT$66 -> 53348.02175 | DR19: 654.7497336 | DS19: 16057.98873 | DT19: 5023.139255 | DU19: 5002.050205 | DV19: 2083.829897 | DW19: 5669.251668 | DX19: 15117.97986 | DY19: 47609.57927 | DZ19: 31829.86916 | EA19: =$IT19*EA$66/$IT$66 -> 14483.67778 | EB19: 6399.494979 | EC19: 58614.4668 | ED19: 5998.760806 | EE19: 10105.07708 | EF19: 16964.15333 | EG19: 17104.93752 | EH19: 345637.2213 | EI19: 437.3466747 | EJ19: 23336.17205 | EK19: =$IT19*EK$66/$IT$66 -> 5216.635567 | EL19: 6037.837247 | EM19: 4774.998072 | EN19: 40380.17974 | EO19: 14318.58042 | EP19: 4382.581495 | EQ19: 1266.120355 | ER19: 6008.294308 | ES19: 6040.775014 | ET19: 4928.908708 | EU19: =$IT19*EU$66/$IT$66 -> 12955.01955 | EV19: 5338.626463 | EW19: 13985.22639 | EX19: 4091.581237 | EY19: 3667.546092 | EZ19: 2895.379376 | FA19: 28340.80512 | FB19: 7391.482658 | FC19: 3853.305458 | FD19: 4506.46064 | FE19: =$IT19*FE$66/$IT$66 -> 4211.096659 | FF19: 4545.63503 | FG19: 5375.194404 | FH19: 40425.06361 | FI19: 3274.994928 | FJ19: 3631.503017 | FK19: 2996.037521 | FL19: 3879.928946 | FM19: 4880.825167 | FN19: 6394.608121 | FO19: =$IT19*FO$66/$IT$66 -> 5685.891275 | FP19: 290.9397374 | FQ19: 3017.873827 | FR19: 2614.023658 | FS19: 35231.3494 | FT19: 3464.563906 | FU19: 14058.06218 | FV19: 4385.667822 | FW19: 3768.357622 | FX19: 13235.3329 | FY19: =$IT19*FY$66/$IT$66 -> 0.001347688092 | FZ19: 3829.208699 | GA19: 2788.188354 | GB19: 4832.532158 | GC19: 12588.37767 | GD19: 8886.871815 | GE19: 3049.755382 | GF19: 1208.649744 | GG19: 2756.387231 | GH19: 28217.93485 | GI19: =$IT19*GI$66/$IT$66 -> 28518.81096 | GJ19: 5392.62702 | GK19: 29683.5426 | GL19: 3827.584251 | GM19: 4197.004255 | GN19: 13546.10005 | GO19: 6001.066524 | GP19: 313.4742308 | GQ19: 5823.243043 | GR19: 26025.46252 | GS19: =$IT19*GS$66/$IT$66 -> 6227.533116 | GT19: 3434.86951 | GU19: 6113.778974 | GV19: 30169.91778 | GW19: 27869.88836 | GX19: 10962.05969 | GY19: 1902112.264 | GZ19: 142952.9664 | HA19: 151630.3702 | HB19: 1009930.43 | HC19: =$IT19*HC$66/$IT$66 -> 256311.1462 | HD19: 50469.37089 | HE19: 38244.32876 | HF19: 34497.81783 | HG19: 25528.99877 | HH19: 20735.54006 | HI19: 52282.363 | HJ19: 3034.01741 | HK19: 1006.065033 | HL19: 122956.4384 | HM19: =$IT19*HM$66/$IT$66 -> 38993.49527 | HN19: 2922.054898 | HO19: 4302.583818 | HP19: 2408.197736 | HQ19: 3680.663372 | HR19: 3178.927818 | HS19: 2155.558296 | HT19: 4325.415017 | HU19: 290.3975426 | HV19: 1305.996055 | HW19: =$IT19*HW$66/$IT$66 -> 374.5668892 | HX19: 142.0572706 | HY19: 162067.0841 | HZ19: 2399.875114 | IA19: 17148.63019 | IB19: 9013.87988 | IC19: 9439.027031 | ID19: 7631.297644 | IE19: 9607.589547 | IF19: 5594.881764 | IG19: =$IT19*IG$66/$IT$66 -> 9459.534826 | IH19: 12243.21791 | II19: 117158.2215 | IJ19: 3606.58719 | IK19: 15017.20305 | IL19: 5204.279095 | IM19: 3556.555036 | IN19: 3019.975059 | IO19: 3357.050682 | IP19: 133938.3331 | IQ19: 205964.7399 | IR19: 224622.0631 | IS19: 37945.20305 | IT19: 14432642.74
A20: =+MATCH(B20,RUT[EMPRESA],0) -> 231 | B20: NUEVA ENERGIA | C20: -45707111.39 | D20: -45707111.39 | F20: =IFERROR(INDEX($B$9:$B$511,MATCH(0,INDEX(COUNTIF($F$8:F19,$B$9:$B$511),0,0),0)),"") -> NUEVA ENERGIA | G20: -45707111.39 | J20: NUEVA DEGAN | K20: 88342.14557 | L20: 53186.67733 | M20: 42580.77153 | N20: 11271.52362 | O20: 767943.6866 | P20: 275220.749 | Q20: 300126.9242 | R20: 77198.95514 | S20: 296.5560673 | T20: 1622.061572 | U20: 10177.74993 | V20: 4782.459737 | W20: 2197.889381 | X20: 20520.50881 | Y20: 2996.979465 | Z20: 20197.39148 | AA20: 9690.626762 | AB20: 271812.2464 | AC20: 3425.204937 | AD20: 9.553496877 | AE20: 847.9342209 | AF20: 2916.360725 | AG20: 20010.65623 | AH20: 191.096949 | AI20: 35753.49589 | AJ20: 2251.017634 | AK20: 16641.33619 | AL20: 73543.93531 | AM20: 49097.39922 | AN20: 1254.337076 | AO20: 5144.281973 | AP20: 165779.5487 | AQ20: 33918.93686 | AR20: 3408.251042 | AS20: 213717.0639 | AT20: 6069.205317 | AU20: 13199.28333 | AV20: 110112.6172 | AW20: 63462.2972 | AX20: 364.9111406 | AY20: 89.61941152 | AZ20: 2893.154686 | BA20: 17991.49476 | BB20: 54.08436821 | BC20: 26005.78782 | BD20: 3.411194996 | BE20: 17592.41855 | BF20: 1.616583112 | BG20: 351.1016161 | BH20: 1078.219555 | BI20: 33595.66311 | BJ20: 12632.8072 | BK20: 978.4991573 | BL20: 1838.650701 | BM20: 76130.68708 | BN20: 3861.443978 | BO20: 77998.69064 | BP20: 97061.76 | BQ20: 42034.89246 | BR20: 10008.43706 | BS20: 52.75608712 | BT20: 74437.86666 | BU20: 17922.64179 | BV20: 1565.138935 | BW20: 6587.570723 | BX20: 70383.51991 | BY20: 2849.521784 | BZ20: 2665.97288 | CA20: 3086.534405 | CB20: 46884.28775 | CC20: 188195.6609 | CD20: 15247.253 | CE20: 2722.206589 | CF20: 7826.015833 | CG20: 32817.31066 | CH20: 69866.50373 | CI20: 27086.14584 | CJ20: 1003.732588 | CK20: 11314.58639 | CL20: 6868.58152 | CM20: 7417.030311 | CN20: 1304.214918 | CO20: 15634.54824 | CP20: 52779.66294 | CQ20: 221.7379518 | CR20: 13526.65483 | CS20: 3816.314595 | CT20: 4953.192486 | CU20: 703.3171964 | CV20: 12398.13794 | CW20: 155.3449971 | CX20: 27687.34362 | CY20: 7073.140968 | CZ20: 4385.983941 | DA20: 2599.657314 | DB20: 2388.034762 | DC20: 5443.757667 | DD20: 1180.0868 | DE20: 1192.988088 | DF20: 24790.2498 | DG20: 1223.450335 | DH20: 13651.44254 | DI20: 362.0998381 | DJ20: 52360.02744 | DK20: 128.400581 | DL20: 10272.29113 | DM20: 1437.595599 | DN20: 96884.54236 | DO20: 3895.738614 | DP20: 22660.29562 | DQ20: 27046.91508 | DR20: 331.9515862 | DS20: 8141.240166 | DT20: 2546.681515 | DU20: 2535.989577 | DV20: 1056.480979 | DW20: 2874.254066 | DX20: 7664.665042 | DY20: 24137.58196 | DZ20: 16137.42628 | EA20: 7343.080212 | EB20: 3244.480143 | EC20: 29716.95021 | ED20: 3041.311913 | EE20: 5123.173321 | EF20: 8600.656583 | EG20: 8672.032766 | EH20: 175234.6248 | EI20: 221.7304032 | EJ20: 11831.20654 | EK20: 2644.782216 | EL20: 3061.123279 | EM20: 2420.87641 | EN20: 20472.34848 | EO20: 7259.377496 | EP20: 2221.925118 | EQ20: 641.9103953 | ER20: 3046.145304 | ES20: 3062.612698 | ET20: 2498.907567 | EU20: 6568.065735 | EV20: 2706.630384 | EW20: 7090.370328 | EX20: 2074.390889 | EY20: 1859.409298 | EZ20: 1467.928473 | FA20: 14368.5056 | FB20: 3747.408005 | FC20: 1953.587445 | FD20: 2284.730609 | FE20: 2134.984016 | FF20: 2304.591634 | FG20: 2725.169965 | FH20: 20495.10416 | FI20: 1660.389772 | FJ20: 1841.135819 | FK20: 1518.961149 | FL20: 1967.085288 | FM20: 2474.529691 | FN20: 3242.002555 | FO20: 2882.690181 | FP20: 147.5035458 | FQ20: 1530.031938 | FR20: 1325.28393 | FS20: 17861.94284 | FT20: 1756.499354 | FU20: 7127.297348 | FV20: 2223.489855 | FW20: 1910.519739 | FX20: 6710.181809 | FY20: 0.0006832644246 | FZ20: 1941.370628 | GA20: 1413.583694 | GB20: 2450.045617 | GC20: 6382.181958 | GD20: 4505.555397 | GE20: 1546.195569 | GF20: 612.7733682 | GG20: 1397.460841 | GH20: 14306.2116 | GI20: 14458.75279 | GJ20: 2734.008128 | GK20: 15049.26012 | GL20: 1940.547049 | GM20: 2127.839308 | GN20: 6867.737652 | GO20: 3042.480889 | GP20: 158.9283093 | GQ20: 2952.326158 | GR20: 13194.64999 | GS20: 3157.297193 | GT20: 1741.444591 | GU20: 3099.624978 | GV20: 15295.84748 | GW20: 14129.7555 | GX20: 5557.654955 | GY20: 964351.9512 | GZ20: 72475.72852 | HA20: 76875.08573 | HB20: 512024.6575 | HC20: 129947.1954 | HD20: 25587.4678 | HE20: 19389.49334 | HF20: 17490.04965 | HG20: 12942.94782 | HH20: 10512.71205 | HI20: 26506.63672 | HJ20: 1538.216574 | HK20: 510.06494 | HL20: 62337.68822 | HM20: 19769.31329 | HN20: 1481.452697 | HO20: 2181.367093 | HP20: 1220.932239 | HQ20: 1866.059629 | HR20: 1611.684706 | HS20: 1092.846562 | HT20: 2192.942283 | HU20: 147.2286585 | HV20: 662.1269774 | HW20: 189.9016779 | HX20: 72.02161972 | HY20: 82166.39563 | HZ20: 1216.712753 | IA20: 8694.184513 | IB20: 4569.947219 | IC20: 4785.492586 | ID20: 3868.991812 | IE20: 4870.9521 | IF20: 2836.549266 | IG20: 4795.889833 | IH20: 6207.189401 | II20: 59398.05006 | IJ20: 1828.503743 | IK20: 7613.572204 | IL20: 2638.517608 | IM20: 1803.13794 | IN20: 1531.097242 | IO20: 1701.991222 | IP20: 67905.39933 | IQ20: 104422.0694 | IR20: 113881.1462 | IS20: 19237.83958 | IT20: 7317205.959
A21: =+MATCH(B21,RUT[EMPRESA],0) -> 102 | B21: ELEKTRAGEN | C21: 1304302.659 | D21: 1304302.659 | F21: =IFERROR(INDEX($B$9:$B$511,MATCH(0,INDEX(COUNTIF($F$8:F20,$B$9:$B$511),0,0),0)),"") -> ELEKTRAGEN | H21: 1304302.659 | J21: CHACAYES | K21: 5251435.784 | L21: 3161644.069 | M21: 2531183.569 | N21: 670027.6758 | O21: 45649864.28 | P21: 16360300.97 | Q21: 17840830.78 | R21: 4589036.783 | S21: 17628.56374 | T21: 96422.29228 | U21: 605009.0797 | V21: 284289.9053 | W21: 130651.9654 | X21: 1219826.998 | Y21: 178153.305 | Z21: 1200619.519 | AA21: 576052.3906 | AB21: 16157684.96 | AC21: 203608.8625 | AD21: 567.9008025 | AE21: 50404.8445 | AF21: 173360.9816 | AG21: 1189519.176 | AH21: 11359.62173 | AI21: 2125341.042 | AJ21: 133810.1365 | AK21: 989232.3513 | AL21: 4371766.738 | AM21: 2918559.851 | AN21: 74563.17214 | AO21: 305798.1698 | AP21: 9854646.94 | AQ21: 2016286.99 | AR21: 202601.0503 | AS21: 12704258.31 | AT21: 360779.5778 | AU21: 784621.9758 | AV21: 6545565.931 | AW21: 3772470.957 | AX21: 21691.88228 | AY21: 5327.361947 | AZ21: 171981.5151 | BA21: 1069491.564 | BB21: 3215.006662 | BC21: 1545895.494 | BD21: 202.7760516 | BE21: 1045768.763 | BF21: 96.09662914 | BG21: 20870.98495 | BH21: 64093.99178 | BI21: 1997070.213 | BJ21: 750948.2068 | BK21: 58166.18395 | BL21: 109297.2785 | BM21: 4525534.351 | BN21: 229540.7809 | BO21: 4636576.489 | BP21: 5769767.04 | BQ21: 2498734.177 | BR21: 594944.3966 | BS21: 3136.047941 | BT21: 4424905.85 | BU21: 1065398.648 | BV21: 93038.56679 | BW21: 391593.4394 | BX21: 4183898.101 | BY21: 169387.7884 | BZ21: 158476.8548 | CA21: 183476.8345 | CB21: 2787003.019 | CC21: 11187156.73 | CD21: 906362.0708 | CE21: 161819.6275 | CF21: 465211.9249 | CG21: 1950801.607 | CH21: 4153164.443 | CI21: 1610116.605 | CJ21: 59666.16722 | CK21: 672587.5113 | CL21: 408297.9256 | CM21: 440900.0725 | CN21: 77528.12483 | CO21: 929384.56 | CP21: 3137449.389 | CQ21: 13181.05427 | CR21: 804082.3407 | CS21: 226858.097 | CT21: 294438.9917 | CU21: 41808.18871 | CV21: 736998.4597 | CW21: 9234.372464 | CX21: 1645854.378 | CY21: 420457.816 | CZ21: 260721.6846 | DA21: 154534.7734 | DB21: 141955.0218 | DC21: 323600.2887 | DD21: 70149.41747 | DE21: 70916.32534 | DF21: 1473638.704 | DG21: 72727.13183 | DH21: 811500.2571 | DI21: 21524.76641 | DJ21: 3112504.456 | DK21: 7632.680884 | DL21: 610629.014 | DM21: 85456.84422 | DN21: 5759232.463 | DO21: 231579.4011 | DP21: 1347025.098 | DQ21: 1607784.56 | DR21: 19732.6251 | DS21: 483950.2104 | DT21: 151385.6648 | DU21: 150750.0902 | DV21: 62801.7577 | DW21: 170857.9813 | DX21: 455620.5423 | DY21: 1434841.33 | DZ21: 959277.7862 | EA21: 436504.1617 | EB21: 192865.8062 | EC21: 1766502.893 | ED21: 180788.6158 | EE21: 304543.3811 | EF21: 511259.8913 | EG21: 515502.7976 | EH21: 10416697.19 | EI21: 13180.60554 | EJ21: 703297.6274 | EK21: 157217.191 | EL21: 181966.2883 | EM21: 143907.2701 | EN21: 1216964.142 | EO21: 431528.5135 | EP21: 132080.7526 | EQ21: 38157.90525 | ER21: 181075.9332 | ES21: 182054.8257 | ET21: 148545.7766 | EU21: 390433.9793 | EV21: 160893.7112 | EW21: 421482.003 | EX21: 123310.6857 | EY21: 110531.2585 | EZ21: 87259.96025 | FA21: 854125.5591 | FB21: 222761.9939 | FC21: 116129.6112 | FD21: 135814.1802 | FE21: 126912.6009 | FF21: 136994.8047 | FG21: 161995.7833 | FH21: 1218316.837 | FI21: 98700.68482 | FJ21: 109445.0045 | FK21: 90293.56124 | FL21: 116931.9808 | FM21: 147096.6512 | FN21: 192718.5277 | FO21: 171359.4601 | FP21: 8768.242992 | FQ21: 90951.65643 | FR21: 78780.5572 | FS21: 1061790.442 | FT21: 104413.8503 | FU21: 423677.1034 | FV21: 132173.7673 | FW21: 113569.4822 | FX21: 398881.9678 | FY21: 0.040616166 | FZ21: 115403.3912 | GA21: 84029.47364 | GB21: 145641.2129 | GC21: 379384.2508 | GD21: 267829.5245 | GE21: 91912.49191 | GF21: 36425.87547 | GG21: 83071.0622 | GH21: 850422.5368 | GI21: 859490.2388 | GJ21: 162521.1616 | GK21: 894592.5254 | GL21: 115354.4342 | GM21: 126487.8888 | GN21: 408247.7625 | GO21: 180858.1047 | GP21: 9447.379901 | GQ21: 175498.921 | GR21: 784346.5501 | GS21: 187683.278 | GT21: 103518.9307 | GU21: 184254.9943 | GV21: 909250.7354 | GW21: 839933.2298 | GX21: 330370.8317 | GY21: 57325213.38 | GZ21: 4308267.948 | HA21: 4569784.597 | HB21: 30436940.28 | HC21: 7724618.271 | HD21: 1521028.759 | HE21: 1152594.591 | HF21: 1039683.517 | HG21: 769384.2942 | HH21: 624920.6638 | HI21: 1575668.099 | HJ21: 91438.18624 | HK21: 30320.44627 | HL21: 3705619.379 | HM21: 1175172.717 | HN21: 88063.89808 | HO21: 129669.8098 | HP21: 72577.44545 | HQ21: 110926.5826 | HR21: 95805.4469 | HS21: 64963.48381 | HT21: 130357.8887 | HU21: 8751.902511 | HV21: 39359.66554 | HW21: 11288.56969 | HX21: 4281.273775 | HY21: 4884322.738 | HZ21: 72326.62109 | IA21: 516819.5924 | IB21: 271657.2504 | IC21: 284470.1908 | ID21: 229989.4565 | IE21: 289550.2707 | IF21: 168616.6464 | IG21: 285088.2478 | IH21: 368981.9432 | II21: 3530874.687 | IJ21: 108694.0998 | IK21: 452583.365 | IL21: 156844.7958 | IM21: 107186.2477 | IN21: 91014.98263 | IO21: 101173.6533 | IP21: 4036587.992 | IQ21: 6207295.377 | IR21: 6769583.447 | IS21: 1143579.642 | IT21: 434966085.1
A22: =+MATCH(B22,RUT[EMPRESA],0) -> 138 | B22: GESAN | C22: 7134095.213 | D22: 7134095.213 | F22: =IFERROR(INDEX($B$9:$B$511,MATCH(0,INDEX(COUNTIF($F$8:F21,$B$9:$B$511),0,0),0)),"") -> GESAN | H22: 7134095.213 | J22: LA ARENA SPA | K22: 1443586.802 | L22: 869116.1503 | M22: 695806.508 | N22: 184186.4111 | O22: 12548861.74 | P22: 4497344.256 | Q22: 4904332.627 | R22: 1261497.466 | S22: 4845.981748 | T22: 26505.88417 | U22: 166313.2063 | V22: 78149.5142 | W22: 35915.40689 | X22: 335322.801 | Y22: 48973.22762 | Z22: 330042.7853 | AA22: 158353.1938 | AB22: 4441646.386 | AC22: 55970.80092 | AD22: 156.1123733 | AE22: 13855.97602 | AF22: 47655.84791 | AG22: 326991.3704 | AH22: 3122.688857 | AI22: 584242.9396 | AJ22: 36783.56833 | AK22: 271933.7769 | AL22: 1201771.292 | AM22: 802293.8213 | AN22: 20496.94896 | AO22: 84062.00139 | AP22: 2708980.715 | AQ22: 554264.6637 | AR22: 55693.75966 | AS22: 3492321.031 | AT22: 99176.04605 | AU22: 215687.6663 | AV22: 1799335.073 | AW22: 1037028.636 | AX22: 5962.962562 | AY22: 1464.458429 | AZ22: 47276.64123 | BA22: 293996.5316 | BB22: 883.7851929 | BC22: 424956.9878 | BD22: 55.74186642 | BE22: 287475.2823 | BF22: 26.41636141 | BG22: 5737.303029 | BH22: 17619.03686 | BI22: 548982.092 | BJ22: 206430.9582 | BK22: 15989.51962 | BL22: 30045.13722 | BM22: 1244041.045 | BN22: 63099.32285 | BO22: 1274565.834 | BP22: 1586072.818 | BQ22: 686886.3735 | BR22: 163546.4879 | BS22: 862.079935 | BT22: 1216378.901 | BU22: 292871.4147 | BV22: 25575.71923 | BW22: 107646.5836 | BX22: 1150127.38 | BY22: 46563.64201 | BZ22: 43564.29471 | CA22: 50436.63252 | CB22: 766129.6724 | CC22: 3075279.309 | CD22: 249153.2559 | CE22: 44483.20198 | CF22: 127883.8441 | CG22: 536263.142 | CH22: 1141678.89 | CI22: 442610.9691 | CJ22: 16401.85562 | CK22: 184890.0938 | CL22: 112238.5422 | CM22: 121200.6682 | CN22: 21311.99589 | CO22: 255481.994 | CP22: 862465.1843 | CQ22: 3623.389253 | CR22: 221037.1987 | CS22: 62361.86984 | CT22: 80939.43447 | CU22: 11492.80919 | CV22: 202596.2601 | CW22: 2538.471147 | CX22: 452435.059 | CY22: 115581.2199 | CZ22: 71670.75796 | DA22: 42480.64121 | DB22: 39022.5463 | DC22: 88955.69236 | DD22: 19283.63545 | DE22: 19494.45362 | DF22: 405094.0489 | DG22: 19992.23298 | DH22: 223076.3375 | DI22: 5917.023456 | DJ22: 855607.9785 | DK22: 2098.176165 | DL22: 167858.091 | DM22: 23491.55118 | DN22: 1583176.929 | DO22: 63659.72676 | DP22: 370288.7617 | DQ22: 441969.9046 | DR22: 5424.375035 | DS22: 133034.8814 | DT22: 41614.97099 | DU22: 41440.25551 | DV22: 17263.80981 | DW22: 46967.78882 | DX22: 125247.2331 | DY22: 394428.8939 | DZ22: 263699.4546 | EA22: 119992.2598 | EB22: 53017.60202 | EC22: 485600.58 | ED22: 49697.65803 | EE22: 83717.06783 | EF22: 140542.1416 | EG22: 141708.49 | EH22: 2863484.807 | EI22: 3623.265902 | EJ22: 193332.1124 | EK22: 43218.021 | EL22: 50021.39283 | EM22: 39559.20713 | EN22: 334535.8198 | EO22: 118624.4853 | EP22: 36308.17155 | EQ22: 10489.36914 | ER22: 49776.6398 | ES22: 50045.73121 | ET22: 40834.30351 | EU22: 107327.8553 | EV22: 44228.67337 | EW22: 115862.7625 | EX22: 33897.33508 | EY22: 30384.3506 | EZ22: 23987.21648 | FA22: 234793.766 | FB22: 61235.87677 | FC22: 31923.30269 | FD22: 37334.46741 | FE22: 34887.47901 | FF22: 37659.01368 | FG22: 44531.62611 | FH22: 334907.6671 | FI22: 27132.2 | FJ22: 30085.74619 | FK22: 24821.13439 | FL22: 32143.86907 | FM22: 40435.948 | FN22: 52977.11609 | FO22: 47105.6422 | FP22: 2410.335075 | FQ22: 25002.04064 | FR22: 21656.2817 | FS22: 291879.5416 | FT22: 28702.71341 | FU22: 116466.1818 | FV22: 36333.7407 | FW22: 31219.53925 | FX22: 109650.1544 | FY22: 0.01116512962 | FZ22: 31723.66937 | GA22: 23099.17595 | GB22: 40035.85713 | GC22: 104290.3541 | GD22: 73624.65861 | GE22: 25266.16829 | GF22: 10013.245 | GG22: 22835.71465 | GH22: 233775.8284 | GI22: 236268.4829 | GJ22: 44676.0493 | GK22: 245917.8816 | GL22: 31710.21138 | GM22: 34770.72832 | GN22: 112224.7527 | GO22: 49716.7601 | GP22: 2597.025557 | GQ22: 48243.55408 | GR22: 215611.9535 | GS22: 51592.95748 | GT22: 28456.70561 | GU22: 50650.54376 | GV22: 249947.3317 | GW22: 230892.3836 | GX22: 90816.87222 | GY22: 15758342.08 | GZ22: 1184315.872 | HA22: 1256205.161 | HB22: 8366924.228 | HC22: 2123449.176 | HD22: 418121.2781 | HE22: 316841.0333 | HF22: 285802.4863 | HG22: 211498.9231 | HH22: 171786.776 | HI22: 433141.2906 | HJ22: 25135.78463 | HK22: 8334.900755 | HL22: 1018651.556 | HM22: 323047.6186 | HN22: 24208.21396 | HO22: 35645.41847 | HP22: 19951.08514 | HQ22: 30493.02273 | HR22: 26336.31723 | HS22: 17858.05477 | HT22: 35834.56705 | HU22: 2405.843179 | HV22: 10819.72551 | HW22: 3103.157097 | HX22: 1176.895343 | HY22: 1342669.726 | HZ22: 19882.13509 | IA22: 142070.4686 | IB22: 74676.87649 | IC22: 78199.07356 | ID22: 63222.66096 | IE22: 79595.55569 | IF22: 46351.65989 | IG22: 78368.97355 | IH22: 101430.8249 | II22: 970615.3344 | IJ22: 29879.32718 | IK22: 124412.3321 | IL22: 43115.6519 | IM22: 29464.82809 | IN22: 25019.44861 | IO22: 27812.00355 | IP22: 1109632.754 | IQ22: 1706346.617 | IR22: 1860916.085 | IS22: 314362.8803 | IT22: 119569452.2
A23: =+MATCH(B23,RUT[EMPRESA],0) -> 237 | B23: PACIFIC HYDRO | C23: -18084463.73 | D23: -18084463.73 | F23: =IFERROR(INDEX($B$9:$B$511,MATCH(0,INDEX(COUNTIF($F$8:F22,$B$9:$B$511),0,0),0)),"") -> PACIFIC HYDRO | G23: -18084463.73 | J23: CARDONES SA | K23: 32541.10906 | L23: 19591.48101 | M23: 15684.76203 | N23: 4151.901416 | O23: 282874.4886 | P23: 101378.4344 | Q23: 110552.7029 | R23: 28436.47958 | S23: 109.2373664 | T23: 597.4915161 | U23: 3749.006415 | V23: 1761.634188 | W23: 809.5995132 | X23: 7558.794398 | Y23: 1103.946876 | Z23: 7439.773106 | AA23: 3569.573053 | AB23: 100122.9016 | AC23: 1261.685084 | AD23: 3.519060826 | AE23: 312.3392552 | AF23: 1074.250708 | AG23: 7370.988586 | AH23: 70.39116627 | AI23: 13169.91343 | AJ23: 829.1694733 | AK23: 6129.888881 | AL23: 27090.14145 | AM23: 18085.18247 | AN23: 462.0390339 | AO23: 1894.912554 | AP23: 61065.42172 | AQ23: 12494.1478 | AR23: 1255.440063 | AS23: 78723.35722 | AT23: 2235.610997 | AU23: 4861.99781 | AV23: 40560.33122 | AW23: 23376.53813 | AX23: 134.4161741 | AY23: 33.01159401 | AZ23: 1065.70269 | BA23: 6627.224066 | BB23: 19.92214829 | BC23: 9579.31429 | BD23: 1.256524478 | BE23: 6480.223078 | BF23: 0.5954735081 | BG23: 129.3293921 | BH23: 397.1655871 | BI23: 12375.06889 | BJ23: 4653.334535 | BK23: 360.433263 | BL23: 677.2728078 | BM23: 28042.97965 | BN23: 1422.375116 | BO23: 28731.06468 | BP23: 35753.00664 | BQ23: 15483.68574 | BR23: 3686.639481 | BS23: 19.43287174 | BT23: 27419.42389 | BU23: 6601.861854 | BV23: 576.5238828 | BW23: 2426.552535 | BX23: 25925.99243 | BY23: 1049.630372 | BZ23: 982.0195521 | CA23: 1136.934721 | CB23: 17269.97585 | CC23: 69322.46762 | CD23: 5616.373922 | CE23: 1002.733417 | CF23: 2882.737713 | CG23: 12088.3603 | CH23: 25735.54788 | CI23: 9977.267589 | CJ23: 369.7280771 | CK23: 4167.763723 | CL23: 2530.063752 | CM23: 2732.086601 | CN23: 480.4116948 | CO23: 5759.035351 | CP23: 19441.55597 | CQ23: 81.67787667 | CR23: 4982.586137 | CS23: 1405.751566 | CT23: 1824.524136 | CU23: 259.0691163 | CV23: 4566.893367 | CW23: 57.22182157 | CX23: 10198.72069 | CY23: 2605.413873 | CZ23: 1615.591073 | DA23: 957.5920036 | DB23: 879.6401663 | DC23: 2005.225374 | DD23: 434.6887095 | DE23: 439.4409399 | DF23: 9131.56701 | DG23: 450.6618048 | DH23: 5028.552085 | DI23: 133.380622 | DJ23: 19286.9819 | DK23: 47.29676059 | DL23: 3783.830966 | DM23: 529.5428911 | DN23: 35687.72796 | DO23: 1435.007654 | DP23: 8346.991644 | DQ23: 9962.816813 | DR23: 122.2754179 | DS23: 2998.851594 | DT23: 938.0782002 | DU23: 934.139791 | DV23: 389.1581141 | DW23: 1058.740587 | DX23: 2823.303638 | DY23: 8891.154746 | DZ23: 5944.272069 | EA23: 2704.846848 | EB23: 1195.114534 | EC23: 10946.33271 | ED23: 1120.276873 | EE23: 1887.137115 | EF23: 3168.079086 | EG23: 3194.370729 | EH23: 64548.22891 | EI23: 81.67509612 | EJ23: 4358.062391 | EK23: 974.213904 | EL23: 1127.574453 | EM23: 891.7374912 | EN23: 7541.05439 | EO23: 2674.014687 | EP23: 818.4531528 | EQ23: 236.4497267 | ER23: 1122.057268 | ES23: 1128.123085 | ET23: 920.4805152 | EU23: 2419.367811 | EV23: 996.9958724 | EW23: 2611.760362 | EX23: 764.1084524 | EY23: 684.9193028 | EZ23: 540.7161012 | FA23: 5292.684536 | FB23: 1380.369605 | FC23: 719.6101214 | FD23: 841.5877545 | FE23: 786.4281227 | FF23: 848.9036259 | FG23: 1003.824986 | FH23: 7549.436515 | FI23: 611.6098303 | FJ23: 678.1882088 | FK23: 559.5141489 | FL23: 724.5820944 | FM23: 911.5008474 | FN23: 1194.201907 | FO23: 1061.848056 | FP23: 54.33339817 | FQ23: 563.5921094 | FR23: 488.172532 | FS23: 6579.503206 | FT23: 647.0120991 | FU23: 2625.362547 | FV23: 819.0295287 | FW23: 703.7459956 | FX23: 2471.716717 | FY23: 0.0002516826144 | FZ23: 715.1100183 | GA23: 520.6980296 | GB23: 902.4820613 | GC23: 2350.896933 | GD23: 1659.635597 | GE23: 569.5460338 | GF23: 225.7170105 | GG23: 514.759126 | GH23: 5269.738344 | GI23: 5325.927374 | GJ23: 1007.080551 | GK23: 5543.442618 | GL23: 714.8066504 | GM23: 783.7963468 | GN23: 2529.752911 | GO23: 1120.70747 | GP23: 58.54174597 | GQ23: 1087.498689 | GR23: 4860.291104 | GS23: 1163.000419 | GT23: 641.4666295 | GU23: 1141.756675 | GV23: 5634.273855 | GW23: 5204.74018 | GX23: 2047.179801 | GY23: 355222.0948 | GZ23: 26696.6641 | HA23: 28317.18125 | HB23: 188605.9039 | HC23: 47866.46089 | HD23: 9425.224786 | HE23: 7142.181268 | HF23: 6442.515172 | HG23: 4767.575812 | HH23: 3872.390772 | HI23: 9763.803569 | HJ23: 566.6069457 | HK23: 187.8840358 | HL23: 22962.28485 | HM23: 7282.089148 | HN23: 545.6977918 | HO23: 803.5134762 | HP23: 449.7342564 | HQ23: 687.3689731 | HR23: 593.6691647 | HS23: 402.5534917 | HT23: 807.777234 | HU23: 54.23214255 | HV23: 243.8965687 | HW23: 69.95088438 | HX23: 26.52939168 | HY23: 30266.25201 | HZ23: 448.1799952 | IA23: 3202.530395 | IB23: 1683.354529 | IC23: 1762.751347 | ID23: 1425.155385 | IE23: 1794.23063 | IF23: 1044.851904 | IG23: 1766.581206 | IH23: 2286.437871 | II23: 21879.45982 | IJ23: 673.5351437 | IK23: 2804.48343 | IL23: 971.9063157 | IM23: 664.1915697 | IN23: 563.9845172 | IO23: 626.9338559 | IP23: 25013.16886 | IQ23: 38464.19991 | IR23: 41948.48081 | IS23: 7086.319127 | IT23: 2695315.985
A24: =+MATCH(B24,RUT[EMPRESA],0) -> 100 | B24: ELECTRICA CENIZAS | C24: -306970377.3 | D24: -306970377.3 | F24: =IFERROR(INDEX($B$9:$B$511,MATCH(0,INDEX(COUNTIF($F$8:F23,$B$9:$B$511),0,0),0)),"") -> ELECTRICA CENIZAS | G24: -306970377.3 | J24: CAPULLO | K24: 181664.572 | L24: 109371.7491 | M24: 87562.03041 | N24: 23178.47842 | O24: 1579180.133 | P24: 565957.0441 | Q24: 617173.4781 | R24: 158749.9948 | S24: 609.8304576 | T24: 3335.566726 | U24: 20929.26964 | V24: 9834.530232 | W24: 4519.684588 | X24: 42197.85955 | Y24: 6162.913392 | Z24: 41533.40918 | AA24: 19927.56178 | AB24: 558947.8849 | AC24: 7043.505509 | AD24: 19.64557132 | AE24: 1743.670661 | AF24: 5997.131036 | AG24: 41149.41149 | AH24: 392.9669722 | AI24: 73522.59206 | AJ24: 4628.936194 | AK24: 34220.82629 | AL24: 151233.9037 | AM24: 100962.6601 | AN24: 2579.387298 | AO24: 10578.5724 | AP24: 340904.9054 | AQ24: 69750.05089 | AR24: 7008.641944 | AS24: 439482.409 | AT24: 12480.56156 | AU24: 27142.67513 | AV24: 226432.8238 | AW24: 130502.276 | AX24: 750.3941156 | AY24: 184.2911097 | AZ24: 5949.410719 | BA24: 36997.2585 | BB24: 111.217738 | BC24: 53477.6497 | BD24: 7.014695819 | BE24: 36176.60819 | BF24: 3.324300958 | BG24: 721.9965559 | BH24: 2217.223644 | BI24: 69085.27886 | BJ24: 25977.78783 | BK24: 2012.161121 | BL24: 3780.955178 | BM24: 156553.2351 | BN24: 7940.57653 | BO24: 160394.5508 | BP24: 199595.3684 | BQ24: 86439.49839 | BR24: 20581.09889 | BS24: 108.4862941 | BT24: 153072.1617 | BU24: 36855.67097 | BV24: 3218.512444 | BW24: 13546.51518 | BX24: 144734.9047 | BY24: 5859.685115 | BZ24: 5482.239753 | CA24: 6347.071922 | CB24: 96411.67322 | CC24: 387000.8361 | CD24: 31354.06858 | CE24: 5597.877341 | CF24: 16093.22264 | CG24: 67484.69439 | CH24: 143671.7256 | CI24: 55699.27084 | CJ24: 2064.050515 | CK24: 23267.03161 | CL24: 14124.37874 | CM24: 15252.19507 | CN24: 2681.95484 | CO24: 32150.4928 | CP24: 108534.7749 | CQ24: 455.9763616 | CR24: 27815.87366 | CS24: 7847.7736 | CT24: 10185.62077 | CU24: 1446.28384 | CV24: 25495.21984 | CW24: 319.4475551 | CX24: 56935.55887 | CY24: 14545.02965 | CZ24: 9019.227352 | DA24: 5345.870088 | DB24: 4910.694779 | DC24: 11194.40671 | DD24: 2426.700892 | DE24: 2453.230778 | DF24: 50978.0478 | DG24: 2515.872577 | DH24: 28072.48398 | DI24: 744.6130237 | DJ24: 107671.8469 | DK24: 264.0397338 | DL24: 21123.6818 | DM24: 2956.235527 | DN24: 199230.9425 | DO24: 8011.099159 | DP24: 46598.06346 | DQ24: 55618.59768 | DR24: 682.6169148 | DS24: 16741.44205 | DT24: 5236.931983 | DU24: 5214.94535 | DV24: 2172.520984 | DW24: 5910.54396 | DX24: 15761.42492 | DY24: 49635.91804 | DZ24: 33184.59859 | EA24: 15100.12594 | EB24: 6671.867577 | EC24: 61109.19094 | ED24: 6254.077525 | EE24: 10535.1651 | EF24: 17686.17444 | EG24: 17832.95064 | EH24: 360348.0865 | EI24: 455.9608389 | EJ24: 24329.39633 | EK24: 5438.663803 | EL24: 6294.817122 | EM24: 4978.22952 | EN24: 42098.82386 | EO24: 14928.00178 | EP24: 4569.111074 | EQ24: 1320.008434 | ER24: 6264.016789 | ES24: 6297.879924 | ET24: 5138.690835 | EU24: 13506.40561 | EV24: 5565.846824 | EW24: 14580.45968 | EX24: 4265.725386 | EY24: 3823.642637 | EZ24: 3018.611288 | FA24: 29547.03448 | FB24: 7706.075816 | FC24: 4017.308215 | FD24: 4698.262711 | FE24: 4390.327573 | FF24: 4739.104425 | FG24: 5603.971154 | FH24: 42145.61806 | FI24: 3414.383876 | FJ24: 3786.065512 | FK24: 3123.553602 | FL24: 4045.06484 | FM24: 5088.560783 | FN24: 6666.772726 | FO24: 5927.891774 | FP24: 303.3225914 | FQ24: 3146.319297 | FR24: 2725.280628 | FS24: 36730.85118 | FT24: 3612.02121 | FU24: 14656.39548 | FV24: 4572.32876 | FW24: 3928.744865 | FX24: 13798.64954 | FY24: 0.001405047823 | FZ24: 3992.18586 | GA24: 2906.858047 | GB24: 5038.212347 | GC24: 13124.15888 | GD24: 9265.111094 | GE24: 3179.557781 | GF24: 1260.091783 | GG24: 2873.703418 | GH24: 29418.93466 | GI24: 29732.61653 | GJ24: 5622.14573 | GK24: 30946.92099 | GL24: 3990.492273 | GM24: 4375.635375 | GN24: 14122.64343 | GO24: 6256.481378 | GP24: 326.8161884 | GQ24: 6071.08945 | GR24: 27133.14724 | GS24: 6492.586746 | GT24: 3581.062973 | GU24: 6373.991048 | GV24: 31453.99706 | GW24: 29056.07476 | GX24: 11428.62223 | GY24: 1983069.161 | GZ24: 149037.27 | HA24: 158083.9978 | HB24: 1052914.661 | HC24: 267220.1527 | HD24: 52617.4269 | HE24: 39872.0677 | HF24: 35966.09936 | HG24: 26615.55321 | HH24: 21618.07734 | HI24: 54507.58282 | HJ24: 3163.149975 | HK24: 1048.884747 | HL24: 128189.6583 | HM24: 40653.11992 | HN24: 3046.422162 | HO24: 4485.70857 | HP24: 2510.694429 | HQ24: 3837.31821 | HR24: 3314.227999 | HS24: 2247.302256 | HT24: 4509.511501 | HU24: 302.75732 | HV24: 1361.581306 | HW24: 390.5090467 | HX24: 148.1034521 | HY24: 168964.9148 | HZ24: 2502.017583 | IA24: 17878.50293 | IB24: 9397.524822 | IC24: 9840.766907 | ID24: 7956.097706 | IE24: 10016.50371 | IF24: 5833.008755 | IG24: 9862.147546 | IH24: 12764.30857 | II24: 122144.6601 | IJ24: 3760.089228 | IK24: 15656.35889 | IL24: 5425.78142 | IM24: 3707.927626 | IN24: 3148.50996 | IO24: 3499.932053 | IP24: 139638.9597 | IQ24: 214730.924 | IR24: 234182.3323 | IS24: 39560.21073 | IT24: 15046918.78
A25: =+MATCH(B25,RUT[EMPRESA],0) -> 261 | B25: PUNTILLA | C25: -44757512.5 | D25: -44757512.5 | F25: =IFERROR(INDEX($B$9:$B$511,MATCH(0,INDEX(COUNTIF($F$8:F24,$B$9:$B$511),0,0),0)),"") -> PUNTILLA | G25: -44757512.5 | J25: ALLIPEN | K25: 583531.057 | L25: 351316.7791 | M25: 281261.0273 | N25: 74452.39245 | O25: 5072539.141 | P25: 1817930.202 | Q25: 1982444.282 | R25: 509926.3506 | S25: 1958.857512 | T25: 10714.28928 | U25: 67227.63113 | V25: 31589.83481 | W25: 14517.83524 | X25: 135545.2046 | Y25: 19796.10733 | Z25: 133410.9006 | AA25: 64010.01064 | AB25: 1795415.839 | AC25: 22624.68774 | AD25: 63.10421934 | AE25: 5600.904857 | AF25: 19263.59209 | AG25: 132177.4483 | AH25: 1262.262807 | AI25: 236164.4617 | AJ25: 14868.7661 | AK25: 109921.9001 | AL25: 485783.6544 | AM25: 324305.6537 | AN25: 8285.33918 | AO25: 33979.79841 | AP25: 1095032.441 | AQ25: 224046.5517 | AR25: 22512.70127 | AS25: 1411676.651 | AT25: 40089.2436 | AU25: 87185.92586 | AV25: 727332.7074 | AW25: 419190.8757 | AX25: 2410.366901 | AY25: 591.9678495 | AZ25: 19110.30801 | BA25: 118840.1741 | BB25: 357.2463443 | BC25: 171777.4088 | BD25: 22.53214713 | BE25: 116204.1348 | BF25: 10.67810212 | BG25: 2319.150117 | BH25: 7122.020779 | BI25: 221911.2144 | BJ25: 83444.15106 | BK25: 6463.332353 | BL25: 12144.93694 | BM25: 502870.063 | BN25: 25506.2006 | BO25: 515208.8859 | BP25: 641127.1884 | BQ25: 277655.3034 | BR25: 66109.25981 | BS25: 348.4725788 | BT25: 491688.3865 | BU25: 118385.3758 | BV25: 10338.29517 | BW25: 43513.2301 | BX25: 464907.995 | BY25: 18822.09729 | BZ25: 17609.69198 | CA25: 20387.64932 | CB25: 309687.2712 | CC25: 1243098.775 | CD25: 100713.4885 | CE25: 17981.13548 | CF25: 51693.59723 | CG25: 216769.9217 | CH25: 461492.9206 | CI25: 178913.5549 | CJ25: 6630.00807 | CK25: 74736.83722 | CL25: 45369.40561 | CM25: 48992.10348 | CN25: 8614.799932 | CO25: 103271.7103 | CP25: 348628.3054 | CQ25: 1464.657447 | CR25: 89348.33015 | CS25: 25208.10509 | CT25: 32717.58489 | CU25: 4645.658359 | CV25: 81894.07772 | CW25: 1026.108544 | CX25: 182884.6785 | CY25: 46720.59297 | CZ25: 28970.97222 | DA25: 17171.65426 | DB25: 15773.8126 | DC25: 35957.94108 | DD25: 7794.889895 | DE25: 7880.107458 | DF25: 163748.3511 | DG25: 8081.321349 | DH25: 90172.59703 | DI25: 2391.797255 | DJ25: 345856.4648 | DK25: 848.131164 | DL25: 67852.10915 | DM25: 9495.826416 | DN25: 639956.6034 | DO25: 25732.72877 | DP25: 149679.2518 | DQ25: 178654.4219 | DR25: 2192.657409 | DS25: 53775.76523 | DT25: 16821.73041 | DU25: 16751.10638 | DV25: 6978.429817 | DW25: 18985.46274 | DX25: 50627.81829 | DY25: 159437.2496 | DZ25: 106593.3972 | EA25: 48503.63697 | EB25: 21430.93667 | EC25: 196290.9464 | ED25: 20088.9388 | EE25: 33840.36831 | EF25: 56810.37284 | EG25: 57281.83772 | EH25: 1157486.556 | EI25: 1464.607586 | EJ25: 78149.29569 | EK25: 17469.72017 | EL25: 20219.79986 | EM25: 15990.74328 | EN25: 135227.0887 | EO25: 47950.75098 | EP25: 14676.59976 | EQ25: 4240.044761 | ER25: 20120.86505 | ES25: 20229.638 | ET25: 16506.16662 | EU25: 43384.39277 | EV25: 17878.24915 | EW25: 46834.39898 | EX25: 13702.0841 | EY25: 12282.0548 | EZ25: 9696.185755 | FA25: 94909.0517 | FB25: 24752.95274 | FC25: 12904.13471 | FD25: 15091.4522 | FE25: 14102.32309 | FF25: 15222.64129 | FG25: 18000.70963 | FH25: 135377.3979 | FI25: 10967.46058 | FJ25: 12161.35202 | FK25: 10033.27459 | FL25: 12993.29272 | FM25: 16345.14214 | FN25: 21414.57133 | FO25: 19041.18626 | FP25: 974.3129902 | FQ25: 10106.40107 | FR25: 8753.968192 | FS25: 117984.4379 | FT25: 11602.2983 | FU25: 47078.31498 | FV25: 14686.9354 | FW25: 12619.65731 | FX25: 44323.1196 | FY25: 0.004513202723 | FZ25: 12823.43832 | GA25: 9337.219304 | GB25: 16183.41619 | GC25: 42156.5648 | GD25: 29760.7839 | GE25: 10213.16755 | GF25: 4047.584411 | GG25: 9230.722173 | GH25: 94497.57785 | GI25: 95505.16624 | GJ25: 18059.08881 | GK25: 99405.6756 | GL25: 12817.99829 | GM25: 14055.12977 | GN25: 45363.83157 | GO25: 20096.6603 | GP25: 1049.777586 | GQ25: 19501.15647 | GR25: 87155.321 | GS25: 20855.06252 | GT25: 11502.85627 | GU25: 20474.11717 | GV25: 101034.4722 | GW25: 93332.023 | GX25: 36710.27288 | GY25: 6369885.062 | GZ25: 478727.7715 | HA25: 507787.0788 | HB25: 3382103.612 | HC25: 858347.0978 | HD25: 169014.2574 | HE25: 128074.4482 | HF25: 115527.9521 | HG25: 85492.73931 | HH25: 69440.17417 | HI25: 175085.6926 | HJ25: 10160.46347 | HK25: 3369.158986 | HL25: 411762.4365 | HM25: 130583.293 | HN25: 9785.518027 | HO25: 14408.69969 | HP25: 8064.68844 | HQ25: 12325.98258 | HR25: 10645.74642 | HS25: 7218.637328 | HT25: 14485.15791 | HU25: 972.4972623 | HV25: 4373.582422 | HW25: 1254.36762 | HX25: 475.7282225 | HY25: 542738.0486 | HZ25: 8036.817242 | IA25: 57428.15783 | IB25: 30186.11462 | IC25: 31609.86785 | ID25: 25556.0567 | IE25: 32174.35811 | IF25: 18736.40923 | IG25: 31678.54534 | IH25: 41000.67718 | II25: 392345.0887 | IJ25: 12077.9127 | IK25: 50290.33206 | IL25: 17428.34022 | IM25: 11910.36261 | IN25: 10113.43777 | IO25: 11242.25284 | IP25: 448539.1338 | IQ25: 689744.6301 | IR25: 752225.1717 | IS25: 127072.7216 | IT25: 48332728.39
A26: =+MATCH(B26,RUT[EMPRESA],0) -> 91 | B26: EL MANZANO | C26: 44763428.43 | D26: 44763428.43 | F26: =IFERROR(INDEX($B$9:$B$511,MATCH(0,INDEX(COUNTIF($F$8:F25,$B$9:$B$511),0,0),0)),"") -> EL MANZANO | H26: 44763428.43 | J26: ORAZUL_CHILE | K26: 96761.5054 | L26: 58255.58043 | M26: 46638.88938 | N26: 12345.7449 | O26: 841131.7916 | P26: 301450.3872 | Q26: 328730.2206 | R26: 84556.32435 | S26: 324.8190467 | T26: 1776.650527 | U26: 11147.73021 | V26: 5238.247279 | W26: 2407.357031 | X26: 22476.19538 | Y26: 3282.603596 | Z26: 22122.28367 | AA26: 10614.18225 | AB26: 297717.0407 | AC26: 3751.640668 | AD26: 10.46398334 | AE26: 928.7457438 | AF26: 3194.301567 | AG26: 21917.75181 | AH26: 209.3092526 | AI26: 39160.94706 | AJ26: 2465.548618 | AK26: 18227.3221 | AL26: 80552.96651 | AM26: 53776.57775 | AN26: 1373.880417 | AO26: 5634.552621 | AP26: 181579.0028 | AQ26: 37151.54722 | AR26: 3733.070999 | AS26: 234085.1549 | AT26: 6647.62486 | AU26: 14457.22783 | AV26: 120606.7901 | AW26: 69510.50796 | AX26: 399.688632 | AY26: 98.1604999 | AZ26: 3168.8839 | BA26: 19706.15618 | BB26: 59.23882483 | BC26: 28484.24342 | BD26: 3.736295524 | BE26: 19269.0464 | BF26: 1.770649948 | BG26: 384.5630045 | BH26: 1180.978191 | BI26: 36797.46419 | BJ26: 13836.76426 | BK26: 1071.754041 | BL26: 2013.881467 | BM26: 83386.24607 | BN26: 4229.455034 | BO26: 85432.27785 | BP26: 106312.134 | BQ26: 46040.98585 | BR26: 10962.28114 | BS26: 57.78395324 | BT26: 81532.0931 | BU26: 19630.74124 | BV26: 1714.302936 | BW26: 7215.392563 | BX26: 77091.35089 | BY26: 3121.092608 | BZ26: 2920.050759 | CA26: 3380.693479 | CB26: 51352.54791 | CC26: 206131.4602 | CD26: 16700.3772 | CE26: 2981.643765 | CF26: 8571.866445 | CG26: 35944.93163 | CH26: 76525.061 | CI26: 29667.56388 | CJ26: 1099.392318 | CK26: 12392.91173 | CL26: 7523.184813 | CM26: 8123.902967 | CN26: 1428.511816 | CO26: 17124.58322 | CP26: 57809.77594 | CQ26: 242.8704655 | CR26: 14815.79914 | CS26: 4180.024641 | CT26: 5425.251542 | CU26: 770.3461384 | CV26: 13579.73007 | CW26: 170.1499967 | CX26: 30326.05821 | CY26: 7747.239594 | CZ26: 4803.985754 | DA26: 2847.415055 | DB26: 2615.624027 | DC26: 5962.569547 | DD26: 1292.553792 | DE26: 1306.684625 | DF26: 27152.85976 | DG26: 1340.050045 | DH26: 14952.47961 | DI26: 396.6094011 | DJ26: 57350.14749 | DK26: 140.63767 | DL26: 11251.28157 | DM26: 1574.60421 | DN26: 106118.0268 | DO26: 4267.018086 | DP26: 24819.91243 | DQ26: 29624.59427 | DR26: 363.5879002 | DS26: 8917.132918 | DT26: 2789.39045 | DU26: 2777.679528 | DV26: 1157.167843 | DW26: 3148.181975 | DX26: 8395.138278 | DY26: 26437.99007 | DZ26: 17675.38755 | EA26: 8042.905128 | EB26: 3553.692078 | EC26: 32549.09442 | ED26: 3331.161103 | EE26: 5611.432231 | EF26: 9420.333557 | EG26: 9498.512176 | EH26: 191935.1854 | EI26: 242.8621975 | EJ26: 12958.76784 | EK26: 2896.84054 | EL26: 3352.860572 | EM26: 2651.595615 | EN26: 22423.44518 | EO26: 7951.225208 | EP26: 2433.683469 | EQ26: 703.0870236 | ER26: 3336.455136 | ES26: 3354.491938 | ET26: 2737.063454 | EU26: 7194.028671 | EV26: 2964.583086 | EW26: 7766.110981 | EX26: 2272.088638 | EY26: 2036.618442 | EZ26: 1607.827928 | FA26: 15737.88166 | FB26: 4104.550977 | FC26: 2139.772143 | FD26: 2502.474575 | FE26: 2338.456532 | FF26: 2524.228435 | FG26: 2984.889563 | FH26: 22448.36956 | FI26: 1818.631559 | FJ26: 2016.603427 | FK26: 1663.724222 | FL26: 2154.556384 | FM26: 2710.362269 | FN26: 3550.978366 | FO26: 3157.422086 | FP26: 161.5612237 | FQ26: 1675.850102 | FR26: 1451.588789 | FS26: 19564.25744 | FT26: 1923.900769 | FU26: 7806.557294 | FV26: 2435.397332 | FW26: 2092.599912 | FX26: 7349.688975 | FY26: 0.0007483822573 | FZ26: 2126.391015 | GA26: 1548.303874 | GB26: 2683.544765 | GC26: 6990.429427 | GD26: 4934.952848 | GE26: 1693.554191 | GF26: 671.1731212 | GG26: 1530.644449 | GH26: 15669.65079 | GI26: 15836.72976 | GJ26: 2994.570038 | GK26: 16483.5148 | GL26: 2125.488945 | GM26: 2330.630905 | GN26: 7522.260521 | GO26: 3332.441488 | GP26: 174.0748129 | GQ26: 3233.694649 | GR26: 14452.15291 | GS26: 3458.200245 | GT26: 1907.411227 | GU26: 3395.031636 | GV26: 16753.60293 | GW26: 15476.37772 | GX26: 6087.321702 | GY26: 1056258.549 | GZ26: 79382.95535 | HA26: 84201.58889 | HB26: 560822.6555 | HC26: 142331.6828 | HD26: 28026.05583 | HE26: 21237.38961 | HF26: 19156.92134 | HG26: 14176.46251 | HH26: 11514.61556 | HI26: 29032.82522 | HJ26: 1684.814766 | HK26: 558.676169 | HL26: 68278.71925 | HM26: 21653.40792 | HN26: 1622.641064 | HO26: 2389.260103 | HP26: 1337.291965 | HQ26: 2043.902576 | HR26: 1765.284705 | HS26: 1196.999211 | HT26: 2401.938455 | HU26: 161.2601385 | HV26: 725.2303268 | HW26: 208.0000674 | HX26: 78.88556816 | HY26: 89997.1818 | HZ26: 1332.670345 | IA26: 9522.775073 | IB26: 5005.481469 | IC26: 5241.569171 | ID26: 4237.722207 | IE26: 5335.173319 | IF26: 3106.883757 | IG26: 5252.957318 | IH26: 6798.759379 | II26: 65058.92182 | IJ26: 2002.767463 | IK26: 8339.176088 | IL26: 2889.97889 | IM26: 1974.984198 | IN26: 1677.016933 | IO26: 1864.197793 | IP26: 74377.0555 | IQ26: 114373.9103 | IR26: 124734.475 | IS26: 21071.28265 | IT26: 8014564.955
A27: =+MATCH(B27,RUT[EMPRESA],0) -> 125 | B27: ESPINOS | C27: 21034049.33 | D27: 21034049.33 | F27: =IFERROR(INDEX($B$9:$B$511,MATCH(0,INDEX(COUNTIF($F$8:F26,$B$9:$B$511),0,0),0)),"") -> ESPINOS | H27: 21034049.33 | J27: AGUAS DEL MELADO | K27: 2699353.876 | L27: 1625154.819 | M27: 1301084.21 | N27: 344409.0108 | O27: 23465037.6 | P27: 8409555.72 | Q27: 9170580.713 | R27: 2358866.173 | S27: 9061.47077 | T27: 49563.18598 | U27: 310988.0177 | V27: 146131.2847 | W27: 67157.99331 | X27: 627017.9951 | Y27: 91574.7301 | Z27: 617144.927 | AA27: 296103.6405 | AB27: 8305406.622 | AC27: 104659.4484 | AD27: 291.9135443 | AE27: 25909.20235 | AF27: 89111.37008 | AG27: 611439.1054 | AH27: 5839.09624 | AI27: 1092472.196 | AJ27: 68781.36292 | AK27: 508487.2579 | AL27: 2247184.575 | AM27: 1500204.167 | AN27: 38327.11586 | AO27: 157187.0073 | AP27: 5065505.989 | AQ27: 1036416.006 | AR27: 104141.4107 | AS27: 6530269.116 | AT27: 185448.6643 | AU27: 403313.0098 | AV27: 3364565.329 | AW27: 1939133.319 | AX27: 11150.10617 | AY27: 2738.381599 | AZ27: 88402.29389 | BA27: 549742.2642 | BB27: 1652.58437 | BC27: 794624.3969 | BD27: 104.2313652 | BE27: 537548.2211 | BF27: 49.39578794 | BG27: 10728.14682 | BH27: 32945.72614 | BI27: 1026538.159 | BJ27: 386003.9494 | BK27: 29898.7021 | BL27: 56181.21299 | BM27: 2326224.521 | BN27: 117989.0267 | BO27: 2383302.631 | BP27: 2965787.58 | BQ27: 1284404.507 | BR27: 305814.5485 | BS27: 1611.997845 | BT27: 2274499.251 | BU27: 547638.415 | BV27: 47823.87641 | BW27: 201287.6691 | BX27: 2150615.95 | BY27: 87069.06113 | BZ27: 81460.60049 | CA27: 94311.1417 | CB27: 1432581.053 | CC27: 5750445.425 | CD27: 465890.105 | CE27: 83178.85942 | CF27: 239129.1952 | CG27: 1002755.074 | CH27: 2134818.171 | CI27: 827635.4655 | CJ27: 30669.7266 | CK27: 345724.8227 | CL27: 209874.1437 | CM27: 226632.3666 | CN27: 39851.16697 | CO27: 477724.1725 | CP27: 1612718.22 | CQ27: 6775.352758 | CR27: 413316.0667 | CS27: 116610.0679 | CT27: 151348.1391 | CU27: 21490.33157 | CV27: 378833.4716 | CW27: 4746.671221 | CX27: 846005.4693 | CY27: 216124.5956 | CZ27: 134016.6992 | DA27: 79434.28364 | DB27: 72968.01374 | DC27: 166337.6893 | DD27: 36058.34856 | DE27: 36452.55613 | DF27: 757482.8124 | DG27: 37383.35063 | DH27: 417129.0395 | DI27: 11064.20492 | DJ27: 1599895.974 | DK27: 3923.366405 | DL27: 313876.7879 | DM27: 43926.7037 | DN27: 2960372.575 | DO27: 119036.9224 | DP27: 692400.6251 | DQ27: 826436.743 | DR27: 10143.00474 | DS27: 248761.0875 | DT27: 77815.57234 | DU27: 77488.87297 | DV27: 32281.4893 | DW27: 87824.7727 | DX27: 234199.0129 | DY27: 737540.1062 | DZ27: 493089.9504 | EA27: 224372.7714 | EB27: 99137.28033 | EC27: 908021.4682 | ED27: 92929.33796 | EE27: 156542.0182 | EF27: 262798.8661 | EG27: 264979.8136 | EH27: 5354412.218 | EI27: 6775.122105 | EJ27: 361510.5001 | EK27: 80813.10546 | EL27: 93534.68762 | EM27: 73971.51244 | EN27: 625546.4239 | EO27: 221815.1784 | EP27: 67892.42146 | EQ27: 19614.00533 | ER27: 93077.02547 | ES27: 93580.1978 | ET27: 76355.80712 | EU27: 200691.681 | EV27: 82702.91797 | EW27: 216651.0504 | EX27: 63384.41352 | EY27: 56815.50595 | EZ27: 44853.54513 | FA27: 439039.3853 | FB27: 114504.5806 | FC27: 59693.18277 | FD27: 69811.48563 | FE27: 65235.87742 | FF27: 70418.35265 | FG27: 83269.40739 | FH27: 626241.7389 | FI27: 50734.33002 | FJ27: 56257.14745 | FK27: 46412.88298 | FL27: 60105.61846 | FM27: 75610.92468 | FN27: 99061.57595 | FO27: 88082.54388 | FP27: 4507.070386 | FQ27: 46751.15843 | FR27: 40494.94485 | FS27: 545783.7178 | FT27: 53671.02316 | FU27: 217779.3804 | FV27: 67940.23305 | FW27: 58377.21996 | FX27: 205034.1336 | FY27: 0.0208776056 | FZ27: 59319.8897 | GA27: 43193.00372 | GB27: 74862.79727 | GC27: 195011.8768 | GD27: 137670.2858 | GE27: 47245.04907 | GF27: 18723.7038 | GG27: 42700.3591 | GH27: 437135.9501 | GI27: 441796.9491 | GJ27: 83539.46341 | GK27: 459840.299 | GL27: 59294.72469 | GM27: 65017.56604 | GN27: 209848.3587 | GO27: 92965.05681 | GP27: 4856.161744 | GQ27: 90210.31814 | GR27: 403171.4349 | GS27: 96473.34647 | GT27: 53211.01472 | GU27: 94711.133 | GV27: 467374.9424 | GW27: 431744.2149 | GX27: 169817.8978 | GY27: 29466424.67 | GZ27: 2214544.796 | HA27: 2348970.124 | HB27: 15645258.95 | HC27: 3970624.25 | HD27: 781842.3464 | HE27: 592459.0541 | HF27: 534420.2704 | HG27: 395480.5052 | HH27: 321223.0113 | HI27: 809928.1732 | HJ27: 47001.24549 | HK27: 15585.37846 | HL27: 1904770.133 | HM27: 604064.7089 | HN27: 45266.78692 | HO27: 66653.14365 | HP27: 37306.40853 | HQ27: 57018.71128 | HR27: 49246.11384 | HS27: 33392.66423 | HT27: 67006.83139 | HU27: 4498.671018 | HV27: 20231.73664 | HW27: 5802.573925 | HX27: 2200.669195 | HY27: 2510649.669 | HZ27: 37177.47927 | IA27: 265656.6751 | IB27: 139637.8213 | IC27: 146223.9555 | ID27: 118219.6558 | IE27: 148835.2286 | IF27: 86672.6771 | IG27: 146541.6504 | IH27: 189664.8611 | II27: 1814947.505 | IJ27: 55871.16584 | IK27: 232637.8368 | IL27: 80621.68613 | IM27: 55096.09661 | IN27: 46783.7095 | IO27: 52005.49039 | IP27: 2074895.303 | IQ27: 3190686.8 | IR27: 3479715.276 | IS27: 587825.1713 | IT27: 223582166.1
A28: =+MATCH(B28,RUT[EMPRESA],0) -> 119 | B28: ENLASA | C28: -1422393.023 | D28: -1422393.023 | F28: =IFERROR(INDEX($B$9:$B$511,MATCH(0,INDEX(COUNTIF($F$8:F27,$B$9:$B$511),0,0),0)),"") -> ENLASA | G28: -1422393.023 | J28: ENORCHILE | K28: 6411174.478 | L28: 3859868.538 | M28: 3090175.747 | N28: 817998.0698 | O28: 55731281.29 | P28: 19973346.02 | Q28: 21780839.31 | R28: 5602489.817 | S28: 21521.69475 | T28: 117716.4046 | U28: 738620.6231 | V28: 347073.1168 | W28: 159505.4344 | X28: 1489216.291 | Y28: 217497.075 | Z28: 1465766.99 | AA28: 703269.0747 | AB28: 19725983.85 | AC28: 248574.2941 | AD28: 693.3172719 | AE28: 61536.36185 | AF28: 211646.4042 | AG28: 1452215.222 | AH28: 13868.30572 | AI28: 2594706.059 | AJ28: 163361.063 | AK28: 1207696.612 | AL28: 5337237.375 | AM28: 3563101.063 | AN28: 91029.868 | AO28: 373331.3141 | AP28: 12030968.97 | AQ28: 2461568.269 | AR28: 247343.9144 | AS28: 15509894.82 | AT28: 440454.9378 | AU28: 957899.6285 | AV28: 7991103.189 | AW28: 4605591.788 | AX28: 26482.36554 | AY28: 6503.868342 | AZ28: 209962.2933 | BA28: 1305680.446 | BB28: 3925.015845 | BC28: 1887294.474 | BD28: 247.5575634 | BE28: 1276718.65 | BF28: 117.3188213 | BG28: 25480.17943 | BH28: 78248.6507 | BI28: 2438107.616 | BJ28: 916789.2698 | BK28: 71011.73267 | BL28: 133434.7312 | BM28: 5524963.367 | BN28: 280233.0747 | BO28: 5660528.297 | BP28: 7043975.155 | BQ28: 3050560.16 | BR28: 726333.2332 | BS28: 3828.619705 | BT28: 5402111.845 | BU28: 1300683.642 | BV28: 113585.4097 | BW28: 478073.8007 | BX28: 5107879.412 | BY28: 206795.7623 | BZ28: 193475.234 | CA28: 223996.2645 | CB28: 3402490.93 | CC28: 13657753.16 | CD28: 1106525.075 | CE28: 197556.232 | CF28: 567950.3554 | CG28: 2381620.948 | CH28: 5070358.465 | CI28: 1965698.318 | CJ28: 72842.97557 | CK28: 821123.2249 | CL28: 498467.3426 | CM28: 538269.4198 | CN28: 94649.60741 | CO28: 1134631.902 | CP28: 3830330.652 | CQ28: 16091.98745 | CR28: 981657.6633 | CS28: 276957.9409 | CT28: 359463.5499 | CU28: 51041.20157 | CV28: 899758.8297 | CW28: 11273.7117 | CX28: 2009328.499 | CY28: 513312.6501 | CZ28: 318300.0382 | DA28: 188662.5746 | DB28: 173304.6828 | DC28: 395064.8923 | DD28: 85641.36999 | DE28: 86577.64349 | DF28: 1799080.334 | DG28: 88788.35249 | DH28: 990713.7688 | DI28: 26278.34343 | DJ28: 3799876.825 | DK28: 9318.299013 | DL28: 745481.6761 | DM28: 104329.3227 | DN28: 7031114.1 | DO28: 282721.9083 | DP28: 1644505.1 | DQ28: 1962851.259 | DR28: 24090.42167 | DS28: 590826.8453 | DT28: 184818.0099 | DU28: 184042.0736 | DV28: 76671.03678 | DW28: 208590.6358 | DX28: 556240.7907 | DY28: 1751714.863 | DZ28: 1171126.814 | EA28: 532902.7062 | EB28: 235458.7174 | EC28: 2156621.299 | ED28: 220714.3736 | EE28: 371799.415 | EF28: 624167.6566 | EG28: 629347.5757 | EH28: 12717143.63 | EI28: 16091.43963 | EJ28: 858615.431 | EK28: 191937.3832 | EL28: 222152.1259 | EM28: 175688.07 | EN28: 1485721.195 | EO28: 526828.2249 | EP28: 161249.7582 | EQ28: 46584.78145 | ER28: 221065.1428 | ES28: 222260.2161 | ET28: 181350.9545 | EU28: 476658.2829 | EV28: 196425.8342 | EW28: 514563.0208 | EX28: 150542.8902 | EY28: 134941.2261 | EZ28: 106530.6429 | FA28: 1042752.537 | FB28: 271957.2454 | FC28: 141775.9314 | FD28: 165807.6842 | FE28: 154940.2604 | FF28: 167249.0403 | FG28: 197771.2905 | FH28: 1487372.622 | FI28: 120497.9624 | FJ28: 133615.0814 | FK28: 110234.191 | FL28: 142755.4981 | FM28: 179581.801 | FN28: 235278.9136 | FO28: 209202.8623 | FP28: 10704.64117 | FQ28: 111037.6214 | FR28: 96178.62971 | FS28: 1296278.592 | FT28: 127472.836 | FU28: 517242.892 | FV28: 161363.3144 | FW28: 138650.4178 | FX28: 486971.9439 | FY28: 0.04958592994 | FZ28: 140889.3314 | GA28: 102586.7285 | GB28: 177804.9405 | GC28: 463168.308 | GD28: 326977.5891 | GE28: 112210.6499 | GF28: 44470.24638 | GG28: 101416.6593 | GH28: 1038231.731 | GI28: 1049301.964 | GJ28: 198412.6944 | GK28: 1092156.317 | GL28: 140829.5626 | GM28: 154421.7539 | GN28: 498406.1014 | GO28: 220799.2086 | GP28: 11533.76017 | GQ28: 214256.491 | GR28: 957563.3771 | GS28: 229131.6682 | GT28: 126380.2803 | GU28: 224946.2748 | GV28: 1110051.679 | GW28: 1025425.942 | GX28: 403330.6569 | GY28: 69985040.3 | GZ28: 5259715.372 | HA28: 5578985.936 | HB28: 37158701.5 | HC28: 9430540.056 | HD28: 1856936.114 | HE28: 1407136.13 | HF28: 1269289.525 | HG28: 939296.8236 | HH28: 762929.5255 | HI28: 1923642.127 | HJ28: 111631.5975 | HK28: 37016.48069 | HL28: 4523976.559 | HM28: 1434700.459 | HN28: 107512.1241 | HO28: 158306.3774 | HP28: 88605.60904 | HQ28: 135423.8545 | HR28: 116963.3337 | HS28: 79310.16327 | HT28: 159146.4132 | HU28: 10684.69202 | HV28: 48051.94114 | HW28: 13781.56239 | HX28: 5226.759745 | HY28: 5962987.375 | HZ28: 88299.39207 | IA28: 630955.1743 | IB28: 331650.6384 | IC28: 347293.217 | ID28: 280780.8368 | IE28: 353495.1929 | IF28: 205854.3195 | IG28: 348047.767 | IH28: 450468.7317 | II28: 4310640.863 | IJ28: 132698.3452 | IK28: 552532.8764 | IL28: 191482.7474 | IM28: 130857.4958 | IN28: 111114.9327 | IO28: 123517.0667 | IP28: 4928037.012 | IQ28: 7578128.218 | IR28: 8264593.229 | IS28: 1396130.3 | IT28: 531024957.5
A29: =+MATCH(B29,RUT[EMPRESA],0) -> 241 | B29: PARQUE_EOLICO_LEBU | C29: 9666681.209 | D29: 9666681.209 | F29: =IFERROR(INDEX($B$9:$B$511,MATCH(0,INDEX(COUNTIF($F$8:F28,$B$9:$B$511),0,0),0)),"") -> PARQUE_EOLICO_LEBU | H29: 9666681.209 | J29: ALBA | K29: =$IT29*K$66/$IT$66 -> 47738.87331 | L29: 28741.34463 | M29: 23010.05986 | N29: 6090.975429 | O29: 414986.1442 | P29: 148725.4852 | Q29: 162184.4378 | R29: 41717.24736 | S29: 160.2547961 | T29: 876.5396331 | U29: =$IT29*U$66/$IT$66 -> 5499.91526 | V29: 2584.375079 | W29: 1187.709015 | X29: 11088.99907 | Y29: 1619.526242 | Z29: 10914.39094 | AA29: 5236.680639 | AB29: 146883.5776 | AC29: 1850.933362 | AD29: 5.162577546 | AE29: =$IT29*AE$66/$IT$66 -> 458.2119223 | AF29: 1575.96099 | AG29: 10813.48179 | AH29: 103.2661475 | AI29: 19320.69455 | AJ29: 1216.418788 | AK29: 8992.747856 | AL29: 39742.12521 | AM29: 26531.55531 | AN29: 677.826403 | AO29: =$IT29*AO$66/$IT$66 -> 2779.89881 | AP29: 89584.97469 | AQ29: 18329.32423 | AR29: 1841.771712 | AS29: 115489.7447 | AT29: 3279.71459 | AU29: 7132.710108 | AV29: 59503.335 | AW29: 34294.14745 | AX29: 197.1929321 | AY29: =$IT29*AY$66/$IT$66 -> 48.42909016 | AZ29: 1563.420767 | BA29: 9722.354869 | BB29: 29.22644436 | BC29: 14053.16796 | BD29: 1.843362584 | BE29: 9506.699603 | BF29: 0.8735791492 | BG29: 189.7304561 | BH29: 582.6549308 | BI29: =$IT29*BI$66/$IT$66 -> 18154.63157 | BJ29: 6826.594245 | BK29: 528.7674077 | BL29: 993.5814022 | BM29: 41139.97008 | BN29: 2086.670905 | BO29: 42149.41336 | BP29: 52450.83232 | BQ29: 22715.07436 | BR29: 5408.420924 | BS29: =$IT29*BS$66/$IT$66 -> 28.50865963 | BT29: 40225.19334 | BU29: 9685.147673 | BV29: 845.7794279 | BW29: 3559.832084 | BX29: 38034.28045 | BY29: 1539.842151 | BZ29: 1440.654862 | CA29: 1667.920492 | CB29: 25335.62049 | CC29: =$IT29*CC$66/$IT$66 -> 101698.3316 | CD29: 8239.404584 | CE29: 1471.042781 | CF29: 4229.070688 | CG29: 17734.02067 | CH29: 37754.89206 | CI29: 14636.97849 | CJ29: 542.4032046 | CK29: 6114.245953 | CL29: 3711.686431 | CM29: =$IT29*CM$66/$IT$66 -> 4008.06057 | CN29: 704.7796986 | CO29: 8448.693574 | CP29: 28521.39968 | CQ29: 119.8241215 | CR29: 7309.617135 | CS29: 2062.283611 | CT29: 2676.636695 | CU29: 380.062883 | CV29: 6699.78222 | CW29: =$IT29*CW$66/$IT$66 -> 83.94628732 | CX29: 14961.85746 | CY29: 3822.227527 | CZ29: 2370.125045 | DA29: 1404.818848 | DB29: 1290.460948 | DC29: 2941.731332 | DD29: 637.702581 | DE29: 644.6742586 | DF29: 13396.30803 | DG29: =$IT29*DG$66/$IT$66 -> 661.1356352 | DH29: 7377.050688 | DI29: 195.6737431 | DJ29: 28294.63446 | DK29: 69.38589763 | DL29: 5551.004018 | DM29: 776.8567735 | DN29: 52355.06635 | DO29: 2105.203252 | DP29: 12245.31026 | DQ29: =$IT29*DQ$66/$IT$66 -> 14615.77873 | DR29: 179.3820449 | DS29: 4399.413557 | DT29: 1376.191459 | DU29: 1370.413684 | DV29: 570.9077056 | DW29: 1553.207134 | DX29: 4141.878953 | DY29: 13043.61536 | DZ29: 8720.441911 | EA29: =$IT29*EA$66/$IT$66 -> 3968.09896 | EB29: 1753.272184 | EC29: 16058.62878 | ED29: 1643.482883 | EE29: 2768.491987 | EF29: 4647.675833 | EG29: 4686.246535 | EH29: 94694.36697 | EI29: 119.8200424 | EJ29: 6393.420335 | EK29: =$IT29*EK$66/$IT$66 -> 1429.203721 | EL29: 1654.188671 | EM29: 1308.20812 | EN29: 11062.9739 | EO29: 3922.86717 | EP29: 1200.697595 | EQ29: 346.8794972 | ER29: 1646.094781 | ES29: 1654.993533 | ET29: 1350.375079 | EU29: =$IT29*EU$66/$IT$66 -> 3549.291858 | EV29: 1462.625615 | EW29: 3831.538035 | EX29: 1120.972138 | EY29: 1004.799061 | EZ29: 793.2482389 | FA29: 7764.541647 | FB29: 2025.047443 | FC29: 1055.691629 | FD29: 1234.636813 | FE29: =$IT29*FE$66/$IT$66 -> 1153.715826 | FF29: 1245.369437 | FG29: 1472.644148 | FH29: 11075.27075 | FI29: 897.2516626 | FJ29: 994.9243255 | FK29: 820.825591 | FL29: 1062.985676 | FM29: 1337.201612 | FN29: 1751.93333 | FO29: =$IT29*FO$66/$IT$66 -> 1557.765894 | FP29: 79.70887554 | FQ29: 826.8080925 | FR29: 716.1651011 | FS29: 9652.346803 | FT29: 949.1879511 | FU29: 3851.492885 | FV29: 1201.543157 | FW29: 1032.418436 | FX29: 3626.089418 | FY29: =$IT29*FY$66/$IT$66 -> 0.0003692266425 | FZ29: 1049.08983 | GA29: 763.881072 | GB29: 1323.970757 | GC29: 3448.842837 | GD29: 2434.739805 | GE29: 835.5426948 | GF29: 331.1342508 | GG29: 755.1685057 | GH29: 7730.878832 | GI29: =$IT29*GI$66/$IT$66 -> 7813.30998 | GJ29: 1477.420169 | GK29: 8132.41197 | GL29: 1048.644779 | GM29: 1149.854925 | GN29: 3711.230417 | GO29: 1644.114582 | GP29: 85.88265966 | GQ29: 1595.396212 | GR29: 7130.206314 | GS29: =$IT29*GS$66/$IT$66 -> 1706.159724 | GT29: 941.0525654 | GU29: 1674.994457 | GV29: 8265.664372 | GW29: 7635.524396 | GX29: 3003.279851 | GY29: 521122.4532 | GZ29: 39164.88104 | HA29: 41542.23281 | HB29: 276691.0414 | HC29: =$IT29*HC$66/$IT$66 -> 70221.66663 | HD29: 13827.11361 | HE29: 10477.81396 | HF29: 9451.380869 | HG29: 6994.189943 | HH29: 5680.924156 | HI29: 14323.81978 | HJ29: 831.2309562 | HK29: 275.6320372 | HL29: 33686.42431 | HM29: =$IT29*HM$66/$IT$66 -> 10683.0634 | HN29: 800.5565423 | HO29: 1178.780599 | HP29: 659.7748913 | HQ29: 1008.392808 | HR29: 870.9321183 | HS29: 590.5591634 | HT29: 1185.035672 | HU29: 79.56033023 | HV29: 357.8042585 | HW29: =$IT29*HW$66/$IT$66 -> 102.6202396 | HX29: 38.91948692 | HY29: 44401.58348 | HZ29: 657.4947391 | IA29: 4698.217032 | IB29: 2469.536255 | IC29: 2586.013989 | ID29: 2090.74965 | IE29: 2632.195129 | IF29: 1532.831982 | IG29: =$IT29*IG$66/$IT$66 -> 2591.632518 | IH29: 3354.27928 | II29: 32097.88452 | IJ29: 988.0981265 | IK29: 4114.26909 | IL29: 1425.818413 | IM29: 974.3907973 | IN29: 827.3837677 | IO29: 919.7325103 | IP29: 36695.13837 | IQ29: 56428.24168 | IR29: 61539.79594 | IS29: 10395.86237 | IT29: 3954116.871
A30: =+MATCH(B30,RUT[EMPRESA],0) -> 234 | B30: ORAFTI | C30: 90252593.51 | D30: 90252593.51 | F30: =IFERROR(INDEX($B$9:$B$511,MATCH(0,INDEX(COUNTIF($F$8:F29,$B$9:$B$511),0,0),0)),"") -> ORAFTI | H30: 90252593.51 | J30: ALMEYDA | K30: 1098941.277 | L30: 661621.186 | M30: 529687.9214 | N30: 140213.2865 | O30: 9552915.094 | P30: 3423637.036 | Q30: 3733459.985 | R30: 960324.4049 | S30: 3689.039941 | T30: 20177.80306 | U30: 126607.1753 | V30: 59491.90364 | W30: 27340.87279 | X30: 255266.9965 | Y30: 37281.23672 | Z30: 251247.545 | AA30: 120547.5561 | AB30: 3381236.615 | AC30: 42608.19187 | AD30: 118.8417147 | AE30: 10547.96564 | AF30: 36278.37155 | AG30: 248924.6325 | AH30: 2377.170306 | AI30: 444759.3184 | AJ30: 28001.7672 | AK30: 207011.6266 | AL30: 914857.4068 | AM30: 610752.187 | AN30: 15603.45608 | AO30: 63992.82885 | AP30: 2062231.881 | AQ30: 421938.1311 | AR30: 42397.29213 | AS30: 2658555.57 | AT30: 75498.50867 | AU30: 164193.8532 | AV30: 1369757.316 | AW30: 789445.8245 | AX30: 4539.349961 | AY30: 1114.829959 | AZ30: 35989.69762 | BA30: 223807.0641 | BB30: 672.7881047 | BC30: 323501.6933 | BD30: 42.43391376 | BE30: 218842.7141 | BF30: 20.10965319 | BG30: 4367.564949 | BH30: 13412.62392 | BI30: 417916.7338 | BJ30: 157147.1147 | BK30: 12172.1417 | BL30: 22872.08599 | BM30: 947035.5736 | BN30: 48034.83264 | BO30: 970272.7975 | BP30: 1207409.825 | BQ30: 522897.4021 | BR30: 124500.9902 | BS30: 656.2648144 | BT30: 925977.5586 | BU30: 222950.5604 | BV30: 19469.70803 | BW30: 81946.76888 | BX30: 875543.0919 | BY30: 35446.92161 | BZ30: 33163.64599 | CA30: 38395.26468 | CB30: 583221.9575 | CC30: 2341079.432 | CD30: 189669.7842 | CE30: 33863.17104 | CF30: 97352.53519 | CG30: 408234.3377 | CH30: 869111.6155 | CI30: 336940.9189 | CJ30: 12486.03558 | CK30: 140748.9702 | CL30: 85442.43181 | CM30: 92264.9174 | CN30: 16223.91667 | CO30: 194487.5835 | CP30: 656558.0883 | CQ30: 2758.332237 | CR30: 168266.2249 | CS30: 47473.44101 | CT30: 61615.75137 | CU30: 8748.98717 | CV30: 154227.922 | CW30: 1932.430194 | CX30: 344419.581 | CY30: 87987.07027 | CZ30: 54559.90189 | DA30: 32338.70664 | DB30: 29706.20596 | DC30: 67718.1878 | DD30: 14679.81208 | DE30: 14840.29899 | DF30: 308380.8821 | DG30: 15219.23726 | DH30: 169818.5345 | DI30: 4504.378472 | DJ30: 651337.9889 | DK30: 1597.252337 | DL30: 127783.2304 | DM30: 17883.11948 | DN30: 1205205.308 | DO30: 48461.44432 | DP30: 281885.0963 | DQ30: 336452.9038 | DR30: 4129.346167 | DS30: 101273.801 | DT30: 31679.7087 | DU30: 31546.70523 | DV30: 13142.20466 | DW30: 35754.5814 | DX30: 95345.3953 | DY30: 300261.9529 | DZ30: 200743.187 | EA30: 91345.00748 | EB30: 40360.04706 | EC30: 369667.0825 | ED30: 37832.71481 | EE30: 63730.2456 | EF30: 106988.7591 | EG30: 107876.6505 | EH30: 2179849.28 | EI30: 2758.238335 | EJ30: 147175.5201 | EK30: 32900.04253 | EL30: 38079.16035 | EM30: 30114.74304 | EN30: 254667.9011 | EO30: 90303.77887 | EP30: 27639.86783 | EQ30: 7985.110903 | ER30: 37892.84027 | ES30: 38097.68812 | ET30: 31085.41972 | EU30: 81704.13456 | EV30: 33669.40923 | EW30: 88201.39668 | EX30: 25804.60049 | EY30: 23130.31471 | EZ30: 18260.4484 | FA30: 178738.5149 | FB30: 46616.27033 | FC30: 24301.85353 | FD30: 28421.14325 | FE30: 26558.35498 | FF30: 28668.20653 | FG30: 33900.03427 | FH30: 254950.9727 | FI30: 20654.59069 | FJ30: 22902.99987 | FK30: 18895.27467 | FL30: 24469.76134 | FM30: 30782.16861 | FN30: 40329.22685 | FO30: 35859.52332 | FP30: 1834.885648 | FQ30: 19032.9909 | FR30: 16486.00682 | FS30: 222195.4895 | FT30: 21850.1558 | FU30: 88660.75418 | FV30: 27659.33254 | FW30: 23766.10834 | FX30: 83472.00219 | FY30: 0.008499538637 | FZ30: 24149.88117 | GA30: 17584.42089 | GB30: 30477.59643 | GC30: 79391.81404 | GD30: 56047.3234 | GE30: 19234.06006 | GF30: 7622.657834 | GG30: 17383.859 | GH30: 177963.6022 | GI30: 179861.1541 | GJ30: 34009.97751 | GK30: 187206.8312 | GL30: 24139.63618 | GM30: 26469.47764 | GN30: 85431.93443 | GO30: 37847.2564 | GP30: 1977.005178 | GQ30: 36725.76727 | GR30: 164136.2163 | GS30: 39275.52572 | GT30: 21662.88051 | GU30: 38558.10622 | GV30: 190274.2803 | GW30: 175768.5582 | GX30: 69135.02492 | GY30: 11996156.06 | GZ30: 901569.3378 | HA30: 956295.5978 | HB30: 6369383.804 | HC30: 1616491.607 | HD30: 318297.9581 | HE30: 241197.6123 | HF30: 217569.2857 | HG30: 161005.141 | HH30: 130773.9713 | HI30: 329732.0551 | HJ30: 19134.80452 | HK30: 6345.005695 | HL30: 775456.1345 | HM30: 245922.4219 | HN30: 18428.68439 | HO30: 27135.34208 | HP30: 15187.91315 | HQ30: 23213.04219 | HR30: 20048.71896 | HS30: 13594.5781 | HT30: 27279.33285 | HU30: 1831.466159 | HV30: 8236.597171 | HW30: 2362.301608 | HX30: 895.9204042 | HY30: 1022117.396 | HZ30: 15135.42441 | IA30: 108152.2095 | IB30: 56848.33215 | IC30: 59529.63108 | ID30: 48128.7247 | IE30: 60592.71358 | IF30: 35285.54863 | IG30: 59658.96872 | IH30: 77214.97599 | II30: 738888.201 | IJ30: 22745.86185 | IK30: 94709.82065 | IL30: 32822.11329 | IM30: 22430.32131 | IN30: 19046.24285 | IO30: 21172.09623 | IP30: 844716.254 | IQ30: 1298969.156 | IR30: 1416636.323 | IS30: 239311.0997 | IT30: 91023142.02
A31: =+MATCH(B31,RUT[EMPRESA],0) -> 130 | B31: GAS SUR | C31: -3695509.759 | D31: -3695509.759 | F31: =IFERROR(INDEX($B$9:$B$511,MATCH(0,INDEX(COUNTIF($F$8:F30,$B$9:$B$511),0,0),0)),"") -> GAS SUR | G31: -3695509.759 | J31: PUNTA_PALMERAS | K31: 18851.2375 | L31: 11349.44912 | M31: 9086.26604 | N31: 2405.218567 | O31: 163870.6954 | P31: 58729.06608 | Q31: 64043.76862 | R31: 16473.40382 | S31: 63.28178722 | T31: 346.1300123 | U31: 2171.81935 | V31: 1020.524052 | W31: 469.0053028 | X31: 4378.849786 | Y31: 639.5222952 | Z31: 4309.900119 | AA31: 2067.87265 | AB31: 58001.72929 | AC31: 730.900878 | AD31: 2.038610648 | AE31: 180.9397913 | AF31: 622.319147 | AG31: 4270.052881 | AH31: 40.7779769 | AI31: 7629.400875 | AJ31: 480.3422847 | AK31: 3551.077223 | AL31: 15693.46298 | AM31: 10476.84237 | AN31: 267.6616691 | AO31: 1097.732918 | AP31: 35375.5235 | AQ31: 7237.926253 | AR31: 727.2831042 | AS31: 45604.85943 | AT31: 1295.101338 | AU31: 2816.581184 | AV31: 23496.81554 | AW31: 13542.15283 | AX31: 77.8680044 | AY31: 19.12379194 | AZ31: 617.3672347 | BA31: 3839.18614 | BB31: 11.54100643 | BC31: 5549.347703 | BD31: 0.7279113116 | BE31: 3754.027686 | BF31: 0.3449609695 | BG31: 74.9212045 | BH31: 230.0801364 | BI31: 7168.943207 | BJ31: 2695.701439 | BK31: 208.8009058 | BL31: 392.3477387 | BM31: 16245.44722 | BN31: 823.989468 | BO31: 16644.05854 | BP31: 20711.90685 | BQ31: 8969.78148 | BR31: 2135.689854 | BS31: 11.25756593 | BT31: 15884.21806 | BU31: 3824.493675 | BV31: 333.9833508 | BW31: 1405.714786 | BX31: 15019.06527 | BY31: 608.0564556 | BZ31: 568.8891481 | CA31: 658.6323294 | CB31: 10004.58884 | CC31: 40158.87409 | CD31: 3253.595276 | CE31: 580.8888001 | CF31: 1669.985285 | CG31: 7002.851396 | CH31: 14908.73973 | CI31: 5779.884166 | CJ31: 214.185441 | CK31: 2414.407685 | CL31: 1465.679385 | CM31: 1582.712295 | CN31: 278.3050492 | CO31: 3336.239801 | CP31: 11262.59675 | CQ31: 47.31642826 | CR31: 2886.438643 | CS31: 814.3593566 | CT31: 1056.956534 | CU31: 150.0801166 | CV31: 2645.625611 | CW31: 33.14890549 | CX31: 5908.173127 | CY31: 1509.33011 | CZ31: 935.920499 | DA31: 554.7381394 | DB31: 509.5802255 | DC31: 1161.637722 | DD31: 251.8174808 | DE31: 254.5704731 | DF31: 5289.965324 | DG31: 261.0707798 | DH31: 2913.066961 | DI31: 77.26810351 | DJ31: 11173.05117 | DK31: 27.3992649 | DL31: 2191.993398 | DM31: 306.7670125 | DN31: 20674.09057 | DO31: 831.3075643 | DP31: 4835.456642 | DQ31: 5771.512754 | DR31: 70.83479976 | DS31: 1737.250674 | DT31: 543.4336893 | DU31: 541.1521479 | DV31: 225.4413648 | DW31: 613.3340513 | DX31: 1635.55481 | DY31: 5150.69322 | DZ31: 3443.548417 | EA31: 1566.932161 | EB31: 692.3362044 | EC31: 6341.268741 | ED31: 648.9823496 | EE31: 1093.228565 | EF31: 1835.28506 | EG31: 1850.515949 | EH31: 37393.13223 | EI31: 47.31481746 | EJ31: 2524.648716 | EK31: 564.3672947 | EL31: 653.2098761 | EM31: 516.5882702 | EN31: 4368.572905 | EO31: 1549.070927 | EP31: 474.1342633 | EQ31: 136.9765839 | ER31: 650.0137417 | ES31: 653.5277016 | ET31: 533.2392568 | EU31: 1401.552637 | EV31: 577.5650101 | EW31: 1513.006665 | EX31: 442.6520894 | EY31: 396.777394 | EZ31: 313.2397125 | FA31: 3066.080294 | FB31: 799.6554518 | FC31: 416.8739696 | FD31: 487.5362611 | FE31: 455.5819931 | FF31: 491.7743843 | FG31: 581.5211519 | FH31: 4373.428715 | FI31: 354.3088267 | FJ31: 392.8780354 | FK31: 324.1295215 | FL31: 419.7542601 | FM31: 528.0372876 | FN31: 691.8075145 | FO31: 615.134225 | FP31: 31.47562646 | FQ31: 326.4919057 | FR31: 282.8009435 | FS31: 3811.541192 | FT31: 374.8175493 | FU31: 1520.886483 | FV31: 474.4681609 | FW31: 407.6837972 | FX31: 1431.878637 | FY31: 0.0001458010767 | FZ31: 414.267036 | GA31: 301.6431372 | GB31: 522.8126568 | GC31: 1361.887094 | GD31: 961.4357261 | GE31: 329.9410458 | GF31: 130.7590644 | GG31: 298.2026988 | GH31: 3052.787443 | GI31: 3085.338047 | GJ31: 583.4071181 | GK31: 3211.345784 | GL31: 414.0912933 | GM31: 454.0573913 | GN31: 1465.499312 | GO31: 649.2317961 | GP31: 33.91354472 | GQ31: 629.9937728 | GR31: 2815.59248 | GS31: 673.7323265 | GT31: 371.6050293 | GU31: 661.4257131 | GV31: 3263.964803 | GW31: 3015.133661 | GX31: 1185.942144 | GY31: 205782.0483 | GZ31: 15465.51946 | HA31: 16404.29367 | HB31: 109260.403 | HC31: 27729.29531 | HD31: 5460.082834 | HE31: 4137.503585 | HF31: 3732.183295 | HG31: 2761.882018 | HH31: 2243.296565 | HI31: 5656.223324 | HJ31: 328.2384164 | HK31: 108.8422209 | HL31: 13302.17371 | HM31: 4218.552964 | HN31: 316.1256324 | HO31: 465.4796292 | HP31: 260.5334461 | HQ31: 398.196501 | HR31: 343.9157038 | HS31: 233.2013782 | HT31: 467.9496468 | HU31: 31.41696854 | HV31: 141.2905791 | HW31: 40.52291927 | HX31: 15.36861766 | HY31: 17533.40072 | HZ31: 259.6330543 | IA31: 1855.242887 | IB31: 975.1762294 | IC31: 1021.171228 | ID31: 825.6000924 | IE31: 1039.407344 | IF31: 605.2882638 | IG31: 1023.389886 | IH31: 1324.545616 | II31: 12674.88741 | IJ31: 390.18249 | IK31: 1624.652163 | IL31: 563.0304965 | IM31: 384.769708 | IN31: 326.7192296 | IO31: 363.1861163 | IP31: 14490.26172 | IQ31: 22282.51553 | IR31: 24300.97798 | IS31: 4105.14235 | IT31: 1561410.882
A32: =+MATCH(B32,RUT[EMPRESA],0) -> 246 | B32: PETROPOWER | C32: 0 | D32: 0 | F32: =IFERROR(INDEX($B$9:$B$511,MATCH(0,INDEX(COUNTIF($F$8:F31,$B$9:$B$511),0,0),0)),"") -> PETROPOWER | J32: ACCIONA_ENERGIA | K32: 18176939.34 | L32: 10943485.71 | M32: 8761255.412 | N32: 2319185.251 | O32: 158009132.7 | P32: 56628360.41 | Q32: 61752959.02 | R32: 15884159.43 | S32: 61018.23327 | T32: 333749.1363 | U32: 2094134.593 | V32: 984020.4803 | W32: 452229.2468 | X32: 4222220.791 | Y32: 616646.9422 | Z32: 4155737.415 | AA32: 1993906.008 | AB32: 55927040.05 | AC32: 704756.9645 | AD32: 1965.690691 | AE32: 174467.6767 | AF32: 600059.1409 | AG32: 4117315.49 | AH32: 39319.3716 | AI32: 7356501.495 | AJ32: 463160.7113 | AK32: 3424057.187 | AL32: 15132116.64 | AM32: 10102091.61 | AN32: 258087.5617 | AO32: 1058467.629 | AP32: 34110160.91 | AQ32: 6979029.7 | AR32: 701268.5964 | AS32: 43973599.24 | AT32: 1248776.291 | AU32: 2715833.658 | AV32: 22656347.66 | AW32: 13057757.64 | AX32: 75082.70966 | AY32: 18439.74465 | AZ32: 595284.3558 | BA32: 3701860.61 | BB32: 11128.19112 | BC32: 5350850.656 | BD32: 701.8743332 | BE32: 3619748.226 | BF32: 332.6219096 | BG32: 72241.31513 | BH32: 221850.2993 | BI32: 6912514.139 | BJ32: 2599277.714 | BK32: 201332.2147 | BL32: 378313.6807 | BM32: 15664356.71 | BN32: 794515.828 | BO32: 16048709.92 | BP32: 19971053.59 | BQ32: 8648937.439 | BR32: 2059297.429 | BS32: 10854.88912 | BT32: 15316048.51 | BU32: 3687693.687 | BV32: 322036.9541 | BW32: 1355433.159 | BX32: 14481841.75 | BY32: 586306.6181 | BZ32: 548540.3031 | CA32: 635073.4213 | CB32: 9646730.322 | CC32: 38722413.75 | CD32: 3137216.003 | CE32: 560110.7343 | CF32: 1610250.85 | CG32: 6752363.338 | CH32: 14375462.49 | CI32: 5573140.958 | CJ32: 206524.1482 | CK32: 2328045.68 | CL32: 1413252.857 | CM32: 1526099.566 | CN32: 268350.2341 | CO32: 3216904.379 | CP32: 10859740 | CQ32: 45623.94622 | CR32: 2783192.355 | CS32: 785230.1802 | CT32: 1019149.793 | CU32: 144711.8352 | CV32: 2550993.07 | CW32: 31963.18778 | CX32: 5696841.096 | CY32: 1455342.22 | CZ32: 902443.1489 | DA32: 534895.468 | DB32: 491352.8274 | DC32: 1120086.593 | DD32: 242810.111 | DE32: 245464.6304 | DF32: 5100746.238 | DG32: 251732.4248 | DH32: 2808868.194 | DI32: 74504.26689 | DJ32: 10773397.41 | DK32: 26419.2086 | DL32: 2113587.027 | DM32: 295794.1289 | DN32: 19934589.97 | DO32: 801572.1601 | DP32: 4662495.077 | DQ32: 5565068.988 | DR32: 68301.0788 | DS32: 1675110.194 | DT32: 523995.3718 | DU32: 521795.4398 | DV32: 217377.4539 | DW32: 591395.4372 | DX32: 1577051.934 | DY32: 4966455.82 | DZ32: 3320374.626 | EA32: 1510883.879 | EB32: 667571.7276 | EC32: 6114445.123 | ED32: 625768.6158 | EE32: 1054124.394 | EF32: 1769637.945 | EG32: 1784324.034 | EH32: 36055600.91 | EI32: 45622.39305 | EJ32: 2434343.451 | EK32: 544180.1938 | EL32: 629844.9261 | EM32: 498110.1982 | EN32: 4212311.509 | EO32: 1493661.531 | EP32: 457174.7473 | EQ32: 132077.0085 | ER32: 626763.1156 | ES32: 630151.3831 | ET32: 514165.5884 | EU32: 1351419.888 | EV32: 556905.8344 | EW32: 1458887.267 | EX32: 426818.673 | EY32: 382584.8897 | EZ32: 302035.3041 | FA32: 2956408.326 | FB32: 771052.2258 | FC32: 401962.6221 | FD32: 470097.3631 | FE32: 439286.0813 | FF32: 474183.8911 | FG32: 560720.4672 | FH32: 4216993.629 | FI32: 341635.3992 | FJ32: 378825.009 | FK32: 312535.5908 | FL32: 404739.8862 | FM32: 509149.6907 | FN32: 667061.9486 | FO32: 593131.2196 | FP32: 30349.761 | FQ32: 314813.4738 | FR32: 272685.3127 | FS32: 3675204.506 | FT32: 361410.5363 | FU32: 1466485.229 | FV32: 457496.7016 | FW32: 393101.177 | FX32: 1380661.143 | FY32: 0.1405858542 | FZ32: 399448.937 | GA32: 290853.5318 | GB32: 504111.942 | GC32: 1313173.158 | GD32: 927045.7107 | GE32: 318139.2401 | GF32: 126081.8862 | GG32: 287536.1559 | GH32: 2943590.952 | GI32: 2974977.239 | GJ32: 562538.9735 | GK32: 3096477.751 | GL32: 399279.4806 | GM32: 437816.0137 | GN32: 1413079.226 | GO32: 626009.1398 | GP32: 32700.47629 | GQ32: 607459.2497 | GR32: 2714880.32 | GS32: 649633.3 | GT32: 358312.9263 | GU32: 637766.8872 | GV32: 3147214.617 | GW32: 2907284.025 | GX32: 1143521.66 | GY32: 198421340.1 | GZ32: 14912326.53 | HA32: 15817521.31 | HB32: 105352219.8 | HC32: 26737434 | HD32: 5264778.741 | HE32: 3989507.408 | HF32: 3598685.197 | HG32: 2663091.051 | HH32: 2163055.108 | HI32: 5453903.395 | HJ32: 316497.5128 | HK32: 104948.9959 | HL32: 12826362.43 | HM32: 4067657.696 | HN32: 304817.9963 | HO32: 448829.6846 | HP32: 251214.3112 | HQ32: 383953.2361 | HR32: 331614.0324 | HS32: 224859.896 | HT32: 451211.351 | HU32: 30293.20124 | HV32: 136236.6945 | HW32: 39073.43723 | HX32: 14818.89085 | HY32: 16906240.84 | HZ32: 250346.1259 | IA32: 1788881.892 | IB32: 940294.7239 | IC32: 984644.5076 | ID32: 796068.8412 | IE32: 1002228.328 | IF32: 583637.4429 | IG32: 986783.8052 | IH32: 1277167.364 | II32: 12221513.82 | IJ32: 376225.8817 | IK32: 1566539.268 | IL32: 542891.2122 | IM32: 371006.7118 | IN32: 315032.6665 | IO32: 350195.1531 | IP32: 13971953.21 | IQ32: 21485482.48 | IR32: 23431745.66 | IS32: 3958303.716 | IT32: 1505560092
A33: =+MATCH(B33,RUT[EMPRESA],0) -> 336 | B33: ALTO_MANGA_ENERGY | C33: 13181211.63 | D33: 13181211.63 | F33: =IFERROR(INDEX($B$9:$B$511,MATCH(0,INDEX(COUNTIF($F$8:F32,$B$9:$B$511),0,0),0)),"") -> ALTO_MANGA_ENERGY | H33: 13181211.63 | J33: JAVIERA | K33: 3912306.51 | L33: 2355416.915 | M33: 1885725.421 | N33: 499168.9407 | O33: 34009034.58 | P33: 12188383.26 | Q33: 13291374.26 | R33: 3418820.912 | S33: 13133.23584 | T33: 71834.36631 | U33: 450730.2494 | V33: 211795.2676 | W33: 97335.38707 | X33: 908768.0594 | Y33: 132723.7662 | Z33: 894458.5356 | AA33: 429157.5886 | AB33: 12037434.84 | AC33: 151688.0928 | AD33: 423.0846758 | AE33: 37551.48294 | AF33: 129153.4972 | AG33: 886188.8074 | AH33: 8462.889742 | AI33: 1583373.755 | AJ33: 99688.21659 | AK33: 736975.6247 | AL33: 3256955.273 | AM33: 2174319.781 | AN33: 55549.37654 | AO33: 227818.8708 | AP33: 7341687.295 | AQ33: 1502128.759 | AR33: 150937.2752 | AS33: 9464640.63 | AT33: 268779.8821 | AU33: 584541.4073 | AV33: 4876430.228 | AW33: 2810481.417 | AX33: 16160.39798 | AY33: 3968.87131 | AZ33: 128125.7981 | BA33: 796768.537 | BB33: 2395.171913 | BC33: 1151688.272 | BD33: 151.0676507 | BE33: 779095.1098 | BF33: 71.59174809 | BG33: 15548.83153 | BH33: 47749.86339 | BI33: 1487812.308 | BJ33: 559454.5337 | BK33: 43333.66139 | BL33: 81426.19878 | BM33: 3371511.759 | BN33: 171007.307 | BO33: 3454237.874 | BP33: 4298461.997 | BQ33: 1861550.705 | BR33: 443232.0858 | BS33: 2336.347863 | BT33: 3296543.778 | BU33: 793719.3247 | BV33: 69313.49929 | BW33: 291736.1318 | BX33: 3116993.609 | BY33: 126193.4782 | BZ33: 118064.86 | CA33: 136689.7823 | CB33: 2076310.271 | CC33: 8334403.75 | CD33: 675237.4732 | CE33: 120555.2173 | CF33: 346581.7192 | CG33: 1453342.312 | CH33: 3094097.111 | CI33: 1199532.839 | CJ33: 44451.14518 | CK33: 501076.0117 | CL33: 304180.9322 | CM33: 328469.45 | CN33: 57758.25887 | CO33: 692389.17 | CP33: 2337391.939 | CQ33: 9819.852423 | CR33: 599039.3304 | CS33: 169008.7142 | CT33: 219356.3115 | CU33: 31146.9959 | CV33: 549062.007 | CW33: 6879.584363 | CX33: 1226157.39 | CY33: 313240.0201 | CZ33: 194237.0022 | DA33: 115128.0192 | DB33: 105756.1358 | DC33: 241081.4048 | DD33: 52261.14036 | DE33: 52832.4848 | DF33: 1097857.144 | DG33: 54181.53111 | DH33: 604565.6595 | DI33: 16035.89708 | DJ33: 2318808.026 | DK33: 5686.328147 | DL33: 454917.0864 | DM33: 63665.13496 | DN33: 4290613.764 | DO33: 172526.0739 | DP33: 1003530.325 | DQ33: 1197795.472 | DR33: 14700.75629 | DS33: 360541.6949 | DT33: 112781.9412 | DU33: 112308.4397 | DV33: 46787.15223 | DW33: 127288.7682 | DX33: 339436.1631 | DY33: 1068953.198 | DZ33: 714659.5487 | EA33: 325194.5074 | EB33: 143684.5427 | EC33: 1316040.232 | ED33: 134687.066 | EE33: 226884.0564 | EF33: 380887.3389 | EG33: 384048.2934 | EH33: 7760413.32 | EI33: 9819.518126 | EJ33: 523954.9713 | EK33: 117126.4136 | EL33: 135564.4291 | EM33: 107210.5559 | EN33: 906635.2388 | EO33: 321487.662 | EP33: 98399.82996 | EQ33: 28427.54386 | ER33: 134901.1168 | ES33: 135630.3893 | ET33: 110666.2316 | EU33: 290872.3369 | EV33: 119865.4119 | EW33: 314003.0368 | EX33: 91866.15205 | EY33: 82345.51079 | EZ33: 65008.45189 | FA33: 636321.4028 | FB33: 165957.1277 | FC33: 86516.26954 | FD33: 101181.2242 | FE33: 94549.56985 | FF33: 102060.7864 | FG33: 120686.453 | FH33: 907642.9931 | FI33: 73531.76305 | FJ33: 81536.25433 | FK33: 67268.47703 | FL33: 87114.0329 | FM33: 109586.6368 | FN33: 143574.8206 | FO33: 127662.3687 | FP33: 6532.319073 | FQ33: 67758.7563 | FR33: 58691.31785 | FS33: 791031.2207 | FT33: 77788.05704 | FU33: 315638.3811 | FV33: 98469.12566 | FW33: 84608.97983 | FX33: 297166.0672 | FY33: 0.03025894197 | FZ33: 85975.23751 | GA33: 62601.74745 | GB33: 108502.3389 | GC33: 282640.3169 | GD33: 199532.3251 | GE33: 68474.57632 | GF33: 27137.18601 | GG33: 61887.73333 | GH33: 633562.6604 | GI33: 640318.0757 | GJ33: 121077.8584 | GK33: 666469.1914 | GL33: 85938.76461 | GM33: 94233.16042 | GN33: 304143.5608 | GO33: 134738.8351 | GP33: 7038.27437 | GQ33: 130746.2567 | GR33: 584336.2158 | GS33: 139823.5721 | GT33: 77121.34414 | GU33: 137269.5094 | GV33: 677389.5211 | GW33: 625748.153 | GX33: 246125.4424 | GY33: 42707140.42 | GZ33: 3209648.834 | HA33: 3404478.082 | HB33: 22675444.29 | HC33: 5754821.269 | HD33: 1133162.617 | HE33: 858680.0843 | HF33: 774561.6169 | HG33: 573189.3727 | HH33: 465564.3297 | HI33: 1173868.788 | HJ33: 68121.21979 | HK33: 22588.65655 | HL33: 2760677.159 | HM33: 875500.7314 | HN33: 65607.38356 | HO33: 96603.6836 | HP33: 54070.01513 | HQ33: 82640.0263 | HR33: 71374.81804 | HS33: 48397.63277 | HT33: 97116.30067 | HU33: 6520.145456 | HV33: 29322.85227 | HW33: 8409.956153 | HX33: 3189.538242 | HY33: 3638808.209 | HZ33: 53883.1516 | IA33: 385029.3022 | IB33: 202383.9713 | IC33: 211929.5799 | ID33: 171341.5692 | IE33: 215714.2266 | IF33: 125618.9793 | IG33: 212390.0307 | IH33: 274890.6237 | II33: 2630492.801 | IJ33: 80976.83218 | IK33: 337173.4737 | IL33: 116848.9801 | IM33: 79853.48616 | IN33: 67805.93416 | IO33: 75374.11836 | IP33: 3007247.946 | IQ33: 4624419.513 | IR33: 5043322.717 | IS33: 851963.9697 | IT33: 324048644.3
A34: =+MATCH(B34,RUT[EMPRESA],0) -> 136 | B34: GENPAC | C34: 88831470.03 | D34: 88831470.03 | F34: =IFERROR(INDEX($B$9:$B$511,MATCH(0,INDEX(COUNTIF($F$8:F33,$B$9:$B$511),0,0),0)),"") -> GENPAC | H34: 88831470.03 | J34: LOS_GUINDOS | K34: 58285.46113 | L34: 35090.95228 | M34: 28093.49816 | N34: 7436.608513 | O34: 506665.891 | P34: 181582.2806 | Q34: 198014.6176 | R34: 50933.52295 | S34: 195.6586749 | T34: 1070.186897 | U34: 6714.969896 | V34: 3155.321498 | W34: 1450.100575 | X34: 13538.80768 | Y34: 1977.315912 | Z34: 13325.62469 | AA34: 6393.580842 | AB34: 179333.4542 | AC34: 2259.846056 | AD34: 6.303106714 | AE34: 559.441213 | AF34: 1924.126119 | AG34: 13202.42245 | AH34: 126.0799556 | AI34: 23589.06931 | AJ34: 1485.152981 | AK34: 10979.44755 | AL34: 48522.05202 | AM34: 32392.97094 | AN34: 827.5734581 | AO34: 3394.040806 | AP34: 109376.3048 | AQ34: 22378.68305 | AR34: 2248.660391 | AS34: 141004.0195 | AT34: 4004.277102 | AU34: 8708.485747 | AV34: 72648.95627 | AW34: 41870.49378 | AX34: 240.7572735 | AY34: 59.12816236 | AZ34: 1908.81548 | BA34: 11870.24112 | BB34: 35.68322142 | BC34: 17157.82796 | BD34: 2.250602723 | BE34: 11606.94277 | BF34: 1.066572376 | BG34: 231.6461692 | BH34: 711.3764731 | BI34: 22165.39687 | BJ34: 8334.742024 | BK34: 645.5839875 | BL34: 1213.085818 | BM34: 50228.71217 | BN34: 2547.663309 | BO34: 51461.16412 | BP34: 64038.39756 | BQ34: 27733.34375 | BR34: 6603.262409 | BS34: 34.80686195 | BT34: 49111.84074 | BU34: 11824.81402 | BV34: 1032.631073 | BW34: 4346.278833 | BX34: 46436.90605 | BY34: 1880.027818 | BZ34: 1758.927833 | CA34: 2036.401538 | CB34: 30932.82729 | CC34: 124165.774 | CD34: 10059.67385 | CE34: 1796.029124 | CF34: 5163.367254 | CG34: 21651.86358 | CH34: 46095.7945 | CI34: 17870.61533 | CJ34: 662.2322377 | CK34: 7465.020017 | CL34: 4531.681211 | CM34: 4893.531045 | CN34: 860.4813412 | CO34: 10315.19948 | CP34: 34822.41656 | CQ34: 146.2959575 | CR34: 8924.475503 | CS34: 2517.888315 | CT34: 3267.965774 | CU34: 464.027298 | CV34: 8179.914378 | CW34: 102.491905 | CX34: 18267.26734 | CY34: 4666.643314 | CZ34: 2893.738825 | DA34: 1715.17484 | DB34: 1575.552715 | DC34: 3591.625762 | DD34: 778.5853838 | DE34: 787.0972614 | DF34: 16355.85293 | DG34: 807.1953252 | DH34: 9006.80664 | DI34: 238.9024616 | DJ34: 34545.55382 | DK34: 84.71479864 | DL34: 6777.345306 | DM34: 948.4818585 | DN34: 63921.47475 | DO34: 2570.289867 | DP34: 14950.57394 | DQ34: 17844.73206 | DR34: 219.0115618 | DS34: 5371.342684 | DT34: 1680.223018 | DU34: 1673.168803 | DV34: 697.0340223 | DW34: 1896.345426 | DX34: 5056.912909 | DY34: 15925.24254 | DZ34: 10646.98311 | EA34: 4844.741018 | EB34: 2140.609333 | EC34: 19606.34004 | ED34: 2006.565113 | EE34: 3380.11396 | EF34: 5674.451664 | EG34: 5721.5435 | EH34: 115614.4765 | EI34: 146.2909771 | EJ34: 7805.870282 | EK34: 1744.946877 | EL34: 2019.63605 | EM34: 1597.220635 | EN34: 13507.03296 | EO34: 4789.516512 | EP34: 1465.958623 | EQ34: 423.5129581 | ER34: 2009.754037 | ES34: 2020.618723 | ET34: 1648.70322 | EU34: 4333.410035 | EV34: 1785.752418 | EW34: 4678.010722 | EX34: 1368.620025 | EY34: 1226.78171 | EZ34: 968.4945662 | FA34: 9479.903044 | FB34: 2472.425842 | FC34: 1288.917587 | FD34: 1507.395777 | FE34: 1408.597528 | FF34: 1520.499477 | FG34: 1797.98427 | FH34: 13522.04646 | FI34: 1095.474679 | FJ34: 1214.725424 | FK34: 1002.164374 | FL34: 1297.823053 | FM34: 1632.619439 | FN34: 2138.974695 | FO34: 1901.911318 | FP34: 97.3183539 | FQ34: 1009.468544 | FR34: 874.3820344 | FS34: 11784.7667 | FT34: 1158.884858 | FU34: 4702.374047 | FV34: 1466.990989 | FW34: 1260.502824 | FX34: 4427.173898 | FY34: 0.000450797089 | FZ34: 1280.857303 | GA34: 932.6395335 | GB34: 1616.465592 | GC34: 4210.769571 | GD34: 2972.628435 | GE34: 1020.132816 | GF34: 404.2892337 | GG34: 922.0021659 | GH34: 9438.803358 | GI34: 9539.445395 | GJ34: 1803.815421 | GK34: 9929.044172 | GL34: 1280.31393 | GM34: 1403.883667 | GN34: 4531.124453 | GO34: 2007.336368 | GP34: 104.8560654 | GQ34: 1947.855017 | GR34: 8705.428808 | GS34: 2083.088674 | GT34: 1148.952183 | GU34: 2045.0383 | GV34: 10091.73502 | GW34: 9322.382988 | GX34: 3666.771729 | GY34: 636250.0911 | GZ34: 47817.28167 | HA34: 50719.84377 | HB34: 337818.2982 | HC34: 85735.20776 | HD34: 16881.83313 | HE34: 12792.59806 | HF34: 11539.40288 | HG34: 8539.36337 | HH34: 6935.967716 | HI34: 17488.27283 | HJ34: 1014.868518 | HK34: 336.5253362 | HL34: 41128.51098 | HM34: 13043.19171 | HN34: 977.4174378 | HO34: 1439.199672 | HP34: 805.5339625 | HQ34: 1231.169396 | HR34: 1063.340557 | HS34: 721.026928 | HT34: 1446.83663 | HU34: 97.13699159 | HV34: 436.8512442 | HW34: 125.2913521 | HX34: 47.51767449 | HY34: 54210.88913 | HZ34: 802.7500736 | IA34: 5736.158548 | IB34: 3015.112202 | IC34: 3157.32248 | ID34: 2552.64314 | IE34: 3213.706069 | IF34: 1871.468945 | IG34: 3164.182267 | IH34: 4095.314804 | II34: 39189.02712 | IJ34: 1206.391164 | IK34: 5023.203409 | IL34: 1740.813679 | IM34: 1189.655578 | IN34: 1010.171399 | IO34: 1122.92205 | IP34: 44801.91745 | IQ34: 68894.50586 | IR34: 75135.3171 | IS34: 12692.54153 | IT34: 4827669.973
A35: =+MATCH(B35,RUT[EMPRESA],0) -> 229 | B35: NORVIND | C35: -25889036.63 | D35: -25889036.63 | F35: =IFERROR(INDEX($B$9:$B$511,MATCH(0,INDEX(COUNTIF($F$8:F34,$B$9:$B$511),0,0),0)),"") -> NORVIND | G35: -25889036.63 | J35: ERNC1 | K35: 1245232.357 | L35: 749696.2082 | M35: 600199.9854 | N35: 158878.4813 | O35: 10824599.3 | P35: 3879391.65 | Q35: 4230458.234 | R35: 1088162.804 | S35: 4180.124993 | T35: 22863.87251 | U35: 143461.1244 | V35: 67411.46675 | W35: 30980.49019 | X35: 289248.1429 | Y35: 42244.11552 | Z35: 284693.6219 | AA35: 136594.8486 | AB35: 3831346.884 | AC35: 48280.19501 | AD35: 134.6619256 | AE35: 11952.11098 | AF35: 41107.74891 | AG35: 282061.4833 | AH35: 2693.619253 | AI35: 503965.6855 | AJ35: 31729.36287 | AK35: 234569.0175 | AL35: 1036643.239 | AM35: 692055.5273 | AN35: 17680.58839 | AO35: 72511.55519 | AP35: 2336756.22 | AQ35: 478106.5415 | AR35: 48041.2203 | AS35: 3012462.528 | AT35: 85548.87129 | AU35: 186051.3414 | AV35: 1552099.431 | AW35: 894536.8645 | AX35: 5143.628296 | AY35: 1263.23614 | AZ35: 40780.6467 | BA35: 253600.2638 | BB35: 762.3496673 | BC35: 366566.2436 | BD35: 48.082717 | BE35: 247975.0595 | BF35: 22.78665053 | BG35: 4948.975261 | BH35: 15198.11262 | BI35: 473549.8157 | BJ35: 178066.541 | BK35: 13792.49738 | BL35: 25916.81842 | BM35: 1073104.963 | BN35: 54429.23028 | BO35: 1099435.527 | BP35: 1368140.239 | BQ35: 592505.5121 | BR35: 141074.5639 | BS35: 743.6267963 | BT35: 1049243.705 | BU35: 252629.7423 | BV35: 22061.51585 | BW35: 92855.52399 | BX35: 992095.4014 | BY35: 40165.61635 | BZ35: 37578.39105 | CA35: 43506.44289 | CB35: 660860.4733 | CC35: 2652723.962 | CD35: 214918.6287 | CE35: 38371.03688 | CF35: 110312.1061 | CG35: 462578.4989 | CH35: 984807.7669 | CI35: 381794.4991 | CJ35: 14148.17682 | CK35: 159485.4752 | CL35: 96816.52962 | CM35: 104547.2246 | CN35: 18383.6447 | CO35: 220377.7735 | CP35: 743959.1109 | CQ35: 3125.521465 | CR35: 190665.8273 | CS35: 53793.10619 | CT35: 69818.04112 | CU35: 9913.652474 | CV35: 174758.7453 | CW35: 2189.675331 | CX35: 390268.7208 | CY35: 99699.91039 | CZ35: 61822.91685 | DA35: 36643.63576 | DB35: 33660.69655 | DC35: 76732.83398 | DD35: 16633.98888 | DE35: 16815.83981 | DF35: 349432.5497 | DG35: 17245.22235 | DH35: 192424.7804 | DI35: 5104.001402 | DJ35: 738044.1118 | DK35: 1809.878593 | DL35: 144793.7359 | DM35: 20263.72061 | DN35: 1365642.256 | DO35: 54912.63251 | DP35: 319409.6446 | DQ35: 381241.5194 | DR35: 4679.044791 | DS35: 114755.3709 | DT35: 35896.91199 | DU35: 35746.2031 | DV35: 14891.69514 | DW35: 40514.23182 | DX35: 108037.7758 | DY35: 340232.8286 | DZ35: 227466.1231 | EA35: 103504.8563 | EB35: 45732.77713 | EC35: 418877.1701 | ED35: 42869.00637 | EE35: 72214.01685 | EF35: 121231.1043 | EG35: 122237.1919 | EH35: 2470030.849 | EI35: 3125.415064 | EJ35: 166767.5276 | EK35: 37279.69669 | EL35: 43148.25875 | EM35: 34123.61809 | EN35: 288569.296 | EO35: 102325.0193 | EP35: 31319.28745 | EQ35: 9048.088987 | ER35: 42937.13574 | ES35: 43169.25294 | ET35: 35223.51126 | EU35: 92580.59018 | EV35: 38151.48149 | EW35: 99942.76794 | EX35: 29239.7093 | EY35: 26209.42255 | EZ35: 20691.27957 | FA35: 202532.1886 | FB35: 52821.82894 | FC35: 27536.91664 | FD35: 32204.56627 | FE35: 30093.80359 | FF35: 32484.51861 | FG35: 38412.80735 | FH35: 288890.05 | FI35: 23404.13011 | FJ35: 25951.84756 | FK35: 21410.61391 | FL35: 27727.17634 | FM35: 34879.89135 | FN35: 45697.85413 | FO35: 40633.14361 | FP35: 2079.145654 | FQ35: 21566.66294 | FR35: 18680.6243 | FS35: 251774.1565 | FT35: 24758.84887 | FU35: 100463.2751 | FV35: 31341.3433 | FW35: 26929.85304 | FX35: 94583.79637 | FY35: 0.009630997348 | FZ35: 27364.71372 | GA35: 19925.25926 | GB35: 34534.77453 | GC35: 89960.45352 | GD35: 63508.34394 | GE35: 21794.49842 | GF35: 8637.386159 | GG35: 19697.99857 | GH35: 201654.1196 | GI35: 203804.2737 | GJ35: 38537.38623 | GK35: 212127.8074 | GL35: 27353.10491 | GM35: 29993.0949 | GN35: 96804.63483 | GO35: 42885.48375 | GP35: 2240.184137 | GQ35: 41614.70197 | GR35: 185986.0319 | GS35: 44503.8843 | GT35: 24546.64349 | GU35: 43690.9619 | GV35: 215603.5954 | GW35: 199166.8713 | GX35: 78338.28048 | GY35: 13593084.54 | GZ35: 1021586.262 | HA35: 1083597.682 | HB35: 7217276.272 | HC35: 1831678.994 | HD35: 360669.787 | HE35: 273305.8421 | HF35: 246532.1123 | HG35: 182438.1478 | HH35: 148182.6043 | HI35: 373625.9913 | HJ35: 21682.02999 | HK35: 7189.652948 | HL35: 878684.8669 | HM35: 278659.6184 | HN35: 20881.91113 | HO35: 30747.59923 | HP35: 17209.72838 | HQ35: 26303.16271 | HR35: 22717.60473 | HS35: 15404.28854 | HT35: 30910.75806 | HU35: 2075.270962 | HV35: 9333.05311 | HW35: 2676.771233 | HX35: 1015.185342 | HY35: 1158181.679 | HZ35: 17150.25234 | IA35: 122549.4332 | IB35: 64415.98299 | IC35: 67454.21647 | ID35: 54535.62126 | IE35: 68658.81652 | IF35: 39982.7614 | IG35: 67600.77154 | IH35: 87493.83475 | II35: 837249.0094 | IJ35: 25773.79132 | IK35: 107317.5934 | IL35: 37191.39351 | IM35: 25416.24602 | IN35: 21581.67899 | IO35: 23990.526 | IP35: 957164.8944 | IQ35: 1471887.95 | IR35: 1605218.972 | IS35: 271168.1969 | IT35: 103140144.1
A36: =+MATCH(B36,RUT[EMPRESA],0) -> 226 | B36: MONTE REDONDO | C36: 42620980.12 | D36: 42620980.12 | F36: =IFERROR(INDEX($B$9:$B$511,MATCH(0,INDEX(COUNTIF($F$8:F35,$B$9:$B$511),0,0),0)),"") -> MONTE REDONDO | H36: 42620980.12 | J36: ANDES_GENERACION | K36: 28933.30684 | L36: 17419.3919 | M36: 13945.80718 | N36: 3691.584004 | O36: 251512.4596 | P36: 90138.70253 | Q36: 98295.82851 | R36: 25283.75378 | S36: 97.12632218 | T36: 531.2481927 | U36: 3333.357593 | V36: 1566.323459 | W36: 719.8399752 | X36: 6720.757959 | Y36: 981.5533222 | Z36: 6614.932446 | AA36: 3173.81784 | AB36: 89022.36953 | AC36: 1121.803244 | AD36: 3.128905856 | AE36: 277.7104952 | AF36: 955.1495402 | AG36: 6553.774001 | AH36: 62.58696375 | AI36: 11709.77749 | AJ36: 737.2402322 | AK36: 5450.273856 | AL36: 24086.6829 | AM36: 16080.09527 | AN36: 410.8132 | AO36: 1684.825378 | AP36: 54295.15574 | AQ36: 11108.93336 | AR36: 1116.250602 | AS36: 69995.37251 | AT36: 1987.750904 | AU36: 4322.952678 | AV36: 36063.44538 | AW36: 20784.80329 | AX36: 119.5135791 | AY36: 29.35162958 | AZ36: 947.5492329 | BA36: 5892.469955 | BB36: 17.71339841 | BC36: 8517.264708 | BD36: 1.117214789 | BE36: 5761.766829 | BF36: 0.5294539193 | BG36: 114.9907638 | BH36: 353.1322113 | BI36: 11003.05662 | BJ36: 4137.423704 | BK36: 320.4723655 | BL36: 602.1842074 | BM36: 24933.88083 | BN36: 1264.677723 | BO36: 25545.67851 | BP36: 31789.10436 | BQ36: 13767.02404 | BR36: 3277.905223 | BS36: 17.2783675 | BT36: 24379.45811 | BU36: 5869.919628 | BV36: 512.6052211 | BW36: 2157.522934 | BX36: 23051.60199 | BY36: 933.2588381 | BZ36: 873.1439663 | CA36: 1010.883836 | CB36: 15355.26984 | CC36: 61636.75072 | CD36: 4993.691818 | CE36: 891.5613043 | CF36: 2563.131289 | CG36: 10748.13514 | CH36: 22882.27185 | CI36: 8871.097298 | CJ36: 328.7366723 | CK36: 3705.687672 | CL36: 2249.557959 | CM36: 2429.182725 | CN36: 427.1489012 | CO36: 5120.536508 | CP36: 17286.08891 | CQ36: 72.62232717 | CR36: 4430.17149 | CS36: 1249.897209 | CT36: 1622.240858 | CU36: 230.3463666 | CV36: 4060.566187 | CW36: 50.87769193 | CX36: 9067.998106 | CY36: 2316.554083 | CZ36: 1436.472007 | DA36: 851.4246771 | DB36: 782.1152869 | DC36: 1782.90792 | DD36: 386.4951804 | DE36: 390.7205354 | DF36: 8119.158749 | DG36: 400.6973536 | DH36: 4471.041237 | DI36: 118.5928376 | DJ36: 17148.65233 | DK36: 42.05301315 | DL36: 3364.321179 | DM36: 470.8329679 | DN36: 31731.06307 | DO36: 1275.909703 | DP36: 7421.568517 | DQ36: 8858.248666 | DR36: 108.7188571 | DS36: 2666.371734 | DT36: 834.0743508 | DU36: 830.5725893 | DV36: 346.0125194 | DW36: 941.3590117 | DX36: 2510.286614 | DY36: 7905.400766 | DZ36: 5285.236206 | EA36: 2404.963017 | EB36: 1062.613308 | EC36: 9732.723076 | ED36: 996.0728283 | EE36: 1677.911995 | EF36: 2816.837132 | EG36: 2840.213846 | EH36: 57391.82737 | EI36: 72.61985489 | EJ36: 3874.888105 | EK36: 866.203723 | EL36: 1002.561332 | EM36: 792.8713927 | EN36: 6704.984769 | EO36: 2377.549189 | EP36: 727.7120202 | EQ36: 210.2347675 | ER36: 997.6558323 | ES36: 1003.049138 | ET36: 818.4277046 | EU36: 2151.134773 | EV36: 886.459876 | EW36: 2322.196943 | EX36: 679.3924656 | EY36: 608.9829427 | EZ36: 480.7674147 | FA36: 4705.88957 | FB36: 1227.329323 | FC36: 639.8276228 | FD36: 748.2817102 | FE36: 699.237575 | FF36: 754.7864779 | FG36: 892.5318522 | FH36: 6712.437576 | FI36: 543.8012226 | FJ36: 602.9981188 | FK36: 497.4813405 | FL36: 644.2483579 | FM36: 810.4436042 | FN36: 1061.801863 | FO36: 944.121959 | FP36: 48.30950533 | FQ36: 501.1071813 | FR36: 434.0493017 | FS36: 5850.039862 | FT36: 575.2784751 | FU36: 2334.291066 | FV36: 728.2244938 | FW36: 625.7223377 | FX36: 2197.679805 | FY36: 0.0002237787992 | FZ36: 635.826442 | GA36: 462.9687279 | GB36: 802.4247224 | GC36: 2090.255197 | GD36: 1475.633357 | GE36: 506.4009998 | GF36: 200.6919775 | GG36: 457.6882649 | GH36: 4685.487401 | GI36: 4735.446806 | GJ36: 895.4264759 | GK36: 4928.846339 | GL36: 635.5567081 | GM36: 696.8975817 | GN36: 2249.281581 | GO36: 996.4556845 | GP36: 52.05127755 | GQ36: 966.92873 | GR36: 4321.435192 | GS36: 1034.059654 | GT36: 570.3478265 | GU36: 1015.171185 | GV36: 5009.607202 | GW36: 4627.695523 | GX36: 1820.210898 | GY36: 315838.9547 | GZ36: 23736.83001 | HA36: 25177.68195 | HB36: 167695.3444 | HC36: 42559.55131 | HD36: 8380.258962 | HE36: 6350.334336 | HF36: 5728.239563 | HG36: 4238.999158 | HH36: 3443.062443 | HI36: 8681.299834 | HJ36: 503.7877656 | HK36: 167.0535091 | HL36: 20416.47788 | HM36: 6474.730761 | HN36: 485.19679 | HO36: 714.4286914 | HP36: 399.8726416 | HQ36: 611.1610204 | HR36: 527.8496218 | HS36: 357.922764 | HT36: 718.2197305 | HU36: 48.21947582 | HV36: 216.8559851 | HW36: 62.1954955 | HX36: 23.58810293 | HY36: 26910.66107 | HZ36: 398.4906999 | IA36: 2847.468857 | IB36: 1496.722593 | IC36: 1567.31676 | ID36: 1267.149745 | IE36: 1595.305965 | IF36: 929.0101545 | IG36: 1570.722006 | IH36: 2032.942651 | II36: 19453.70465 | IJ36: 598.8609346 | IK36: 2493.552985 | IL36: 864.1519749 | IM36: 590.5532739 | IN36: 501.4560833 | IO36: 557.4262879 | IP36: 22239.98231 | IQ36: 34199.71017 | IR36: 37297.69212 | IS36: 6300.665578 | IT36: 2396488.832
A37: =+MATCH(B37,RUT[EMPRESA],0) -> 240 | B37: PANGUIPULLI | C37: 1195475239 | D37: 1195475239 | F37: =IFERROR(INDEX($B$9:$B$511,MATCH(0,INDEX(COUNTIF($F$8:F36,$B$9:$B$511),0,0),0)),"") -> PANGUIPULLI | H37: 1195475239 | J37: CHUNGUNGO | K37: 2025875.089 | L37: 1219684.715 | M37: 976468.522 | N37: 258480.2392 | O37: 17610597.69 | P37: 6311402.737 | Q37: 6882554.815 | R37: 1770337.805 | S37: 6800.667399 | T37: 37197.35478 | U37: 233397.6599 | V37: 109672.0708 | W37: 50402.32289 | X37: 470579.3293 | Y37: 68727.17435 | Z37: 463169.5551 | AA37: 222226.8797 | AB37: 6233238.453 | AC37: 78547.30391 | AD37: 219.082197 | AE37: 19444.9524 | AF37: 66878.41352 | AG37: 458887.3149 | AH37: 4382.26337 | AI37: 819904.4319 | AJ37: 51620.6678 | AK37: 381621.5717 | AL37: 1686520.353 | AM37: 1125908.788 | AN37: 28764.64251 | AO37: 117969.4316 | AP37: 3801681.02 | AQ37: 777834.0541 | AR37: 78158.51469 | AS37: 4900991.175 | AT37: 139179.9099 | AU37: 302687.9087 | AV37: 2525118.75 | AW37: 1455326.743 | AX37: 8368.196004 | AY37: 2055.16554 | AZ37: 66346.24922 | BA37: 412583.6068 | BB37: 1240.270695 | BC37: 596368.5551 | BD37: 78.22602589 | BE37: 403431.9323 | BF37: 37.07172193 | BG37: 8051.513955 | BH37: 24725.88957 | BI37: 770420.6928 | BJ37: 289697.3947 | BK37: 22439.08674 | BL37: 42164.20858 | BM37: 1745840.125 | BN37: 88551.20183 | BO37: 1788677.458 | BP37: 2225834.571 | BQ37: 963950.3427 | BR37: 229514.9521 | BS37: 1209.810357 | BT37: 1707020.118 | BU37: 411004.6602 | BV37: 35891.9965 | BW37: 151067.1417 | BX37: 1614045.241 | BY37: 65345.65309 | BZ37: 61136.4826 | CA37: 70780.8614 | CB37: 1075157.39 | CC37: 4315730.605 | CD37: 349652.2506 | CE37: 62426.04229 | CF37: 179467.3473 | CG37: 752571.3997 | CH37: 1602188.95 | CI37: 621143.4844 | CJ37: 23017.74349 | CK37: 259467.7609 | CL37: 157511.3227 | CM37: 170088.4311 | CN37: 29908.44852 | CO37: 358533.7621 | CP37: 1210351.001 | CQ37: 5084.927357 | CR37: 310195.24 | CS37: 87516.28818 | CT37: 113587.3393 | CU37: 16128.5735 | CV37: 284315.9245 | CW37: 3562.394344 | CX37: 634930.2403 | CY37: 162202.3101 | CZ37: 100580.0295 | DA37: 59615.72429 | DB37: 54762.76476 | DC37: 124837.0523 | DD37: 27061.92424 | DE37: 27357.77848 | DF37: 568493.6582 | DG37: 28056.3432 | DH37: 313056.8902 | DI37: 8303.7268 | DJ37: 1200727.858 | DK37: 2944.501028 | DL37: 235565.6927 | DM37: 32967.15394 | DN37: 2221770.59 | DO37: 89337.65147 | DP37: 519649.2354 | DQ37: 620243.8387 | DR37: 7612.36265 | DS37: 186696.1181 | DT37: 58400.87546 | DU37: 58155.68636 | DV37: 24227.37737 | DW37: 65912.81743 | DX37: 175767.2272 | DY37: 553526.5833 | DZ37: 370065.8354 | EA37: 168392.5966 | EB37: 74402.89633 | EC37: 681473.4774 | ED37: 69743.81257 | EE37: 117485.3649 | EF37: 197231.523 | EG37: 198868.3322 | EH37: 4018506.215 | EI37: 5084.754251 | EJ37: 271314.9702 | EK37: 60650.53517 | EL37: 70198.12973 | EM37: 55515.89425 | EN37: 469474.9096 | EO37: 166473.1135 | EP37: 50953.51394 | EQ37: 14720.3837 | ER37: 69854.6526 | ES37: 70232.2853 | ET37: 57305.31625 | EU37: 150619.8505 | EV37: 62068.84646 | EW37: 162597.4163 | EX37: 47570.23727 | EY37: 42640.24779 | EZ37: 33662.75187 | FA37: 329500.6859 | FB37: 85936.11211 | FC37: 44799.95492 | FD37: 52393.77872 | FE37: 48959.76779 | FF37: 52849.23467 | FG37: 62493.99888 | FH37: 469996.7461 | FI37: 38076.30272 | FJ37: 42221.19767 | FK37: 34833.0407 | FL37: 45109.48943 | FM37: 56746.27921 | FN37: 74346.07991 | FO37: 66106.27565 | FP37: 3382.57303 | FQ37: 35086.91768 | FR37: 30391.6062 | FS37: 409612.7031 | FT37: 40280.30181 | FU37: 163444.2322 | FV37: 50989.39672 | FW37: 43812.31995 | FX37: 153878.8772 | FY37: 0.01566872038 | FZ37: 44519.79708 | GA37: 32416.50939 | GB37: 56184.80682 | GC37: 146357.1363 | GD37: 103322.0597 | GE37: 35457.58444 | GF37: 14052.2091 | GG37: 32046.77777 | GH37: 328072.1508 | GI37: 331570.2478 | GJ37: 62696.67692 | GK37: 345111.8487 | GL37: 44500.91065 | GM37: 48795.92429 | GN37: 157491.971 | GO37: 69770.6197 | GP37: 3644.567388 | GQ37: 67703.17812 | GR37: 302581.6562 | GS37: 72403.60409 | GT37: 39935.06376 | GU37: 71081.05635 | GV37: 350766.6265 | GW37: 324025.6335 | GX37: 127448.9617 | GY37: 22114660.93 | GZ37: 1662024.077 | HA37: 1762910.784 | HB37: 11741824.83 | HC37: 2979968.216 | HD37: 586775.5788 | HE37: 444642.716 | HF37: 401084.3937 | HG37: 296809.585 | HH37: 241079.0606 | HI37: 607854.0959 | HJ37: 35274.60894 | HK37: 11696.8843 | HL37: 1429537.044 | HM37: 453352.8029 | HN37: 33972.89136 | HO37: 50023.43135 | HP37: 27998.59787 | HQ37: 42792.75415 | HR37: 36959.39096 | HS37: 25061.31827 | HT37: 50288.87531 | HU37: 3376.269273 | HV37: 15183.99333 | HW37: 4354.853237 | HX37: 1651.610387 | HY37: 1884251.882 | HZ37: 27901.83598 | IA37: 199376.3193 | IB37: 104798.7025 | IC37: 109741.6206 | ID37: 88724.28987 | IE37: 111701.3907 | IF37: 65048.16541 | IG37: 109980.0518 | IH37: 142344.1812 | II37: 1362124.829 | IJ37: 41931.51705 | IK37: 174595.5587 | IL37: 60506.87425 | IM37: 41349.82471 | IN37: 35111.34737 | IO37: 39030.31329 | IP37: 1557216.615 | IQ37: 2394622.269 | IR37: 2611539.212 | IS37: 441164.9697 | IT37: 167799244.4
A38: =+MATCH(B38,RUT[EMPRESA],0) -> 171 | B38: HIDROPALOMA | C38: 15064618.12 | D38: 15064618.12 | F38: =IFERROR(INDEX($B$9:$B$511,MATCH(0,INDEX(COUNTIF($F$8:F37,$B$9:$B$511),0,0),0)),"") -> HIDROPALOMA | H38: 15064618.12 | J38: SPVP4 | K38: 156093.2362 | L38: 93976.4428 | M38: 75236.68785 | N38: 19915.84637 | O38: 1356892.732 | P38: 486292.2121 | Q38: 530299.3558 | R38: 136404.144 | S38: 523.9899482 | T38: 2866.048118 | U38: 17983.23908 | V38: 8450.209271 | W38: 3883.488048 | X38: 36258.03526 | Y38: 5295.413878 | Z38: 35687.11377 | AA38: 17122.53288 | AB38: 480269.6709 | AC38: 6052.052731 | AD38: 16.88023576 | AE38: 1498.229365 | AF38: 5152.967258 | AG38: 35357.16809 | AH38: 337.6524422 | AI38: 63173.45866 | AJ38: 3977.361259 | AK38: 29403.85934 | AL38: 129946.0274 | AM38: 86751.0279 | AN38: 2216.309467 | AO38: 9089.51912 | AP38: 292918.6981 | AQ38: 59931.94517 | AR38: 6022.096606 | AS38: 377620.3071 | AT38: 10723.78187 | AU38: 23322.03772 | AV38: 194559.852 | AW38: 112132.6099 | AX38: 644.7676872 | AY38: 158.3500591 | AZ38: 5111.964113 | BA38: 31789.47743 | BB38: 95.56258804 | BC38: 45950.06783 | BD38: 6.02729833 | BE38: 31084.34289 | BF38: 2.856368135 | BG38: 620.367404 | BH38: 1905.124429 | BI38: 59360.7473 | BJ38: 22321.12143 | BK38: 1728.926767 | BL38: 3248.743127 | BM38: 134516.603 | BN38: 6822.850896 | BO38: 137817.2102 | BP38: 171500.071 | BQ38: 74272.16485 | BR38: 17684.07728 | BS38: 93.21562564 | BT38: 131525.5299 | BU38: 31667.81993 | BV38: 2765.470546 | BW38: 11639.69051 | BX38: 124361.8358 | BY38: 5034.868398 | BZ38: 4710.552725 | CA38: 5453.65002 | CB38: 82840.64369 | CC38: 332526.1071 | CD38: 26940.63008 | CE38: 4809.91302 | CF38: 13827.92019 | CG38: 57985.46313 | CH38: 123448.3111 | CI38: 47858.97076 | CJ38: 1773.512144 | CK38: 19991.9347 | CL38: 12136.21325 | CM38: 13105.27673 | CN38: 2304.439472 | CO38: 27624.94861 | CP38: 93257.28216 | CQ38: 391.7925501 | CR38: 23900.47597 | CS38: 6743.111024 | CT38: 8751.879862 | CU38: 1242.70309 | CV38: 21906.48033 | CW38: 274.4817116 | CX38: 48921.23732 | CY38: 12497.65281 | CZ38: 7749.669459 | DA38: 4593.378627 | DB38: 4219.459148 | DC38: 9618.667807 | DD38: 2085.115394 | DE38: 2107.910899 | DF38: 43802.31307 | DG38: 2161.735159 | DH38: 24120.96549 | DI38: 639.8003491 | DJ38: 92515.82107 | DK38: 226.8731656 | DL38: 18150.28553 | DM38: 2540.112061 | DN38: 171186.9421 | DO38: 6883.44667 | DP38: 40038.86089 | DQ38: 47789.65326 | DR38: 586.5308912 | DS38: 14384.89541 | DT38: 4499.774788 | DU38: 4480.883022 | DV38: 1866.714172 | DW38: 5078.568288 | DX38: 13542.82674 | DY38: 42649.1032 | DZ38: 28513.49236 | EA38: 12974.61304 | EB38: 5732.727026 | EC38: 52507.38364 | ED38: 5373.745633 | EE38: 9052.221886 | EF38: 15196.64608 | EG38: 15322.76187 | EH38: 309625.0324 | EI38: 391.7792123 | EJ38: 20904.75961 | EK38: 4673.110581 | EL38: 5408.750672 | EM38: 4277.487612 | EN38: 36172.93997 | EO38: 12826.71729 | EP38: 3925.957198 | EQ38: 1134.202371 | ER38: 5382.285833 | ES38: 5411.38235 | ET38: 4415.362189 | EU38: 11605.22681 | EV38: 4782.391159 | EW38: 12528.09566 | EX38: 3665.276465 | EY38: 3285.421845 | EZ38: 2593.707731 | FA38: 25387.95639 | FB38: 6621.3588 | FC38: 3451.82681 | FD38: 4036.929287 | FE38: 3772.33949 | FF38: 4072.022069 | FG38: 4815.14906 | FH38: 36213.14736 | FI38: 2933.770867 | FJ38: 3253.134124 | FK38: 2683.878232 | FL38: 3475.676378 | FM38: 4372.288506 | FN38: 5728.349333 | FO38: 5093.474202 | FP38: 260.6265184 | FQ38: 2703.439398 | FR38: 2341.666666 | FS38: 31560.56994 | FT38: 3103.588518 | FU38: 12593.34264 | FV38: 3928.721959 | FW38: 3375.72975 | FX38: 11856.33411 | FY38: 0.001207271507 | FZ38: 3430.24071 | GA38: 2497.685018 | GB38: 4329.027181 | GC38: 11276.78561 | GD38: 7960.942293 | GE38: 2731.999191 | GF38: 1082.719663 | GG38: 2469.197277 | GH38: 25277.88807 | GI38: 25547.41568 | GJ38: 4830.765359 | GK38: 26590.7931 | GL38: 3428.785514 | GM38: 3759.715384 | GN38: 12134.72221 | GO38: 5375.811116 | GP38: 280.8131268 | GQ38: 5216.515191 | GR38: 23313.85099 | GS38: 5578.681993 | GT38: 3076.988002 | GU38: 5476.779976 | GV38: 27026.4925 | GW38: 24966.10479 | GX38: 9819.914858 | GY38: 1703929.828 | GZ38: 128058.5947 | HA38: 135831.8936 | HB38: 904705.0569 | HC38: 229605.9048 | HD38: 45210.93109 | HE38: 34259.62483 | HF38: 30903.46555 | HG38: 22869.11415 | HH38: 18575.08933 | HI38: 46835.02626 | HJ38: 2717.900969 | HK38: 901.2423987 | HL38: 110145.5192 | HM38: 34930.73514 | HN38: 2617.603911 | HO38: 3854.294537 | HP38: 2157.285894 | HQ38: 3297.172427 | HR38: 2847.713058 | HS38: 1930.969137 | HT38: 3874.746937 | HU38: 260.1408153 | HV38: 1169.923393 | HW38: 335.5404975 | HX38: 127.2562221 | HY38: 145181.1989 | HZ38: 2149.830411 | IA38: 15361.90216 | IB38: 8074.717297 | IC38: 8455.568063 | ID38: 6836.187292 | IE38: 8606.56793 | IF38: 5011.947037 | IG38: 8473.939136 | IH38: 10967.58829 | II38: 104951.4227 | IJ38: 3230.814295 | IK38: 13452.54993 | IL38: 4662.041539 | IM38: 3185.995026 | IN38: 2705.3217 | IO38: 3007.277174 | IP38: 119983.2025 | IQ38: 184505.1265 | IR38: 201218.5299 | IS38: 33991.66524 | IT38: 12928895.39
A39: =+MATCH(B39,RUT[EMPRESA],0) -> 106 | B39: EMELDA | C39: -14432642.74 | D39: -14432642.74 | F39: =IFERROR(INDEX($B$9:$B$511,MATCH(0,INDEX(COUNTIF($F$8:F38,$B$9:$B$511),0,0),0)),"") -> EMELDA | G39: -14432642.74 | J39: EOLICA_ESPERANZA | K39: =$IT39*K$66/$IT$66 -> 609757.6982 | L39: 367106.6141 | M39: 293902.226 | N39: 77798.63454 | O39: 5300523.003 | P39: 1899636.57 | Q39: 2071544.689 | R39: 532844.8487 | S39: 2046.897818 | T39: 11195.84004 | U39: =$IT39*U$66/$IT$66 -> 70249.15833 | V39: 33009.63116 | W39: 15170.33531 | X39: 141637.2461 | Y39: 20685.83787 | Z39: 139407.0164 | AA39: 66886.92278 | AB39: 1876110.305 | AC39: 23641.54804 | AD39: 65.94042094 | AE39: =$IT39*AE$66/$IT$66 -> 5852.635969 | AF39: 20129.38888 | AG39: 138118.127 | AH39: 1318.994858 | AI39: 246778.8078 | AJ39: 15537.03866 | AK39: 114862.3093 | AL39: 507617.0657 | AM39: 338881.4811 | AN39: 8657.721447 | AO39: =$IT39*AO$66/$IT$66 -> 35507.011 | AP39: 1144248.37 | AQ39: 234116.2617 | AR39: 23524.52837 | AS39: 1475124.066 | AT39: 41891.04351 | AU39: 91104.47307 | AV39: 760022.4738 | AW39: 438031.2931 | AX39: 2518.700171 | AY39: =$IT39*AY$66/$IT$66 -> 618.57368 | AZ39: 19969.21549 | BA39: 124181.4127 | BB39: 373.3026819 | BC39: 179497.8967 | BD39: 23.54484822 | BE39: 121426.8973 | BF39: 11.15802645 | BG39: 2423.383674 | BH39: 7442.118024 | BI39: =$IT39*BI$66/$IT$66 -> 231884.9523 | BJ39: 87194.52524 | BK39: 6753.825029 | BL39: 12690.78775 | BM39: 525471.4182 | BN39: 26652.56969 | BO39: 538364.8061 | BP39: 669942.4717 | BQ39: 290134.4438 | BR39: 69080.52212 | BS39: =$IT39*BS$66/$IT$66 -> 364.134582 | BT39: 513787.1844 | BU39: 123706.1737 | BV39: 10802.94698 | BW39: 45468.92013 | BX39: 485803.1556 | BY39: 19668.05122 | BZ39: 18401.1547 | CA39: 21303.96655 | CB39: 323606.0795 | CC39: =$IT39*CC$66/$IT$66 -> 1298969.504 | CD39: 105240.0282 | CE39: 18789.29262 | CF39: 54016.95159 | CG39: 226512.5856 | CH39: 482234.5917 | CI39: 186954.7749 | CJ39: 6927.99194 | CK39: 78095.8636 | CL39: 47408.52093 | CM39: =$IT39*CM$66/$IT$66 -> 51194.03996 | CN39: 9001.98972 | CO39: 107913.2286 | CP39: 364297.3077 | CQ39: 1530.486069 | CR39: 93364.06602 | CS39: 26341.07637 | CT39: 34188.06765 | CU39: 4854.456183 | CV39: 85574.78428 | CW39: =$IT39*CW$66/$IT$66 -> 1072.226707 | CX39: 191104.3795 | CY39: 48820.43704 | CZ39: 30273.06452 | DA39: 17943.42949 | DB39: 16482.76222 | DC39: 37574.06075 | DD39: 8145.229055 | DE39: 8234.276697 | DF39: 171107.9752 | DG39: =$IT39*DG$66/$IT$66 -> 8444.534091 | DH39: 94225.37934 | DI39: 2499.295918 | DJ39: 361400.8875 | DK39: 886.2501835 | DL39: 70901.70334 | DM39: 9922.613695 | DN39: 668719.275 | DO39: 26889.27912 | DP39: 156406.5442 | DQ39: =$IT39*DQ$66/$IT$66 -> 186683.9952 | DR39: 2291.205787 | DS39: 56192.70205 | DT39: 17577.77841 | DU39: 17503.98021 | DV39: 7292.073405 | DW39: 19838.75909 | DX39: 52903.27152 | DY39: 166603.1125 | DZ39: 111384.2078 | EA39: =$IT39*EA$66/$IT$66 -> 50683.61946 | EB39: 22394.14417 | EC39: 205113.1885 | ED39: 20991.83057 | EE39: 35361.31426 | EF39: 59363.69925 | EG39: 59856.354 | EH39: 1209509.468 | EI39: 1530.433967 | EJ39: 81661.69407 | EK39: =$IT39*EK$66/$IT$66 -> 18254.89189 | EL39: 21128.57315 | EM39: 16709.44279 | EN39: 141304.8326 | EO39: 50105.88416 | EP39: 15336.23546 | EQ39: 4430.612395 | ER39: 21025.19174 | ES39: 21138.85345 | ET39: 17248.03169 | EU39: =$IT39*EU$66/$IT$66 -> 45334.29224 | EV39: 18681.78209 | EW39: 48939.35803 | EX39: 14317.92046 | EY39: 12834.06834 | EZ39: 10131.97813 | FA39: 99174.71265 | FB39: 25865.46732 | FC39: 13484.10746 | FD39: 15769.73333 | FE39: =$IT39*FE$66/$IT$66 -> 14736.14809 | FF39: 15906.81867 | FG39: 18809.74652 | FH39: 141461.8975 | FI39: 11460.39005 | FJ39: 12707.94061 | FK39: 10484.21733 | FL39: 13577.27265 | FM39: 17079.77001 | FN39: 22377.04329 | FO39: =$IT39*FO$66/$IT$66 -> 19896.98708 | FP39: 1018.103217 | FQ39: 10560.63046 | FR39: 9147.41286 | FS39: 123287.2157 | FT39: 12123.76037 | FU39: 49194.23677 | FV39: 15347.03563 | FW39: 13186.8443 | FX39: 46315.20989 | FY39: =$IT39*FY$66/$IT$66 -> 0.004716047365 | FZ39: 13399.78419 | GA39: 9756.87803 | GB39: 16910.77533 | GC39: 44051.27989 | GD39: 31098.37406 | GE39: 10672.19553 | GF39: 4229.501968 | GG39: 9645.594416 | GH39: 98744.74522 | GI39: =$IT39*GI$66/$IT$66 -> 99797.61939 | GJ39: 18870.74954 | GK39: 103873.4361 | GL39: 13394.09966 | GM39: 14686.83368 | GN39: 47402.69637 | GO39: 20999.89911 | GP39: 1096.959548 | GQ39: 20377.63052 | GR39: 91072.49268 | GS39: =$IT39*GS$66/$IT$66 -> 21792.38751 | GT39: 12019.84895 | GU39: 21394.32068 | GV39: 105575.4385 | GW39: 97526.80484 | GX39: 38360.20589 | GY39: 6656177.776 | GZ39: 500244.0581 | HA39: 530609.428 | HB39: 3534111.319 | HC39: =$IT39*HC$66/$IT$66 -> 896925.2696 | HD39: 176610.5562 | HE39: 133830.7186 | HF39: 120720.3238 | HG39: 89335.18671 | HH39: 72561.1435 | HI39: 182954.8704 | HJ39: 10617.12268 | HK39: 3520.584901 | HL39: 430268.9847 | HM39: =$IT39*HM$66/$IT$66 -> 136452.3228 | HN39: 10225.32542 | HO39: 15056.2947 | HP39: 8427.153621 | HQ39: 12879.97045 | HR39: 11124.21653 | HS39: 7543.076977 | HT39: 15136.18931 | HU39: 1016.205881 | HV39: 4570.151869 | HW39: =$IT39*HW$66/$IT$66 -> 1310.744824 | HX39: 497.1096953 | HY39: 567131.2594 | HZ39: 8398.029759 | IA39: 60009.25042 | IB39: 31542.82115 | IC39: 33030.56457 | ID39: 26704.66657 | IE39: 33620.4257 | IF39: 19578.51194 | IG39: =$IT39*IG$66/$IT$66 -> 33102.32876 | IH39: 42843.44122 | II39: 409978.9297 | IJ39: 12620.75113 | IK39: 52550.61706 | IL39: 18211.65213 | IM39: 12445.67055 | IN39: 10567.98342 | IO39: 11747.53277 | IP39: 468698.6005 | IQ39: 720745.0108 | IR39: 786033.723 | IS39: 132783.9697 | IT39: 50505029.44
A40: =+MATCH(B40,RUT[EMPRESA],0) -> 300 | B40: SWO | C40: 42017.86019 | D40: 42017.86019 | F40: =IFERROR(INDEX($B$9:$B$511,MATCH(0,INDEX(COUNTIF($F$8:F39,$B$9:$B$511),0,0),0)),"") -> SWO | H40: 42017.86019 | J40: KDM_ENERGIA | K40: 4680510.852 | L40: 2817916.849 | M40: 2255998.674 | N40: 597183.6917 | O40: 40686908.11 | P40: 14581643.84 | Q40: 15901213.59 | R40: 4090126.462 | S40: 15712.02377 | T40: 85939.4657 | U40: 539233.7791 | V40: 253382.5113 | W40: 116447.7615 | X40: 1087210.001 | Y40: 158784.8566 | Z40: 1070090.718 | AA40: 513425.1996 | AB40: 14401055.81 | AC40: 181472.94 | AD40: 506.1598348 | AE40: 44924.93699 | AF40: 154513.5443 | AG40: 1060197.18 | AH40: 10124.62781 | AI40: 1894278.484 | AJ40: 119262.583 | AK40: 881685.1136 | AL40: 3896477.555 | AM40: 2601260.23 | AN40: 66456.82262 | AO40: 272552.4431 | AP40: 8783270.68 | AQ40: 1797080.556 | AR40: 180574.695 | AS40: 11323078.36 | AT40: 321556.3893 | AU40: 699319.5431 | AV40: 5833945.921 | AW40: 3362335.936 | AX40: 19333.58696 | AY40: 4748.182484 | AZ40: 153284.0505 | BA40: 953218.7151 | BB40: 2865.477974 | BC40: 1377829.023 | BD40: 180.7306705 | BE40: 932075.0068 | BF40: 85.64920797 | BG40: 18601.93585 | BH40: 57125.82929 | BI40: 1779952.986 | BJ40: 669306.7146 | BK40: 51842.48011 | BL40: 97414.71077 | BM40: 4033527.879 | BN40: 204585.5953 | BO40: 4132497.752 | BP40: 5142490.236 | BQ40: 2227077.111 | BR40: 530263.3069 | BS40: 2795.103477 | BT40: 3943839.495 | BU40: 949570.7722 | BV40: 82923.61165 | BW40: 349020.2333 | BX40: 3729033.596 | BY40: 150972.3083 | BZ40: 141247.5882 | CA40: 163529.6232 | CB40: 2484005.977 | CC40: 9970912.837 | CD40: 807824.3138 | CE40: 144226.9417 | CF40: 414635.0737 | CG40: 1738714.604 | CH40: 3701641.236 | CI40: 1435068.152 | CJ40: 53179.3884 | CK40: 599465.2272 | CL40: 363908.6434 | CM40: 392966.3542 | CN40: 69099.43196 | CO40: 828343.8469 | CP40: 2796352.563 | CQ40: 11748.03807 | CR40: 716664.2184 | CS40: 202194.5671 | CT40: 262428.2106 | CU40: 37262.89133 | CV40: 656873.5543 | CW40: 8230.431126 | CX40: 1466920.59 | CY40: 374746.5363 | CZ40: 232376.5775 | DA40: 137734.0814 | DB40: 126521.9737 | DC40: 288419.1534 | DD40: 62522.92197 | DE40: 63206.45325 | DF40: 1313427.837 | DG40: 64820.39271 | DH40: 723275.6747 | DI40: 19184.63957 | DJ40: 2774119.59 | DK40: 6802.872049 | DL40: 544242.7261 | DM40: 76166.15784 | DN40: 5133100.957 | DO40: 206402.581 | DP40: 1200579.394 | DQ40: 1432989.642 | DR40: 17587.33605 | DS40: 431336.1726 | DT40: 134927.3373 | DU40: 134360.861 | DV40: 55974.08415 | DW40: 152282.6649 | DX40: 406086.4458 | DY40: 1278848.432 | DZ40: 854987.1451 | EA40: 389048.3574 | EB40: 171897.8458 | EC40: 1574452.455 | ED40: 161133.6619 | EE40: 271434.0723 | EF40: 455676.8031 | EG40: 459458.4296 | EH40: 9284216.018 | EI40: 11747.63814 | EJ40: 626836.6048 | EK40: 140124.8723 | EL40: 162183.3004 | EM40: 128261.9777 | EN40: 1084658.389 | EO40: 384613.6511 | EP40: 117721.214 | EQ40: 34009.45893 | ER40: 161389.7428 | ES40: 162262.2122 | ET40: 132396.1956 | EU40: 347986.8273 | EV40: 143401.689 | EW40: 375659.3759 | EX40: 109904.6101 | EY40: 98514.53509 | EZ40: 77773.24292 | FA40: 761266.8445 | FB40: 198543.7836 | FC40: 103504.2468 | FD40: 121048.7513 | FE40: 113114.9328 | FF40: 122101.0208 | FG40: 144383.9462 | FH40: 1085864.021 | FI40: 87970.15625 | FJ40: 97546.37637 | FK40: 80477.03727 | FL40: 104219.3845 | FM40: 131104.616 | FN40: 171766.5792 | FO40: 152729.624 | FP40: 7814.978259 | FQ40: 81063.58575 | FR40: 70215.70254 | FS40: 946354.8432 | FT40: 93062.19854 | FU40: 377615.8296 | FV40: 117804.1164 | FW40: 101222.4495 | FX40: 355516.3685 | FY40: 0.0362004628 | FZ40: 102856.9799 | GA40: 74893.96795 | GB40: 129807.4099 | GC40: 338138.4018 | GD40: 238711.6681 | GE40: 81919.96123 | GF40: 32465.73175 | GG40: 74039.75296 | GH40: 757966.4069 | GI40: 766048.2877 | GJ40: 144852.2065 | GK40: 797334.3283 | GL40: 102813.3454 | GM40: 112736.3945 | GN40: 363863.9339 | GO40: 161195.5961 | GP40: 8420.280847 | GQ40: 156419.0515 | GR40: 699074.061 | GS40: 167278.7511 | GT40: 92264.57266 | GU40: 164223.1831 | GV40: 810398.9289 | GW40: 748617.4751 | GX40: 294453.6174 | GY40: 51092938.07 | GZ40: 3839882.218 | HA40: 4072967.333 | HB40: 27127900.85 | HC40: 6884814.198 | HD40: 1355665.746 | HE40: 1027286.958 | HF40: 926651.3359 | HG40: 685738.4698 | HH40: 556980.6181 | HI40: 1404364.814 | HJ40: 81497.22107 | HK40: 27024.07183 | HL40: 3302752.32 | HM40: 1047410.438 | HN40: 78489.77834 | HO40: 115572.3838 | HP40: 64686.97991 | HQ40: 98866.88044 | HR40: 85389.68243 | HS40: 57900.79199 | HT40: 116185.6562 | HU40: 7800.41428 | HV40: 35080.5664 | HW40: 10061.3004 | HX40: 3815.822794 | HY40: 4353309.556 | HZ40: 64463.42464 | IA40: 460632.0653 | IB40: 242123.2518 | IC40: 253543.1966 | ID40: 204985.4919 | IE40: 258070.981 | IF40: 150285.0031 | IG40: 254094.0597 | IH40: 328867.0109 | II40: 3147005.499 | IJ40: 96877.1084 | IK40: 403379.464 | IL40: 139792.9631 | IM40: 95533.1868 | IN40: 81120.02725 | IO40: 90174.26884 | IP40: 3597738.729 | IQ40: 5532451.423 | IR40: 6033608.73 | IS40: 1019252.095 | IT40: 387677497.3
A41: =+MATCH(B41,RUT[EMPRESA],0) -> 131 | B41: GEN. INDUSTRIAL | C41: 0 | D41: 0 | F41: =IFERROR(INDEX($B$9:$B$511,MATCH(0,INDEX(COUNTIF($F$8:F40,$B$9:$B$511),0,0),0)),"") -> GEN. INDUSTRIAL | J41: CONEJO_SOLAR | K41: 1377126.572 | L41: 829103.5516 | M41: 663772.7844 | N41: 175706.7885 | O41: 11971133.94 | P41: 4290294.335 | Q41: 4678545.668 | R41: 1203420.313 | S41: 4622.881161 | T41: 25285.59928 | U41: 158656.435 | V41: 74551.64624 | W41: 34261.92391 | X41: 319885.1214 | Y41: 46718.58524 | Z41: 314848.1885 | AA41: 151062.8877 | AB41: 4237160.697 | AC41: 53394.00242 | AD41: 148.9252307 | AE41: 13218.07094 | AF41: 45461.85541 | AG41: 311937.2554 | AH41: 2978.925683 | AI41: 557345.4089 | AJ41: 35090.11671 | AK41: 259414.4179 | AL41: 1146443.828 | AM41: 765357.6066 | AN41: 19553.30502 | AO41: 80191.93279 | AP41: 2584263.946 | AQ41: 528747.2809 | AR41: 53129.71566 | AS41: 3331540.634 | AT41: 94610.15307 | AU41: 205757.7806 | AV41: 1716496.811 | AW41: 989285.6376 | AX41: 5688.438118 | AY41: 1397.037305 | AZ41: 45100.10675 | BA41: 280461.4417 | BB41: 843.0972569 | BC41: 405392.7059 | BD41: 53.17560766 | BE41: 274240.4194 | BF41: 25.20019799 | BG41: 5473.167558 | BH41: 16807.88699 | BI41: 523707.9096 | BJ41: 196927.2352 | BK41: 15253.38989 | BL41: 28661.91127 | BM41: 1186767.555 | BN41: 60194.33958 | BO41: 1215887.036 | BP41: 1513052.779 | BQ41: 655263.3174 | BR41: 156017.0916 | BS41: 822.3912715 | BT41: 1160378.928 | BU41: 279388.1232 | BV41: 24398.25751 | BW41: 102690.7218 | BX41: 1097177.512 | BY41: 44419.93277 | BZ41: 41558.67022 | CA41: 48114.61752 | CB41: 730858.3924 | CC41: 2933698.789 | CD41: 237682.6725 | CE41: 42435.27259 | CF41: 121996.2939 | CG41: 511574.518 | CH41: 1089117.976 | CI41: 422233.9286 | CJ41: 15646.74267 | CK41: 176378.0749 | CL41: 107071.2746 | CM41: 115620.7998 | CN41: 20330.8286 | CO41: 243720.0465 | CP41: 822758.7846 | CQ41: 3456.574702 | CR41: 210861.0299 | CS41: 59490.83762 | CT41: 77213.12343 | CU41: 10963.70021 | CV41: 193269.08 | CW41: 2421.604342 | CX41: 431605.7344 | CY41: 110260.0612 | CZ41: 68371.1607 | DA41: 40524.90624 | DB41: 37226.01602 | DC41: 84860.32672 | DD41: 18395.85036 | DE41: 18596.96282 | DF41: 386444.2221 | DG41: 19071.82529 | DH41: 212806.2902 | DI41: 5644.613969 | DJ41: 816217.2726 | DK41: 2001.579777 | DL41: 160130.1959 | DM41: 22410.04095 | DN41: 1510290.212 | DO41: 60728.94346 | DP41: 353241.31 | DQ41: 421622.3775 | DR41: 5174.646226 | DS41: 126910.1864 | DT41: 39699.08998 | DU41: 39532.41809 | DV41: 16469.01398 | DW41: 44805.47336 | DX41: 119481.0679 | DY41: 376270.0724 | DZ41: 251559.1895 | EA41: 114468.0245 | EB41: 50576.76367 | EC41: 463244.3723 | ED41: 47409.66413 | EE41: 79862.87937 | EF41: 134071.8254 | EG41: 135184.4771 | EH41: 2731654.938 | EI41: 3456.45703 | EJ41: 184431.4376 | EK41: 41228.33834 | EL41: 47718.49474 | EM41: 37737.96992 | EN41: 319134.3714 | EO41: 113163.2199 | EP41: 34636.60636 | EQ41: 10006.45679 | ER41: 47485.00972 | ES41: 47741.71263 | ET41: 38954.36307 | EU41: 102386.6671 | EV41: 42192.46204 | EW41: 110528.6421 | EX41: 32336.76062 | EY41: 28985.50785 | EZ41: 22882.88668 | FA41: 223984.2687 | FB41: 58416.68331 | FC41: 30453.60925 | FD41: 35615.65335 | FE41: 33281.32004 | FF41: 35925.25807 | FG41: 42481.46736 | FH41: 319489.0996 | FI41: 25883.08062 | FJ41: 28700.65067 | FK41: 23678.41246 | FL41: 30664.02114 | FM41: 38574.34716 | FN41: 50538.14164 | FO41: 44936.98022 | FP41: 2299.367433 | FQ41: 23850.99009 | FR41: 20659.26409 | FS41: 278441.9142 | FT41: 27381.29032 | FU41: 111104.281 | FV41: 34660.99836 | FW41: 29782.24587 | FX41: 104602.0517 | FY41: 0.01065110643 | FZ41: 30263.16671 | GA41: 22035.72999 | GB41: 38192.67578 | GC41: 99489.00728 | GD41: 70235.10715 | GE41: 24102.95777 | GF41: 9552.252582 | GG41: 21784.39799 | GH41: 223013.1951 | GI41: 225391.0921 | GJ41: 42619.24156 | GK41: 234596.2492 | GL41: 30250.3283 | GM41: 33169.94435 | GN41: 107058.1199 | GO41: 47427.88678 | GP41: 2477.463009 | GQ41: 46022.50461 | GR41: 205685.5535 | GS41: 49217.70729 | GT41: 27146.60829 | GU41: 48318.68066 | GV41: 238440.1905 | GW41: 220262.4991 | GX41: 86635.82109 | GY41: 15032855.37 | GZ41: 1129792.026 | HA41: 1198371.656 | HB41: 7981725.563 | HC41: 2025689.263 | HD41: 398871.7004 | HE41: 302254.2222 | HF41: 272644.6361 | HG41: 201761.8799 | HH41: 163878.0111 | HI41: 413200.2176 | HJ41: 23978.57675 | HK41: 7951.176395 | HL41: 971754.6065 | HM41: 308175.0671 | HN41: 23093.70981 | HO41: 34004.36529 | HP41: 19032.57181 | HQ41: 29089.1769 | HR41: 25123.83891 | HS41: 17035.90094 | HT41: 34184.8058 | HU41: 2295.082336 | HV41: 10321.60413 | HW41: 2960.293132 | HX41: 1122.713125 | HY41: 1280855.542 | HZ41: 18966.79611 | IA41: 135529.7909 | IB41: 71238.88275 | IC41: 74598.92398 | ID41: 60311.99942 | IE41: 75931.1145 | IF41: 44217.70994 | IG41: 74761.00206 | IH41: 96761.12582 | II41: 925929.8895 | IJ41: 28503.73483 | IK41: 118684.6043 | IL41: 41130.68214 | IM41: 28108.31856 | IN41: 23867.59664 | IO41: 26531.58719 | IP41: 1058547.188 | IQ41: 1627789.381 | IR41: 1775242.74 | IS41: 299890.159 | IT41: 114064682.2
A42: =+MATCH(B42,RUT[EMPRESA],0) -> 230 | B42: NUEVA DEGAN | C42: -7317205.959 | D42: -7317205.959 | F42: =IFERROR(INDEX($B$9:$B$511,MATCH(0,INDEX(COUNTIF($F$8:F41,$B$9:$B$511),0,0),0)),"") -> NUEVA DEGAN | G42: -7317205.959 | J42: RAGSA | K42: 20394.85381 | L42: 12278.78836 | M42: 9830.286607 | N42: 2602.167685 | O42: 177289.0971 | P42: 63538.04183 | Q42: 69287.93391 | R42: 17822.31339 | S42: 68.46355836 | T42: 374.4725511 | U42: 2349.656787 | V42: 1104.088729 | W42: 507.4093721 | X42: 4737.407888 | Y42: 691.8889921 | Z42: 4662.81234 | AA42: 2237.198506 | AB42: 62751.14773 | AC42: 790.7500265 | AD42: 2.205540412 | AE42: 195.7558803 | AF42: 673.2771799 | AG42: 4619.702247 | AH42: 44.11704417 | AI42: 8254.127373 | AJ42: 519.6746724 | AK42: 3841.853926 | AL42: 16978.50782 | AM42: 11334.729 | AN42: 289.5788995 | AO42: 1187.619772 | AP42: 38272.21582 | AQ42: 7830.59721 | AR42: 786.8360146 | AS42: 49339.17154 | AT42: 1401.149524 | AU42: 3047.214352 | AV42: 25420.83075 | AW42: 14651.03961 | AX42: 84.24415457 | AY42: 20.68972612 | AZ42: 667.9197848 | BA42: 4153.554378 | BB42: 12.48603117 | BC42: 6003.750954 | BD42: 0.7875156621 | BE42: 4061.422802 | BF42: 0.3732077823 | BG42: 81.05605866 | BH42: 248.9200375 | BI42: 7755.965551 | BJ42: 2916.43648 | BK42: 225.8983765 | BL42: 424.4747737 | BM42: 17575.69078 | BN42: 891.4610904 | BO42: 18006.94202 | BP42: 22407.88236 | BQ42: 9704.263815 | BR42: 2310.56886 | BS42: 12.1793814 | BT42: 17184.88269 | BU42: 4137.658835 | BV42: 361.3312714 | BW42: 1520.820453 | BX42: 16248.88766 | BY42: 657.8466012 | BZ42: 615.4721146 | CA42: 712.5638341 | CB42: 10823.80543 | CC42: 43447.24669 | CD42: 3520.012943 | CE42: 628.4543471 | CF42: 1806.7305 | CG42: 7576.273464 | CH42: 16129.52822 | CI42: 6253.164683 | CJ42: 231.7238195 | CK42: 2612.109246 | CL42: 1585.695198 | CM42: 1712.311241 | CN42: 301.0938031 | CO42: 3609.424739 | CP42: 12184.82416 | CQ42: 51.19089061 | CR42: 3122.792025 | CS42: 881.0424261 | CT42: 1143.504451 | CU42: 162.3692894 | CV42: 2862.260239 | CW42: 35.86327324 | CX42: 6391.958468 | CY42: 1632.920223 | CZ42: 1012.557491 | DA42: 600.1623635 | DB42: 551.3067353 | DC42: 1256.757362 | DD42: 272.4373244 | DE42: 275.4157429 | DF42: 5723.129285 | DG42: 282.4483213 | DH42: 3151.600779 | DI42: 83.59513135 | DJ42: 12087.94622 | DK42: 29.64282859 | DL42: 2371.482769 | DM42: 331.8863481 | DN42: 22366.96952 | DO42: 899.3784223 | DP42: 5231.403577 | DQ42: 6244.107786 | DR42: 76.63504242 | DS42: 1879.503853 | DT42: 587.9322589 | DU42: 585.4638956 | DV42: 243.9014243 | DW42: 663.556348 | DX42: 1769.480716 | DY42: 5572.453014 | DZ42: 3725.520223 | EA42: 1695.238965 | EB42: 749.0275199 | EC42: 6860.51772 | ED42: 702.1236744 | EE42: 1182.746584 | EF42: 1985.565695 | EG42: 2002.043751 | EH42: 40455.03459 | EI42: 51.18914793 | EJ42: 2731.377262 | EK42: 610.5799933 | EL42: 706.6973681 | EM42: 558.8886272 | EN42: 4726.289494 | EO42: 1675.91518 | EP42: 512.9583129 | EQ42: 148.192786 | ER42: 703.2395212 | ES42: 707.0412184 | ET42: 576.9030646 | EU42: 1516.31749 | EV42: 624.8583916 | EW42: 1636.897829 | EX42: 478.89825 | EY42: 429.2671472 | EZ42: 338.8890593 | FA42: 3317.143468 | FB42: 865.1345055 | FC42: 451.0093125 | FD42: 527.457721 | FE42: 492.886907 | FF42: 532.042879 | FG42: 629.1384784 | FH42: 4731.542917 | FI42: 383.3210803 | FJ42: 425.0484933 | FK42: 350.6705703 | FL42: 454.1254529 | FM42: 571.2751369 | FN42: 748.4555387 | FO42: 665.5039272 | FP42: 34.05297929 | FQ42: 353.2263961 | FR42: 305.9578396 | FS42: 4123.645749 | FT42: 405.5091408 | FU42: 1645.422879 | FV42: 513.3195514 | FW42: 441.0666113 | FX42: 1549.126707 | FY42: 0.0001577398643 | FZ42: 448.1889126 | GA42: 326.342909 | GB42: 565.622692 | GC42: 1473.40397 | GD42: 1040.162009 | GE42: 356.9579659 | GF42: 141.4661505 | GG42: 322.6207534 | GH42: 3302.762145 | GI42: 3337.978125 | GJ42: 631.1788752 | GK42: 3474.30389 | GL42: 447.9987793 | GM42: 491.2374646 | GN42: 1585.50038 | GO42: 702.3935467 | GP42: 36.69052424 | GQ42: 681.5802354 | GR42: 3046.144689 | GS42: 728.9002805 | GT42: 402.0335665 | GU42: 715.5859513 | GV42: 3531.231569 | GW42: 3262.025117 | GX42: 1283.051929 | GY42: 222632.3227 | GZ42: 16731.89935 | HA42: 17747.54422 | HB42: 118207.091 | HC42: 29999.88324 | HD42: 5907.176713 | HE42: 4476.299274 | HF42: 4037.789704 | HG42: 2988.036196 | HH42: 2426.986848 | HI42: 6119.377986 | HJ42: 355.1159183 | HK42: 117.7546664 | HL42: 14391.41001 | HM42: 4563.985307 | HN42: 342.0112901 | HO42: 503.595002 | HP42: 281.8669885 | HQ42: 430.8024565 | HR42: 372.076926 | HS42: 252.2968593 | HT42: 506.2672747 | HU42: 33.98951822 | HV42: 152.8600287 | HW42: 43.84110137 | HX42: 16.62706283 | HY42: 18969.10717 | HZ42: 280.892869 | IA42: 2007.15775 | IB42: 1055.027641 | IC42: 1104.788898 | ID42: 893.2035992 | IE42: 1124.518262 | IF42: 654.8517385 | IG42: 1107.189229 | IH42: 1433.00482 | II42: 13712.75895 | IJ42: 422.1322256 | IK42: 1757.685316 | IL42: 609.1337327 | IM42: 416.2762228 | IN42: 353.4723343 | IO42: 392.9252785 | IP42: 15676.78352 | IQ42: 24107.09889 | IR42: 26290.84129 | IS42: 4441.288168 | IT42: 1689265.58
A43: =+MATCH(B43,RUT[EMPRESA],0) -> 23 | B43: BARRICK | C43: 3729355.021 | D43: 3729355.021 | F43: =IFERROR(INDEX($B$9:$B$511,MATCH(0,INDEX(COUNTIF($F$8:F42,$B$9:$B$511),0,0),0)),"") -> BARRICK | H43: 3729355.021 | J43: ENERKEY | K43: 3178.911726 | L43: 1913.874189 | M43: 1532.230319 | N43: 405.5955215 | O43: 27633.75481 | P43: 9903.568229 | Q43: 10799.79428 | R43: 2777.934157 | S43: 10.67130025 | T43: 58.36840974 | U43: 366.2370706 | V43: 172.0924621 | W43: 79.08904953 | X43: 738.4118379 | Y43: 107.8435791 | Z43: 726.7847548 | AA43: 348.7083866 | AB43: 9780.916364 | AC43: 123.2528831 | AD43: 0.3437738924 | AE43: 30.5121414 | AF43: 104.9425871 | AG43: 720.0652568 | AH43: 6.876449831 | AI43: 1286.557018 | AJ43: 81.00082136 | AK43: 598.823341 | AL43: 2646.411595 | AM43: 1766.725237 | AN43: 45.13617837 | AO43: 185.112306 | AP43: 5965.426219 | AQ43: 1220.54208 | AR43: 122.6428126 | AS43: 7690.414084 | AT43: 218.394831 | AU43: 474.9642006 | AV43: 3962.302339 | AW43: 2283.63302 | AX43: 13.13099536 | AY43: 3.224872979 | AZ43: 104.1075389 | BA43: 647.4075686 | BB43: 1.946176779 | BC43: 935.794612 | BD43: 0.1227487481 | BE43: 633.0471741 | BF43: 0.05817127235 | BG43: 12.63407219 | BH43: 38.7987496 | BI43: 1208.909368 | BJ43: 454.5800726 | BK43: 35.21040184 | BL43: 66.16217249 | BM43: 2739.493503 | BN43: 138.950548 | BO43: 2806.711912 | BP43: 3492.679117 | BQ43: 1512.587358 | BR43: 360.1445008 | BS43: 1.898379792 | BT43: 2678.578901 | BU43: 644.9299569 | BV43: 56.32010047 | BW43: 237.0477385 | BX43: 2532.686922 | BY43: 102.5374486 | BZ43: 95.93260832 | CA43: 111.0661321 | CB43: 1687.088435 | CC43: 6772.049619 | CD43: 548.6585257 | CE43: 97.95612717 | CF43: 281.6120589 | CG43: 1180.901064 | CH43: 2514.082565 | CI43: 974.6703125 | CJ43: 36.11840389 | CK43: 407.145096 | CL43: 247.1596563 | CM43: 266.895087 | CN43: 46.93098712 | CO43: 562.5949925 | CP43: 1899.228147 | CQ43: 7.979038436 | CR43: 486.744366 | CS43: 137.3266083 | CT43: 178.2361247 | CU43: 25.30822936 | CV43: 446.1357126 | CW43: 5.589948371 | CX43: 996.3038675 | CY43: 254.5205419 | CZ43: 157.8256413 | DA43: 93.54630304 | DB43: 85.93125804 | DC43: 195.8886664 | DD43: 42.46434974 | DE43: 42.92859086 | DF43: 892.0545823 | DG43: 44.02474708 | DH43: 491.2347382 | DI43: 13.0298332 | DJ43: 1884.127945 | DK43: 4.620378076 | DL43: 369.6390497 | DM43: 51.73056957 | DN43: 3486.302102 | DO43: 140.1846093 | DP43: 815.4101192 | DQ43: 973.2586291 | DR43: 11.94497579 | DS43: 292.9551197 | DT43: 91.6400171 | DU43: 91.25527745 | DV43: 38.01650676 | DW43: 103.4274173 | DX43: 275.8059975 | DY43: 868.5689241 | DZ43: 580.6906013 | EA43: 264.23406 | EB43: 116.7496658 | EC43: 1069.337414 | ED43: 109.4388419 | EE43: 184.3527304 | EF43: 309.4868014 | EG43: 312.0552084 | EH43: 6305.658527 | EI43: 7.978766806 | EJ43: 425.735202 | EK43: 95.17008156 | EL43: 110.1517359 | EM43: 87.11303485 | EN43: 736.6788325 | EO43: 261.2220939 | EP43: 79.95395364 | EQ43: 23.0985615 | ER43: 109.6127671 | ES43: 110.2053313 | ET43: 89.92091505 | EU43: 236.3458692 | EV43: 97.39563161 | EW43: 255.1405247 | EX43: 74.64506864 | EY43: 66.90915173 | EZ43: 52.82207043 | FA43: 517.0376002 | FB43: 134.8470673 | FC43: 70.29806664 | FD43: 82.2139521 | FE43: 76.8254572 | FF43: 82.92863301 | FG43: 98.06276157 | FH43: 737.4976747 | FI43: 59.74761518 | FJ43: 66.25159719 | FK43: 54.65843484 | FL43: 70.78377423 | FM43: 89.04369938 | FN43: 116.660512 | FO43: 103.7309832 | FP43: 5.307780883 | FQ43: 55.05680713 | FR43: 47.68913634 | FS43: 642.7457606 | FT43: 63.20603103 | FU43: 256.46931 | FV43: 80.01025928 | FW43: 68.74831444 | FX43: 241.4597868 | FY43: 2.458664862e-05 | FZ43: 69.85845562 | GA43: 50.866523 | GB43: 88.16266225 | GC43: 229.6570106 | GD43: 162.1283114 | GE43: 55.63844067 | GF43: 22.05009209 | GG43: 50.28635683 | GH43: 514.7960073 | GI43: 520.2850631 | GJ43: 98.38079481 | GK43: 541.533932 | GL43: 69.82881987 | GM43: 76.56836138 | GN43: 247.1292905 | GO43: 109.4809065 | GP43: 5.718890601 | GQ43: 106.2367705 | GR43: 474.797474 | GS43: 113.6124667 | GT43: 62.66429908 | GU43: 111.5371845 | GV43: 550.407154 | GW43: 508.446395 | GX43: 199.9871567 | GY43: 34701.3275 | GZ43: 2607.973145 | HA43: 2766.280011 | HB43: 18424.74141 | HC43: 4676.031586 | HD43: 920.7417467 | HE43: 697.7132753 | HF43: 629.3635226 | HG43: 465.7402004 | HH43: 378.2903777 | HI43: 953.817204 | HJ43: 55.35132379 | HK43: 18.35422276 | HL43: 2243.16499 | HM43: 711.3807505 | HN43: 53.30872732 | HO43: 78.49451004 | HP43: 43.93413571 | HQ43: 67.14845782 | HR43: 57.99500767 | HS43: 39.32508917 | HT43: 78.91103272 | HU43: 5.297889312 | HV43: 23.82603681 | HW43: 6.833439089 | HX43: 2.591632453 | HY43: 2956.682984 | HZ43: 43.78230132 | IA43: 312.8523189 | IB43: 164.4453925 | IC43: 172.2015964 | ID43: 139.22215 | IE43: 175.2767793 | IF43: 102.0706444 | IG43: 172.5757319 | IH43: 223.3600627 | II43: 2137.384785 | IJ43: 65.79704344 | IK43: 273.9674682 | IL43: 94.94465533 | IM43: 64.88427809 | IN43: 55.0951411 | IO43: 61.24460548 | IP43: 2443.514008 | IQ43: 3757.533153 | IR43: 4097.909426 | IS43: 692.2561529 | IT43: 263302.9985
A44: =+MATCH(B44,RUT[EMPRESA],0) -> 36 | B44: CARRAN | C44: 12826637.07 | D44: 12826637.07 | F44: =IFERROR(INDEX($B$9:$B$511,MATCH(0,INDEX(COUNTIF($F$8:F43,$B$9:$B$511),0,0),0)),"") -> CARRAN | H44: 12826637.07 | J44: HIDROMUNILQUE | K44: 633.6019239 | L44: 381.4621081 | M44: 305.3951043 | N44: 80.8409056 | O44: 5507.79692 | P44: 1973.920771 | Q44: 2152.551258 | R44: 553.6814415 | S44: 2.126940585 | T44: 11.63364695 | U44: 72.99621145 | V44: 34.30045389 | W44: 15.76356258 | X44: 147.1758896 | Y44: 21.49474572 | Z44: 144.858448 | AA44: 69.5024976 | AB44: 1949.474525 | AC44: 24.56603724 | AD44: 0.06851898335 | AE44: 6.081499948 | AF44: 20.91653711 | AG44: 143.5191573 | AH44: 1.370573397 | AI44: 256.4289518 | AJ44: 16.14460566 | AK44: 119.3539342 | AL44: 527.4671405 | AM44: 352.1332474 | AN44: 8.996276688 | AO44: 36.89549234 | AP44: 1188.993547 | AQ44: 243.271244 | AR44: 24.44444159 | AS44: 1532.807948 | AT44: 43.52916879 | AU44: 94.66706133 | AV44: 789.7427175 | AW44: 455.1602561 | AX44: 2.6171925 | AY44: 0.6427626496 | AZ44: 20.75010023 | BA44: 129.0374557 | BB44: 0.3879004696 | BC44: 186.5170592 | BD44: 0.02446555603 | BE44: 126.1752266 | BF44: 0.01159435469 | BG44: 2.518148705 | BH44: 7.733137789 | BI44: 240.9526806 | BJ44: 90.60421724 | BK44: 7.01792949 | BL44: 13.18705374 | BM44: 546.0196772 | BN44: 27.69480317 | BO44: 559.4172536 | BP44: 696.1401886 | BQ44: 301.4799852 | BR44: 71.7818764 | BS44: 0.3783738563 | BT44: 533.8785381 | BU44: 128.5436328 | BV44: 11.22539004 | BW44: 47.24695622 | BX44: 504.8002099 | BY44: 20.4371591 | BZ44: 19.12072132 | CA44: 22.13704596 | CB44: 336.26051 | CC44: 1349.764963 | CD44: 109.3553793 | CE44: 19.52403715 | CF44: 56.12925356 | CG44: 235.3702305 | CH44: 501.0920993 | CI44: 194.2655344 | CJ44: 7.198907099 | CK44: 81.14975764 | CL44: 49.26240401 | CM44: 53.19595358 | CN44: 9.354007375 | CO44: 112.1331136 | CP44: 378.5429454 | CQ44: 1.59033485 | CR44: 97.01501437 | CS44: 27.37112908 | CT44: 35.52497246 | CU44: 5.044286913 | CV44: 88.92113723 | CW44: 1.114155519 | CX44: 198.5774069 | CY44: 50.72953228 | CZ44: 31.45687537 | DA44: 18.64509703 | DB44: 17.1273112 | DC44: 39.04337289 | DD44: 8.463743574 | DE44: 8.556273374 | DF44: 177.7990546 | DG44: 8.774752762 | DH44: 97.91000886 | DI44: 2.597029454 | DJ44: 375.5332623 | DK44: 0.9209064896 | DL44: 73.67427386 | DM44: 10.31063182 | DN44: 694.8691595 | DO44: 27.94076898 | DP44: 162.5227326 | DQ44: 193.984166 | DR44: 2.380802077 | DS44: 58.3900855 | DT44: 18.26514737 | DU44: 18.18846333 | DV44: 7.577225761 | DW44: 20.61454241 | DX44: 54.97202366 | DY44: 173.1180318 | DZ44: 115.7398235 | EA44: 52.66557338 | EB44: 23.26985435 | EC44: 213.1340223 | ED44: 21.81270408 | EE44: 36.74409821 | EF44: 61.68508273 | EG44: 62.19700246 | EH44: 1256.806643 | EI44: 1.590280711 | EJ44: 84.85502787 | EK44: 18.96873898 | EL44: 21.95479391 | EM44: 17.36285598 | EN44: 146.8304772 | EO44: 52.06524608 | EP44: 15.93595017 | EQ44: 4.603868956 | ER44: 21.84736982 | ES44: 21.96547622 | ET44: 17.92250609 | EU44: 47.10706379 | EV44: 19.41232248 | EW44: 50.8531036 | EX44: 14.87781454 | EY44: 13.33593724 | EZ44: 10.52818333 | FA44: 103.052883 | FB44: 26.87692161 | FC44: 14.01139576 | FD44: 16.38639972 | FE44: 15.31239672 | FF44: 16.5288457 | FG44: 19.54529089 | FH44: 146.993684 | FI44: 11.90854204 | FJ44: 13.20487735 | FK44: 10.89419665 | FL44: 14.10820413 | FM44: 17.74766464 | FN44: 23.25208475 | FO44: 20.67504737 | FP44: 1.05791556 | FQ44: 10.97359786 | FR44: 9.505117203 | FS44: 128.1082917 | FT44: 12.59785308 | FU44: 51.11794923 | FV44: 15.94717267 | FW44: 13.7025083 | FX44: 48.12633966 | FY44: 4.900465697e-06 | FZ44: 13.92377508 | GA44: 10.13841516 | GB44: 17.57206152 | GC44: 45.77387997 | GD44: 32.31445817 | GE44: 11.08952563 | GF44: 4.394894221 | GG44: 10.02277986 | GH44: 102.606102 | GI44: 103.7001482 | GJ44: 19.6086794 | GK44: 107.9353473 | GL44: 13.91786826 | GM44: 15.2611539 | GN44: 49.25635167 | GO44: 21.82108814 | GP44: 1.139855523 | GQ44: 21.1744861 | GR44: 94.63383037 | GS44: 22.64456634 | GT44: 12.48987826 | GU44: 22.23093334 | GV44: 109.7039056 | GW44: 101.3405347 | GX44: 39.86025978 | GY44: 6916.463797 | GZ44: 519.8058156 | HA44: 551.3586059 | HB44: 3672.310719 | HC44: 931.9990188 | HD44: 183.5168109 | HE44: 139.0640923 | HF44: 125.4410229 | HG44: 92.82858805 | HH44: 75.39860548 | HI44: 190.1092159 | HJ44: 11.03229919 | HK44: 3.658255358 | HL44: 447.0944071 | HM44: 141.7882128 | HN44: 10.62518091 | HO44: 15.64506248 | HP44: 8.756692639 | HQ44: 13.38363432 | HR44: 11.55922265 | HS44: 7.838044684 | HT44: 15.72808132 | HU44: 1.055944031 | HV44: 4.748865041 | HW44: 1.36200075 | HX44: 0.5165488853 | HY44: 589.3086026 | HZ44: 8.726429905 | IA44: 62.35587781 | IB44: 32.77628511 | IC44: 34.32220589 | ID44: 27.74893727 | IE44: 34.9351332 | IF44: 20.34411844 | IG44: 34.39677637 | IH44: 44.51880947 | II44: 426.010921 | IJ44: 13.11427838 | IK44: 54.60557886 | IL44: 18.92380836 | IM44: 12.93235137 | IN44: 10.98123836 | IO44: 12.20691331 | IP44: 487.0267909 | IQ44: 748.9293319 | IR44: 816.7711218 | IS44: 137.9764108 | IT44: 52479.9997
A45: =+MATCH(B45,RUT[EMPRESA],0) -> 77 | B45: DONGO | C45: 88010177.5 | D45: 88010177.5 | F45: =IFERROR(INDEX($B$9:$B$511,MATCH(0,INDEX(COUNTIF($F$8:F44,$B$9:$B$511),0,0),0)),"") -> DONGO | H45: 88010177.5 | J45: EL_PELICANO | K45: 2071385.062 | L45: 1247084.143 | M45: 998404.2553 | N45: 264286.8304 | O45: 18006208.37 | P45: 6453184.314 | Q45: 7037166.954 | R45: 1810107.298 | S45: 6953.43999 | T45: 38032.96928 | U45: 238640.7873 | V45: 112135.7829 | W45: 51534.57845 | X45: 481150.5893 | Y45: 70271.08584 | Z45: 473574.3594 | AA45: 227219.0627 | AB45: 6373264.12 | AC45: 80311.81826 | AD45: 224.0037367 | AE45: 19881.77067 | AF45: 68380.7938 | AG45: 469195.9214 | AH45: 4480.70808 | AI45: 838323.0543 | AJ45: 52780.29269 | AK45: 390194.4533 | AL45: 1724406.941 | AM45: 1151201.6 | AN45: 29410.82159 | AO45: 120619.5385 | AP45: 3887083.323 | AQ45: 795307.5927 | AR45: 79914.29514 | AS45: 5011088.77 | AT45: 142306.4965 | AU45: 309487.5967 | AV45: 2581843.908 | AW45: 1488019.716 | AX45: 8556.182111 | AY45: 2101.333503 | AZ45: 67836.67476 | BA45: 421852.0305 | BB45: 1268.132573 | BC45: 609765.5887 | BD45: 79.98332294 | BE45: 412494.7695 | BF45: 37.90451417 | BG45: 8232.386005 | BH45: 25281.34068 | BI45: 787727.6951 | BJ45: 296205.2592 | BK45: 22943.1663 | BL45: 43111.40024 | BM45: 1785059.293 | BN45: 90540.44726 | BO45: 1828858.939 | BP45: 2275836.504 | BQ45: 985604.8633 | BR45: 234670.857 | BS45: 1236.987964 | BT45: 1745367.22 | BU45: 420237.6139 | BV45: 36698.28697 | BW45: 154460.7673 | BX45: 1650303.723 | BY45: 66813.60089 | BZ45: 62509.87411 | CA45: 72370.90764 | CB45: 1099310.105 | CC45: 4412680.699 | CD45: 357506.9621 | CE45: 63828.40293 | CF45: 183498.9651 | CG45: 769477.4291 | CH45: 1638181.088 | CI45: 635097.0708 | CJ45: 23534.8222 | CK45: 265296.5362 | CL45: 161049.7126 | CM45: 173909.3576 | CN45: 30580.32246 | CO45: 366587.991 | CP45: 1237540.753 | CQ45: 5199.156959 | CR45: 317163.5753 | CS45: 89482.28495 | CT45: 116139.0054 | CU45: 16490.89146 | CV45: 290702.8978 | CW45: 3642.421228 | CX45: 649193.5373 | CY45: 165846.08 | CZ45: 102839.4948 | DA45: 60954.95295 | DB45: 55992.97482 | DC45: 127641.4359 | DD45: 27669.85286 | DE45: 27972.35327 | DF45: 581264.5003 | DG45: 28686.6108 | DH45: 320089.5106 | DI45: 8490.264649 | DJ45: 1227701.432 | DK45: 3010.647338 | DL45: 240857.5235 | DM45: 33707.73972 | DN45: 2271681.228 | DO45: 91344.56399 | DP45: 531322.8192 | DQ45: 634177.2151 | DR45: 7783.36945 | DS45: 190890.1256 | DT45: 59712.81333 | DU45: 59462.11622 | DV45: 24771.62972 | DW45: 67393.50621 | DX45: 179715.7242 | DY45: 565961.1997 | DZ45: 378379.1249 | EA45: 172175.4273 | EB45: 76074.30924 | EC45: 696782.338 | ED45: 71310.56218 | EE45: 120124.5976 | EF45: 201662.2016 | EG45: 203335.7806 | EH45: 4108779.357 | EI45: 5198.979965 | EJ45: 277409.8854 | EK45: 62013.01019 | EL45: 71775.08529 | EM45: 56763.02289 | EN45: 480021.3596 | EO45: 170212.8243 | EP45: 52098.15165 | EQ45: 15051.06759 | ER45: 71423.89216 | ES45: 71810.00813 | ET45: 58592.64309 | EU45: 154003.4279 | EV45: 63463.18293 | EW45: 166250.062 | EX45: 48638.87187 | EY45: 43598.13336 | EZ45: 34418.9638 | FA45: 336902.7056 | FB45: 87866.61125 | FC45: 45806.35691 | FD45: 53570.77104 | FE45: 50059.61729 | FF45: 54036.45852 | FG45: 63897.88611 | FH45: 480554.9188 | FI45: 38931.66222 | FJ45: 43169.66955 | FK45: 35615.54242 | FL45: 46122.84492 | FM45: 58021.04765 | FN45: 76016.21648 | FO45: 67591.31035 | FP45: 3458.560344 | FQ45: 35875.12258 | FR45: 31074.33396 | FS45: 418814.3874 | FT45: 41185.17272 | FU45: 167115.901 | FV45: 52134.84051 | FW45: 44796.53536 | FX45: 157335.6666 | FY45: 0.01602070805 | FZ45: 45519.90551 | GA45: 33144.72529 | GB45: 57446.96215 | GC45: 149644.9547 | GD45: 105643.1229 | GE45: 36254.11612 | GF45: 14367.88288 | GG45: 32766.68789 | GH45: 335442.0793 | GI45: 339018.7588 | GJ45: 64105.11719 | GK45: 352864.5631 | GL45: 45500.5948 | GM45: 49892.09315 | GN45: 161029.9262 | GO45: 71337.97152 | GP45: 3726.440235 | GQ45: 69224.0862 | GR45: 309378.9573 | GS45: 74030.1042 | GT45: 40832.17913 | GU45: 72677.84628 | GV45: 358646.3718 | GW45: 331304.6596 | GX45: 130312.0201 | GY45: 22611452.47 | GZ45: 1699360.372 | HA45: 1802513.434 | HB45: 12005597.33 | HC45: 3046911.274 | HD45: 599957.1124 | HE45: 454631.3268 | HF45: 410094.495 | HG45: 303477.2202 | HH45: 246494.7456 | HI45: 621509.1447 | HJ45: 36067.0302 | HK45: 11959.64724 | HL45: 1461650.669 | HM45: 463537.0802 | HN45: 34736.07037 | HO45: 51147.17536 | HP45: 28627.56825 | HQ45: 43754.06568 | HR45: 37789.65976 | HS45: 25624.30456 | HT45: 51418.58235 | HU45: 3452.114977 | HV45: 15525.09191 | HW45: 4452.682197 | HX45: 1688.712746 | HY45: 1926580.381 | HZ45: 28528.63267 | IA45: 203855.1793 | IB45: 107152.9375 | IC45: 112206.895 | ID45: 90717.42361 | IE45: 114210.6902 | IF45: 66509.43034 | IG45: 112450.6824 | IH45: 145541.8511 | II45: 1392724.082 | IJ45: 42873.48144 | IK45: 178517.735 | IL45: 61866.12202 | IM45: 42278.72176 | IN45: 35900.10107 | IO45: 39907.10401 | IP45: 1592198.479 | IQ45: 2448415.909 | IR45: 2670205.75 | IS45: 451075.4553 | IT45: 171568745.8
A46: =+MATCH(B46,RUT[EMPRESA],0) -> 178 | B46: INACAL | C46: 840476.0048 | D46: 840476.0048 | F46: =IFERROR(INDEX($B$9:$B$511,MATCH(0,INDEX(COUNTIF($F$8:F45,$B$9:$B$511),0,0),0)),"") -> INACAL | H46: 840476.0048 | J46: EMBALSE_ANCOA | K46: 399748.6854 | L46: 240670.0019 | M46: 192678.2209 | N46: 51003.7052 | O46: 3474949.325 | P46: 1245375.374 | Q46: 1358075.952 | R46: 349325.6886 | S46: 1341.917805 | T46: 7339.837364 | U46: 46054.37336 | V46: 21640.65611 | W46: 9945.46131 | X46: 92855.41309 | Y46: 13561.34825 | Z46: 91393.30543 | AA46: 43850.13839 | AB46: 1229951.881 | AC46: 15499.07082 | AD46: 43.22962492 | AE46: 3836.906925 | AF46: 13196.54802 | AG46: 90548.32742 | AH46: 864.7147254 | AI46: 161784.7618 | AJ46: 10185.86694 | AK46: 75302.13607 | AL46: 332786.7041 | AM46: 222165.9964 | AN46: 5675.882038 | AO46: 23277.90368 | AP46: 750153.3526 | AQ46: 153483.3723 | AR46: 15422.35435 | AS46: 967070.8673 | AT46: 27463.18681 | AU46: 59726.82829 | AV46: 498260.187 | AW46: 287167.2373 | AX46: 1651.22488 | AY46: 405.5283207 | AZ46: 13091.54056 | BA46: 81411.61088 | BB46: 244.732058 | BC46: 117676.3302 | BD46: 15.43567577 | BE46: 79605.78885 | BF46: 7.315047303 | BG46: 1588.736708 | BH46: 4878.949303 | BI46: 152020.5569 | BJ46: 57163.52076 | BK46: 4427.713967 | BL46: 8319.904343 | BM46: 344491.7698 | BN46: 17473.05484 | BO46: 352944.496 | BP46: 439204.9877 | BQ46: 190208.1152 | BR46: 45288.23168 | BS46: 238.7215789 | BT46: 336831.7483 | BU46: 81100.05079 | BV46: 7082.262127 | BW46: 29808.79307 | BX46: 318485.8074 | BY46: 12894.10145 | BZ46: 12063.54167 | CA46: 13966.58484 | CB46: 212151.6551 | CC46: 851586.3812 | CD46: 68993.90208 | CE46: 12317.9995 | CF46: 35412.76387 | CG46: 148498.5078 | CH46: 316146.3064 | CI46: 122564.9561 | CJ46: 4541.895377 | CK46: 51198.56445 | CL46: 31080.36844 | CM46: 33562.10218 | CN46: 5901.579541 | CO46: 70746.41514 | CP46: 238828.2596 | CQ46: 1003.365428 | CR46: 61208.18607 | CS46: 17268.84414 | CT46: 22413.22272 | CU46: 3182.514109 | CV46: 56101.64106 | CW46: 702.93695 | CX46: 125285.3793 | CY46: 32006.00105 | CZ46: 19846.601 | DA46: 11763.46338 | DB46: 10805.87018 | DC46: 24633.03282 | DD46: 5339.899138 | DE46: 5398.277536 | DF46: 112176.0141 | DG46: 5536.119366 | DH46: 61772.85114 | DI46: 1638.503721 | DJ46: 236929.4067 | DK46: 581.0133219 | DL46: 46482.17281 | DM46: 6505.127843 | DN46: 438403.0769 | DO46: 17628.23825 | DP46: 102537.9599 | DQ46: 122387.4367 | DR46: 1502.082719 | DS46: 36839.15568 | DT46: 11523.7476 | DU46: 11475.36652 | DV46: 4780.582133 | DW46: 13006.01516 | DX46: 34682.65067 | DY46: 109222.6886 | DZ46: 73021.94099 | EA46: 33227.47758 | EB46: 14681.29015 | EC46: 134469.36 | ED46: 13761.95282 | EE46: 23182.38692 | EF46: 38918.01745 | EG46: 39240.99506 | EH46: 792937.6226 | EI46: 1003.331271 | EJ46: 53536.27342 | EK46: 11967.6538 | EL46: 13851.59936 | EM46: 10954.47882 | EN46: 92637.48736 | EO46: 32848.72234 | EP46: 10054.22315 | EQ46: 2904.648003 | ER46: 13783.82394 | ES46: 13858.33898 | ET46: 11307.57023 | EU46: 29720.53289 | EV46: 12247.51709 | EW46: 32083.96399 | EX46: 9386.629964 | EY46: 8413.837108 | EZ46: 6642.384261 | FA46: 65017.56537 | FB46: 16957.04144 | FC46: 8839.99373 | FD46: 10338.41833 | FE46: 9660.814192 | FF46: 10428.28958 | FG46: 12331.4088 | FH46: 92740.45691 | FI46: 7513.27268 | FJ46: 8331.149515 | FK46: 6873.307394 | FL46: 8901.07154 | FM46: 11197.26021 | FN46: 14670.07905 | FO46: 13044.18862 | FP46: 667.4543408 | FQ46: 6923.402777 | FR46: 5996.916933 | FS46: 80825.38774 | FT46: 7948.169057 | FU46: 32251.05896 | FV46: 10061.30359 | FW46: 8645.112129 | FX46: 30363.60889 | FY46: 0.003091775208 | FZ46: 8784.712569 | GA46: 6396.473841 | GB46: 11086.46964 | GC46: 28879.4078 | GD46: 20387.66248 | GE46: 6996.543293 | GF46: 2772.802798 | GG46: 6323.517848 | GH46: 64735.68469 | GI46: 65425.93439 | GJ46: 12371.40153 | GK46: 68097.98324 | GL46: 8780.985869 | GM46: 9628.48435 | GN46: 31076.54993 | GO46: 13767.24244 | GP46: 719.1514571 | GQ46: 13359.29179 | GR46: 59705.86239 | GS46: 14286.78684 | GT46: 7880.046173 | GU46: 14025.81975 | GV46: 69213.7924 | GW46: 63937.21988 | GX46: 25148.41866 | GY46: 4363697.783 | GZ46: 327953.0626 | HA46: 347860.1777 | HB46: 2316914.338 | HC46: 588011.7602 | HD46: 115783.4298 | HE46: 87737.56198 | HF46: 79142.56905 | HG46: 58566.90871 | HH46: 47570.07876 | HI46: 119942.6742 | HJ46: 6960.438296 | HK46: 2308.046606 | HL46: 282078.3756 | HM46: 89456.24929 | HN46: 6703.581446 | HO46: 9870.697868 | HP46: 5524.724971 | HQ46: 8443.929889 | HR46: 7292.88199 | HS46: 4945.136591 | HT46: 9923.075665 | HU46: 666.2104741 | HV46: 2996.128145 | HW46: 859.3061172 | HX46: 325.8982179 | HY46: 371803.3836 | HZ46: 5505.631771 | IA46: 39341.23183 | IB46: 20679.03583 | IC46: 21654.37977 | ID46: 17507.20882 | IE46: 22041.08454 | IF46: 12835.40074 | IG46: 21701.42737 | IH46: 28087.56553 | II46: 268776.497 | IJ46: 8273.989303 | IK46: 34451.4553 | IL46: 11939.30641 | IM46: 8159.208906 | IN46: 6928.223281 | IO46: 7701.519463 | IP46: 307272.2984 | IQ46: 472510.4274 | IR46: 515312.8011 | IS46: 87051.32792 | IT46: 33110396.45
A47: =+MATCH(B47,RUT[EMPRESA],0) -> 166 | B47: HIDROLIRCAY | C47: 157249791.5 | D47: 157249791.5 | F47: =IFERROR(INDEX($B$9:$B$511,MATCH(0,INDEX(COUNTIF($F$8:F46,$B$9:$B$511),0,0),0)),"") -> HIDROLIRCAY | H47: 157249791.5 | J47: CH_EL_MANZANO | K47: 26.50069023 | L47: 15.95482712 | M47: 12.7732899 | N47: 3.381207847 | O47: 230.366125 | P47: 82.56013894 | Q47: 90.03144078 | R47: 23.1579795 | S47: 0.08896026267 | T47: 0.486582604 | U47: 3.053099926 | V47: 1.43463217 | W47: 0.6593182141 | X47: 6.155698888 | Y47: 0.8990275696 | Z47: 6.058770834 | AA47: 2.906973747 | AB47: 81.53766352 | AC47: 1.027485742 | AD47: 0.002865837814 | AE47: 0.2543615165 | AF47: 0.8748437301 | AG47: 6.002754388 | AH47: 0.05732485911 | AI47: 10.72525818 | AJ47: 0.675255515 | AK47: 4.99203288 | AL47: 22.06155437 | AM47: 14.72813411 | AN47: 0.3762733866 | AO47: 1.54317084 | AP47: 49.73019886 | AQ47: 10.17493103 | AR47: 1.022399948 | AS47: 64.1103934 | AT47: 1.820627391 | AU47: 3.959493133 | AV47: 33.03135032 | AW47: 19.03728586 | AX47: 0.1094652732 | AY47: 0.02688384177 | AZ47: 0.8678824315 | BA47: 5.397050596 | BB47: 0.01622411453 | BC47: 7.801161298 | BD47: 0.00102328307 | BE47: 5.277336556 | BF47: 0.0004849391872 | BG47: 0.1053227212 | BH47: 0.3234420245 | BI47: 10.07795606 | BJ47: 3.789562821 | BK47: 0.2935281104 | BL47: 0.5515545535 | BM47: 22.8375227 | BN47: 1.158347808 | BO47: 23.39788246 | BP47: 29.11638174 | BQ47: 12.60953825 | BR47: 3.002309807 | BS47: 0.01582565958 | BT47: 22.32971401 | BU47: 5.376396226 | BV47: 0.4695070718 | BW47: 1.976125551 | BX47: 21.11349963 | BY47: 0.8547935258 | BZ47: 0.7997329132 | CA47: 0.9258920711 | CB47: 14.06424961 | CC47: 56.45453684 | CD47: 4.573838748 | CE47: 0.8166017825 | CF47: 2.347631699 | CG47: 9.844467532 | CH47: 20.95840621 | CI47: 8.125244817 | CJ47: 0.3010975816 | CK47: 3.394125725 | CL47: 2.060422576 | CM47: 2.224945086 | CN47: 0.3912356362 | CO47: 4.690018756 | CP47: 15.8327318 | CQ47: 0.06651648241 | CR47: 4.057697343 | CS47: 1.144809991 | CT47: 1.485848219 | CU47: 0.210979607 | CV47: 3.71916723 | CW47: 0.04660006409 | CX47: 8.305590856 | CY47: 2.121785887 | CZ47: 1.315698198 | DA47: 0.77983971 | DB47: 0.7163576237 | DC47: 1.633006926 | DD47: 0.3539999456 | DE47: 0.3578700468 | DF47: 7.43652677 | DG47: 0.3670080471 | DH47: 4.095130897 | DI47: 0.1086219446 | DJ47: 15.70685043 | DK47: 0.03851733507 | DL47: 3.081460197 | DM47: 0.4312468912 | DN47: 29.06322037 | DO47: 1.168635441 | DP47: 6.797587615 | DQ47: 8.113476455 | DR47: 0.09957813567 | DS47: 2.442192029 | DT47: 0.7639481416 | DU47: 0.7607407967 | DV47: 0.3169209327 | DW47: 0.8622126636 | DX47: 2.299230029 | DY47: 7.240740851 | DZ47: 4.840871049 | EA47: 2.202761691 | EB47: 0.9732723001 | EC47: 8.914427952 | ED47: 0.9123263236 | EE47: 1.536838711 | EF47: 2.580006795 | EG47: 2.601418072 | EH47: 52.5665126 | EI47: 0.06651421799 | EJ47: 3.549100346 | EK47: 0.7933761827 | EL47: 0.9182692954 | EM47: 0.7262093918 | EN47: 6.141251855 | EO47: 2.177652728 | EP47: 0.6665284035 | EQ47: 0.1925589245 | ER47: 0.913776234 | ES47: 0.918716088 | ET47: 0.7496170137 | EU47: 1.970274486 | EV47: 0.8119292654 | EW47: 2.126954314 | EX47: 0.6222713971 | EY47: 0.5577816737 | EZ47: 0.4403460826 | FA47: 4.31023396 | FB47: 1.124139538 | FC47: 0.5860330352 | FD47: 0.6853686622 | FE47: 0.6404479954 | FF47: 0.6913265305 | FG47: 0.8174907299 | FH47: 6.148078055 | FI47: 0.4980802167 | FJ47: 0.552300034 | FK47: 0.455654757 | FL47: 0.5900820895 | FM47: 0.74230419 | FN47: 0.9725290784 | FO47: 0.8647433114 | FP47: 0.04424780211 | FQ47: 0.4589757491 | FR47: 0.3975558739 | FS47: 5.358187885 | FT47: 0.5269109661 | FU47: 2.138031604 | FV47: 0.66699779 | FW47: 0.5731136758 | FX47: 2.012906165 | FY47: 2.049642189e-07 | FZ47: 0.5823682604 | GA47: 0.4240438505 | GB47: 0.7349595092 | GC47: 1.914513463 | GD47: 1.351566991 | GE47: 0.4638244808 | GF47: 0.1838184607 | GG47: 0.4192073514 | GH47: 4.291547138 | GI47: 4.337306121 | GJ47: 0.8201419832 | GK47: 4.514445262 | GL47: 0.5821212049 | GM47: 0.638304741 | GN47: 2.060169434 | GO47: 0.9126769906 | GP47: 0.04767497852 | GQ47: 0.8856325646 | GR47: 3.958103233 | GS47: 0.947119343 | GT47: 0.5223948701 | GU47: 0.9298189536 | GV47: 4.588416019 | GW47: 4.238614209 | GX47: 1.667173594 | GY47: 289.2842613 | GZ47: 21.74111595 | HA47: 23.06082584 | HB47: 153.5960752 | HC47: 38.98128518 | HD47: 7.675674542 | HE47: 5.816419256 | HF47: 5.246628151 | HG47: 3.882598147 | HH47: 3.153581155 | HI47: 7.951404894 | HJ47: 0.4614309587 | HK47: 0.1530082033 | HL47: 18.69992804 | HM47: 5.930356841 | HN47: 0.4444030507 | HO47: 0.6543618931 | HP47: 0.3662526742 | HQ47: 0.5597766258 | HR47: 0.4834697737 | HS47: 0.3278298034 | HT47: 0.6578341941 | HU47: 0.04416534199 | HV47: 0.1986234521 | HW47: 0.05696630422 | HX47: 0.02160489335 | HY47: 24.64810181 | HZ47: 0.3649869215 | IA47: 2.608063106 | IB47: 1.370883114 | IC47: 1.435541958 | ID47: 1.160611991 | IE47: 1.461177922 | IF47: 0.8509020574 | IG47: 1.438660902 | IH47: 1.862019565 | II47: 17.81810159 | IJ47: 0.5485106905 | IK47: 2.283903308 | IL47: 0.7914969387 | IM47: 0.5409015104 | IN47: 0.4592953165 | IO47: 0.5105597317 | IP47: 20.37011826 | IQ47: 31.3243118 | IR47: 34.16182569 | IS47: 5.770926483 | IT47: 2194.999988
A48: =+MATCH(B48,RUT[EMPRESA],0) -> 200 | B48: LOS MORROS | C48: 9900348.056 | D48: 9900348.056 | F48: =IFERROR(INDEX($B$9:$B$511,MATCH(0,INDEX(COUNTIF($F$8:F47,$B$9:$B$511),0,0),0)),"") -> LOS MORROS | H48: 9900348.056 | J48: AASA_ENERGIA | K48: 19058.63126 | L48: 11474.31121 | M48: 9186.229494 | N48: 2431.679817 | O48: 165673.535 | P48: 59375.17971 | Q48: 64748.35247 | R48: 16654.6376 | S48: 63.97798806 | T48: 349.9379958 | U48: 2195.712836 | V48: 1031.751448 | W48: 474.165111 | X48: 4427.024135 | Y48: 646.5580629 | Z48: 4357.315911 | AA48: 2090.622555 | AB48: 58639.84105 | AC48: 738.9419563 | AD48: 2.061038624 | AE48: 182.9304183 | AF48: 629.1656526 | AG48: 4317.03029 | AH48: 41.22659985 | AI48: 7713.336483 | AJ48: 485.6268178 | AK48: 3590.14475 | AL48: 15866.11617 | AM48: 10592.10438 | AN48: 270.6063754 | AO48: 1109.809735 | AP48: 35764.71082 | AQ48: 7317.555014 | AR48: 735.2843811 | AS48: 46106.58579 | AT48: 1309.349523 | AU48: 2847.56808 | AV48: 23755.31808 | AW48: 13691.13817 | AX48: 78.72467695 | AY48: 19.33418423 | AZ48: 624.1592613 | BA48: 3881.423325 | BB48: 11.66797596 | BC48: 5610.3994 | BD48: 0.7359194998 | BE48: 3795.327992 | BF48: 0.3487560917 | BG48: 75.74545753 | BH48: 232.6113858 | BI48: 7247.813045 | BJ48: 2725.358465 | BK48: 211.0980496 | BL48: 396.6641912 | BM48: 16424.17312 | BN48: 833.0546696 | BO48: 16827.16979 | BP48: 20939.77094 | BQ48: 9068.463417 | BR48: 2159.185857 | BS48: 11.38141715 | BT48: 16058.96985 | BU48: 3866.569221 | BV48: 337.6577016 | BW48: 1421.179896 | BX48: 15184.299 | BY48: 614.7460488 | BZ48: 575.1478383 | CA48: 665.8783381 | CB48: 10114.65531 | CC48: 40600.68592 | CD48: 3289.390026 | CE48: 587.2795057 | CF48: 1688.357793 | CG48: 7079.893957 | CH48: 15072.7597 | CI48: 5843.472132 | CJ48: 216.5418233 | CK48: 2440.97003 | CL48: 1481.804201 | CM48: 1600.124661 | CN48: 281.3668497 | CO48: 3372.943773 | CP48: 11386.50332 | CQ48: 47.83698462 | CR48: 2918.194083 | CS48: 823.3186115 | CT48: 1068.584745 | CU48: 151.7312379 | CV48: 2674.731722 | CW48: 33.51359645 | CX48: 5973.172477 | CY48: 1525.935154 | CZ48: 946.2171208 | DA48: 560.8411458 | DB48: 515.1864228 | DC48: 1174.417594 | DD48: 254.5878757 | DE48: 257.3711553 | DF48: 5348.1634 | DG48: 263.9429758 | DH48: 2945.115355 | DI48: 78.11817619 | DJ48: 11295.9726 | DK48: 27.70070062 | DL48: 2216.10883 | DM48: 310.1419401 | DN48: 20901.53862 | DO48: 840.4532766 | DP48: 4888.654396 | DQ48: 5835.008622 | DR48: 71.61409581 | DS48: 1756.363209 | DT48: 549.4123288 | DU48: 547.1056868 | DV48: 227.9215802 | DW48: 620.0817065 | DX48: 1653.548528 | DY48: 5207.359081 | DZ48: 3481.432955 | EA48: 1584.17092 | EB48: 699.9530096 | EC48: 6411.032836 | ED48: 656.122193 | EE48: 1105.255827 | EF48: 1855.47613 | EG48: 1870.874583 | EH48: 37804.51647 | EI48: 47.83535611 | EJ48: 2552.423888 | EK48: 570.5762372 | EL48: 660.3962292 | EM48: 522.2715671 | EN48: 4416.634192 | EO48: 1566.113184 | EP48: 479.3504983 | EQ48: 138.4835454 | ER48: 657.1649321 | ES48: 660.7175512 | ET48: 539.1057412 | EU48: 1416.971957 | EV48: 583.9191487 | EW48: 1529.652157 | EX48: 447.5219701 | EY48: 401.1425797 | EZ48: 316.6858502 | FA48: 3099.812079 | FB48: 808.4529402 | FC48: 421.4602498 | FD48: 492.8999394 | FE48: 460.5941234 | FF48: 497.1846888 | FG48: 587.9188143 | FH48: 4421.543423 | FI48: 358.2067903 | FJ48: 397.200322 | FK48: 327.6954645 | FL48: 424.372228 | FM48: 533.846542 | FN48: 699.4185032 | FO48: 621.901685 | FP48: 31.82190868 | FQ48: 330.0838387 | FR48: 285.912206 | FS48: 3853.474239 | FT48: 378.9411416 | FU48: 1537.618666 | FV48: 479.6880693 | FW48: 412.1689708 | FX48: 1447.631591 | FY48: 0.0001474051217 | FZ48: 418.8246358 | GA48: 304.961694 | GB48: 528.5644319 | GC48: 1376.870029 | GD48: 972.0130563 | GE48: 333.5709248 | GF48: 132.1976231 | GG48: 301.4834052 | GH48: 3086.372986 | GI48: 3119.281698 | GJ48: 589.8255292 | GK48: 3246.675722 | GL48: 418.6469596 | GM48: 459.0527486 | GN48: 1481.622148 | GO48: 656.3743839 | GP48: 34.28664793 | GQ48: 636.9247115 | GR48: 2846.568499 | GS48: 681.1444593 | GT48: 375.6932787 | GU48: 668.7024534 | GV48: 3299.873634 | GW48: 3048.304952 | GX48: 1198.989404 | GY48: 208045.9799 | GZ48: 15635.6649 | HA48: 16584.76713 | HB48: 110462.4421 | HC48: 28034.36189 | HD48: 5520.152475 | HE48: 4183.022739 | HF48: 3773.243279 | HG48: 2792.267136 | HH48: 2267.976414 | HI48: 5718.450824 | HJ48: 331.8495638 | HK48: 110.0396594 | HL48: 13448.51889 | HM48: 4264.963791 | HN48: 319.6035198 | HO48: 470.6006493 | HP48: 263.3997305 | HQ48: 402.5772992 | HR48: 347.6993264 | HS48: 235.7669662 | HT48: 473.0978411 | HU48: 31.76260543 | HV48: 142.8450014 | HW48: 40.96873617 | HX48: 15.53769703 | HY48: 17726.29616 | HZ48: 262.489433 | IA48: 1875.653525 | IB48: 985.904727 | IC48: 1032.405745 | ID48: 834.6830134 | IE48: 1050.842487 | IF48: 611.9474024 | IG48: 1034.648811 | IH48: 1339.117736 | II48: 12814.33144 | IJ48: 394.4751213 | IK48: 1642.525934 | IL48: 569.2247322 | IM48: 389.0027899 | IN48: 330.3136635 | IO48: 367.1817442 | IP48: 14649.67777 | IQ48: 22527.65882 | IR48: 24568.32759 | IS48: 4150.305479 | IT48: 1578588.898
A49: =+MATCH(B49,RUT[EMPRESA],0) -> 75 | B49: DIUTO | C49: 73191350.41 | D49: 73191350.41 | F49: =IFERROR(INDEX($B$9:$B$511,MATCH(0,INDEX(COUNTIF($F$8:F48,$B$9:$B$511),0,0),0)),"") -> DIUTO | H49: 73191350.41 | J49: ERSA | K49: =$IT49*K$66/$IT$66 -> 8030646.519 | L49: 4834876.971 | M49: 3870758.656 | N49: 1024625.577 | O49: 69809084.37 | P49: 25018642.41 | Q49: 27282711.14 | R49: 7017686.931 | S49: 26958.10629 | T49: 147451.7404 | U49: =$IT49*U$66/$IT$66 -> 925197.2717 | V49: 434744.2932 | W49: 199796.7402 | X49: 1865394.502 | Y49: 272437.1539 | Z49: 1836021.873 | AA49: 880915.8706 | AB49: 24708796.19 | AC49: 311364.524 | AD49: 868.4502278 | AE49: =$IT49*AE$66/$IT$66 -> 77080.53677 | AF49: 265108.5952 | AG49: 1819046.909 | AH49: 17371.46 | AI49: 3250132.601 | AJ49: 204626.3062 | AK49: 1512762.541 | AL49: 6685431.334 | AM49: 4463145.598 | AN49: 114024.1457 | AO49: =$IT49*AO$66/$IT$66 -> 467635.3495 | AP49: 15070009.31 | AQ49: 3083364.01 | AR49: 309823.3486 | AS49: 19427716.91 | AT49: 551714.4987 | AU49: 1199866.474 | AV49: 10009667.53 | AW49: 5768971.003 | AX49: 33171.84977 | AY49: =$IT49*AY$66/$IT$66 -> 8146.754989 | AZ49: 262999.0754 | BA49: 1635497.235 | BB49: 4916.480582 | BC49: 2364027.816 | BD49: 310.0909656 | BE49: 1599219.646 | BF49: 146.953727 | BG49: 31916.50999 | BH49: 98014.3742 | BI49: =$IT49*BI$66/$IT$66 -> 3053977.162 | BJ49: 1148371.579 | BK49: 88949.4001 | BL49: 167140.5393 | BM49: 6920577.186 | BN49: 351020.3589 | BO49: 7090386.015 | BP49: 8823293.572 | BQ49: 3821136.114 | BR49: 909806.0692 | BS49: =$IT49*BS$66/$IT$66 -> 4795.734637 | BT49: 6766693.19 | BU49: 1629238.23 | BV49: 142277.2501 | BW49: 598835.9413 | BX49: 6398137.215 | BY49: 259032.674 | BZ49: 242347.3608 | CA49: 280578.0482 | CB49: 4261965.111 | CC49: =$IT49*CC$66/$IT$66 -> 17107721.57 | CD49: 1386034.926 | CE49: 247459.2249 | CF49: 711415.4451 | CG49: 2983221.88 | CH49: 6351138.422 | CI49: 2462236.585 | CJ49: 91243.21763 | CK49: 1028540.151 | CL49: 624380.9217 | CM49: =$IT49*CM$66/$IT$66 -> 674237.0617 | CN49: 118558.2365 | CO49: 1421241.578 | CP49: 4797877.771 | CQ49: 20156.84699 | CR49: 1229625.823 | CS49: 346917.9215 | CT49: 450264.5678 | CU49: 63934.28367 | CV49: 1127039.225 | CW49: =$IT49*CW$66/$IT$66 -> 14121.46775 | CX49: 2516887.814 | CY49: 642976.1755 | CZ49: 398703.0929 | DA49: 236319.0166 | DB49: 217081.699 | DC49: 494858.8613 | DD49: 107274.5052 | DE49: 108447.2827 | DF49: 2253530.656 | DG49: =$IT49*DG$66/$IT$66 -> 111216.4201 | DH49: 1240969.514 | DI49: 32916.29138 | DJ49: 4759731.263 | DK49: 11672.11496 | DL49: 933791.4368 | DM49: 130683.0621 | DN49: 8807183.795 | DO49: 354137.8754 | DP49: 2059909.491 | DQ49: =$IT49*DQ$66/$IT$66 -> 2458670.355 | DR49: 30175.69738 | DS49: 740070.5698 | DT49: 231503.3093 | DU49: 230531.3703 | DV49: 96038.25271 | DW49: 261280.9352 | DX49: 696748.0272 | DY49: 2194200.597 | DZ49: 1466955.159 | EA49: =$IT49*EA$66/$IT$66 -> 667514.7085 | EB49: 294935.9335 | EC49: 2701386.99 | ED49: 276467.1468 | EE49: 465716.4905 | EF49: 781833.3187 | EG49: 788321.6929 | EH49: 15929512.7 | EI49: 20156.16079 | EJ49: 1075502.943 | EK49: =$IT49*EK$66/$IT$66 -> 240421.0466 | EL49: 278268.0775 | EM49: 220067.1332 | EN49: 1861016.54 | EO49: 659905.8043 | EP49: 201981.6827 | EQ49: 58352.16531 | ER49: 276906.5209 | ES49: 278403.4714 | ET49: 227160.4705 | EU49: =$IT49*EU$66/$IT$66 -> 597062.8616 | EV49: 246043.2869 | EW49: 644542.3917 | EX49: 188570.2443 | EY49: 169027.577 | EZ49: 133440.4389 | FA49: 1306153.351 | FB49: 340654.043 | FC49: 177588.7388 | FD49: 207690.9475 | FE49: =$IT49*FE$66/$IT$66 -> 194078.3965 | FF49: 209496.3923 | FG49: 247728.6074 | FH49: 1863085.12 | FI49: 150935.9237 | FJ49: 167366.4462 | FK49: 138079.5088 | FL49: 178815.7455 | FM49: 224944.4263 | FN49: 294710.711 | FO49: =$IT49*FO$66/$IT$66 -> 262047.811 | FP49: 13408.64917 | FQ49: 139085.8868 | FR49: 120473.4921 | FS49: 1623720.459 | FT49: 159672.6606 | FU49: 647899.2023 | FV49: 202123.9234 | FW49: 173673.7159 | FX49: 609981.7685 | FY49: =$IT49*FY$66/$IT$66 -> 0.0621114083 | FZ49: 176478.1824 | GA49: 128500.286 | GB49: 222718.7282 | GC49: 580165.2993 | GD49: 409572.6058 | GE49: 140555.2241 | GF49: 55703.49559 | GG49: 127034.6557 | GH49: 1300490.583 | GI49: =$IT49*GI$66/$IT$66 -> 1314357.174 | GJ49: 248532.0309 | GK49: 1368036.599 | GL49: 176403.3158 | GM49: 193428.9146 | GN49: 624304.2108 | GO49: 276573.4113 | GP49: 14447.20485 | GQ49: 268377.9936 | GR49: 1199445.285 | GS49: =$IT49*GS$66/$IT$66 -> 287010.6624 | GT49: 158304.1238 | GU49: 281768.0324 | GV49: 1390452.355 | GW49: 1284450.033 | GX49: 505212.5702 | GY49: 87663363.73 | GZ49: 6588327.16 | HA49: 6988245.935 | HB49: 46545043.79 | HC49: =$IT49*HC$66/$IT$66 -> 11812708.25 | HD49: 2326000.89 | HE49: 1762580.773 | HF49: 1589913.913 | HG49: 1176564.574 | HH49: 955646.6384 | HI49: 2409556.94 | HJ49: 139829.9022 | HK49: 46366.8978 | HL49: 5666739.649 | HM49: =$IT49*HM$66/$IT$66 -> 1797107.891 | HN49: 134669.8438 | HO49: 198294.7997 | HP49: 110987.5154 | HQ49: 169632.118 | HR49: 146508.4427 | HS49: 99344.0264 | HT49: 199347.0297 | HU49: 13383.66084 | HV49: 60189.93168 | HW49: =$IT49*HW$66/$IT$66 -> 17262.80519 | HX49: 6547.046894 | HY49: 7469246.698 | HZ49: 110603.9475 | IA49: 790335.3733 | IB49: 415426.0743 | IC49: 435019.9911 | ID49: 351706.4865 | IE49: 442788.5952 | IF49: 257853.4214 | IG49: =$IT49*IG$66/$IT$66 -> 435965.1415 | IH49: 564257.7915 | II49: 5399515.044 | IJ49: 166218.1411 | IK49: 692103.4883 | IL49: 239851.5692 | IM49: 163912.2904 | IN49: 139182.7271 | IO49: 154717.6582 | IP49: 6172866.362 | IQ49: 9492374.478 | IR49: 10352241.55 | IS49: 1748794.853 | IT49: 665162637.7
A50: =+MATCH(B50,RUT[EMPRESA],0) -> 195 | B50: LICAN | C50: 323458397.7 | D50: 323458397.7 | F50: =IFERROR(INDEX($B$9:$B$511,MATCH(0,INDEX(COUNTIF($F$8:F49,$B$9:$B$511),0,0),0)),"") -> LICAN | H50: 323458397.7 | J50: NEOMAS | K50: 185169.9386 | L50: 111482.1664 | M50: 89251.61143 | N50: 23625.72612 | O50: 1609651.705 | P50: 576877.6483 | Q50: 629082.3453 | R50: 161813.2058 | S50: 621.5976352 | T50: 3399.929214 | U50: 21333.11702 | V50: 10024.29554 | W50: 4606.8956 | X50: 43012.10177 | Y50: 6281.831848 | Z50: 42334.83028 | AA50: 20312.08039 | AB50: 569733.2416 | AC50: 7179.41571 | AD50: 20.02464869 | AE50: 1777.316213 | AF50: 6112.850586 | AG50: 41943.42305 | AH50: 400.5495914 | AI50: 74941.27063 | AJ50: 4718.255305 | AK50: 34881.14513 | AL50: 154152.0856 | AM50: 102910.8172 | AN50: 2629.158686 | AO50: 10782.69461 | AP50: 347482.9444 | AQ50: 71095.93519 | AR50: 7143.879425 | AS50: 447962.5816 | AT50: 12721.38421 | AU50: 27666.41525 | AV50: 230802.0304 | AW50: 133020.4242 | AX50: 764.873584 | AY50: 187.8471574 | AZ50: 6064.209466 | BA50: 37711.15087 | BB50: 113.3637753 | BC50: 54509.5447 | BD50: 7.150050114 | BE50: 36874.66544 | BF50: 3.388446065 | BG50: 735.9280701 | BH50: 2260.006789 | BI50: 70418.33583 | BJ50: 26479.0505 | BK50: 2050.987416 | BL50: 3853.911801 | BM50: 159574.0579 | BN50: 8093.79645 | BO50: 163489.4949 | BP50: 203446.7243 | BQ50: 88107.41923 | BR50: 20978.22803 | BS50: 110.5796259 | BT50: 156025.8143 | BU50: 37566.83129 | BV50: 3280.616275 | BW50: 13807.90628 | BX50: 147527.6831 | BY50: 5972.752533 | BZ50: 5588.024054 | CA50: 6469.543868 | CB50: 98272.01533 | CC50: 394468.3339 | CD50: 31959.07098 | CE50: 5705.892964 | CF50: 16403.75454 | CG50: 68786.86678 | CH50: 146443.9891 | CI50: 56774.03384 | CJ50: 2103.878058 | CK50: 23715.98802 | CL50: 14396.92018 | CM50: 15546.49865 | CN50: 2733.705353 | CO50: 32770.86286 | CP50: 110629.0421 | CQ50: 464.7747986 | CR50: 28352.6037 | CS50: 7999.202812 | CT50: 10382.16066 | CU50: 1474.191069 | CV50: 25987.17096 | CW50: 325.611557 | CX50: 58034.17706 | CY50: 14825.6879 | CZ50: 9193.260722 | DA50: 5449.023024 | DB50: 5005.450653 | DC50: 11410.41194 | DD50: 2473.526072 | DE50: 2500.567873 | DF50: 51961.71094 | DG50: 2564.418397 | DH50: 28614.16552 | DI50: 758.9809411 | DJ50: 109749.4633 | DK50: 269.1345965 | DL50: 21531.28052 | DM50: 3013.27851 | DN50: 203075.2665 | DO50: 8165.679871 | DP50: 47497.21122 | DQ50: 56691.80402 | DR50: 695.7885666 | DS50: 17064.48187 | DT50: 5337.98287 | DU50: 5315.571987 | DV50: 2214.441554 | DW50: 6024.592741 | DX50: 16065.55451 | DY50: 50593.68368 | DZ50: 33824.92257 | EA50: 15391.49523 | EB50: 6800.60672 | EC50: 62288.34277 | ED50: 6374.755068 | EE50: 10738.44973 | EF50: 18027.44365 | EG50: 18177.05201 | EH50: 367301.2977 | EI50: 464.7589763 | EJ50: 24798.85194 | EK50: 5543.607271 | EL50: 6416.280768 | EM50: 5074.288531 | EN50: 42911.15511 | EO50: 15216.04978 | EP50: 4657.27581 | EQ50: 1345.479077 | ER50: 6384.886117 | ES50: 6419.40267 | ET50: 5237.846079 | EU50: 13767.02276 | EV50: 5673.244392 | EW50: 14861.80158 | EX50: 4348.036047 | EY50: 3897.42295 | EZ50: 3076.857862 | FA50: 30117.16868 | FB50: 7854.770853 | FC50: 4094.825464 | FD50: 4788.919534 | FE50: 4475.042536 | FF50: 4830.549322 | FG50: 5712.104362 | FH50: 42958.85224 | FI50: 3480.267207 | FJ50: 3859.120743 | FK50: 3183.825125 | FL50: 4123.117675 | FM50: 5186.748726 | FN50: 6795.41356 | FO50: 6042.275296 | FP50: 309.175449 | FQ50: 3207.030101 | FR50: 2777.867147 | FS50: 37439.60301 | FT50: 3681.718114 | FU50: 14939.20262 | FV50: 4660.555584 | FW50: 4004.553212 | FX50: 14064.90578 | FY50: 0.00143215937 | FZ50: 4069.218352 | GA50: 2962.948251 | GB50: 5135.428776 | GC50: 13377.40026 | GD50: 9443.888992 | GE50: 3240.909949 | GF50: 1284.406284 | GG50: 2929.153877 | GH50: 29986.59707 | GI50: 30306.33169 | GJ50: 5730.629631 | GK50: 31544.06715 | GL50: 4067.492086 | GM50: 4460.066839 | GN50: 14395.15139 | GO50: 6377.205305 | GP50: 333.1223741 | GQ50: 6188.236087 | GR50: 27656.70351 | GS50: 6617.866519 | GT50: 3650.162512 | GU50: 6496.98242 | GV50: 32060.92767 | GW50: 29616.73549 | GX50: 11649.14685 | GY50: 2021334.103 | GZ50: 151913.0661 | HA50: 161134.3579 | HB50: 1073231.511 | HC50: 272376.3842 | HD50: 53632.7232 | HE50: 40641.43187 | HF50: 36660.09467 | HG50: 27129.12208 | HH50: 22035.21583 | HI50: 55559.35122 | HJ50: 3224.185542 | HK50: 1069.123837 | HL50: 130663.1826 | HM50: 41437.55512 | HN50: 3105.20537 | HO50: 4572.263987 | HP50: 2559.140332 | HQ50: 3911.362404 | HR50: 3378.17874 | HS50: 2290.665792 | HT50: 4596.526214 | HU50: 308.5992702 | HV50: 1387.854132 | HW50: 398.0442382 | HX50: 150.9612294 | HY50: 172225.2311 | HZ50: 2550.296059 | IA50: 18223.48327 | IB50: 9578.857752 | IC50: 10030.65256 | ID50: 8109.61712 | IE50: 10209.78034 | IF50: 5945.561431 | IG50: 10052.44575 | IH50: 13010.60635 | II50: 124501.5413 | IJ50: 3832.643226 | IK50: 15958.46114 | IL50: 5530.476311 | IM50: 3779.475123 | IN50: 3209.263035 | IO50: 3567.466106 | IP50: 142333.4077 | IQ50: 218874.3328 | IR50: 238701.072 | IS50: 40323.55736 | IT50: 15337261.39
A51: =+MATCH(B51,RUT[EMPRESA],0) -> 111 | B51: ENERGIA PACIFICO | C51: 215938486.5 | D51: 215938486.5 | F51: =IFERROR(INDEX($B$9:$B$511,MATCH(0,INDEX(COUNTIF($F$8:F50,$B$9:$B$511),0,0),0)),"") -> ENERGIA PACIFICO | H51: 215938486.5 | J51: ENGIE | K51: 115474261.3 | L51: 69521656.23 | M51: 55658407.5 | N51: 14733294.68 | O51: 1003798689 | P51: 359748028.2 | Q51: 392303522.2 | R51: 100908714.2 | S51: 387635.9645 | T51: 2120237.861 | U51: 13303595.32 | V51: 6251274.538 | W51: 2872917.01 | X51: 26822878.03 | Y51: 3917427.946 | Z51: 26400523.17 | AA51: 12666864.26 | AB51: 355292687.9 | AC51: 4477172.331 | AD51: 12487.61831 | AE51: 1108356.347 | AF51: 3812049.143 | AG51: 26156436.78 | AH51: 249787.6735 | AI51: 46734302.18 | AJ51: 2942362.297 | AK51: 21752313.02 | AL51: 96131144.96 | AM51: 64176456.99 | AN51: 1639575.837 | AO51: 6724221.568 | AP51: 216694656.9 | AQ51: 44336303.5 | AR51: 4455011.464 | AS51: 279355000 | AT51: 7933212.353 | AU51: 17253118.34 | AV51: 143930997.5 | AW51: 82953179.83 | AX51: 476984.6162 | AY51: 117143.808 | AZ51: 3781715.94 | BA51: 23517139.57 | BB51: 70695.05076 | BC51: 33992825.48 | BD51: 4458.859582 | BE51: 22995496.91 | BF51: 2113.076827 | BG51: 458933.8361 | BH51: 1409368.153 | BI51: 43913744.17 | BJ51: 16512663.01 | BK51: 1279021.09 | BL51: 2403347.01 | BM51: 99512353.86 | BN51: 5047391.457 | BO51: 101954068.7 | BP51: 126871890.7 | BQ51: 54944875.1 | BR51: 13082282.17 | BS51: 68958.82083 | BT51: 97299625.32 | BU51: 23427140.09 | BV51: 2045832.837 | BW51: 8610780.936 | BX51: 92000085.75 | BY51: 3724682.266 | BZ51: 3484760.834 | CA51: 4034487.48 | CB51: 61283642.81 | CC51: 245995326.2 | CD51: 19930071.49 | CE51: 3558265.343 | CF51: 10229583.98 | CG51: 42896339.91 | CH51: 91324280.78 | CI51: 35404988.89 | CJ51: 1312004.348 | CK51: 14789583.12 | CL51: 8978097.282 | CM51: 9694988.621 | CN51: 1704772.43 | CO51: 20436314.93 | CP51: 68989637.39 | CQ51: 289839.3062 | CR51: 17681033.93 | CS51: 4988401.695 | CT51: 6474443.648 | CU51: 919323.763 | CV51: 16205920.86 | CW51: 203055.3895 | CX51: 36190829.76 | CY51: 9245482.13 | CZ51: 5733030.96 | DA51: 3398078.075 | DB51: 3121460.864 | DC51: 7115673.851 | DD51: 1542521.416 | DE51: 1559385.017 | DF51: 32403964.88 | DG51: 1599202.993 | DH51: 17844147.12 | DI51: 473309.8913 | DJ51: 68441121.17 | DK51: 167835.6592 | DL51: 13427172.53 | DM51: 1879117.705 | DN51: 126640245 | DO51: 5092218.846 | DP51: 29619847.69 | DQ51: 35353709.36 | DR51: 433902.3459 | DS51: 10641621.71 | DT51: 3328832.063 | DU51: 3314856.359 | DV51: 1380953.11 | DW51: 3757010.461 | DX51: 10018678.26 | DY51: 31550846.18 | DZ51: 21093639.58 | EA51: 9598326.569 | EB51: 4240942.365 | EC51: 38843780.06 | ED51: 3975376.014 | EE51: 6696629.914 | EF51: 11242136.57 | EG51: 11335434.19 | EH51: 229053626.8 | EI51: 289829.4392 | EJ51: 15464870.43 | EK51: 3457061.98 | EL51: 4001271.953 | EM51: 3164389.015 | EN51: 26759926.45 | EO51: 9488916.624 | EP51: 2904334.731 | EQ51: 839057.3744 | ER51: 3981693.861 | ES51: 4003218.81 | ET51: 3266385.523 | EU51: 8585285.471 | EV51: 3537905.29 | EW51: 9268003.064 | EX51: 2711488.995 | EY51: 2430481.1 | EZ51: 1918766.574 | FA51: 18781438.45 | FB51: 4898332.141 | FC51: 2553583.746 | FD51: 2986429.383 | FE51: 2790691.81 | FF51: 3012390.233 | FG51: 3562138.847 | FH51: 26789670.97 | FI51: 2170337.625 | FJ51: 2406595.371 | FK51: 1985472.681 | FL51: 2571227.119 | FM51: 3234520.582 | FN51: 4237703.846 | FO51: 3768037.52 | FP51: 192805.6295 | FQ51: 1999943.591 | FR51: 1732312.27 | FS51: 23347798.96 | FT51: 2295964.9 | FU51: 9316271.31 | FV51: 2906380.039 | FW51: 2497288.855 | FX51: 8771048.998 | FY51: 0.8931122759 | FZ51: 2537614.835 | GA51: 1847731.134 | GB51: 3202516.828 | GC51: 8342312.066 | GD51: 5889325.845 | GE51: 2021071.483 | GF51: 800971.6265 | GG51: 1826656.544 | GH51: 18700012.39 | GI51: 18899402.85 | GJ51: 3573691.434 | GK51: 19671269.97 | GL51: 2536538.314 | GM51: 2781352.78 | GN51: 8976994.241 | GO51: 3976904.012 | GP51: 207739.2279 | GQ51: 3859060.473 | GR51: 17247061.98 | GS51: 4126983.318 | GT51: 2276286.437 | GU51: 4051598.501 | GV51: 19993590.57 | GW51: 18469362.14 | GX51: 7264551.888 | GY51: 1260528918 | GZ51: 94734864.74 | HA51: 100485376.2 | HB51: 669280429 | HC51: 169857278.1 | HD51: 33446028.76 | HE51: 25344499 | HF51: 22861687.93 | HG51: 16918055.68 | HH51: 13741432.82 | HI51: 34647497.8 | HJ51: 2010641.935 | HK51: 666718.8325 | HL51: 81483174.89 | HM51: 25840971.29 | HN51: 1936444.431 | HO51: 2851320.308 | HP51: 1595911.527 | HQ51: 2439173.916 | HR51: 2106673.996 | HS51: 1428487.486 | HT51: 2866450.532 | HU51: 192446.3173 | HV51: 865482.982 | HW51: 248225.3044 | HX51: 94141.2876 | HY51: 107401781.8 | HZ51: 1590396.129 | IA51: 11364389.3 | IB51: 5973494.031 | IC51: 6255238.851 | ID51: 5057257.422 | IE51: 6366945.153 | IF51: 3707725.56 | IG51: 6268829.358 | IH51: 8113574.852 | II51: 77640699.22 | IJ51: 2390083.664 | IK51: 9951893.518 | IL51: 3448873.351 | IM51: 2356927.378 | IN51: 2001336.076 | IO51: 2224715.936 | IP51: 88760871.42 | IQ51: 136492737.9 | IR51: 148856937.4 | IS51: 25146268.52 | IT51: 9564505676
A52: =+MATCH(B52,RUT[EMPRESA],0) -> 78 | B52: DONGUIL | C52: 5516782.031 | D52: 5516782.031 | F52: =IFERROR(INDEX($B$9:$B$511,MATCH(0,INDEX(COUNTIF($F$8:F51,$B$9:$B$511),0,0),0)),"") -> DONGUIL | H52: 5516782.031 | J52: GEOTERMICA_DEL_NORTE | K52: 3131078.296 | L52: 1885075.917 | M52: 1509174.683 | N52: 399492.4816 | O52: 27217946.7 | P52: 9754548.162 | Q52: 10637288.61 | R52: 2736134.281 | S52: 10510.72803 | T52: 57490.13394 | U52: 360726.2616 | V52: 169502.9681 | W52: 77898.98801 | X52: 727300.8748 | Y52: 106220.8451 | Z52: 715848.7457 | AA52: 343461.3336 | AB52: 9633741.853 | AC52: 121398.2835 | AD52: 338.6010893 | AE52: 30053.0219 | AF52: 103363.5046 | AG52: 709230.3567 | AH52: 6772.979144 | AI52: 1267198.055 | AJ52: 79781.9932 | AK52: 589812.7811 | AL52: 2606590.752 | AM52: 1740141.131 | AN52: 44457.00939 | AO52: 182326.901 | AP52: 5875663.803 | AQ52: 1202176.451 | AR52: 120797.3929 | AS52: 7574695.588 | AT52: 215108.6202 | AU52: 467817.3627 | AV52: 3902681.145 | AW52: 2249270.946 | AX52: 12933.41185 | AY52: 3176.347965 | AZ52: 102541.0214 | BA52: 637665.9566 | BB52: 1916.892445 | BC52: 921713.6088 | BD52: 120.9017344 | BE52: 623521.6445 | BF52: 57.2959629 | BG52: 12443.96593 | BH52: 38214.9406 | BI52: 1190718.778 | BJ52: 447739.9569 | BK52: 34680.5871 | BL52: 65166.62309 | BM52: 2698272.047 | BN52: 136859.744 | BO52: 2764479.013 | BP52: 3440124.395 | BQ52: 1489827.291 | BR52: 354725.3674 | BS52: 1869.814665 | BT52: 2638274.033 | BU52: 635225.6258 | BV52: 55472.6458 | BW52: 233480.8554 | BX52: 2494577.307 | BY52: 100994.5565 | BZ52: 94489.09994 | CA52: 109394.908 | CB52: 1661702.632 | CC52: 6670149.853 | CD52: 540402.8012 | CE52: 96482.17069 | CF52: 277374.6116 | CG52: 1163131.917 | CH52: 2476252.892 | CI52: 960004.3425 | CJ52: 35574.92634 | CK52: 401018.7395 | CL52: 243440.6181 | CM52: 262879.0877 | CN52: 46224.81146 | CO52: 554129.5646 | CP52: 1870650.255 | CQ52: 7858.976978 | CR52: 479420.2707 | CS52: 135260.2399 | CT52: 175554.1864 | CU52: 24927.41369 | CV52: 439422.6601 | CW52: 5505.835811 | CX52: 981312.375 | CY52: 250690.7437 | CZ52: 155450.8218 | DA52: 92138.70166 | DB52: 84638.24107 | DC52: 192941.1083 | DD52: 41825.38406 | DE52: 42282.63969 | DF52: 878631.7401 | DG52: 43362.30193 | DH52: 483843.0758 | DI52: 12833.77189 | DJ52: 1855777.267 | DK52: 4550.854745 | DL52: 364077.0508 | DM52: 50952.17407 | DN52: 3433843.335 | DO52: 138075.2363 | DP52: 803140.5546 | DQ52: 958613.9008 | DR52: 11765.23844 | DS52: 288546.9922 | DT52: 90261.09981 | DU52: 89882.14938 | DV52: 37444.46825 | DW52: 101871.1337 | DX52: 271655.9147 | DY52: 855499.4731 | DZ52: 571952.8867 | EA52: 260258.1014 | EB52: 114992.9209 | EC52: 1053246.978 | ED52: 107792.1038 | EE52: 181578.7548 | EF52: 304829.9199 | EG52: 307359.6798 | EH52: 6210776.598 | EI52: 7858.709436 | EJ52: 419329.1182 | EK52: 93738.04701 | EL52: 108494.2708 | EM52: 85802.23555 | EN52: 725593.9461 | EO52: 257291.4567 | EP52: 78750.87782 | EQ52: 22750.99494 | ER52: 107963.4119 | ES52: 108547.0597 | ET52: 88567.86528 | EU52: 232789.5473 | EV52: 95930.10896 | EW52: 251301.3976 | EX52: 73521.87619 | EY52: 65902.36245 | EZ52: 52027.251 | FA52: 509257.6792 | FB52: 132818.0088 | FC52: 69240.284 | FD52: 80976.86984 | FE52: 75669.4562 | FF52: 81680.79687 | FG52: 96587.20055 | FH52: 726400.4671 | FI52: 58848.58632 | FJ52: 65254.70222 | FK52: 53835.98344 | FL52: 69718.68309 | FM52: 87703.84916 | FN52: 114905.1087 | FO52: 102170.1318 | FP52: 5227.914128 | FQ52: 54228.36138 | FR52: 46971.55272 | FS52: 633074.2954 | FT52: 62254.96302 | FU52: 252610.1884 | FV52: 78806.33622 | FW52: 67713.85108 | FX52: 237826.5152 | FY52: 0.02421669065 | FZ52: 68807.28785 | GA52: 50101.1289 | GB52: 86836.0691 | GC52: 226201.3366 | GD52: 159688.7491 | GE52: 54801.24301 | GF52: 21718.30196 | GG52: 49529.69256 | GH52: 507049.8159 | GI52: 512456.2773 | GJ52: 96900.44831 | GK52: 533385.4121 | GL52: 68778.09804 | GM52: 75416.22893 | GN52: 243410.7092 | GO52: 107833.5354 | GP52: 5632.837833 | GQ52: 104638.2142 | GR52: 467653.1449 | GS52: 111902.9276 | GT52: 61721.38257 | GU52: 109858.8724 | GV52: 542125.1178 | GW52: 500795.7469 | GX52: 196977.9282 | GY52: 34179172.86 | GZ52: 2568730.69 | HA52: 2724655.496 | HB52: 18147502.33 | HC52: 4605670.831 | HD52: 906887.2456 | HE52: 687214.7079 | HF52: 619893.4213 | HG52: 458732.1571 | HH52: 372598.2013 | HI52: 939465.013 | HJ52: 54518.44641 | HK52: 18078.04478 | HL52: 2209411.843 | HM52: 700676.5271 | HN52: 52506.58511 | HO52: 77313.39462 | HP52: 43273.054 | HQ52: 66138.06768 | HR52: 57122.35049 | HS52: 38733.36028 | HT52: 77723.64984 | HU52: 5218.171397 | HV52: 23467.52385 | HW52: 6730.615588 | HX52: 2552.635878 | HY52: 2912193.454 | HZ52: 43123.50428 | IA52: 308144.7961 | IB52: 161970.9648 | IC52: 169610.4603 | ID52: 137127.2591 | IE52: 172639.3705 | IF52: 100534.7763 | IG52: 169978.9661 | IH52: 219999.1396 | II52: 2105223.324 | IJ52: 64806.98818 | IK52: 269845.0499 | IL52: 93516.0128 | IM52: 63907.95731 | IN52: 54266.11853 | IO52: 60323.05125 | IP52: 2406746.187 | IQ52: 3700993.144 | IR52: 4036247.738 | IS52: 681839.6994 | IT52: 259341049.7
A53: =+MATCH(B53,RUT[EMPRESA],0) -> 245 | B53: PEHUI | C53: 22625403.4 | D53: 22625403.4 | F53: =IFERROR(INDEX($B$9:$B$511,MATCH(0,INDEX(COUNTIF($F$8:F52,$B$9:$B$511),0,0),0)),"") -> PEHUI | H53: 22625403.4 | J53: ATACAMA_GX_CHILE | K53: 5115905.283 | L53: 3080047.488 | M53: 2465858.087 | N53: 652735.4171 | O53: 44471720.02 | P53: 15938069.82 | Q53: 17380389.7 | R53: 4470601.658 | S53: 17173.60091 | T53: 93933.79921 | U53: 589394.8388 | V53: 276952.8731 | W53: 127280.0635 | X53: 1188345.367 | Y53: 173555.4755 | Z53: 1169633.6 | AA53: 561185.4719 | AB53: 15740682.98 | AC53: 198354.0689 | AD53: 553.2442622 | AE53: 49103.98239 | AF53: 168886.8336 | AG53: 1158819.737 | AH53: 11066.44948 | AI53: 2070489.655 | AJ53: 130356.7276 | AK53: 963701.9704 | AL53: 4258938.979 | AM53: 2843236.854 | AN53: 72638.82526 | AO53: 297906.0465 | AP53: 9600315.499 | AQ53: 1964250.1 | AR53: 197372.2666 | AS53: 12376383.31 | AT53: 351468.4791 | AU53: 764372.2358 | AV53: 6376636.163 | AW53: 3675109.988 | AX53: 21132.05221 | AY53: 5189.871923 | AZ53: 167542.9688 | BA53: 1041889.831 | BB53: 3132.032885 | BC53: 1505998.597 | BD53: 197.5427515 | BE53: 1018779.275 | BF53: 93.61654088 | BG53: 20332.34083 | BH53: 62439.83639 | BI53: 1945529.275 | BJ53: 731567.5287 | BK53: 56665.01505 | BL53: 106476.5042 | BM53: 4408738.114 | BN53: 223616.7293 | BO53: 4516914.446 | BP53: 5620859.303 | BQ53: 2434246.158 | BR53: 579589.9078 | BS53: 3055.111952 | BT53: 4310706.661 | BU53: 1037902.546 | BV53: 90637.40184 | BW53: 381487.0881 | BX53: 4075918.907 | BY53: 165016.1817 | BZ53: 154386.8405 | CA53: 178741.6138 | CB53: 2715075.278 | CC53: 10898435.51 | CD53: 882970.4289 | CE53: 157643.342 | CF53: 453205.6075 | CG53: 1900454.782 | CH53: 4045978.432 | CI53: 1568562.273 | CJ53: 58126.28635 | CK53: 655229.1876 | CL53: 397760.4603 | CM53: 429521.202 | CN53: 75527.25764 | CO53: 905398.7474 | CP53: 3056477.231 | CQ53: 12840.87399 | CR53: 783330.3622 | CS53: 221003.2808 | CT53: 286840.0291 | CU53: 40729.19146 | CV53: 717977.8005 | CW53: 8996.049237 | CX53: 1603377.715 | CY53: 409606.5249 | CZ53: 253992.9076 | DA53: 150546.4974 | DB53: 138291.4075 | DC53: 315248.7234 | DD53: 68338.98199 | DE53: 69086.09729 | DF53: 1435606.63 | DG53: 70850.16999 | DH53: 790556.835 | DI53: 20969.24931 | DJ53: 3032176.084 | DK53: 7435.694554 | DL53: 594869.7323 | DM53: 83251.35046 | DN53: 5610596.606 | DO53: 225602.7361 | DP53: 1312260.703 | DQ53: 1566290.414 | DR53: 19223.36007 | DS53: 471460.2901 | DT53: 147478.6619 | DU53: 146859.4904 | DV53: 61180.95265 | DW53: 166448.4315 | DX53: 443861.7619 | DY53: 1397810.55 | DZ53: 934520.481 | EA53: 425238.7421 | EB53: 187888.2723 | EC53: 1720912.5 | ED53: 176122.7734 | EE53: 296683.6417 | EF53: 498065.1553 | EG53: 502198.5595 | EH53: 10147860.2 | EI53: 12840.43685 | EJ53: 685146.7286 | EK53: 153159.6864 | EL53: 177270.0522 | EM53: 140193.2717 | EN53: 1185556.397 | EO53: 420391.5068 | EP53: 128671.9762 | EQ53: 37173.11553 | ER53: 176402.6757 | ES53: 177356.3046 | ET53: 144712.0663 | EU53: 380357.5517 | EV53: 156741.322 | EW53: 410604.2794 | EX53: 120128.2495 | EY53: 107678.6373 | EZ53: 85007.93117 | FA53: 832082.0515 | FB53: 217012.8911 | FC53: 113132.5062 | FD53: 132309.0504 | FE53: 123637.2055 | FF53: 133459.205 | FG53: 157814.9516 | FH53: 1186874.181 | FI53: 96153.39037 | FJ53: 106620.4177 | FK53: 87963.24015 | FL53: 113914.168 | FM53: 143300.3403 | FN53: 187744.7949 | FO53: 166936.968 | FP53: 8541.949763 | FQ53: 88604.35104 | FR53: 76747.36689 | FS53: 1034387.462 | FT53: 101719.1089 | FU53: 412742.728 | FV53: 128762.5903 | FW53: 110638.4497 | FX53: 388587.5122 | FY53: 0.03956793281 | FZ53: 112425.0287 | GA53: 81860.81785 | GB53: 141882.4643 | GC53: 369592.9976 | GD53: 260917.3064 | GE53: 89540.38901 | GF53: 35485.78645 | GG53: 80927.14135 | GH53: 828474.5978 | GI53: 837308.2781 | GJ53: 158326.7707 | GK53: 871504.6352 | GL53: 112377.3352 | GM53: 123223.4545 | GN53: 397711.5918 | GO53: 176190.4689 | GP53: 9203.559319 | GQ53: 170969.5966 | GR53: 764103.9184 | GS53: 182839.4962 | GT53: 100847.2856 | GU53: 179499.6906 | GV53: 885784.542 | GW53: 818256.0017 | GX53: 321844.5303 | GY53: 55845748.48 | GZ53: 4197078.983 | HA53: 4451846.338 | HB53: 29651415.34 | HC53: 7525259.195 | HD53: 1481773.63 | HE53: 1122848.113 | HF53: 1012851.079 | HG53: 749527.8125 | HH53: 608792.5392 | HI53: 1535002.823 | HJ53: 89078.32435 | HK53: 29537.92785 | HL53: 3609983.734 | HM53: 1144843.536 | HN53: 85791.12075 | HO53: 126323.2556 | HP53: 70704.34676 | HQ53: 108063.7588 | HR53: 93332.87354 | HS53: 63286.88834 | HT53: 126993.5764 | HU53: 8526.031001 | HV53: 38343.86045 | HW53: 10997.23118 | HX53: 4170.781482 | HY53: 4758266.791 | HZ53: 70459.99574 | IA53: 503481.37 | IB53: 264646.2453 | IC53: 277128.5058 | ID53: 224053.8253 | IE53: 282077.4776 | IF53: 164264.9415 | IG53: 277730.6118 | IH53: 359459.1556 | II53: 3439748.901 | IJ53: 105888.8925 | IK53: 440902.9689 | IL53: 152796.9021 | IM53: 104419.9555 | IN53: 88666.0429 | IO53: 98562.53579 | IP53: 3932410.617 | IQ53: 6047095.789 | IR53: 6594872.174 | IS53: 1114065.824 | IT53: 423740360.6
A54: =+MATCH(B54,RUT[EMPRESA],0) -> 61 | B54: COMASA | C54: 729125888.9 | D54: 729125888.9 | F54: =IFERROR(INDEX($B$9:$B$511,MATCH(0,INDEX(COUNTIF($F$8:F53,$B$9:$B$511),0,0),0)),"") -> COMASA | H54: 729125888.9 | J54: ANDINA | K54: 12138119.64 | L54: 7307794.581 | M54: 5850554.068 | N54: 1548695.714 | O54: 105514670.1 | P54: 37815046.9 | Q54: 41237129.68 | R54: 10607056.77 | S54: 40746.49763 | T54: 222869.5861 | U54: 1398412.338 | V54: 657105.0327 | W54: 301987.7329 | X54: 2819496.735 | Y54: 411781.8859 | Z54: 2775100.747 | AA54: 1331482.117 | AB54: 37346722.16 | AC54: 470619.6238 | AD54: 1312.640612 | AE54: 116505.2869 | AF54: 400704.9541 | AG54: 2749443.516 | AH54: 26256.52359 | AI54: 4912493.441 | AJ54: 309287.5 | AK54: 2286502.42 | AL54: 10104860.82 | AM54: 6745931.988 | AN54: 172344.6199 | AO54: 706819.0345 | AP54: 22777938.93 | AQ54: 4660426.923 | AR54: 468290.1761 | AS54: 29364504.04 | AT54: 833902.5476 | AU54: 1813567.909 | AV54: 15129359.98 | AW54: 8719654.146 | AX54: 50138.41416 | AY54: 12313.61466 | AZ54: 397516.4683 | BA54: 2472012.814 | BB54: 7431.13638 | BC54: 3573168.41 | BD54: 468.6946724 | BE54: 2417180.154 | BF54: 222.1168513 | BG54: 48240.99975 | BH54: 148146.2542 | BI54: 4616009.443 | BJ54: 1735734.673 | BK54: 134444.7745 | BL54: 252628.7089 | BM54: 10460277.84 | BN54: 530558.4178 | BO54: 10716939.61 | BP54: 13336185.66 | BQ54: 5775550.847 | BR54: 1375148.923 | BS54: 7248.631929 | BT54: 10227686.07 | BU54: 2462552.487 | BV54: 215048.4746 | BW54: 905125.4195 | BX54: 9670623.005 | BY54: 391521.3526 | BZ54: 366301.9226 | CA54: 424086.6421 | CB54: 6441852.756 | CC54: 25857889.61 | CD54: 2094956.828 | CE54: 374028.3762 | CF54: 1075286.5 | CG54: 4509064.619 | CH54: 9599585.516 | CI54: 3721608.488 | CJ54: 137911.8218 | CK54: 1554612.494 | CL54: 943736.013 | CM54: 1019092.311 | CN54: 179197.7839 | CO54: 2148170.794 | CP54: 7251871.224 | CQ54: 30466.56576 | CR54: 1858548.414 | CS54: 524357.6872 | CT54: 680563.5362 | CU54: 96635.05701 | CV54: 1703491.358 | CW54: 21344.24229 | CX54: 3804212.442 | CY54: 971842.27 | CZ54: 602629.6675 | DA54: 357190.2323 | DB54: 328113.512 | DC54: 747966.6859 | DD54: 162142.7086 | DE54: 163915.3322 | DF54: 3406154.74 | DG54: 168100.8135 | DH54: 1875694.117 | DI54: 49752.1441 | DJ54: 7194213.738 | DK54: 17642.10733 | DL54: 1411402.202 | DM54: 197524.1518 | DN54: 13311836.14 | DO54: 535270.4654 | DP54: 3113501.234 | DQ54: 3716218.221 | DR54: 45609.8054 | DS54: 1118597.998 | DT54: 349911.4122 | DU54: 348442.351 | DV54: 145159.3964 | DW54: 394919.5427 | DX54: 1053117.067 | DY54: 3316478.853 | DZ54: 2217265.718 | EA54: 1008931.644 | EB54: 445788.2236 | EC54: 4083078.292 | ED54: 417873.1185 | EE54: 703918.7276 | EF54: 1181721.339 | EG54: 1191528.353 | EH54: 24077056.61 | EI54: 30465.52859 | EJ54: 1625595.569 | EK54: 363390.3473 | EL54: 420595.1797 | EM54: 332625.9205 | EN54: 2812879.556 | EO54: 997430.9768 | EP54: 305290.2183 | EQ54: 88197.82592 | ER54: 418537.2214 | ES54: 420799.8243 | ET54: 343347.321 | EU54: 902445.4543 | EV54: 371888.2217 | EW54: 974209.5663 | EX54: 285019.1675 | EY54: 255480.9188 | EZ54: 201691.8574 | FA54: 1974217.842 | FB54: 514889.9928 | FC54: 268420.899 | FD54: 313919.628 | FE54: 293344.6006 | FF54: 316648.5124 | FG54: 374435.5411 | FH54: 2816006.162 | FI54: 228135.8413 | FJ54: 252970.1616 | FK54: 208703.6944 | FL54: 270275.4886 | FM54: 339997.8261 | FN54: 445447.8055 | FO54: 396078.6561 | FP54: 20266.83498 | FQ54: 210224.8095 | FR54: 182092.6443 | FS54: 2454212.514 | FT54: 241341.1987 | FU54: 979283.3008 | FV54: 305505.2116 | FW54: 262503.4406 | FX54: 921972.0561 | FY54: 0.09387982686 | FZ54: 266742.321 | GA54: 194224.9408 | GB54: 336633.7396 | GC54: 876905.2151 | GD54: 619058.6621 | GE54: 212445.6756 | GF54: 84194.42845 | GG54: 192009.6775 | GH54: 1965658.711 | GI54: 1986617.713 | GJ54: 375649.8955 | GK54: 2067752.81 | GL54: 266629.1621 | GM54: 292362.9251 | GN54: 943620.0664 | GO54: 418033.7346 | GP54: 21836.58569 | GQ54: 405646.5675 | GR54: 1812931.292 | GS54: 433809.3763 | GT54: 239272.6898 | GU54: 425885.2733 | GV54: 2101633.66 | GW54: 1941413.825 | GX54: 763616.0557 | GY54: 132500962.9 | GZ54: 9958090.309 | HA54: 10562557.45 | HB54: 70351659.57 | HC54: 17854610.55 | HD54: 3515691.671 | HE54: 2664096.376 | HF54: 2403114.774 | HG54: 1778347.674 | HH54: 1444435.787 | HI54: 3641984.532 | HJ54: 211349.3699 | HK54: 70082.39641 | HL54: 8565134.034 | HM54: 2716283.245 | HN54: 203550.0718 | HO54: 299717.5876 | HP54: 167754.8298 | HQ54: 256394.6674 | HR54: 221443.8154 | HS54: 150155.9899 | HT54: 301308.0068 | HU54: 20229.06575 | HV54: 90975.56343 | HW54: 26092.29458 | HX54: 9895.696228 | HY54: 11289577.97 | HZ54: 167175.0767 | IA54: 1194571.98 | IB54: 627906.0321 | IC54: 657521.743 | ID54: 531595.4824 | IE54: 669263.7921 | IF54: 389738.9421 | IG54: 658950.3141 | IH54: 852861.4183 | II54: 8161230.784 | IJ54: 251234.5274 | IK54: 1046096.964 | IL54: 362529.5966 | IM54: 247749.2922 | IN54: 210371.181 | IO54: 233851.8376 | IP54: 9330131.794 | IQ54: 14347484.58 | IR54: 15647151.97 | IS54: 2643259.307 | IT54: 1005376548
A55: =+MATCH(B55,RUT[EMPRESA],0) -> 44 | B55: CHACAYES | C55: -434966085.1 | D55: -434966085.1 | F55: =IFERROR(INDEX($B$9:$B$511,MATCH(0,INDEX(COUNTIF($F$8:F54,$B$9:$B$511),0,0),0)),"") -> CHACAYES | G55: -434966085.1 | J55: TAMAKAYA_ENERGIA | K55: 17539372.19 | L55: 10559636.32 | M55: 8453949.077 | N55: 2237838.425 | O55: 152466866.8 | P55: 54642086.4 | Q55: 59586936.61 | R55: 15327012.92 | S55: 58877.98181 | T55: 322042.6834 | U55: 2020681.555 | V55: 949505.3665 | W55: 436367.0323 | X55: 4074123.842 | Y55: 595017.6776 | Z55: 4009972.41 | AA55: 1923968.548 | AB55: 53965365.27 | AC55: 680037.1875 | AD55: 1896.742901 | AE55: 168348.1174 | AF55: 579011.7035 | AG55: 3972898.158 | AH55: 37940.22084 | AI55: 7098467.753 | AJ55: 446915.069 | AK55: 3303956.309 | AL55: 14601348.49 | AM55: 9747754.63 | AN55: 249034.9843 | AO55: 1021341.236 | AP55: 32913726.38 | AQ55: 6734236.01 | AR55: 676671.176 | AS55: 42431198.64 | AT55: 1204974.707 | AU55: 2620574.149 | AV55: 21861662.56 | AW55: 12599748.89 | AX55: 72449.13819 | AY55: 17792.95945 | AZ55: 574404.3968 | BA55: 3572015.609 | BB55: 10737.86308 | BC55: 5163166.331 | BD55: 677.2556662 | BE55: 3492783.367 | BF55: 320.9549948 | BG55: 69707.40729 | BH55: 214068.7658 | BI55: 6670053.523 | BJ55: 2508106.475 | BK55: 194270.3655 | BL55: 365044.0994 | BM55: 15114919.92 | BN55: 766647.7046 | BO55: 15485791.71 | BP55: 19270556.8 | BQ55: 8345570.725 | BR55: 1987066.325 | BS55: 10474.14732 | BT55: 14778828.84 | BU55: 3558345.599 | BV55: 310741.3131 | BW55: 1307890.52 | BX55: 13973882.38 | BY55: 565741.5587 | BZ55: 529299.9201 | CA55: 612797.8368 | CB55: 9308365.418 | CC55: 37364201.65 | CD55: 3027176.253 | CE55: 540464.5114 | CF55: 1553770.327 | CG55: 6515520.108 | CH55: 13871234.44 | CI55: 5377659.667 | CJ55: 199280.1887 | CK55: 2246388.069 | CL55: 1363682.158 | CM55: 1472570.7 | CN55: 258937.6872 | CO55: 3104069.511 | CP55: 10478828.04 | CQ55: 44023.6587 | CR55: 2685570.199 | CS55: 757687.7565 | CT55: 983402.4969 | CU55: 139635.98 | CV55: 2461515.445 | CW55: 30842.05963 | CX55: 5497020.947 | CY55: 1404295.211 | CZ55: 870789.4094 | DA55: 516133.6858 | DB55: 474118.3296 | DC55: 1080798.878 | DD55: 234293.3995 | DE55: 236854.8099 | DF55: 4921834.477 | DG55: 242902.7576 | DH55: 2710345.442 | DI55: 71890.98465 | DJ55: 10395513.98 | DK55: 25492.53887 | DL55: 2039451.683 | DM55: 285418.9709 | DN55: 19235372.16 | DO55: 773456.5315 | DP55: 4498955.24 | DQ55: 5369870.825 | DR55: 65905.37713 | DS55: 1616354.691 | DT55: 505615.917 | DU55: 503493.149 | DV55: 209752.8081 | DW55: 570651.8843 | DX55: 1521735.883 | DY55: 4792254.377 | DZ55: 3203910.477 | EA55: 1457888.712 | EB55: 644156.2453 | EC55: 5899977.26 | ED55: 603819.4029 | EE55: 1017150.343 | EF55: 1707566.823 | EG55: 1721737.788 | EH55: 34790928.89 | EI55: 44022.16 | EJ55: 2348957.381 | EK55: 525092.7442 | EL55: 607752.7342 | EM55: 480638.6816 | EN55: 4064562.133 | EO55: 1441270.449 | EP55: 441139.0664 | EQ55: 127444.3275 | ER55: 604779.0201 | ES55: 608048.442 | ET55: 496130.9192 | EU55: 1304018.017 | EV55: 537372.0253 | EW55: 1407715.913 | EX55: 411847.7498 | EY55: 369165.4932 | EZ55: 291441.233 | FA55: 2852710.515 | FB55: 744007.1024 | FC55: 387863.5399 | FD55: 453608.4136 | FE55: 423877.8562 | FF55: 457551.6041 | FG55: 541052.8575 | FH55: 4069080.025 | FI55: 329652.3308 | FJ55: 365537.4925 | FK55: 301573.2158 | FL55: 390543.3897 | FM55: 491290.9571 | FN55: 643664.3471 | FO55: 572326.7831 | FP55: 29285.22477 | FQ55: 303771.2007 | FR55: 263120.7104 | FS55: 3546294.484 | FT55: 348733.8431 | FU55: 1415047.372 | FV55: 441449.7279 | FW55: 379312.9153 | FX55: 1332233.618 | FY55: 0.1356547203 | FZ55: 385438.0239 | GA55: 280651.6682 | GB55: 486429.9105 | GC55: 1267112.815 | GD55: 894529.0214 | GE55: 306980.3137 | GF55: 121659.4877 | GG55: 277450.6512 | GH55: 2840342.718 | GI55: 2870628.112 | GJ55: 542807.5786 | GK55: 2987866.92 | GL55: 385274.5112 | GM55: 422459.3521 | GN55: 1363514.617 | GO55: 604051.4904 | GP55: 31553.4873 | GQ55: 586152.2489 | GR55: 2619654.25 | GS55: 626847.0189 | GT55: 345744.8836 | GU55: 615396.8277 | GV55: 3036824.16 | GW55: 2805309.279 | GX55: 1103411.946 | GY55: 191461591.6 | GZ55: 14389267.65 | HA55: 15262712.17 | HB55: 101656927 | HC55: 25799602.33 | HD55: 5080113.441 | HE55: 3849573.021 | HF55: 3472459.136 | HG55: 2569681.521 | HH55: 2087184.641 | HI55: 5262604.433 | HJ55: 305396.171 | HK55: 101267.8464 | HL55: 12376470.01 | HM55: 3924982.141 | HN55: 294126.3206 | HO55: 433086.7118 | HP55: 242402.8172 | HQ55: 370485.844 | HR55: 319982.4696 | HS55: 216972.7991 | HT55: 435384.8398 | HU55: 29230.64888 | HV55: 131458.11 | HW55: 37702.91277 | HX55: 14299.10929 | HY55: 16313244.21 | HZ55: 241565.084 | IA55: 1726135.777 | IB55: 907313.3175 | IC55: 950107.5057 | ID55: 768146.2449 | IE55: 967074.5629 | IF55: 563166.0064 | IG55: 952171.7661 | IH55: 1232369.946 | II55: 11792836.82 | IJ55: 363029.5313 | IK55: 1511591.955 | IL55: 523848.9744 | IM55: 357993.4269 | IN55: 303982.7051 | IO55: 337911.8462 | IP55: 13481878.49 | IQ55: 20731866.18 | IR55: 22609863 | IS55: 3819463.818 | IT55: 1452751661
A56: =+MATCH(B56,RUT[EMPRESA],0) -> 109 | B56: ENERBOSCH | C56: 149181097.3 | D56: 149181097.3 | F56: =IFERROR(INDEX($B$9:$B$511,MATCH(0,INDEX(COUNTIF($F$8:F55,$B$9:$B$511),0,0),0)),"") -> ENERBOSCH | H56: 149181097.3 | J56: VALLE_DE_LOS_VIENTOS | K56: 751264.8718 | L56: 452301.4703 | M56: 362108.4553 | N56: 95853.45355 | O56: 6530621.501 | P56: 2340487.424 | Q56: 2552290.459 | R56: 656502.7685 | S56: 2521.92376 | T56: 13794.07157 | U56: 86551.96168 | V56: 40670.2144 | W56: 18690.93255 | X56: 174507.1655 | Y56: 25486.42417 | Z56: 171759.3638 | AA56: 82409.44824 | AB56: 2311501.392 | AC56: 29128.06941 | AD56: 81.24329062 | AE56: 7210.863962 | AF56: 24800.83942 | AG56: 170171.3603 | AH56: 1625.095519 | AI56: 304049.0509 | AJ56: 19142.73718 | AK56: 141518.5382 | AL56: 625420.3447 | AM56: 417526.098 | AN56: 10666.92887 | AO56: 43747.16407 | AP56: 1409795.411 | AQ56: 288447.893 | AR56: 28983.89286 | AS56: 1817457.812 | AT56: 51612.74639 | AU56: 112247.1934 | AV56: 936401.7675 | AW56: 539685.7215 | AX56: 3103.21783 | AY56: 762.1267887 | AZ56: 24603.4944 | BA56: 153000.3366 | BB56: 459.9354667 | BC56: 221154.181 | BD56: 29.00892836 | BE56: 149606.5777 | BF56: 13.74748254 | BG56: 2985.781124 | BH56: 9169.218953 | BI56: 285698.7611 | BJ56: 107429.8595 | BK56: 8321.193008 | BL56: 15635.95353 | BM56: 647418.1774 | BN56: 32837.86234 | BO56: 663303.7487 | BP56: 825416.7953 | BQ56: 357466.2795 | BR56: 85112.11872 | BS56: 448.6397152 | BT56: 633022.37 | BU56: 152414.8083 | BV56: 13309.99937 | BW56: 56020.94497 | BX56: 598544.0553 | BY56: 24232.43859 | BZ56: 22671.53193 | CA56: 26248.00268 | CB56: 398705.7163 | CC56: 1600422.858 | CD56: 129663.2032 | CE56: 23149.74547 | CF56: 66552.72796 | CG56: 279079.623 | CH56: 594147.3306 | CI56: 230341.5856 | CJ56: 8535.779035 | CK56: 96219.66091 | CL56: 58410.67117 | CM56: 63074.69997 | CN56: 11091.09188 | CO56: 132956.7762 | CP56: 448840.2049 | CQ56: 1885.667739 | CR56: 115031.1727 | CS56: 32454.0804 | CT56: 42122.13201 | CU56: 5981.035439 | CV56: 105434.2234 | CW56: 1321.059598 | CX56: 235454.1937 | CY56: 60150.25228 | CZ56: 37298.56958 | DA56: 22107.58191 | DB56: 20307.9359 | DC56: 46293.91645 | DD56: 10035.50177 | DE56: 10145.21481 | DF56: 210817.2007 | DG56: 10404.26688 | DH56: 116092.372 | DI56: 3079.31041 | DJ56: 445271.609 | DK56: 1091.923288 | DL56: 87355.94356 | DM56: 12225.36612 | DN56: 823909.7299 | DO56: 33129.50519 | DP56: 192703.9917 | DQ56: 230007.9657 | DR56: 2822.928561 | DS56: 69233.40735 | DT56: 21657.07375 | DU56: 21566.14912 | DV56: 8984.353307 | DW56: 24442.76284 | DX56: 65180.59487 | DY56: 205266.8893 | DZ56: 137233.2697 | EA56: 62445.82559 | EB56: 27591.17908 | EC56: 252714.0431 | ED56: 25863.42894 | EE56: 43567.65532 | EF56: 73140.30154 | EG56: 73747.28724 | EH56: 1490201.727 | EI56: 1885.603546 | EJ56: 100613.0178 | EK56: 22491.32574 | EL56: 26031.90553 | EM56: 20587.22248 | EN56: 174097.6084 | EO56: 61734.0146 | EP56: 18895.33334 | EQ56: 5458.829733 | ER56: 25904.53228 | ES56: 26044.5716 | ET56: 21250.80233 | EU56: 55855.07383 | EV56: 23017.28485 | EW56: 60296.77139 | EX56: 17640.6968 | EY56: 15812.48541 | EZ56: 12483.318 | FA56: 122190.3028 | FB56: 31868.09621 | FC56: 16613.37985 | FD56: 19429.43356 | FE56: 18155.983 | FF56: 19598.33246 | FG56: 23174.94613 | FH56: 174291.1235 | FI56: 14120.01601 | FJ56: 15657.08707 | FK56: 12917.30176 | FL56: 16728.16601 | FM56: 21043.49198 | FN56: 27570.10958 | FO56: 24514.50387 | FP56: 1254.375607 | FQ56: 13011.44817 | FR56: 11270.26353 | FS56: 151898.6223 | FT56: 14937.33545 | FU56: 60610.80014 | FV56: 18908.63993 | FW56: 16247.13049 | FX56: 57063.63417 | FY56: 0.005810505926 | FZ56: 16509.48759 | GA56: 12021.16799 | GB56: 20835.27851 | GC56: 54274.31131 | GD56: 38315.40966 | GE56: 13148.90428 | GF56: 5211.047377 | GG56: 11884.05866 | GH56: 121660.5523 | GI56: 122957.7682 | GJ56: 23250.10619 | GK56: 127979.4644 | GL56: 16502.48385 | GM56: 18095.22414 | GN56: 58403.49489 | GO56: 25873.36996 | GP56: 1351.532218 | GQ56: 25106.69079 | GR56: 112207.7913 | GS56: 26849.77205 | GT56: 14809.30918 | GU56: 26359.3254 | GV56: 130076.4525 | GW56: 120159.9631 | GX56: 47262.5032 | GY56: 8200884.644 | GZ56: 616336.2747 | HA56: 653748.571 | HB56: 4354276.617 | HC56: 1105075.753 | HD56: 217596.7721 | HE56: 164888.9681 | HF56: 148736.0288 | HG56: 110067.3067 | HH56: 89400.49192 | HI56: 225413.4186 | HJ56: 13081.05061 | HK56: 4337.611107 | HL56: 530122.0052 | HM56: 168118.971 | HN56: 12598.3285 | HO56: 18550.42641 | HP56: 10382.8529 | HQ56: 15869.04007 | HR56: 13705.82632 | HS56: 9293.607567 | HT56: 18648.86225 | HU56: 1252.037955 | HV56: 5630.752294 | HW56: 1614.930889 | HX56: 612.4745167 | HY56: 698746.0661 | HZ56: 10346.97023 | IA56: 73935.66651 | IB56: 38863.0001 | IC56: 40696.00586 | ID56: 32902.0494 | IE56: 41422.75674 | IF56: 24122.11982 | IG56: 40784.42444 | IH56: 52786.16814 | II56: 505123.2136 | IJ56: 15549.66343 | IK56: 64746.09948 | IL56: 22438.05128 | IM56: 15333.9517 | IN56: 13020.50755 | IO56: 14473.79627 | IP56: 577470.0263 | IQ56: 888009.1383 | IR56: 968449.4774 | IS56: 163599.299 | IT56: 62225789.98
A57: =+MATCH(B57,RUT[EMPRESA],0) -> 168 | B57: HIDROMUCHI | C57: 14990052.08 | D57: 14990052.08 | F57: =IFERROR(INDEX($B$9:$B$511,MATCH(0,INDEX(COUNTIF($F$8:F56,$B$9:$B$511),0,0),0)),"") -> HIDROMUCHI | H57: 14990052.08 | J57: POZO_ALMONTE_SOLAR_2 | K57: 17059.95659 | L57: 10271.00259 | M57: 8222.871531 | N57: 2176.670064 | O57: 148299.3861 | P57: 53148.51704 | Q57: 57958.2063 | R57: 14908.06924 | S57: 57.26862985 | T57: 313.2400715 | U57: 1965.44889 | V57: 923.5518898 | W57: 424.4395151 | X57: 3962.763041 | Y57: 578.7536542 | Z57: 3900.365104 | AA57: 1871.379406 | AB57: 52490.2932 | AC57: 661.4492681 | AD57: 1.844897935 | AE57: 163.7465437 | AF57: 563.1851823 | AG57: 3864.304227 | AH57: 36.90317496 | AI57: 6904.440501 | AJ57: 434.6992352 | AK57: 3213.647022 | AL57: 14202.23989 | AM57: 9481.312615 | AN57: 242.2279415 | AO57: 993.4242208 | AP57: 32014.07308 | AQ57: 6550.164552 | AR57: 658.175262 | AS57: 41271.3978 | AT57: 1172.038313 | AU57: 2548.944212 | AV57: 21264.10285 | AW57: 12255.35137 | AX57: 70.46883656 | AY57: 17.30661238 | AZ57: 558.7038103 | BA57: 3474.379274 | BB57: 10.44435776 | BC57: 5022.03799 | BD57: 0.658743776 | BE57: 3397.312741 | BF57: 0.3121821134 | BG57: 67.80204726 | BH57: 208.2174785 | BI57: 6487.736408 | BJ57: 2439.550693 | BK57: 188.9602413 | BL57: 355.0661005 | BM57: 14701.77352 | BN57: 745.6924009 | BO57: 15062.50802 | BP57: 18743.82155 | BQ57: 8117.455558 | BR57: 1932.752488 | BS57: 10.18785032 | BT57: 14374.86905 | BU57: 3461.082916 | BV57: 302.2476092 | BW57: 1272.141058 | BX57: 13591.92474 | BY57: 550.2777594 | BZ57: 514.8322049 | CA57: 596.0478162 | CB57: 9053.933528 | CC57: 36342.90049 | CD57: 2944.432383 | CE57: 525.6916269 | CF57: 1511.300065 | CG57: 6337.426961 | CH57: 13492.08255 | CI57: 5230.668434 | CJ57: 193.8331276 | CK57: 2184.986014 | CL57: 1326.407705 | CM57: 1432.319923 | CN57: 251.8599671 | CO57: 3019.223865 | CP57: 10192.4031 | CQ57: 42.82033006 | CR57: 2612.16368 | CS57: 736.9773611 | CT57: 956.5224868 | CU57: 135.8192147 | CV57: 2394.233167 | CW57: 29.99903261 | CX57: 5346.767131 | CY57: 1365.910654 | CZ57: 846.9875295 | DA57: 502.0258523 | DB57: 461.1589305 | DC57: 1051.256667 | DD57: 227.8892985 | DE57: 230.3806961 | DF57: 4787.302624 | DG57: 236.2633312 | DH57: 2636.261724 | DI57: 69.92593941 | DJ57: 10111.36632 | DK57: 24.79573394 | DL57: 1983.705961 | DM57: 277.6174198 | DN57: 18709.59864 | DO57: 752.3151175 | DP57: 4375.982234 | DQ57: 5223.09249 | DR57: 64.10394058 | DS57: 1572.173767 | DT57: 491.7955729 | DU57: 489.730828 | DV57: 204.0194918 | DW57: 555.0538678 | DX57: 1480.14124 | DY57: 4661.264425 | DZ57: 3116.33581 | EA57: 1418.039248 | EB57: 626.549084 | EC57: 5738.709165 | ED57: 587.314796 | EE57: 989.3478802 | EF57: 1660.892737 | EG57: 1674.676357 | EH57: 33839.96474 | EI57: 42.81887233 | EJ57: 2284.75173 | EK57: 510.7400267 | EL57: 591.1406149 | EM57: 467.5010572 | EN57: 3953.462689 | EO57: 1401.875222 | EP57: 429.0811119 | EQ57: 123.960805 | ER57: 588.2481833 | ES57: 591.4282399 | ET57: 482.569835 | EU57: 1268.374405 | EV57: 522.6836698 | EW57: 1369.237856 | EX57: 400.5904348 | EY57: 359.0748414 | EZ57: 283.4750714 | FA57: 2774.735436 | FB57: 723.6706497 | FC57: 377.2618017 | FD57: 441.209626 | FE57: 412.2917141 | FF57: 445.0450346 | FG57: 526.2638914 | FH57: 3957.85709 | FI57: 320.6417192 | FJ57: 355.5460074 | FK57: 293.3301098 | FL57: 379.8684013 | FM57: 477.8621669 | FN57: 626.0706312 | FO57: 556.6829855 | FP57: 28.48475178 | FQ57: 295.4680156 | FR57: 255.9286529 | FS57: 3449.361202 | FT57: 339.2016635 | FU57: 1376.368918 | FV57: 429.3832819 | FW57: 368.9448971 | FX57: 1295.818769 | FY57: 0.0001319467775 | FZ57: 374.9025839 | GA57: 272.980425 | GB57: 473.1339906 | GC57: 1232.477958 | GD57: 870.0782506 | GE57: 298.5894118 | GF57: 118.3340861 | GG57: 269.8669037 | GH57: 2762.705697 | GI57: 2792.16328 | GJ57: 527.9706495 | GK57: 2906.197519 | GL57: 374.7435406 | GM57: 410.911983 | GN57: 1326.244744 | GO57: 587.5405397 | GP57: 30.69101434 | GQ57: 570.1305504 | GR57: 2548.049456 | GS57: 609.7129825 | GT57: 336.2944033 | GU57: 598.5757672 | GV57: 2953.816577 | GW57: 2728.62985 | GX57: 1073.251636 | GY57: 186228.2415 | GZ57: 13995.956 | HA57: 14845.52607 | HB57: 98878.26895 | HC57: 25094.40423 | HD57: 4941.255241 | HE57: 3744.350021 | HF57: 3377.544046 | HG57: 2499.442666 | HH57: 2030.134202 | HI57: 5118.758083 | HJ57: 297.0485695 | HK57: 98.49982336 | HL57: 12038.17553 | HM57: 3817.697932 | HN57: 286.0867656 | HO57: 421.2488578 | HP57: 235.7770559 | HQ57: 360.3591021 | HR57: 311.2361708 | HS57: 211.0421338 | HT57: 423.4841696 | HU57: 28.43166765 | HV57: 127.864876 | HW57: 36.67235338 | HX57: 13.90826199 | HY57: 15867.3432 | HZ57: 234.9622211 | IA57: 1678.954132 | IB57: 882.5131048 | IC57: 924.1375703 | ID57: 747.1499806 | IE57: 940.6408554 | IF57: 547.7726065 | IG57: 926.1454069 | IH57: 1198.684739 | II57: 11470.49519 | IJ57: 353.1065979 | IK57: 1470.274583 | IL57: 509.5302537 | IM57: 348.2081488 | IN57: 295.6737388 | IO57: 328.6754716 | IP57: 13113.36913 | IQ57: 20165.18796 | IR57: 21991.85222 | IS57: 3715.063813 | IT57: 1413042.611
A58: =+MATCH(B58,RUT[EMPRESA],0) -> 184 | B58: LA ARENA SPA | C58: -119569452.2 | D58: -119569452.2 | F58: =IFERROR(INDEX($B$9:$B$511,MATCH(0,INDEX(COUNTIF($F$8:F57,$B$9:$B$511),0,0),0)),"") -> LA ARENA SPA | G58: -119569452.2 | J58: HORNITOS | K58: 23404843.16 | L58: 14090962.28 | M58: 11281096.61 | N58: 2986210.497 | O58: 203454437.6 | P58: 72915350 | Q58: 79513844.09 | R58: 20452632.49 | S58: 78567.80248 | T58: 429739.3552 | U58: 2696432.595 | V58: 1267036.468 | W58: 582295.7538 | X58: 5436581.68 | Y58: 794001.9329 | Z58: 5350976.895 | AA58: 2567377.077 | AB58: 72012321.57 | AC58: 907453.445 | AD58: 2531.0467 | AE58: 224646.6544 | AF58: 772643.2828 | AG58: 5301504.367 | AH58: 50628.09026 | AI58: 9472318.771 | AJ58: 596371.2374 | AK58: 4408856.736 | AL58: 19484293.26 | AM58: 13007573.24 | AN58: 332316.6123 | AO58: 1362895.501 | AP58: 43920648.66 | AQ58: 8986281.602 | AR58: 902961.7807 | AS58: 56620929.1 | AT58: 1607939.196 | AU58: 3496939.702 | AV58: 29172582.56 | AW58: 16813323.96 | AX58: 96677.38947 | AY58: 23743.23441 | AZ58: 766495.2126 | BA58: 4766559.725 | BB58: 14328.79117 | BC58: 6889818.91 | BD58: 903.7417346 | BE58: 4660830.844 | BF58: 428.2879246 | BG58: 93018.7761 | BH58: 285657.0825 | BI58: 8900635.375 | BJ58: 3346860.882 | BK58: 259237.7529 | BL58: 487121.1923 | BM58: 20169611.9 | BN58: 1023028.025 | BO58: 20664509.67 | BP58: 25714966 | BQ58: 11136474.66 | BR58: 2651575.848 | BS58: 13976.88427 | BT58: 19721126.12 | BU58: 4748318.227 | BV58: 414658.6102 | BW58: 1745271.847 | BX58: 18646991.58 | BY58: 754935.3709 | BZ58: 706307.0148 | CA58: 817728.0864 | CB58: 12421244.63 | CC58: 49859440.23 | CD58: 4039516.617 | CE58: 721205.2395 | CF58: 2073378.136 | CG58: 8694423.3 | CH58: 18510016.38 | CI58: 7176042.546 | CJ58: 265922.9481 | CK58: 2997619.291 | CL58: 1819721.178 | CM58: 1965023.942 | CN58: 345530.9513 | CO58: 4142124.317 | CP58: 13983130.31 | CQ58: 58745.93548 | CR58: 3583671.56 | CS58: 1011071.714 | CT58: 1312269.388 | CU58: 186332.6792 | CV58: 3284689.001 | CW58: 41156.18053 | CX58: 7335320.313 | CY58: 1873915.943 | CZ58: 1161996.526 | DA58: 688737.7629 | DB58: 632671.7412 | DC58: 1442236.812 | DD58: 312645.1853 | DE58: 316063.1759 | DF58: 6567781.489 | DG58: 324133.6625 | DH58: 3616732.075 | DI58: 95932.57968 | DJ58: 13871954.57 | DK58: 34017.68703 | DL58: 2721479.78 | DM58: 380868.0365 | DN58: 25668015.01 | DO58: 1032113.842 | DP58: 6003484.084 | DQ58: 7165648.98 | DR58: 87945.28096 | DS58: 2156891.798 | DT58: 674702.6694 | DU58: 671870.0109 | DV58: 279897.7936 | DW58: 761487.7948 | DX58: 2030630.816 | DY58: 6394867.55 | DZ58: 4275353.837 | EA58: 1945432.042 | EB58: 859573.2919 | EC58: 7873032.223 | ED58: 805747.1082 | EE58: 1357303.1 | EF58: 2278606.854 | EG58: 2297516.836 | EH58: 46425620.32 | EI58: 58743.9356 | EJ58: 3134489.564 | EK58: 700692.8862 | EL58: 810995.8138 | EM58: 641372.6122 | EN58: 5423822.37 | EO58: 1923256.342 | EP58: 588663.639 | EQ58: 170063.9262 | ER58: 807027.638 | ES58: 811390.4115 | ET58: 662045.7235 | EU58: 1740104.311 | EV58: 717078.5724 | EW58: 1878480.587 | EX58: 549576.797 | EY58: 492620.8517 | EZ58: 388904.2478 | FA58: 3806706.503 | FB58: 992816.0115 | FC58: 517571.8503 | FD58: 605302.9528 | FE58: 565629.9801 | FF58: 610564.8148 | FG58: 721990.3389 | FH58: 5429851.124 | FI58: 439893.801 | FJ58: 487779.5847 | FK58: 402424.5418 | FL58: 521147.8886 | FM58: 655587.1939 | FN58: 858916.8944 | FO58: 763722.8089 | FP58: 39078.71303 | FQ58: 405357.571 | FR58: 351112.8501 | FS58: 4732237.009 | FT58: 465356.5027 | FU58: 1888263.812 | FV58: 589078.1912 | FW58: 506161.7483 | FX58: 1777755.7 | FY58: 0.181020017 | FZ58: 514335.1996 | GA58: 374506.4649 | GB58: 649100.5289 | GC58: 1690857.368 | GD58: 1193675.077 | GE58: 409639.8673 | GF58: 162344.5354 | GG58: 370234.9723 | GH58: 3790202.701 | GI58: 3830616.057 | GJ58: 724331.8692 | GK58: 3987061.56 | GL58: 514117.0054 | GM58: 563737.1036 | GN58: 1819497.609 | GO58: 806056.8098 | GP58: 42105.52198 | GQ58: 782171.7508 | GR58: 3495712.171 | GS58: 836475.5592 | GT58: 461367.9832 | GU58: 821196.2251 | GV58: 4052390.951 | GW58: 3743453.47 | GX58: 1472412.083 | GY58: 255489676.2 | GZ58: 19201288.9 | HA58: 20366828.46 | HB58: 135652770.6 | HC58: 34427437.85 | HD58: 6778991.689 | HE58: 5136937.161 | HF58: 4633709.837 | HG58: 3429027.694 | HH58: 2785175.469 | HI58: 7022510.842 | HJ58: 407525.9597 | HK58: 135133.5746 | HL58: 16515376.74 | HM58: 5237564.402 | HN58: 392487.2753 | HO58: 577918.4371 | HP58: 323466.5333 | HQ58: 494382.7508 | HR58: 426990.17 | HS58: 289532.275 | HT58: 580985.0991 | HU58: 39005.88601 | HV58: 175419.9873 | HW58: 50311.42224 | HX58: 19080.98001 | HY58: 21768676.66 | HZ58: 322348.6476 | IA58: 2303385.588 | IB58: 1210734.664 | IC58: 1267839.972 | ID58: 1025027.703 | IE58: 1290481.109 | IF58: 751498.5092 | IG58: 1270594.557 | IH58: 1644495.88 | II58: 15736566.47 | IJ58: 484432.9175 | IK58: 2017094.583 | IL58: 699033.1782 | IM58: 477712.6523 | IN58: 405639.8062 | IO58: 450915.4419 | IP58: 17990453.04 | IQ58: 27664962.63 | IR58: 30170994.25 | IS58: 5096758.917 | IT58: 1938577071
A59: =+MATCH(B59,RUT[EMPRESA],0) -> 34 | B59: CARDONES SA | C59: -2695315.985 | D59: -2695315.985 | F59: =IFERROR(INDEX($B$9:$B$511,MATCH(0,INDEX(COUNTIF($F$8:F58,$B$9:$B$511),0,0),0)),"") -> CARDONES SA | G59: -2695315.985 | J59: ON GROUP | K59: =$IT59*K$66/$IT$66 -> 632432.722 | L59: 380758.1863 | M59: 304831.5509 | N59: 80691.7278 | O59: 5497633.241 | P59: 1970278.244 | Q59: 2148579.1 | R59: 552659.7188 | S59: 2123.015687 | T59: 11612.17908 | U59: =$IT59*U$66/$IT$66 -> 72861.50966 | V59: 34237.15838 | W59: 15734.47368 | X59: 146904.3021 | Y59: 21455.08091 | Z59: 144591.137 | AA59: 69374.24285 | AB59: 1945877.109 | AC59: 24520.7049 | AD59: 68.39254351 | AE59: =$IT59*AE$66/$IT$66 -> 6070.2776 | AF59: 20877.93929 | AG59: 143254.3177 | AH59: 1368.044243 | AI59: 255955.7568 | AJ59: 16114.81361 | AK59: 119133.6873 | AL59: 526493.7918 | AM59: 351483.4469 | AN59: 8979.675627 | AO59: =$IT59*AO$66/$IT$66 -> 36827.40814 | AP59: 1186799.467 | AQ59: 242822.3293 | AR59: 24399.33363 | AS59: 1529979.418 | AT59: 43448.84329 | AU59: 94492.36976 | AV59: 788285.3849 | AW59: 454320.3372 | AX59: 2612.362927 | AY59: =$IT59*AY$66/$IT$66 -> 641.5765431 | AZ59: 20711.80954 | BA59: 128799.3396 | BB59: 387.1846668 | BC59: 186172.8745 | BD59: 24.42040911 | BE59: 125942.3922 | BF59: 11.57295933 | BG59: 2513.501901 | BH59: 7718.86763 | BI59: =$IT59*BI$66/$IT$66 -> 240508.0444 | BJ59: 90437.02294 | BK59: 7004.979124 | BL59: 13162.71933 | BM59: 545012.093 | BN59: 27643.69724 | BO59: 558384.9466 | BP59: 694855.5831 | BQ59: 300923.6564 | BR59: 71649.41545 | BS59: =$IT59*BS$66/$IT$66 -> 377.6756333 | BT59: 532893.3583 | BU59: 128306.4279 | BV59: 11204.67553 | BW59: 47159.7702 | BX59: 503868.6891 | BY59: 20399.44589 | BZ59: 19085.43736 | CA59: 22096.1959 | CB59: 335639.9998 | CC59: =$IT59*CC$66/$IT$66 -> 1347274.207 | CD59: 109153.583 | CE59: 19488.00894 | CF59: 56025.6768 | CG59: 234935.8958 | CH59: 500167.4212 | CI59: 193907.0512 | CJ59: 7185.62277 | CK59: 81000.0099 | CL59: 49171.49882 | CM59: =$IT59*CM$66/$IT$66 -> 53097.78972 | CN59: 9336.746184 | CO59: 111926.1915 | CP59: 377844.4103 | CQ59: 1587.400165 | CR59: 96835.99006 | CS59: 27320.62043 | CT59: 35459.41731 | CU59: 5034.97856 | CV59: 88757.04877 | CW59: =$IT59*CW$66/$IT$66 -> 1112.099539 | CX59: 198210.9669 | CY59: 50635.91977 | CZ59: 31398.82719 | DA59: 18610.69075 | DB59: 17095.70574 | DC59: 38971.32515 | DD59: 8448.12521 | DE59: 8540.484262 | DF59: 177470.9574 | DG59: =$IT59*DG$66/$IT$66 -> 8758.560485 | DH59: 97729.333 | DI59: 2592.237089 | DJ59: 374840.2811 | DK59: 919.2071171 | DL59: 73538.32082 | DM59: 10291.60535 | DN59: 693586.8995 | DO59: 27889.20916 | DP59: 162222.8252 | DQ59: =$IT59*DQ$66/$IT$66 -> 193626.202 | DR59: 2376.408722 | DS59: 58282.33677 | DT59: 18231.44222 | DU59: 18154.89969 | DV59: 7563.243311 | DW59: 20576.50186 | DX59: 54870.58237 | DY59: 172798.5727 | DZ59: 115526.2459 | EA59: =$IT59*EA$66/$IT$66 -> 52568.38824 | EB59: 23226.91389 | EC59: 212740.7206 | ED59: 21772.45254 | EE59: 36676.29338 | EF59: 61571.25366 | EG59: 62082.22873 | EH59: 1254487.425 | EI59: 1587.346125 | EJ59: 84698.4427 | EK59: =$IT59*EK$66/$IT$66 -> 18933.73548 | EL59: 21914.28016 | EM59: 17330.81586 | EN59: 146559.5271 | EO59: 51969.16874 | EP59: 15906.54315 | EQ59: 4595.373318 | ER59: 21807.05431 | ES59: 21924.94276 | ET59: 17889.43323 | EU59: =$IT59*EU$66/$IT$66 -> 47020.13591 | EV59: 19376.50042 | EW59: 50759.26306 | EX59: 14850.36013 | EY59: 13311.32809 | EZ59: 10508.75541 | FA59: 102862.7169 | FB59: 26827.32494 | FC59: 13985.54017 | FD59: 16356.16148 | FE59: =$IT59*FE$66/$IT$66 -> 15284.14036 | FF59: 16498.3446 | FG59: 19509.22346 | FH59: 146722.4327 | FI59: 11886.5669 | FJ59: 13180.51005 | FK59: 10874.09331 | FL59: 14082.16989 | FM59: 17714.91442 | FN59: 23209.17708 | FO59: =$IT59*FO$66/$IT$66 -> 20636.89518 | FP59: 1055.963361 | FQ59: 10953.348 | FR59: 9487.577165 | FS59: 127871.8901 | FT59: 12574.60593 | FU59: 51023.61996 | FV59: 15917.74495 | FW59: 13677.2227 | FX59: 48037.53089 | FY59: =$IT59*FY$66/$IT$66 -> 0.004891422742 | FZ59: 13898.08118 | GA59: 10119.70648 | GB59: 17539.63534 | GC59: 45689.41225 | GD59: 32254.82747 | GE59: 11069.06184 | GF59: 4386.784209 | GG59: 10004.28457 | GH59: 102416.7603 | GI59: =$IT59*GI$66/$IT$66 -> 103508.7876 | GJ59: 19572.495 | GK59: 107736.1714 | GL59: 13892.18526 | GM59: 15232.9921 | GN59: 49165.45766 | GO59: 21780.82112 | GP59: 1137.752118 | GQ59: 21135.41228 | GR59: 94459.20012 | GS59: =$IT59*GS$66/$IT$66 -> 22602.77974 | GT59: 12466.83037 | GU59: 22189.91003 | GV59: 109501.4661 | GW59: 101153.5284 | GX59: 39786.70462 | GY59: 6903700.668 | GZ59: 518846.6046 | HA59: 550341.1696 | HB59: 3665534.109 | HC59: =$IT59*HC$66/$IT$66 -> 930279.177 | HD59: 183178.1626 | HE59: 138807.4737 | HF59: 125209.5434 | HG59: 92657.28906 | HH59: 75259.47049 | HI59: 189758.4024 | HJ59: 11011.941 | HK59: 3651.504685 | HL59: 446269.3722 | HM59: =$IT59*HM$66/$IT$66 -> 141526.5673 | HN59: 10605.57399 | HO59: 15616.19225 | HP59: 8740.533688 | HQ59: 13358.93715 | HR59: 11537.89212 | HS59: 7823.580938 | HT59: 15699.05789 | HU59: 1053.99547 | HV59: 4740.101838 | HW59: =$IT59*HW$66/$IT$66 -> 1359.487414 | HX59: 515.5956843 | HY59: 588221.1363 | HZ59: 8710.326799 | IA59: 62240.8109 | IB59: 32715.80219 | IC59: 34258.87024 | ID59: 27697.73144 | IE59: 34870.66649 | IF59: 20306.57691 | IG59: =$IT59*IG$66/$IT$66 -> 34333.30311 | IH59: 44436.65776 | II59: 425224.7921 | IJ59: 13090.07826 | IK59: 54504.81377 | IL59: 18888.88777 | IM59: 12908.48697 | IN59: 10960.9744 | IO59: 12184.38758 | IP59: 486128.0678 | IQ59: 747547.3133 | IR59: 815263.913 | IS59: 137721.7994 | IT59: 52383157.01
A60: =+MATCH(B60,RUT[EMPRESA],0) -> 32 | B60: CAPULLO | C60: -15046918.78 | D60: -15046918.78 | F60: =IFERROR(INDEX($B$9:$B$511,MATCH(0,INDEX(COUNTIF($F$8:F59,$B$9:$B$511),0,0),0)),"") -> CAPULLO | G60: -15046918.78 | J60: EL_ARREBOL | K60: 0.2052436476 | L60: 0.1235676085 | M60: 0.09892710675 | N60: 0.02618691912 | O60: 1.784149144 | P60: 0.6394151969 | Q60: 0.6972792461 | R60: 0.1793548825 | S60: 0.0006889831413 | T60: 0.003768505184 | U60: 0.02364577526 | V60: 0.01111099888 | W60: 0.005106315119 | X60: 0.0476749127 | Y60: 0.006962826103 | Z60: 0.04692422028 | AA60: 0.02251405115 | AB60: 0.6314962868 | AC60: 0.007957714298 | AD60: 2.219545986e-05 | AE60: 0.001969989649 | AF60: 0.006775526097 | AG60: 0.04649038178 | AH60: 0.0004439719524 | AI60: 0.08306542549 | AJ60: 0.00522974699 | AK60: 0.03866250382 | AL60: 0.1708632436 | AM60: 0.1140670655 | AN60: 0.00291417777 | AO60: 0.01195161369 | AP60: 0.3851525119 | AQ60: 0.07880322895 | AR60: 0.007918325631 | AS60: 0.4965248405 | AT60: 0.01410047072 | AU60: 0.03066564705 | AV60: 0.2558225754 | AW60: 0.1474407631 | AX60: 0.0008477911993 | AY60: 0.0002082110955 | AZ60: 0.006721611942 | BA60: 0.04179930187 | BB60: 0.0001256531968 | BC60: 0.0604187584 | BD60: 7.925165266e-06 | BE60: 0.04087213559 | BF60: 3.755777181e-06 | BG60: 0.0008157077904 | BH60: 0.00250500724 | BI60: 0.07805217311 | BJ60: 0.0293495637 | BK60: 0.002273328714 | BL60: 0.00427170264 | BM60: 0.1768729954 | BN60: 0.008971220268 | BO60: 0.181212893 | BP60: 0.225501764 | BQ60: 0.09765887615 | BR60: 0.02325241383 | BS60: 0.0001225672263 | BT60: 0.1729400975 | BU60: 0.04163933704 | BV60: 0.003636257892 | BW60: 0.01530477933 | BX60: 0.1635207099 | BY60: 0.006620240441 | BZ60: 0.006193804719 | CA60: 0.007170887411 | CB60: 0.1089253852 | CC60: 0.4372314443 | CD60: 0.03542365651 | CE60: 0.006324451439 | CF60: 0.0181820356 | CG60: 0.07624384147 | CH60: 0.1623195359 | CI60: 0.0629287339 | CJ60: 0.00233195307 | CK60: 0.02628696604 | CL60: 0.01595764644 | CM60: 0.01723184722 | CN60: 0.003030058023 | CO60: 0.03632345228 | CP60: 0.1226219996 | CQ60: 0.0005151596187 | CR60: 0.0314262231 | CS60: 0.008866372021 | CT60: 0.01150765907 | CU60: 0.001634003633 | CV60: 0.02880436101 | CW60: 0.000360910114 | CX60: 0.06432548541 | CY60: 0.01643289556 | CZ60: 0.01018987411 | DA60: 0.006039735012 | DB60: 0.00554807631 | DC60: 0.01264737994 | DD60: 0.002741673498 | DE60: 0.002771646819 | DF60: 0.05759472174 | DG60: 0.002842419184 | DH60: 0.03171614004 | DI60: 0.000841259753 | DJ60: 0.1216470683 | DK60: 0.0002983106582 | DL60: 0.02386542106 | DM60: 0.003339938855 | DN60: 0.2250900376 | DO60: 0.009050896352 | DP60: 0.0526462392 | DQ60: 0.0628375898 | DR60: 0.0007712168856 | DS60: 0.01891439037 | DT60: 0.005916657332 | DU60: 0.005891816954 | DV60: 0.002454502417 | DW60: 0.006677700488 | DX60: 0.01780717233 | DY60: 0.05607839081 | DZ60: 0.03749177938 | EA60: 0.01706004034 | EB60: 0.007537839778 | EC60: 0.06904083227 | ED60: 0.007065822846 | EE60: 0.01190257235 | EF60: 0.0199817439 | EG60: 0.02014757085 | EH60: 0.4071193125 | EI60: 0.0005151420812 | EJ60: 0.02748721993 | EK60: 0.006144572848 | EL60: 0.007111850221 | EM60: 0.005624376694 | EN60: 0.04756302272 | EO60: 0.01686557539 | EP60: 0.005162156894 | EQ60: 0.001491338365 | ER60: 0.007077052172 | ES60: 0.007115310559 | ET60: 0.005805665016 | EU60: 0.01525946376 | EV60: 0.006288263535 | EW60: 0.01647292421 | EX60: 0.00481939339 | EY60: 0.004319930699 | EZ60: 0.00341041065 | FA60: 0.03338207919 | FB60: 0.008706282634 | FC60: 0.004538733019 | FD60: 0.005308071713 | FE60: 0.004960168265 | FF60: 0.005354214459 | FG60: 0.006331336196 | FH60: 0.04761589056 | FI60: 0.003857552373 | FJ60: 0.004277476268 | FK60: 0.003528973908 | FL60: 0.004570092303 | FM60: 0.005749028356 | FN60: 0.007532083644 | FO60: 0.006697299954 | FP60: 0.0003426922176 | FQ60: 0.003554694466 | FR60: 0.003079007262 | FS60: 0.04149831632 | FT60: 0.00408084196 | FU60: 0.01655871606 | FV60: 0.005165792218 | FW60: 0.004438674627 | FX60: 0.01558963937 | FY60: 1.587415405e-09 | FZ60: 0.004510349918 | GA60: 0.003284152445 | GB60: 0.005692144966 | GC60: 0.01482760347 | GD60: 0.01046767223 | GE60: 0.003592247125 | GF60: 0.001423644857 | GG60: 0.003246694526 | GH60: 0.03323735271 | GI60: 0.03359174879 | GJ60: 0.006351869733 | GK60: 0.03496366338 | GL60: 0.004508436512 | GM60: 0.004943569099 | GN60: 0.0159556859 | GO60: 0.007068538706 | GP60: 0.000369235156 | GQ60: 0.006859083911 | GR60: 0.0306548825 | GS60: 0.007335289269 | GT60: 0.004045865511 | GU60: 0.007201300494 | GV60: 0.03553655517 | GW60: 0.03282739557 | GX60: 0.01291199537 | GY60: 2.240460776 | GZ60: 0.1683814988 | HA60: 0.1786024428 | HB60: 1.18957727 | HC60: 0.3019038783 | HD60: 0.05944688335 | HE60: 0.0450472457 | HF60: 0.04063430386 | HG60: 0.03007010757 | HH60: 0.02442398646 | HI60: 0.06158237124 | HJ60: 0.003573709675 | HK60: 0.001185024295 | HL60: 0.1448279802 | HM60: 0.04592967425 | HN60: 0.003441831226 | HO60: 0.005067929198 | HP60: 0.00283656894 | HQ60: 0.004335381287 | HR60: 0.003744396806 | HS60: 0.002538989892 | HT60: 0.005094821619 | HU60: 0.000342053577 | HV60: 0.00153830717 | HW60: 0.0004411950016 | HX60: 0.0001673264764 | HY60: 0.1908956437 | HZ60: 0.002826765886 | IA60: 0.02019903558 | IB60: 0.01061727254 | IC60: 0.01111804504 | ID60: 0.008988756009 | IE60: 0.01131659153 | IF60: 0.006590101634 | IG60: 0.01114220077 | IH60: 0.01442104655 | II60: 0.1379983741 | IJ60: 0.004248128403 | IK60: 0.0176884693 | IL60: 0.006130018402 | IM60: 0.004189196509 | IN60: 0.003557169465 | IO60: 0.003954204239 | IP60: 0.1577633389 | IQ60: 0.2426018325 | IR60: 0.2645779281 | IS60: 0.04469491138 | IT60: 16.99992717
A61: =+MATCH(B61,RUT[EMPRESA],0) -> 24 | B61: BE FORESTALES | C61: 939963013.3 | D61: 939963013.3 | F61: =IFERROR(INDEX($B$9:$B$511,MATCH(0,INDEX(COUNTIF($F$8:F60,$B$9:$B$511),0,0),0)),"") -> BE FORESTALES | H61: 939963013.3 | J61: LA CONFLUENCIA | K61: 1785864.35 | L61: 1075185.466 | M61: 860783.7333 | N61: 227857.4068 | O61: 15524223.96 | P61: 5563674.289 | Q61: 6067160.481 | R61: 1560601.239 | S61: 5994.974482 | T61: 32790.48653 | U61: 205746.4265 | V61: 96678.93273 | W61: 44431.02741 | X61: 414828.561 | Y61: 60584.88562 | Z61: 408296.6422 | AA61: 195899.078 | AB61: 5494770.333 | AC61: 69241.59866 | AD61: 193.1269541 | AE61: 17141.25785 | AF61: 58955.15234 | AG61: 404521.7302 | AH61: 3863.085127 | AI61: 722768.2019 | AJ61: 45505.0318 | AK61: 336409.8625 | AL61: 1486713.86 | AM61: 992519.4184 | AN61: 25356.81981 | AO61: 103993.2834 | AP61: 3351285.891 | AQ61: 685682.0121 | AR61: 68898.87031 | AS61: 4320357.887 | AT61: 122690.9007 | AU61: 266827.6777 | AV61: 2225961.304 | AW61: 1282910.364 | AX61: 7376.793859 | AY61: 1811.684684 | AZ61: 58486.03493 | BA61: 363703.744 | BB61: 1093.33257 | BC61: 525715.2071 | BD61: 68.95838329 | BE61: 355636.2924 | BF61: 32.67973773 | BG61: 7097.629964 | BH61: 21796.54854 | BI61: 679146.9312 | BJ61: 255376.184 | BK61: 19780.66924 | BL61: 37168.90412 | BM61: 1539005.863 | BN61: 78060.30853 | BO61: 1576768.145 | BP61: 1962134.107 | BQ61: 849748.6156 | BR61: 202323.7133 | BS61: 1066.480949 | BT61: 1504784.964 | BU61: 362311.8594 | BV61: 31639.77747 | BW61: 133169.8209 | BX61: 1422825.065 | BY61: 57603.98205 | BZ61: 53893.48304 | CA61: 62395.26698 | CB61: 947780.6717 | CC61: 3804434.672 | CD61: 308228.0308 | CE61: 55030.26521 | CF61: 158205.3796 | CG61: 663412.2907 | CH61: 1412373.42 | CI61: 547554.9855 | CJ61: 20290.771 | CK61: 228727.9342 | CL61: 138850.5429 | CM61: 149937.6083 | CN61: 26365.11612 | CO61: 316057.3263 | CP61: 1066957.542 | CQ61: 4482.502667 | CR61: 273445.5958 | CS61: 77148.00382 | CT61: 100130.3491 | CU61: 14217.77906 | CV61: 250632.2707 | CW61: 3140.348136 | CX61: 559708.3883 | CY61: 142985.7767 | CZ61: 88664.04941 | DA61: 52552.89296 | DB61: 48274.87628 | DC61: 110047.2791 | DD61: 23855.82705 | DE61: 24116.63066 | DF61: 501142.7224 | DG61: 24732.43459 | DH61: 275968.2187 | DI61: 7319.962492 | DJ61: 1058474.477 | DK61: 2595.658263 | DL61: 207657.6068 | DM61: 29061.44868 | DN61: 1958551.597 | DO61: 78753.58541 | DP61: 458085.0266 | DQ61: 546761.9232 | DR61: 6710.506067 | DS61: 164577.739 | DT61: 51481.97046 | DU61: 51265.82956 | DV61: 21357.09638 | DW61: 58103.95295 | DX61: 154943.6225 | DY61: 487948.8361 | DZ61: 326223.1646 | EA61: 148442.6837 | EB61: 65588.18992 | EC61: 600737.5259 | ED61: 61481.08004 | EE61: 103566.5654 | EF61: 173864.9868 | EG61: 175307.8789 | EH61: 3542423.237 | EI61: 4482.350069 | EJ61: 239171.5736 | EK61: 53465.10708 | EL61: 61881.57306 | EM61: 48938.78055 | EN61: 413854.9849 | EO61: 146750.6068 | EP61: 44916.91741 | EQ61: 12976.4212 | ER61: 61578.78856 | ES61: 61911.68212 | ET61: 50516.20503 | EU61: 132775.5215 | EV61: 54715.38731 | EW61: 143334.0736 | EX61: 41934.46641 | EY61: 37588.54572 | EZ61: 29674.6373 | FA61: 290463.8748 | FB61: 75755.03535 | FC61: 39492.38667 | FD61: 46186.55023 | FE61: 43159.3756 | FF61: 46588.04712 | FG61: 55090.1708 | FH61: 414314.998 | FI61: 33565.3032 | FJ61: 37219.14157 | FK61: 30706.27895 | FL61: 39765.24982 | FM61: 50023.39857 | FN61: 65538.10469 | FO61: 58274.49167 | FP61: 2981.830725 | FQ61: 30930.07845 | FR61: 26791.03284 | FS61: 361084.8111 | FT61: 35508.18873 | FU61: 144080.565 | FV61: 44948.54906 | FW61: 38621.75941 | FX61: 135648.4427 | FY61: 0.01381240595 | FZ61: 39245.41987 | GA61: 28576.04044 | GB61: 49528.44529 | GC61: 129017.8222 | GD61: 91081.22412 | GE61: 31256.83134 | GF61: 12387.407 | GG61: 28250.11189 | GH61: 289204.582 | GI61: 292288.2502 | GJ61: 55268.83705 | GK61: 304225.5422 | GL61: 39228.77096 | GM61: 43014.94307 | GN61: 138833.4838 | GO61: 61504.71126 | GP61: 3212.785923 | GQ61: 59682.20491 | GR61: 266734.0132 | GS61: 63825.75908 | GT61: 35203.85194 | GU61: 62659.89704 | GV61: 309210.3836 | GW61: 285637.4662 | GX61: 112349.7487 | GY61: 19494679 | GZ61: 1465119.723 | HA61: 1554054.117 | HB61: 10350740.03 | HC61: 2626923.56 | HD61: 517258.7359 | HE61: 391964.7264 | HF61: 353566.8729 | HG61: 261645.7744 | HH61: 212517.7915 | HI61: 535840.0257 | HJ61: 31095.53344 | HK61: 10311.12372 | HL61: 1260176.039 | HM61: 399642.9065 | HN61: 29948.03375 | HO61: 44097.02415 | HP61: 24681.53049 | HQ61: 37722.98425 | HR61: 32580.71491 | HS61: 22092.23812 | HT61: 44331.02026 | HU61: 2976.273791 | HV61: 13385.10579 | HW61: 3838.922344 | HX61: 1455.93977 | HY61: 1661019.616 | HZ61: 24596.23224 | IA61: 175755.6835 | IB61: 92382.92513 | IC61: 96740.24273 | ID61: 78212.89037 | IE61: 98467.83379 | IF61: 57341.73852 | IG61: 96950.42637 | IH61: 125480.2925 | II61: 1200750.326 | IJ61: 36963.78017 | IK61: 153910.7646 | IL61: 53338.46605 | IM61: 36451.00245 | IN61: 30951.6139 | IO61: 34406.28963 | IP61: 1372729.076 | IQ61: 2110925.084 | IR61: 2302143.307 | IS61: 388898.9979 | IT61: 147919627.5
A62: =+MATCH(B62,RUT[EMPRESA],0) -> 10 | B62: ALLIPEN | C62: -48332728.39 | D62: -48332728.39 | F62: =IFERROR(INDEX($B$9:$B$511,MATCH(0,INDEX(COUNTIF($F$8:F61,$B$9:$B$511),0,0),0)),"") -> ALLIPEN | G62: -48332728.39 | J62: TRANSELEC | K62: 377809.4164 | L62: 227461.3934 | M62: 182103.5287 | N62: 48204.48647 | O62: 3284234.883 | P62: 1177025.868 | Q62: 1283541.138 | R62: 330153.7675 | S62: 1268.269794 | T62: 6937.007606 | U62: 43526.7871 | V62: 20452.95946 | W62: 9399.627994 | X62: 87759.26154 | Y62: 12817.06546 | Z62: 86377.39823 | AA62: 41443.5264 | AB62: 1162448.857 | AC62: 14648.44067 | AD62: 40.85706835 | AE62: 3626.327288 | AF62: 12472.28643 | AG62: 85578.79485 | AH62: 817.2568859 | AI62: 152905.5847 | AJ62: 9626.839524 | AK62: 71169.35496 | AL62: 314522.4864 | AM62: 209972.9368 | AN62: 5364.374566 | AO62: 22000.35054 | AP62: 708982.9454 | AQ62: 145059.7974 | AR62: 14575.93461 | AS62: 913995.4511 | AT62: 25955.93422 | AU62: 56448.86142 | AV62: 470914.3454 | AW62: 271406.737 | AX62: 1560.601276 | AY62: 383.27185 | AZ62: 12373.04207 | BA62: 76943.52558 | BB62: 231.300513 | BC62: 111217.9408 | BD62: 14.58852491 | BE62: 75236.81185 | BF62: 6.91357809 | BG62: 1501.54262 | BH62: 4611.179614 | BI62: 143677.2652 | BJ62: 54026.235 | BK62: 4184.709271 | BL62: 7863.285908 | BM62: 325585.1471 | BN62: 16514.08721 | BO62: 333573.9652 | BP62: 415100.2522 | BQ62: 179768.9889 | BR62: 42802.69331 | BS62: 225.619905 | BT62: 318345.5279 | BU62: 76649.06473 | BV62: 6693.568782 | BW62: 28172.80738 | BX62: 301006.4609 | BY62: 12186.43893 | BZ62: 11401.46248 | CA62: 13200.06159 | CB62: 200508.2091 | CC62: 804849.0601 | CD62: 65207.3336 | CE62: 11641.95499 | CF62: 33469.21739 | CG62: 140348.5155 | CH62: 298795.3579 | CI62: 115838.266 | CJ62: 4292.624102 | CK62: 48388.65133 | CL62: 29374.59532 | CM62: 31720.12492 | CN62: 5577.68519 | CO62: 66863.66409 | CP62: 225720.7308 | CQ62: 948.2980703 | CR62: 57848.91835 | CS62: 16321.08413 | CT62: 21183.12557 | CU62: 3007.849287 | CV62: 53022.63408 | CW62: 664.3579043 | CX62: 118409.3851 | CY62: 30249.42675 | CZ62: 18757.36686 | DA62: 11117.85328 | DB62: 10212.81534 | DC62: 23281.10659 | DD62: 5046.831299 | DE62: 5102.005736 | DF62: 106019.4967 | DG62: 5232.28244 | DH62: 58382.5931 | DI62: 1548.578288 | DJ62: 223926.0919 | DK62: 549.1257685 | DL62: 43931.10778 | DM62: 6148.10916 | DN62: 414342.3524 | DO62: 16660.75374 | DP62: 96910.40452 | DQ62: 115670.4893 | DR62: 1419.644432 | DS62: 34817.32503 | DT62: 10891.29374 | DU62: 10845.56795 | DV62: 4518.211096 | DW62: 12292.21052 | DX62: 32779.17474 | DY62: 103228.2575 | DZ62: 69014.30304 | EA62: 31403.86541 | EB62: 13875.54198 | EC62: 127089.3246 | ED62: 13006.66032 | EE62: 21910.07599 | EF62: 36782.09334 | EG62: 37087.34509 | EH62: 749419.1011 | EI62: 948.2657874 | EJ62: 50598.06063 | EK62: 11310.83719 | EL62: 13091.38682 | EM62: 10353.26794 | EN62: 87553.29616 | EO62: 31045.89726 | EP62: 9502.420693 | EQ62: 2745.23321 | ER62: 13027.33109 | ES62: 13097.75655 | ET62: 10686.98076 | EU62: 28089.39116 | EV62: 11575.34084 | EW62: 30323.11089 | EX62: 8871.466796 | EY62: 7952.063394 | EZ62: 6277.832581 | FA62: 61449.2288 | FB62: 16026.394 | FC62: 8354.831409 | FD62: 9771.018494 | FE62: 9130.603066 | FF62: 9855.957367 | FG62: 11654.62835 | FH62: 87650.61447 | FI62: 7100.924332 | FJ62: 7873.913915 | FK62: 6496.08204 | FL62: 8412.557107 | FM62: 10582.72484 | FN62: 13864.94618 | FO62: 12328.28893 | FP62: 630.8226748 | FQ62: 6543.428055 | FR62: 5667.790213 | FS62: 76389.47592 | FT62: 7511.952441 | FU62: 30481.03524 | FV62: 9509.112543 | FW62: 8170.645427 | FX62: 28697.17344 | FY62: 0.002922090378 | FZ62: 8302.584225 | GA62: 6045.418378 | GB62: 10478.01476 | GC62: 27294.42924 | GD62: 19268.73345 | GE62: 6612.554425 | GF62: 2620.62402 | GG62: 5976.466403 | GH62: 61182.81848 | GI62: 61835.18544 | GJ62: 11692.42618 | GK62: 64360.58516 | GL62: 8299.062057 | GM62: 9100.047571 | GN62: 29370.98638 | GO62: 13011.65963 | GP62: 679.6825162 | GQ62: 12626.0984 | GR62: 56429.04618 | GS62: 13502.69005 | GT62: 7447.568322 | GU62: 13256.04553 | GV62: 65415.15575 | GW62: 60428.17554 | GX62: 23768.20669 | GY62: 4124206.465 | GZ62: 309954.128 | HA62: 328768.6878 | HB62: 2189755.929 | HC62: 555740.1139 | HD62: 109428.9279 | HE62: 82922.29168 | HF62: 74799.01479 | HG62: 55352.6013 | HH62: 44959.30656 | HI62: 113359.9018 | HJ62: 6578.430967 | HK62: 2181.374882 | HL62: 266597.1656 | HM62: 84546.65288 | HN62: 6335.671102 | HO62: 9328.967769 | HP62: 5221.513399 | HQ62: 7980.504604 | HR62: 6892.629268 | HS62: 4673.734369 | HT62: 9378.470933 | HU62: 629.6470748 | HV62: 2831.69268 | HW62: 812.1451166 | HX62: 308.0120586 | HY62: 351397.827 | HZ62: 5203.468086 | IA62: 37182.0806 | IB62: 19544.11545 | IC62: 20465.92993 | ID62: 16546.36673 | IE62: 20831.41131 | IF62: 12130.95987 | IG62: 20510.39544 | IH62: 26546.04538 | II62: 254025.3294 | IJ62: 7819.890808 | IK62: 32560.66799 | IL62: 11284.04558 | IM62: 7711.409864 | IN62: 6547.983997 | IO62: 7278.839632 | IP62: 290408.379 | IQ62: 446577.8009 | IR62: 487031.0667 | IS62: 82273.71997 | IT62: 31293210
A63: =+MATCH(B63,RUT[EMPRESA],0) -> 90 | B63: EL CANELO | C63: 26693369.33 | D63: 26693369.33 | F63: =IFERROR(INDEX($B$9:$B$511,MATCH(0,INDEX(COUNTIF($F$8:F62,$B$9:$B$511),0,0),0)),"") -> EL CANELO | H63: 26693369.33 | J63: STS | K63: 364.0554978 | L63: 219.1808017 | M63: 175.4741621 | N63: 46.44963189 | O63: 3164.674338 | P63: 1134.176967 | Q63: 1236.814615 | R63: 318.1347233 | S63: 1.222099215 | T63: 6.684470125 | U63: 41.94222127 | V63: 19.7083821 | W63: 9.057440337 | X63: 84.56443978 | Y63: 12.3504681 | Z63: 83.23288235 | AA63: 39.93480039 | AB63: 1120.130624 | AC63: 14.11517323 | AD63: 0.03936969199 | AE63: 3.494313081 | AF63: 12.01824054 | AG63: 82.46335164 | AH63: 0.7875051533 | AI63: 147.3391512 | AJ63: 9.276380372 | AK63: 68.57847851 | AL63: 303.0724894 | AM63: 202.3290016 | AN63: 5.16908782 | AO63: 21.19944135 | AP63: 683.1728588 | AQ63: 139.778985 | AR63: 14.0453067 | AS63: 880.7220107 | AT63: 25.01102445 | AU63: 54.39387545 | AV63: 453.7709992 | AW63: 261.5263422 | AX63: 1.50378855 | AY63: 0.3693190748 | AZ63: 11.92260911 | BA63: 74.14244401 | BB63: 0.2228801606 | BC63: 107.1691203 | BD63: 0.01405743866 | BE63: 72.49786215 | BF63: 0.006661893546 | BG63: 1.446879887 | BH63: 4.443312466 | BI63: 138.446783 | BJ63: 52.05944326 | BK63: 4.032367512 | BL63: 7.577027837 | BM63: 313.7324207 | BN63: 15.91290205 | BO63: 321.4304109 | BP63: 399.9887836 | BQ63: 173.2246098 | BR63: 41.24448767 | BS63: 0.2174063515 | BT63: 306.7563554 | BU63: 73.85870283 | BV63: 6.449893541 | BW63: 27.14719371 | BX63: 290.0485064 | BY63: 11.74279914 | BZ63: 10.98639927 | CA63: 12.71952149 | CB63: 193.2088315 | CC63: 775.5490267 | CD63: 62.83350086 | CE63: 11.21813681 | CF63: 32.25079118 | CG63: 135.2392144 | CH63: 287.9178973 | CI63: 111.6212454 | CJ63: 4.136353771 | CK63: 46.62709234 | CL63: 28.3052313 | CM63: 30.56537335 | CN63: 5.374633003 | CO63: 64.42953366 | CP63: 217.5035069 | CQ63: 0.9137758642 | CR63: 55.74296417 | CS63: 15.72692513 | CT63: 20.41196695 | CU63: 2.898350389 | CV63: 51.09237781 | CW63: 0.6401723647 | CX63: 114.0987645 | CY63: 29.14821504 | CZ63: 18.07451649 | DA63: 10.71311469 | DB63: 9.841024104 | DC63: 22.43357227 | DD63: 4.86310452 | DE63: 4.916270365 | DF63: 102.1599223 | DG63: 5.041804426 | DH63: 56.25721082 | DI63: 1.492203251 | DJ63: 215.7742007 | DK63: 0.5291351838 | DL63: 42.33182291 | DM63: 5.92429104 | DN63: 399.2584747 | DO63: 16.05422928 | DP63: 93.38244105 | DQ63: 111.4595765 | DR63: 1.367963153 | DS63: 33.5498218 | DT63: 10.49480291 | DU63: 10.45074174 | DV63: 4.353728409 | DW63: 11.84472018 | DX63: 31.58586911 | DY63: 99.47029652 | DZ63: 66.50187993 | EA63: 30.26062707 | EB63: 13.37041144 | EC63: 122.4627162 | ED63: 12.53316087 | EE63: 21.1124532 | EF63: 35.44306393 | EG63: 35.73720318 | EH63: 722.1369612 | EI63: 0.9137447566 | EJ63: 48.75606945 | EK63: 10.89907314 | EL63: 12.61480296 | EM63: 9.97636361 | EN63: 84.36597244 | EO63: 29.91569053 | EP63: 9.156490931 | EQ63: 2.645294689 | ER63: 12.55307914 | ES63: 12.62094081 | ET63: 10.29792782 | EU63: 27.06681421 | EV63: 11.1539477 | EW63: 29.21921675 | EX63: 8.548506522 | EY63: 7.662573433 | EZ63: 6.049291959 | FA63: 59.21220755 | FB63: 15.44296301 | FC63: 8.050678927 | FD63: 9.415310595 | FE63: 8.798209095 | FF63: 9.497157321 | FG63: 11.2303488 | FH63: 84.45974793 | FI63: 6.842419563 | FJ63: 7.587268938 | FK63: 6.259596182 | FL63: 8.106303157 | FM63: 10.19746728 | FN63: 13.36020137 | FO63: 11.87948518 | FP63: 0.6078579646 | FQ63: 6.305218595 | FR63: 5.461457808 | FS63: 73.60856418 | FT63: 7.238484448 | FU63: 29.37139196 | FV63: 9.162939169 | FW63: 7.873198123 | FX63: 27.65247055 | FY63: 2.815713481e-06 | FZ63: 8.00033377 | GA63: 5.825338652 | GB63: 10.0965691 | GC63: 26.30079239 | GD63: 18.5672671 | GE63: 6.371828462 | GF63: 2.52522182 | GG63: 5.758896832 | GH63: 58.95549573 | GI63: 59.58411367 | GJ63: 11.26677062 | GK63: 62.01757777 | GL63: 7.996939823 | GM63: 8.768765954 | GN63: 28.30175375 | GO63: 12.53797819 | GP63: 0.6549390936 | GQ63: 12.16645308 | GR63: 54.37478158 | GS63: 13.01113295 | GT63: 7.176444193 | GU63: 12.77346737 | GV63: 63.03375737 | GW63: 58.22832509 | GX63: 22.90293979 | GY63: 3974.067274 | GZ63: 298.6704393 | HA63: 316.8000666 | HB63: 2110.039216 | HC63: 535.508738 | HD63: 105.4452353 | HE63: 79.90355682 | HF63: 72.07600281 | HG63: 53.33752401 | HH63: 43.32259075 | HI63: 109.2331046 | HJ63: 6.338947247 | HK63: 2.101963275 | HL63: 256.8918603 | HM63: 81.46878415 | HN63: 6.105024905 | HO63: 8.989352454 | HP63: 5.031427426 | HQ63: 7.689979258 | HR63: 6.641707353 | HS63: 4.503589953 | HT63: 9.037053486 | HU63: 0.6067251616 | HV63: 2.728606655 | HW63: 0.7825794748 | HX63: 0.2967990697 | HY63: 338.6054059 | HZ63: 5.014039041 | IA63: 35.8284899 | IB63: 18.83262399 | IC63: 19.72088038 | ID63: 15.94400646 | IE63: 20.07305664 | IF63: 11.68933976 | IG63: 19.76372715 | IH63: 25.57965298 | II63: 244.7776941 | IJ63: 7.535212508 | IK63: 31.37531696 | IL63: 10.87325687 | IM63: 7.430680746 | IN63: 6.30960868 | IO63: 7.013857966 | IP63: 279.8362412 | IQ63: 430.3204116 | IR63: 469.3010013 | IS63: 79.27859597 | IT63: 30154
A64: =+MATCH(B64,RUT[EMPRESA],0) -> 33 | B64: CARBOMET | C64: 58052632.33 | D64: 58052632.33 | F64: =IFERROR(INDEX($B$9:$B$511,MATCH(0,INDEX(COUNTIF($F$8:F63,$B$9:$B$511),0,0),0)),"") -> CARBOMET | H64: 58052632.33 | J64: INTERCHILE | K64: 9616.973769 | L64: 5789.930474 | M64: 4635.365829 | N64: 1227.02416 | O64: 83598.76526 | P64: 29960.67966 | Q64: 32671.97937 | R64: 8403.920029 | S64: 32.28325396 | T64: 176.5785004 | U64: 1107.955365 | V64: 520.6211547 | W64: 239.2634273 | X64: 2233.873693 | Y64: 326.2528063 | Z64: 2198.698965 | AA64: 1054.926873 | AB64: 29589.62822 | AC64: 372.8696628 | AD64: 1.039998839 | AE64: 92.3065781 | AF64: 317.4766066 | AG64: 2178.370865 | AH64: 20.80291727 | AI64: 3892.144909 | AJ64: 245.0469976 | AK64: 1811.584863 | AL64: 8006.032593 | AM64: 5344.769446 | AN64: 136.5478128 | AO64: 560.0093191 | AP64: 18046.85138 | AQ64: 3692.43382 | AR64: 371.0240526 | AS64: 23265.35522 | AT64: 660.6969749 | AU64: 1436.881126 | AV64: 11986.91909 | AW64: 6908.540012 | AX64: 39.72442422 | AY64: 9.756017631 | AZ64: 314.9503846 | BA64: 1958.563855 | BB64: 5.887653588 | BC64: 2831.004134 | BD64: 0.3713445331 | BE64: 1915.120202 | BF64: 0.1759821123 | BG64: 38.22111192 | BH64: 117.3755641 | BI64: 3657.242065 | BJ64: 1375.214228 | BK64: 106.5199477 | BL64: 200.1565102 | BM64: 8287.62779 | BN64: 420.3588809 | BO64: 8490.979668 | BP64: 10566.19571 | BQ64: 4575.941138 | BR64: 1089.523873 | BS64: 5.74305619 | BT64: 8103.346443 | BU64: 1951.068483 | BV64: 170.3818714 | BW64: 717.1265135 | BX64: 7661.988062 | BY64: 310.2004833 | BZ64: 290.2192503 | CA64: 336.0018054 | CB64: 5103.848934 | CC64: 20487.08148 | CD64: 1659.824212 | CE64: 296.3408822 | CF64: 851.9443182 | CG64: 3572.510195 | CH64: 7605.705401 | CI64: 2948.612493 | CJ64: 109.2668727 | CK64: 1231.711996 | CL64: 747.7175009 | CM64: 807.421933 | CN64: 141.9775417 | CO64: 1701.985381 | CP64: 5745.622667 | CQ64: 24.13851341 | CR64: 1472.518964 | CS64: 415.4460719 | CT64: 539.2072142 | CU64: 76.56349056 | CV64: 1349.668004 | CW64: 16.91094044 | CX64: 3014.059208 | CY64: 769.985953 | CZ64: 477.4605851 | DA64: 283.0001019 | DB64: 259.9627564 | DC64: 592.6104053 | DD64: 128.4648876 | DE64: 129.8693288 | DF64: 2698.680007 | DG64: 133.1854654 | DH64: 1486.103421 | DI64: 39.41838431 | DJ64: 5699.940919 | DK64: 13.97775673 | DL64: 1118.247171 | DM64: 156.4974348 | DN64: 10546.90371 | DO64: 424.0922135 | DP64: 2466.812042 | DQ64: 2944.34181 | DR64: 36.1364293 | DS64: 886.2598097 | DT64: 277.2331278 | DU64: 276.0691976 | DV64: 115.0090911 | DW64: 312.8928529 | DX64: 834.3795838 | DY64: 2627.630233 | DZ64: 1756.728957 | EA64: 799.3716852 | EB64: 353.195864 | EC64: 3235.003279 | ED64: 331.0788605 | EE64: 557.7114199 | EF64: 936.2721294 | EG64: 944.0421794 | EH64: 19076.13607 | EI64: 24.13769167 | EJ64: 1287.951545 | EK64: 287.9124231 | EL64: 333.2355366 | EM64: 263.5379159 | EN64: 2228.630934 | EO64: 790.2597623 | EP64: 241.8799706 | EQ64: 69.87871298 | ER64: 331.6050261 | ES64: 333.3976755 | ET64: 272.0324299 | EU64: 715.0031899 | EV64: 294.6452482 | EW64: 771.8615505 | EX64: 225.8193146 | EY64: 202.4163023 | EZ64: 159.7994879 | FA64: 1564.163295 | FB64: 407.9448631 | FC64: 212.6685863 | FD64: 248.7170104 | FE64: 232.4155152 | FF64: 250.8790923 | FG64: 296.663477 | FH64: 2231.108129 | FI64: 180.7509291 | FJ64: 200.4270415 | FK64: 165.3549326 | FL64: 214.1379688 | FM64: 269.3786412 | FN64: 352.9261524 | FO64: 313.8112129 | FP64: 16.05731581 | FQ64: 166.5601047 | FR64: 144.2711257 | FS64: 1944.460763 | FT64: 191.2134702 | FU64: 775.8814459 | FV64: 242.0503087 | FW64: 207.9802126 | FX64: 730.4740226 | FY64: 7.438053498e-05 | FZ64: 211.3386571 | GA64: 153.8834858 | GB64: 266.7132916 | GC64: 694.7677813 | GD64: 490.4771985 | GE64: 168.3196863 | GF64: 66.70684043 | GG64: 152.1283434 | GH64: 1557.381936 | GI64: 1573.987652 | GJ64: 297.6256042 | GK64: 1638.2706 | GL64: 211.2490018 | GM64: 231.6377384 | GN64: 747.625637 | GO64: 331.2061159 | GP64: 17.30102174 | GQ64: 321.391823 | GR64: 1436.376737 | GS64: 343.7050809 | GT64: 189.5746005 | GU64: 337.4268523 | GV64: 1665.114234 | GW64: 1538.172829 | GX64: 605.0093257 | GY64: 104979.8752 | GZ64: 7889.747024 | HA64: 8368.66343 | HB64: 55739.28128 | HC64: 14146.122 | HD64: 2785.46559 | HE64: 2110.750736 | HF64: 1903.976269 | HG64: 1408.976303 | HH64: 1144.419522 | HI64: 2885.526816 | HJ64: 167.4510886 | HK64: 55.52594537 | HL64: 6786.114471 | HM64: 2152.098141 | HN64: 161.2717422 | HO64: 237.4648021 | HP64: 132.9113442 | HQ64: 203.1402609 | HR64: 175.4488691 | HS64: 118.9678681 | HT64: 238.7248836 | HU64: 16.02739143 | HV64: 72.07950104 | HW64: 20.67279941 | HX64: 7.840312494 | HY64: 8944.678289 | HZ64: 132.4520086 | IA64: 946.4536305 | IB64: 497.4869271 | IC64: 520.9513123 | ID64: 421.1805421 | IE64: 530.2544813 | IF64: 308.788288 | IG64: 522.0831623 | IH64: 675.7179969 | II64: 6466.10387 | IJ64: 199.0519069 | IK64: 828.8175898 | IL64: 287.2304545 | IM64: 196.2905718 | IN64: 166.6760742 | IO64: 185.2796854 | IP64: 7392.218514 | IQ64: 11367.44298 | IR64: 12397.1632 | IS64: 2094.241627 | IT64: 796555
A65: =+MATCH(B65,RUT[EMPRESA],0) -> 235 | B65: ORAZUL_CHILE | C65: -8014564.955 | D65: -8014564.955 | F65: =IFERROR(INDEX($B$9:$B$511,MATCH(0,INDEX(COUNTIF($F$8:F64,$B$9:$B$511),0,0),0)),"") -> ORAZUL_CHILE | G65: -8014564.955 | J65: TEN | K65: 58482.5445 | L65: 35209.60696 | M65: 28188.49203 | N65: 7461.754267 | O65: 508379.1041 | P65: 182196.2733 | Q65: 198684.1738 | R65: 51105.74687 | S65: 196.3202647 | T65: 1073.805571 | U65: 6737.675539 | V65: 3165.990735 | W65: 1455.003868 | X65: 13584.58708 | Y65: 1984.001903 | Z65: 13370.68325 | AA65: 6415.199758 | AB65: 179939.8429 | AC65: 2267.487379 | AD65: 6.324419705 | AE65: 561.3328778 | AF65: 1930.632257 | AG65: 13247.06442 | AH65: 126.5062757 | AI65: 23668.83214 | AJ65: 1490.174798 | AK65: 11016.57287 | AL65: 48686.12192 | AM65: 32502.50281 | AN65: 830.3717711 | AO65: 3405.517236 | AP65: 109746.1441 | AQ65: 22454.35315 | AR65: 2256.263892 | AS65: 141480.8031 | AT65: 4017.816952 | AU65: 8737.932159 | AV65: 72894.6076 | AW65: 42012.07245 | AX65: 241.5713574 | AY65: 59.32809519 | AZ65: 1915.269847 | BA65: 11910.37852 | BB65: 35.80387877 | BC65: 17215.84453 | BD65: 2.258212792 | BE65: 11646.18987 | BF65: 1.070178828 | BG65: 232.4294453 | BH65: 713.7818838 | BI65: 22240.34576 | BJ65: 8362.924679 | BK65: 647.766931 | BL65: 1217.187683 | BM65: 50398.55288 | BN65: 2556.277842 | BO65: 51635.17217 | BP65: 64254.93361 | BQ65: 27827.11981 | BR65: 6625.59033 | BS65: 34.92455603 | BT65: 49277.90492 | BU65: 11864.79782 | BV65: 1036.122757 | BW65: 4360.97511 | BX65: 46593.92534 | BY65: 1886.384844 | BZ65: 1764.875378 | CA65: 2043.287318 | CB65: 31037.42191 | CC65: 124585.6215 | CD65: 10093.6891 | CE65: 1802.102122 | CF65: 5180.826391 | CG65: 21725.07605 | CH65: 46251.66037 | CI65: 17931.04208 | CJ65: 664.4714747 | CK65: 7490.26184 | CL65: 4547.004398 | CM65: 4910.077771 | CN65: 863.3909271 | CO65: 10350.07874 | CP65: 34940.16324 | CQ65: 146.7906349 | CR65: 8954.652252 | CS65: 2526.402169 | CT65: 3279.0159 | CU65: 465.5963354 | CV65: 8207.573507 | CW65: 102.8384657 | CX65: 18329.03531 | CY65: 4682.422854 | CZ65: 2903.52356 | DA65: 1720.974441 | DB65: 1580.880205 | DC65: 3603.770295 | DD65: 781.2180511 | DE65: 789.7587104 | DF65: 16411.15775 | DG65: 809.9247327 | DH65: 9037.261779 | DI65: 239.7102737 | DJ65: 34662.36432 | DK65: 85.00124877 | DL65: 6800.261862 | DM65: 951.6890048 | DN65: 64137.61544 | DO65: 2578.980908 | DP65: 15001.12702 | DQ65: 17905.07129 | DR65: 219.7521159 | DS65: 5389.505057 | DT65: 1685.904435 | DU65: 1678.826367 | DV65: 699.3909362 | DW65: 1902.757628 | DX65: 5074.012087 | DY65: 15979.09132 | DZ65: 10682.98426 | EA65: 4861.122769 | EB65: 2147.847475 | EC65: 19672.63588 | ED65: 2013.350006 | EE65: 3391.543298 | EF65: 5693.638954 | EG65: 5740.890023 | EH65: 116005.4091 | EI65: 146.7856377 | EJ65: 7832.264638 | EK65: 1750.847148 | EL65: 2026.46514 | EM65: 1602.621393 | EN65: 13552.70492 | EO65: 4805.711529 | EP65: 1470.915538 | EQ65: 424.9450024 | ER65: 2016.549713 | ES65: 2027.451136 | ET65: 1654.278058 | EU65: 4348.062798 | EV65: 1791.790666 | EW65: 4693.828699 | EX65: 1373.247805 | EY65: 1230.929884 | EZ65: 971.7693824 | FA65: 9511.957886 | FB65: 2480.785971 | FC65: 1293.275864 | FD65: 1512.492805 | FE65: 1413.360485 | FF65: 1525.640813 | FG65: 1804.063878 | FH65: 13567.76919 | FI65: 1099.178859 | FJ65: 1218.832832 | FK65: 1005.553039 | FL65: 1302.211443 | FM65: 1638.139892 | FN65: 2146.207311 | FO65: 1908.34234 | FP65: 97.64742102 | FQ65: 1012.881908 | FR65: 877.3386235 | FS65: 11824.61508 | FT65: 1162.80345 | FU65: 4718.274405 | FV65: 1471.951395 | FW65: 1264.765022 | FX65: 4442.14371 | FY65: 0.0004523213904 | FZ65: 1285.188326 | GA65: 935.7931113 | GB65: 1621.931423 | GC65: 4225.007644 | GD65: 2982.679924 | GE65: 1023.582239 | GF65: 405.6562759 | GG65: 925.1197751 | GH65: 9470.719227 | GI65: 9571.70157 | GJ65: 1809.914746 | GK65: 9962.617716 | GL65: 1284.643116 | GM65: 1408.630685 | GN65: 4546.445757 | GO65: 2014.123869 | GP65: 105.2106201 | GQ65: 1954.441391 | GR65: 8734.864884 | GS65: 2090.132319 | GT65: 1152.837189 | GU65: 2051.953284 | GV65: 10125.85868 | GW65: 9353.9052 | GX65: 3679.170357 | GY65: 638401.4734 | GZ65: 47978.96849 | HA65: 50891.34516 | HB65: 338960.5791 | HC65: 86025.10824 | HD65: 16938.91646 | HE65: 12835.85428 | HF65: 11578.42161 | HG65: 8568.237921 | HH65: 6959.420629 | HI65: 17547.40675 | HJ65: 1018.30014 | HK65: 337.6632451 | HL65: 41267.58074 | HM65: 13087.29527 | HN65: 980.7224253 | HO65: 1444.066106 | HP65: 808.2577523 | HQ65: 1235.332407 | HR65: 1066.93608 | HS65: 723.4649702 | HT65: 1451.728887 | HU65: 97.46544547 | HV65: 438.3283898 | HW65: 125.7150056 | HX65: 47.67834823 | HY65: 54394.19496 | HZ65: 805.4644501 | IA65: 5755.554491 | IB65: 3025.307342 | IC65: 3167.998482 | ID65: 2561.274512 | IE65: 3224.572724 | IF65: 1877.797031 | IG65: 3174.881466 | IH65: 4109.162484 | II65: 39321.53882 | IJ65: 1210.470391 | IK65: 5040.188602 | IL65: 1746.699974 | IM65: 1193.678217 | IN65: 1013.587139 | IO65: 1126.719039 | IP65: 44953.40828 | IQ65: 69127.46209 | IR65: 75389.37568 | IS65: 12735.45941 | IT65: 4843994
